Workbook

Sheet Table
C2: Efficiency | E2: System Flux | H2: Current Display Range [A]
C3: Optical | D3: Driver | E3: Target | F3: Require | H3: Min. | I3: Max. | J3: Interval
C4: 90.0% | D4: 85.0% | E4: 12,000 | F4: =E4/C4 -> 13,333 | H4: 0.050 | I4: 1.500 | J4: 0.015
C6: SSC | D6: LED #1 | H6: SSC | I6: LED #2 | N6: LED #3 | S6: LED #4
C7: 5050 | D7: STW0L8PA | H7: Z5M3 | I7: SZ5-M3-Wx-C7
C8: CRI 70 | D8: Cool | E8: =IF(D7="","",VLOOKUP(D7,Parameter!$A:$F,6,0)) -> 5.0 x 5.0 x 0.7 | H8: CRI 70 | I8: Cool | J8: =IF(I7="","",VLOOKUP(I7,Parameter!$A:$F,6,0)) -> 3.5 x 3.5 x 2.0 | O8: =IF(N7="","",VLOOKUP(N7,Parameter!$A:$F,6,0)) ->  | T8: =IF(S7="","",VLOOKUP(S7,Parameter!$A:$F,6,0)) -> 
C9: Pd Group | D9: Rth [℃/W] | E9: IFBin | F9: IFMAX | H9: Pd Group | I9: Rth [℃/W] | J9: IFBin | K9: IFMAX | M9: Pd Group | N9: Rth [℃/W] | O9: IFBin | P9: IFMAX | R9: Pd Group | S9: Rth [℃/W] | T9: IFBin | U9: IFMAX
C10: High | D10: =IF(D7="","",VLOOKUP(D7,Parameter!$A:$F,5,0)) -> 2 | E10: =IF(D7="","",VLOOKUP(D7,Parameter!$A:$F,3,0)) -> 640 | F10: =IF(D7="","",VLOOKUP(D7,Parameter!$A:$F,4,0)) -> 800 | H10: High | I10: =IF(I7="","",VLOOKUP(I7,Parameter!$A:$F,5,0)) -> 3.2 | J10: =IF(I7="","",VLOOKUP(I7,Parameter!$A:$F,3,0)) -> 700 | K10: =IF(I7="","",VLOOKUP(I7,Parameter!$A:$F,4,0)) -> 1500 | N10: =IF(N7="","",VLOOKUP(N7,Parameter!$A:$F,5,0)) ->  | O10: =IF(N7="","",VLOOKUP(N7,Parameter!$A:$F,3,0)) ->  | P10: =IF(N7="","",VLOOKUP(N7,Parameter!$A:$F,4,0)) ->  | S10: =IF(S7="","",VLOOKUP(S7,Parameter!$A:$F,5,0)) ->  | T10: =IF(S7="","",VLOOKUP(S7,Parameter!$A:$F,3,0)) ->  | U10: =IF(S7="","",VLOOKUP(S7,Parameter!$A:$F,4,0)) -> 
C12: Binning | H12: Binning | M12: Binning | R12: Binning
C13: Flux | E13: VF | H13: Flux | J13: VF | M13: Flux | O13: VF | R13: Flux | T13: VF
C14: W3 | D14: typ | E14: Z0 | F14: typ | H14: W6 | I14: typ | J14: G | K14: typ
C15: =CHOOSE(VLOOKUP(D14,참조!$A:$B,2,0),SUMIFS(List!$I:$I,List!$E:$E,Table!D7,List!$F:$F,D8,List!$G:$G,Table!C13,List!$H:$H,Table!C14),SUMIFS(List!$J:$J,List!$E:$E,Table!D7,List!$F:$F,D8,List!$G:$G,Table!C13,List!$H:$H,Table!C14),SUMIFS(List!$K:$K,List!$E:$E,Table!D7,List!$F:$F,D8,List!$G:$G,Table!C13,List!$H:$H,Table!C14)) -> 675.00 | E15: =IFERROR(CHOOSE(VLOOKUP(F14,참조!$A:$B,2,0),SUMIFS(List!$I:$I,List!$E:$E,Table!D7,List!$G:$G,Table!E13,List!$H:$H,Table!E14),SUMIFS(List!$J:$J,List!$E:$E,Table!D7,List!$G:$G,Table!E13,List!$H:$H,Table!E14),SUMIFS(List!$K:$K,List!$E:$E,Table!D7,List!$G:$G,Table!E13,List!$H:$H,Table!E14)),"") -> 6.100 | H15: =CHOOSE(VLOOKUP(I14,참조!$A:$B,2,0),SUMIFS(List!$I:$I,List!$E:$E,Table!I7,List!$F:$F,I8,List!$G:$G,Table!H13,List!$H:$H,Table!H14),SUMIFS(List!$J:$J,List!$E:$E,Table!I7,List!$F:$F,I8,List!$G:$G,Table!H13,List!$H:$H,Table!H14),SUMIFS(List!$K:$K,List!$E:$E,Table!I7,List!$F:$F,I8,List!$G:$G,Table!H13,List!$H:$H,Table!H14)) -> 320.00 | J15: =IFERROR(CHOOSE(VLOOKUP(K14,참조!$A:$B,2,0),SUMIFS(List!$I:$I,List!$E:$E,Table!I7,List!$G:$G,Table!J13,List!$H:$H,Table!J14),SUMIFS(List!$J:$J,List!$E:$E,Table!I7,List!$G:$G,Table!J13,List!$H:$H,Table!J14),SUMIFS(List!$K:$K,List!$E:$E,Table!I7,List!$G:$G,Table!J13,List!$H:$H,Table!J14)),"") -> 2.875 | M15: =CHOOSE(VLOOKUP(N14,참조!$A:$B,2,0),SUMIFS(List!$I:$I,List!$E:$E,Table!N7,List!$F:$F,N8,List!$G:$G,Table!M13,List!$H:$H,Table!M14),SUMIFS(List!$J:$J,List!$E:$E,Table!N7,List!$F:$F,N8,List!$G:$G,Table!M13,List!$H:$H,Table!M14),SUMIFS(List!$K:$K,List!$E:$E,Table!N7,List!$F:$F,N8,List!$G:$G,Table!M13,List!$H:$H,Table!M14)) ->  | O15: =IFERROR(CHOOSE(VLOOKUP(P14,참조!$A:$B,2,0),SUMIFS(List!$I:$I,List!$E:$E,Table!N7,List!$G:$G,Table!O13,List!$H:$H,Table!O14),SUMIFS(List!$J:$J,List!$E:$E,Table!N7,List!$G:$G,Table!O13,List!$H:$H,Table!O14),SUMIFS(List!$K:$K,List!$E:$E,Table!N7,List!$G:$G,Table!O13,List!$H:$H,Table!O14)),"") ->  | R15: =CHOOSE(VLOOKUP(S14,참조!$A:$B,2,0),SUMIFS(List!$I:$I,List!$E:$E,Table!S7,List!$F:$F,S8,List!$G:$G,Table!R13,List!$H:$H,Table!R14),SUMIFS(List!$J:$J,List!$E:$E,Table!S7,List!$F:$F,S8,List!$G:$G,Table!R13,List!$H:$H,Table!R14),SUMIFS(List!$K:$K,List!$E:$E,Table!S7,List!$F:$F,S8,List!$G:$G,Table!R13,List!$H:$H,Table!R14)) ->  | T15: =IFERROR(CHOOSE(VLOOKUP(U14,참조!$A:$B,2,0),SUMIFS(List!$I:$I,List!$E:$E,Table!S7,List!$G:$G,Table!T13,List!$H:$H,Table!T14),SUMIFS(List!$J:$J,List!$E:$E,Table!S7,List!$G:$G,Table!T13,List!$H:$H,Table!T14),SUMIFS(List!$K:$K,List!$E:$E,Table!S7,List!$G:$G,Table!T13,List!$H:$H,Table!T14)),"") -> 
C17: Condition | E17: LED Performance | H17: Condition | J17: LED Performance | M17: Condition | O17: LED Performance | R17: Condition | T17: LED Performance
C18: Ts [℃] | D18: 85 | E18: Flux [lm] | F18: =IFERROR(C$15*(led1FTA1*EXP(-D18/led1FTt1)+led1FTy0)*(led1FCA1*EXP(-D20/led1FCt1)+led1FCy0),"") -> 737.8 | H18: Ts [℃] | I18: 85 | J18: Flux [lm] | K18: =IFERROR(H$15*(led2FTA1*EXP(-I18/led2FTt1)+led2FTy0)*(led2FCA1*EXP(-I20/led2FCt1)+led2FCy0),"") -> 320.1 | M18: Ts [℃] | N18: 85 | O18: Flux [lm] | P18: =IFERROR(M$15*(led3FTA1*EXP(-N18/led3FTt1)+led3FTy0)*(led3FCA1*EXP(-N20/led3FCt1)+led3FCy0),"") ->  | R18: Ts [℃] | S18: 25 | T18: Flux [lm] | U18: =R$15*(led4FTA1*EXP(-S18/led4FTt1)+led4FTy0)*(led4FCA1*EXP(-S20/led4FCt1)+led4FCy0) -> 
E19: Vf [V] | F19: =IFERROR(E$15*(led1VTA1*EXP(-D18/led1VTt1)+led1VTy0)*(led1VCA1*EXP(-D20/led1VCt1)+led1VCy0),"") -> 6.15 | J19: Vf [V] | K19: =IFERROR(J$15*(led2VTA1*EXP(-I18/led2VTt1)+led2VTy0)*(led2VCA1*EXP(-I20/led2VCt1)+led2VCy0),"") -> 2.86 | O19: Vf [V] | P19: =IFERROR(O$15*(led3VTA1*EXP(-N18/led3VTt1)+led3VTy0)*(led3VCA1*EXP(-N20/led3VCt1)+led3VCy0),"") ->  | T19: Vf [V] | U19: =IFERROR(T$15*(led4VTA1*EXP(-S18/led4VTt1)+led4VTy0)*(led4VCA1*EXP(-S20/led4VCt1)+led4VCy0),"") -> 
C20: IOPPR. [mA] | D20: 800 | E20: Pd [W] | F20: =IFERROR(F19*D20/1000,"") -> 4.923 | H20: IOPPR. [mA] | I20: 700 | J20: Pd [W] | K20: =IFERROR(K19*I20/1000,"") -> 2.001 | M20: IOPPR. [mA] | N20: 1000 | O20: Pd [W] | P20: =IFERROR(P19*N20/1000,"") ->  | R20: IOPPR. [mA] | S20: 65 | T20: Pd [W] | U20: =IFERROR(U19*S20/1000,"") -> 
E21: LpW | F21: =IFERROR(F18/F20,"") -> 149.9 | J21: LpW | K21: =IFERROR(K18/K20,"") -> 159.9 | O21: LpW | P21: =IFERROR(P18/P20,"") ->  | T21: LpW | U21: =IFERROR(U18/U20,"") -> 
C22: Price [$] | E22: LpD | F22: =IFERROR(F18/D22,"") ->  | H22: Price [$] | J22: LpD | K22: =IFERROR(K18/I22,"") ->  | M22: Price [$] | N22: . | O22: LpD | P22: =IFERROR(P18/N22,"") ->  | R22: Price [$] | S22: 0.050 | T22: LpD | U22: =IFERROR(U18/S22,"") -> 
E23: #LEDs [ea] | F23: =IFERROR(ROUNDUP(($F$4/F18),0),"") -> 19 | J23: #LEDs [ea] | K23: =IFERROR(ROUNDUP(($F$4/K18),0),"") -> 42 | O23: #LEDs [ea] | P23: =IFERROR(ROUNDUP(($F$4/P18),0),"") ->  | T23: #LEDs [ea] | U23: =IFERROR(ROUNDUP(($F$4/U18),0),"") -> 
C25: Designer | H25: Designer | M25: Designer | R25: Designer
C26: Crosstalk | D26: 95% | E26: Flux/LED(lm) | F26: =+F18*D26 -> 700.9 | H26: Crosstalk | I26: 95% | J26: Flux/LED(lm) | K26: =+K18*I26 -> 304.1 | M26: Crosstalk | N26: 95% | O26: Flux/LED(lm) | P26: =+P18*N26 ->  | R26: Crosstalk | S26: 95% | T26: Flux/LED(lm) | U26: =+U18*S26 -> 
C27: Parallel | D27: =ROUNDUP($F4/F26,0) -> 20 | E27: Series | F27: 1 | H27: Parallel | I27: =ROUNDUP($F4/K26,0) -> 44 | J27: Series | K27: 1 | M27: Parallel | N27: =ROUNDUP($F4/P26,0) ->  | O27: Series | P27: 1 | R27: Parallel | S27: =ROUNDUP($F4/U26,0) ->  | T27: Series | U27: 1
C28: Mod Parallel | D28: 5 | E28: Mod Series | F28: 1 | H28: Mod Parallel | I28: 5 | J28: Mod Series | K28: 1 | M28: Mod Parallel | N28: 5 | O28: Mod Series | P28: 1 | R28: Mod Parallel | S28: 5 | T28: Mod Series | U28: 1
C29: Tot. I [mA] | D29: =+D28*D20 -> 4,000 | E29: #LEDs [ea] | F29: =+D28*F28 -> 5 | H29: Tot. I [mA] | I29: =+I28*I20 -> 3,500 | J29: #LEDs [ea] | K29: =+I28*K28 -> 5 | M29: Tot. I [mA] | N29: =+N28*N20 -> 5,000 | O29: #LEDs [ea] | P29: =+N28*P28 -> 5 | R29: Tot. I [mA] | S29: =+S28*S20 -> 325 | T29: #LEDs [ea] | U29: =+S28*U28 -> 5
C30: Vf [V] | D30: =+F19*F28 -> 6.2 | E30: Cost [$] | F30: =+D22*F29 -> 0.00 | H30: Vf [V] | I30: =+K19*K28 -> 2.9 | J30: Cost [$] | K30: =+I22*K29 -> 0.00 | M30: Vf [V] | N30: =+P19*P28 ->  | O30: Cost [$] | P30: =+N22*P29 ->  | R30: Vf [V] | S30: =+U19*U28 ->  | T30: Cost [$] | U30: =+S22*U29 -> 0.25
C31: Pd [W] | D31: =+D30*D29/1000/($D$4) -> 29.0 | E31: LpW | F31: =+D32/D31 -> 108.9 | H31: Pd [W] | I31: =+I30*I29/1000/($D$4) -> 11.8 | J31: LpW | K31: =+I32/I31 -> 116.2 | M31: Pd [W] | N31: =+N30*N29/1000/($D$4) ->  | O31: LpW | P31: =+N32/N31 ->  | R31: Pd [W] | S31: =+S30*S29/1000/($D$4) ->  | T31: LpW | U31: =+S32/S31 -> 
C32: Flux [lm] | D32: =+F26*D28*F28*$C$4 -> 3154 | E32: LpD | F32: =+D32/F30 ->  | H32: Flux [lm] | I32: =+K26*I28*K28*$C$4 -> 1368 | J32: LpD | K32: =+I32/K30 ->  | M32: Flux [lm] | N32: =+P26*N28*P28*$C$4 ->  | O32: LpD | P32: =+N32/P30 ->  | R32: Flux [lm] | S32: =+U26*S28*U28*$C$4 ->  | T32: LpD | U32: =+S32/U30 -> 
C34: Total LEDs | D34: Parallel | E34: Series | H34: Total LEDs | I34: Parallel | J34: Series | M34: Total LEDs | N34: Parallel | O34: Series | R34: Total LEDs | S34: Parallel | T34: Series
C35: =+D27 -> 20.0 | D35: =+$C$35/E35 -> 20.0 | E35: 1.0 | H35: =+I27 -> 44.0 | I35: =+$H$35/J35 -> 44.0 | J35: 1.0 | M35: =+N27 ->  | N35: =+$C$35/O35 -> 20.0 | O35: 1.0 | R35: =+S27 ->  | S35: =+$C$35/T35 -> 20.0 | T35: 1.0
D36: =+$C$35/E36 -> 10.0 | E36: 2.0 | I36: =+$H$35/J36 -> 22.0 | J36: 2.0 | N36: =+$C$35/O36 -> 10.0 | O36: 2.0 | S36: =+$C$35/T36 -> 10.0 | T36: 2.0
D37: 6.7 | E37: 3.0 | I37: 14.7 | J37: 3.0 | N37: 6.7 | O37: 3.0 | S37: 6.7 | T37: 3.0
D38: 5.0 | E38: 4.0 | I38: 11.0 | J38: 4.0 | N38: 5.0 | O38: 4.0 | S38: 5.0 | T38: 4.0
D39: 4.0 | E39: 5.0 | I39: 8.8 | J39: 5.0 | N39: 4.0 | O39: 5.0 | S39: 4.0 | T39: 5.0
D40: 3.3 | E40: 6.0 | I40: 7.3 | J40: 6.0 | N40: 3.3 | O40: 6.0 | S40: 3.3 | T40: 6.0
C42: System Performance | H42: System Performance | M42: System Performance | R42: System Performance
C43: Parallel | D43: =ROUNDUP(F23/F43,0) -> 1 | E43: Series | F43: =+F23 -> 19 | H43: Parallel | I43: =ROUNDUP(K23/K43,0) -> 1 | J43: Series | K43: =+K23 -> 42 | M43: Parallel | N43: =ROUNDUP(P23/P43,0) ->  | O43: Series | P43: =+P23 ->  | R43: Parallel | S43: =ROUNDUP(U23/U43,0) ->  | T43: Series | U43: =+U23 -> 
C44: Tot. I [mA] | D44: =IF(D7="","",D43*D20) -> 800 | E44: #LEDs [ea] | F44: =IFERROR(F43*D43,"") -> 19 | H44: Tot. I [mA] | I44: =IF(I7="","",I43*I20) -> 700 | J44: #LEDs [ea] | K44: =IFERROR(K43*I43,"") -> 42 | M44: Tot. I [mA] | N44: =IF(N7="","",N43*N20) ->  | O44: #LEDs [ea] | P44: =IFERROR(P43*N43,"") ->  | R44: Tot. I [mA] | S44: =IF(S7="","",S43*S20) ->  | T44: #LEDs [ea] | U44: =IFERROR(U43*S43,"") -> 
C45: Vf [V] | D45: =IFERROR(F19*F43,"") -> 116.9 | E45: Cost [$] | F45: =IFERROR(F44*D22,"") -> 0.00 | H45: Vf [V] | I45: =IFERROR(K19*K43,"") -> 120.1 | J45: Cost [$] | K45: =IFERROR(K44*I22,"") -> 0.00 | M45: Vf [V] | N45: =IFERROR(P19*P43,"") ->  | O45: Cost [$] | P45: =IFERROR(P44*N22,"") ->  | R45: Vf [V] | S45: =IFERROR(U19*U43,"") ->  | T45: Cost [$] | U45: =IFERROR(U44*S22,"") -> 
C46: Pd [W] | D46: =IFERROR(D44/1000*D45/$D$4,"") -> 110.0 | E46: LpW | F46: =IFERROR(D47/D46,"") -> 114.7 | H46: Pd [W] | I46: =IFERROR(I44/1000*I45/$D$4,"") -> 98.9 | J46: LpW | K46: =IFERROR(I47/I46,"") -> 122.4 | M46: Pd [W] | N46: =IFERROR(N44/1000*N45/$D$4,"") ->  | O46: LpW | P46: =IFERROR(N47/N46,"") ->  | R46: Pd [W] | S46: =IFERROR(S44/1000*S45/$D$4,"") ->  | T46: LpW | U46: =IFERROR(S47/S46,"") -> 
C47: Flux [lm] | D47: =IFERROR(F44*F18*C4,"") -> 12616 | E47: LpD | F47: =IFERROR(D47/F45,"") ->  | H47: Flux [lm] | I47: =IFERROR(K44*K18*C4,"") -> 12099 | J47: LpD | K47: =IFERROR(I47/K45,"") ->  | M47: Flux [lm] | N47: =IFERROR(P44*P18*C4,"") ->  | O47: LpD | P47: =IFERROR(N47/P45,"") ->  | R47: Flux [lm] | S47: =IFERROR(U44*U18*C4,"") ->  | T47: LpD | U47: =IFERROR(S47/U45,"") -> 
C48: =VLOOKUP(C52,참조!$E:$F,2,0) -> 2 | D48: =VLOOKUP(D52,참조!$E:$F,2,0) -> 6 | E48: =VLOOKUP(E52,참조!$E:$F,2,0) -> 3 | F48: =VLOOKUP(F52,참조!$E:$F,2,0) -> 8 | H48: =VLOOKUP(H52,참조!$E:$F,2,0) -> 2 | I48: =VLOOKUP(I52,참조!$E:$F,2,0) -> 4 | J48: =VLOOKUP(J52,참조!$E:$F,2,0) -> 6 | K48: =VLOOKUP(K52,참조!$E:$F,2,0) -> 8 | M48: =VLOOKUP(M52,참조!$E:$F,2,0) -> 2 | N48: =VLOOKUP(N52,참조!$E:$F,2,0) -> 4 | O48: =VLOOKUP(O52,참조!$E:$F,2,0) -> 6 | P48: =VLOOKUP(P52,참조!$E:$F,2,0) -> 8 | R48: =VLOOKUP(R52,참조!$E:$F,2,0) -> 2 | S48: =VLOOKUP(S52,참조!$E:$F,2,0) -> 4 | T48: =VLOOKUP(T52,참조!$E:$F,2,0) -> 6 | U48: =VLOOKUP(U52,참조!$E:$F,2,0) -> 8
B52: IF | C52: Flux | D52: lm/W | E52: VF | F52: # LEDs | H52: Flux | I52: PD | J52: lm/W | K52: # LEDs | M52: Flux | N52: PD | O52: lm/W | P52: # LEDs | R52: Flux | S52: PD | T52: lm/W | U52: # LEDs
B53: =$H$4 -> 0.050 | C53: =IFERROR(VLOOKUP($B53,'LED #1'!$A$14:$S$114,C$48,0),"") -> 52.81 | D53: =IFERROR(VLOOKUP($B53,'LED #1'!$A$14:$S$114,D$48,0),"") -> 206.55 | E53: =IFERROR(VLOOKUP($B53,'LED #1'!$A$14:$S$114,E$48,0),"") -> 5.11 | F53: =IFERROR(VLOOKUP($B53,'LED #1'!$A$14:$S$114,F$48,0),"") -> 253.00 | H53: =IFERROR(VLOOKUP($B53,'LED #2'!$A$14:$S$114,H$48,0),"") -> 29.14 | I53: =IFERROR(VLOOKUP($B53,'LED #2'!$A$14:$S$114,I$48,0),"") -> 0.13 | J53: =IFERROR(VLOOKUP($B53,'LED #2'!$A$14:$S$114,J$48,0),"") -> 231.17 | K53: =IFERROR(VLOOKUP($B53,'LED #2'!$A$14:$S$114,K$48,0),"") -> 458.00 | M53: =IFERROR(VLOOKUP($B53,'LED #3'!$A$14:$S$114,M$48,0),"") ->  | N53: =IFERROR(VLOOKUP($B53,'LED #3'!$A$14:$S$114,N$48,0),"") ->  | O53: =IFERROR(VLOOKUP($B53,'LED #3'!$A$14:$S$114,O$48,0),"") ->  | P53: =IFERROR(VLOOKUP($B53,'LED #3'!$A$14:$S$114,P$48,0),"") ->  | R53: =IFERROR(VLOOKUP($B53,'LED #4'!$A$14:$S$114,R$48,0),"") ->  | S53: =IFERROR(VLOOKUP($B53,'LED #4'!$A$14:$S$114,S$48,0),"") ->  | T53: =IFERROR(VLOOKUP($B53,'LED #4'!$A$14:$S$114,T$48,0),"") ->  | U53: =IFERROR(VLOOKUP($B53,'LED #4'!$A$14:$S$114,U$48,0),"") -> 
B54: =ROUND(B53+$J$4,3) -> 0.065 | C54: =IFERROR(VLOOKUP($B54,'LED #1'!$A$14:$S$114,C$48,0),"") -> 68.18 | D54: =IFERROR(VLOOKUP($B54,'LED #1'!$A$14:$S$114,D$48,0),"") -> 204.15 | E54: =IFERROR(VLOOKUP($B54,'LED #1'!$A$14:$S$114,E$48,0),"") -> 5.14 | F54: =IFERROR(VLOOKUP($B54,'LED #1'!$A$14:$S$114,F$48,0),"") -> 196.00 | H54: =IFERROR(VLOOKUP($B54,'LED #2'!$A$14:$S$114,H$48,0),"") -> 36.52 | I54: =IFERROR(VLOOKUP($B54,'LED #2'!$A$14:$S$114,I$48,0),"") -> 0.16 | J54: =IFERROR(VLOOKUP($B54,'LED #2'!$A$14:$S$114,J$48,0),"") -> 222.12 | K54: =IFERROR(VLOOKUP($B54,'LED #2'!$A$14:$S$114,K$48,0),"") -> 366.00 | M54: =IFERROR(VLOOKUP($B54,'LED #3'!$A$14:$S$114,M$48,0),"") ->  | N54: =IFERROR(VLOOKUP($B54,'LED #3'!$A$14:$S$114,N$48,0),"") ->  | O54: =IFERROR(VLOOKUP($B54,'LED #3'!$A$14:$S$114,O$48,0),"") ->  | P54: =IFERROR(VLOOKUP($B54,'LED #3'!$A$14:$S$114,P$48,0),"") ->  | R54: =IFERROR(VLOOKUP($B54,'LED #4'!$A$14:$S$114,R$48,0),"") ->  | S54: =IFERROR(VLOOKUP($B54,'LED #4'!$A$14:$S$114,S$48,0),"") ->  | T54: =IFERROR(VLOOKUP($B54,'LED #4'!$A$14:$S$114,T$48,0),"") ->  | U54: =IFERROR(VLOOKUP($B54,'LED #4'!$A$14:$S$114,U$48,0),"") -> 
B55: 0.080 | C55: =IFERROR(VLOOKUP($B55,'LED #1'!$A$14:$S$114,C$48,0),"") -> 83.47 | D55: =IFERROR(VLOOKUP($B55,'LED #1'!$A$14:$S$114,D$48,0),"") -> 202.12 | E55: =IFERROR(VLOOKUP($B55,'LED #1'!$A$14:$S$114,E$48,0),"") -> 5.16 | F55: =IFERROR(VLOOKUP($B55,'LED #1'!$A$14:$S$114,F$48,0),"") -> 160.00 | H55: =IFERROR(VLOOKUP($B55,'LED #2'!$A$14:$S$114,H$48,0),"") -> 43.86 | I55: =IFERROR(VLOOKUP($B55,'LED #2'!$A$14:$S$114,I$48,0),"") -> 0.20 | J55: =IFERROR(VLOOKUP($B55,'LED #2'!$A$14:$S$114,J$48,0),"") -> 216.06 | K55: =IFERROR(VLOOKUP($B55,'LED #2'!$A$14:$S$114,K$48,0),"") -> 304.00 | M55: =IFERROR(VLOOKUP($B55,'LED #3'!$A$14:$S$114,M$48,0),"") ->  | N55: =IFERROR(VLOOKUP($B55,'LED #3'!$A$14:$S$114,N$48,0),"") ->  | O55: =IFERROR(VLOOKUP($B55,'LED #3'!$A$14:$S$114,O$48,0),"") ->  | P55: =IFERROR(VLOOKUP($B55,'LED #3'!$A$14:$S$114,P$48,0),"") ->  | R55: =IFERROR(VLOOKUP($B55,'LED #4'!$A$14:$S$114,R$48,0),"") ->  | S55: =IFERROR(VLOOKUP($B55,'LED #4'!$A$14:$S$114,S$48,0),"") ->  | T55: =IFERROR(VLOOKUP($B55,'LED #4'!$A$14:$S$114,T$48,0),"") ->  | U55: =IFERROR(VLOOKUP($B55,'LED #4'!$A$14:$S$114,U$48,0),"") -> 
B56: 0.095 | C56: =IFERROR(VLOOKUP($B56,'LED #1'!$A$14:$S$114,C$48,0),"") -> 98.70 | D56: =IFERROR(VLOOKUP($B56,'LED #1'!$A$14:$S$114,D$48,0),"") -> 200.31 | E56: =IFERROR(VLOOKUP($B56,'LED #1'!$A$14:$S$114,E$48,0),"") -> 5.19 | F56: =IFERROR(VLOOKUP($B56,'LED #1'!$A$14:$S$114,F$48,0),"") -> 136.00 | H56: =IFERROR(VLOOKUP($B56,'LED #2'!$A$14:$S$114,H$48,0),"") -> 51.18 | I56: =IFERROR(VLOOKUP($B56,'LED #2'!$A$14:$S$114,I$48,0),"") -> 0.24 | J56: =IFERROR(VLOOKUP($B56,'LED #2'!$A$14:$S$114,J$48,0),"") -> 211.58 | K56: =IFERROR(VLOOKUP($B56,'LED #2'!$A$14:$S$114,K$48,0),"") -> 261.00 | M56: =IFERROR(VLOOKUP($B56,'LED #3'!$A$14:$S$114,M$48,0),"") ->  | N56: =IFERROR(VLOOKUP($B56,'LED #3'!$A$14:$S$114,N$48,0),"") ->  | O56: =IFERROR(VLOOKUP($B56,'LED #3'!$A$14:$S$114,O$48,0),"") ->  | P56: =IFERROR(VLOOKUP($B56,'LED #3'!$A$14:$S$114,P$48,0),"") ->  | R56: =IFERROR(VLOOKUP($B56,'LED #4'!$A$14:$S$114,R$48,0),"") ->  | S56: =IFERROR(VLOOKUP($B56,'LED #4'!$A$14:$S$114,S$48,0),"") ->  | T56: =IFERROR(VLOOKUP($B56,'LED #4'!$A$14:$S$114,T$48,0),"") ->  | U56: =IFERROR(VLOOKUP($B56,'LED #4'!$A$14:$S$114,U$48,0),"") -> 
B57: 0.110 | C57: =IFERROR(VLOOKUP($B57,'LED #1'!$A$14:$S$114,C$48,0),"") -> 113.85 | D57: =IFERROR(VLOOKUP($B57,'LED #1'!$A$14:$S$114,D$48,0),"") -> 198.62 | E57: =IFERROR(VLOOKUP($B57,'LED #1'!$A$14:$S$114,E$48,0),"") -> 5.21 | F57: =IFERROR(VLOOKUP($B57,'LED #1'!$A$14:$S$114,F$48,0),"") -> 118.00 | H57: =IFERROR(VLOOKUP($B57,'LED #2'!$A$14:$S$114,H$48,0),"") -> 58.46 | I57: =IFERROR(VLOOKUP($B57,'LED #2'!$A$14:$S$114,I$48,0),"") -> 0.28 | J57: =IFERROR(VLOOKUP($B57,'LED #2'!$A$14:$S$114,J$48,0),"") -> 208.04 | K57: =IFERROR(VLOOKUP($B57,'LED #2'!$A$14:$S$114,K$48,0),"") -> 229.00 | M57: =IFERROR(VLOOKUP($B57,'LED #3'!$A$14:$S$114,M$48,0),"") ->  | N57: =IFERROR(VLOOKUP($B57,'LED #3'!$A$14:$S$114,N$48,0),"") ->  | O57: =IFERROR(VLOOKUP($B57,'LED #3'!$A$14:$S$114,O$48,0),"") ->  | P57: =IFERROR(VLOOKUP($B57,'LED #3'!$A$14:$S$114,P$48,0),"") ->  | R57: =IFERROR(VLOOKUP($B57,'LED #4'!$A$14:$S$114,R$48,0),"") ->  | S57: =IFERROR(VLOOKUP($B57,'LED #4'!$A$14:$S$114,S$48,0),"") ->  | T57: =IFERROR(VLOOKUP($B57,'LED #4'!$A$14:$S$114,T$48,0),"") ->  | U57: =IFERROR(VLOOKUP($B57,'LED #4'!$A$14:$S$114,U$48,0),"") -> 
B58: 0.125 | C58: =IFERROR(VLOOKUP($B58,'LED #1'!$A$14:$S$114,C$48,0),"") -> 128.92 | D58: =IFERROR(VLOOKUP($B58,'LED #1'!$A$14:$S$114,D$48,0),"") -> 197.03 | E58: =IFERROR(VLOOKUP($B58,'LED #1'!$A$14:$S$114,E$48,0),"") -> 5.23 | F58: =IFERROR(VLOOKUP($B58,'LED #1'!$A$14:$S$114,F$48,0),"") -> 104.00 | H58: =IFERROR(VLOOKUP($B58,'LED #2'!$A$14:$S$114,H$48,0),"") -> 65.70 | I58: =IFERROR(VLOOKUP($B58,'LED #2'!$A$14:$S$114,I$48,0),"") -> 0.32 | J58: =IFERROR(VLOOKUP($B58,'LED #2'!$A$14:$S$114,J$48,0),"") -> 205.10 | K58: =IFERROR(VLOOKUP($B58,'LED #2'!$A$14:$S$114,K$48,0),"") -> 203.00 | M58: =IFERROR(VLOOKUP($B58,'LED #3'!$A$14:$S$114,M$48,0),"") ->  | N58: =IFERROR(VLOOKUP($B58,'LED #3'!$A$14:$S$114,N$48,0),"") ->  | O58: =IFERROR(VLOOKUP($B58,'LED #3'!$A$14:$S$114,O$48,0),"") ->  | P58: =IFERROR(VLOOKUP($B58,'LED #3'!$A$14:$S$114,P$48,0),"") ->  | R58: =IFERROR(VLOOKUP($B58,'LED #4'!$A$14:$S$114,R$48,0),"") ->  | S58: =IFERROR(VLOOKUP($B58,'LED #4'!$A$14:$S$114,S$48,0),"") ->  | T58: =IFERROR(VLOOKUP($B58,'LED #4'!$A$14:$S$114,T$48,0),"") ->  | U58: =IFERROR(VLOOKUP($B58,'LED #4'!$A$14:$S$114,U$48,0),"") -> 
B59: 0.140 | C59: =IFERROR(VLOOKUP($B59,'LED #1'!$A$14:$S$114,C$48,0),"") -> 143.93 | D59: =IFERROR(VLOOKUP($B59,'LED #1'!$A$14:$S$114,D$48,0),"") -> 195.51 | E59: =IFERROR(VLOOKUP($B59,'LED #1'!$A$14:$S$114,E$48,0),"") -> 5.26 | F59: =IFERROR(VLOOKUP($B59,'LED #1'!$A$14:$S$114,F$48,0),"") -> 93.00 | H59: =IFERROR(VLOOKUP($B59,'LED #2'!$A$14:$S$114,H$48,0),"") -> 72.92 | I59: =IFERROR(VLOOKUP($B59,'LED #2'!$A$14:$S$114,I$48,0),"") -> 0.36 | J59: =IFERROR(VLOOKUP($B59,'LED #2'!$A$14:$S$114,J$48,0),"") -> 202.58 | K59: =IFERROR(VLOOKUP($B59,'LED #2'!$A$14:$S$114,K$48,0),"") -> 183.00 | M59: =IFERROR(VLOOKUP($B59,'LED #3'!$A$14:$S$114,M$48,0),"") ->  | N59: =IFERROR(VLOOKUP($B59,'LED #3'!$A$14:$S$114,N$48,0),"") ->  | O59: =IFERROR(VLOOKUP($B59,'LED #3'!$A$14:$S$114,O$48,0),"") ->  | P59: =IFERROR(VLOOKUP($B59,'LED #3'!$A$14:$S$114,P$48,0),"") ->  | R59: =IFERROR(VLOOKUP($B59,'LED #4'!$A$14:$S$114,R$48,0),"") ->  | S59: =IFERROR(VLOOKUP($B59,'LED #4'!$A$14:$S$114,S$48,0),"") ->  | T59: =IFERROR(VLOOKUP($B59,'LED #4'!$A$14:$S$114,T$48,0),"") ->  | U59: =IFERROR(VLOOKUP($B59,'LED #4'!$A$14:$S$114,U$48,0),"") -> 
B60: 0.155 | C60: =IFERROR(VLOOKUP($B60,'LED #1'!$A$14:$S$114,C$48,0),"") -> 158.86 | D60: =IFERROR(VLOOKUP($B60,'LED #1'!$A$14:$S$114,D$48,0),"") -> 194.04 | E60: =IFERROR(VLOOKUP($B60,'LED #1'!$A$14:$S$114,E$48,0),"") -> 5.28 | F60: =IFERROR(VLOOKUP($B60,'LED #1'!$A$14:$S$114,F$48,0),"") -> 84.00 | H60: =IFERROR(VLOOKUP($B60,'LED #2'!$A$14:$S$114,H$48,0),"") -> 80.10 | I60: =IFERROR(VLOOKUP($B60,'LED #2'!$A$14:$S$114,I$48,0),"") -> 0.40 | J60: =IFERROR(VLOOKUP($B60,'LED #2'!$A$14:$S$114,J$48,0),"") -> 200.35 | K60: =IFERROR(VLOOKUP($B60,'LED #2'!$A$14:$S$114,K$48,0),"") -> 167.00 | M60: =IFERROR(VLOOKUP($B60,'LED #3'!$A$14:$S$114,M$48,0),"") ->  | N60: =IFERROR(VLOOKUP($B60,'LED #3'!$A$14:$S$114,N$48,0),"") ->  | O60: =IFERROR(VLOOKUP($B60,'LED #3'!$A$14:$S$114,O$48,0),"") ->  | P60: =IFERROR(VLOOKUP($B60,'LED #3'!$A$14:$S$114,P$48,0),"") ->  | R60: =IFERROR(VLOOKUP($B60,'LED #4'!$A$14:$S$114,R$48,0),"") ->  | S60: =IFERROR(VLOOKUP($B60,'LED #4'!$A$14:$S$114,S$48,0),"") ->  | T60: =IFERROR(VLOOKUP($B60,'LED #4'!$A$14:$S$114,T$48,0),"") ->  | U60: =IFERROR(VLOOKUP($B60,'LED #4'!$A$14:$S$114,U$48,0),"") -> 
B61: 0.170 | C61: =IFERROR(VLOOKUP($B61,'LED #1'!$A$14:$S$114,C$48,0),"") -> 173.73 | D61: =IFERROR(VLOOKUP($B61,'LED #1'!$A$14:$S$114,D$48,0),"") -> 192.62 | E61: =IFERROR(VLOOKUP($B61,'LED #1'!$A$14:$S$114,E$48,0),"") -> 5.31 | F61: =IFERROR(VLOOKUP($B61,'LED #1'!$A$14:$S$114,F$48,0),"") -> 77.00 | H61: =IFERROR(VLOOKUP($B61,'LED #2'!$A$14:$S$114,H$48,0),"") -> 87.25 | I61: =IFERROR(VLOOKUP($B61,'LED #2'!$A$14:$S$114,I$48,0),"") -> 0.44 | J61: =IFERROR(VLOOKUP($B61,'LED #2'!$A$14:$S$114,J$48,0),"") -> 198.34 | K61: =IFERROR(VLOOKUP($B61,'LED #2'!$A$14:$S$114,K$48,0),"") -> 153.00 | M61: =IFERROR(VLOOKUP($B61,'LED #3'!$A$14:$S$114,M$48,0),"") ->  | N61: =IFERROR(VLOOKUP($B61,'LED #3'!$A$14:$S$114,N$48,0),"") ->  | O61: =IFERROR(VLOOKUP($B61,'LED #3'!$A$14:$S$114,O$48,0),"") ->  | P61: =IFERROR(VLOOKUP($B61,'LED #3'!$A$14:$S$114,P$48,0),"") ->  | R61: =IFERROR(VLOOKUP($B61,'LED #4'!$A$14:$S$114,R$48,0),"") ->  | S61: =IFERROR(VLOOKUP($B61,'LED #4'!$A$14:$S$114,S$48,0),"") ->  | T61: =IFERROR(VLOOKUP($B61,'LED #4'!$A$14:$S$114,T$48,0),"") ->  | U61: =IFERROR(VLOOKUP($B61,'LED #4'!$A$14:$S$114,U$48,0),"") -> 
B62: 0.185 | C62: =IFERROR(VLOOKUP($B62,'LED #1'!$A$14:$S$114,C$48,0),"") -> 188.52 | D62: =IFERROR(VLOOKUP($B62,'LED #1'!$A$14:$S$114,D$48,0),"") -> 191.23 | E62: =IFERROR(VLOOKUP($B62,'LED #1'!$A$14:$S$114,E$48,0),"") -> 5.33 | F62: =IFERROR(VLOOKUP($B62,'LED #1'!$A$14:$S$114,F$48,0),"") -> 71.00 | H62: =IFERROR(VLOOKUP($B62,'LED #2'!$A$14:$S$114,H$48,0),"") -> 94.36 | I62: =IFERROR(VLOOKUP($B62,'LED #2'!$A$14:$S$114,I$48,0),"") -> 0.48 | J62: =IFERROR(VLOOKUP($B62,'LED #2'!$A$14:$S$114,J$48,0),"") -> 196.50 | K62: =IFERROR(VLOOKUP($B62,'LED #2'!$A$14:$S$114,K$48,0),"") -> 142.00 | M62: =IFERROR(VLOOKUP($B62,'LED #3'!$A$14:$S$114,M$48,0),"") ->  | N62: =IFERROR(VLOOKUP($B62,'LED #3'!$A$14:$S$114,N$48,0),"") ->  | O62: =IFERROR(VLOOKUP($B62,'LED #3'!$A$14:$S$114,O$48,0),"") ->  | P62: =IFERROR(VLOOKUP($B62,'LED #3'!$A$14:$S$114,P$48,0),"") ->  | R62: =IFERROR(VLOOKUP($B62,'LED #4'!$A$14:$S$114,R$48,0),"") ->  | S62: =IFERROR(VLOOKUP($B62,'LED #4'!$A$14:$S$114,S$48,0),"") ->  | T62: =IFERROR(VLOOKUP($B62,'LED #4'!$A$14:$S$114,T$48,0),"") ->  | U62: =IFERROR(VLOOKUP($B62,'LED #4'!$A$14:$S$114,U$48,0),"") -> 
B63: 0.200 | C63: =IFERROR(VLOOKUP($B63,'LED #1'!$A$14:$S$114,C$48,0),"") -> 203.24 | D63: =IFERROR(VLOOKUP($B63,'LED #1'!$A$14:$S$114,D$48,0),"") -> 189.88 | E63: =IFERROR(VLOOKUP($B63,'LED #1'!$A$14:$S$114,E$48,0),"") -> 5.35 | F63: =IFERROR(VLOOKUP($B63,'LED #1'!$A$14:$S$114,F$48,0),"") -> 66.00 | H63: =IFERROR(VLOOKUP($B63,'LED #2'!$A$14:$S$114,H$48,0),"") -> 101.45 | I63: =IFERROR(VLOOKUP($B63,'LED #2'!$A$14:$S$114,I$48,0),"") -> 0.52 | J63: =IFERROR(VLOOKUP($B63,'LED #2'!$A$14:$S$114,J$48,0),"") -> 194.80 | K63: =IFERROR(VLOOKUP($B63,'LED #2'!$A$14:$S$114,K$48,0),"") -> 132.00 | M63: =IFERROR(VLOOKUP($B63,'LED #3'!$A$14:$S$114,M$48,0),"") ->  | N63: =IFERROR(VLOOKUP($B63,'LED #3'!$A$14:$S$114,N$48,0),"") ->  | O63: =IFERROR(VLOOKUP($B63,'LED #3'!$A$14:$S$114,O$48,0),"") ->  | P63: =IFERROR(VLOOKUP($B63,'LED #3'!$A$14:$S$114,P$48,0),"") ->  | R63: =IFERROR(VLOOKUP($B63,'LED #4'!$A$14:$S$114,R$48,0),"") ->  | S63: =IFERROR(VLOOKUP($B63,'LED #4'!$A$14:$S$114,S$48,0),"") ->  | T63: =IFERROR(VLOOKUP($B63,'LED #4'!$A$14:$S$114,T$48,0),"") ->  | U63: =IFERROR(VLOOKUP($B63,'LED #4'!$A$14:$S$114,U$48,0),"") -> 
B64: 0.215 | C64: =IFERROR(VLOOKUP($B64,'LED #1'!$A$14:$S$114,C$48,0),"") -> 217.89 | D64: =IFERROR(VLOOKUP($B64,'LED #1'!$A$14:$S$114,D$48,0),"") -> 188.56 | E64: =IFERROR(VLOOKUP($B64,'LED #1'!$A$14:$S$114,E$48,0),"") -> 5.37 | F64: =IFERROR(VLOOKUP($B64,'LED #1'!$A$14:$S$114,F$48,0),"") -> 62.00 | H64: =IFERROR(VLOOKUP($B64,'LED #2'!$A$14:$S$114,H$48,0),"") -> 108.50 | I64: =IFERROR(VLOOKUP($B64,'LED #2'!$A$14:$S$114,I$48,0),"") -> 0.56 | J64: =IFERROR(VLOOKUP($B64,'LED #2'!$A$14:$S$114,J$48,0),"") -> 193.20 | K64: =IFERROR(VLOOKUP($B64,'LED #2'!$A$14:$S$114,K$48,0),"") -> 123.00 | M64: =IFERROR(VLOOKUP($B64,'LED #3'!$A$14:$S$114,M$48,0),"") ->  | N64: =IFERROR(VLOOKUP($B64,'LED #3'!$A$14:$S$114,N$48,0),"") ->  | O64: =IFERROR(VLOOKUP($B64,'LED #3'!$A$14:$S$114,O$48,0),"") ->  | P64: =IFERROR(VLOOKUP($B64,'LED #3'!$A$14:$S$114,P$48,0),"") ->  | R64: =IFERROR(VLOOKUP($B64,'LED #4'!$A$14:$S$114,R$48,0),"") ->  | S64: =IFERROR(VLOOKUP($B64,'LED #4'!$A$14:$S$114,S$48,0),"") ->  | T64: =IFERROR(VLOOKUP($B64,'LED #4'!$A$14:$S$114,T$48,0),"") ->  | U64: =IFERROR(VLOOKUP($B64,'LED #4'!$A$14:$S$114,U$48,0),"") -> 
B65: 0.230 | C65: =IFERROR(VLOOKUP($B65,'LED #1'!$A$14:$S$114,C$48,0),"") -> 232.47 | D65: =IFERROR(VLOOKUP($B65,'LED #1'!$A$14:$S$114,D$48,0),"") -> 187.26 | E65: =IFERROR(VLOOKUP($B65,'LED #1'!$A$14:$S$114,E$48,0),"") -> 5.40 | F65: =IFERROR(VLOOKUP($B65,'LED #1'!$A$14:$S$114,F$48,0),"") -> 58.00 | H65: =IFERROR(VLOOKUP($B65,'LED #2'!$A$14:$S$114,H$48,0),"") -> 115.52 | I65: =IFERROR(VLOOKUP($B65,'LED #2'!$A$14:$S$114,I$48,0),"") -> 0.60 | J65: =IFERROR(VLOOKUP($B65,'LED #2'!$A$14:$S$114,J$48,0),"") -> 191.69 | K65: =IFERROR(VLOOKUP($B65,'LED #2'!$A$14:$S$114,K$48,0),"") -> 116.00 | M65: =IFERROR(VLOOKUP($B65,'LED #3'!$A$14:$S$114,M$48,0),"") ->  | N65: =IFERROR(VLOOKUP($B65,'LED #3'!$A$14:$S$114,N$48,0),"") ->  | O65: =IFERROR(VLOOKUP($B65,'LED #3'!$A$14:$S$114,O$48,0),"") ->  | P65: =IFERROR(VLOOKUP($B65,'LED #3'!$A$14:$S$114,P$48,0),"") ->  | R65: =IFERROR(VLOOKUP($B65,'LED #4'!$A$14:$S$114,R$48,0),"") ->  | S65: =IFERROR(VLOOKUP($B65,'LED #4'!$A$14:$S$114,S$48,0),"") ->  | T65: =IFERROR(VLOOKUP($B65,'LED #4'!$A$14:$S$114,T$48,0),"") ->  | U65: =IFERROR(VLOOKUP($B65,'LED #4'!$A$14:$S$114,U$48,0),"") -> 
B66: 0.245 | C66: =IFERROR(VLOOKUP($B66,'LED #1'!$A$14:$S$114,C$48,0),"") -> 246.98 | D66: =IFERROR(VLOOKUP($B66,'LED #1'!$A$14:$S$114,D$48,0),"") -> 185.99 | E66: =IFERROR(VLOOKUP($B66,'LED #1'!$A$14:$S$114,E$48,0),"") -> 5.42 | F66: =IFERROR(VLOOKUP($B66,'LED #1'!$A$14:$S$114,F$48,0),"") -> 54.00 | H66: =IFERROR(VLOOKUP($B66,'LED #2'!$A$14:$S$114,H$48,0),"") -> 122.51 | I66: =IFERROR(VLOOKUP($B66,'LED #2'!$A$14:$S$114,I$48,0),"") -> 0.64 | J66: =IFERROR(VLOOKUP($B66,'LED #2'!$A$14:$S$114,J$48,0),"") -> 190.25 | K66: =IFERROR(VLOOKUP($B66,'LED #2'!$A$14:$S$114,K$48,0),"") -> 109.00 | M66: =IFERROR(VLOOKUP($B66,'LED #3'!$A$14:$S$114,M$48,0),"") ->  | N66: =IFERROR(VLOOKUP($B66,'LED #3'!$A$14:$S$114,N$48,0),"") ->  | O66: =IFERROR(VLOOKUP($B66,'LED #3'!$A$14:$S$114,O$48,0),"") ->  | P66: =IFERROR(VLOOKUP($B66,'LED #3'!$A$14:$S$114,P$48,0),"") ->  | R66: =IFERROR(VLOOKUP($B66,'LED #4'!$A$14:$S$114,R$48,0),"") ->  | S66: =IFERROR(VLOOKUP($B66,'LED #4'!$A$14:$S$114,S$48,0),"") ->  | T66: =IFERROR(VLOOKUP($B66,'LED #4'!$A$14:$S$114,T$48,0),"") ->  | U66: =IFERROR(VLOOKUP($B66,'LED #4'!$A$14:$S$114,U$48,0),"") -> 
B67: 0.260 | C67: =IFERROR(VLOOKUP($B67,'LED #1'!$A$14:$S$114,C$48,0),"") -> 261.42 | D67: =IFERROR(VLOOKUP($B67,'LED #1'!$A$14:$S$114,D$48,0),"") -> 184.75 | E67: =IFERROR(VLOOKUP($B67,'LED #1'!$A$14:$S$114,E$48,0),"") -> 5.44 | F67: =IFERROR(VLOOKUP($B67,'LED #1'!$A$14:$S$114,F$48,0),"") -> 52.00 | H67: =IFERROR(VLOOKUP($B67,'LED #2'!$A$14:$S$114,H$48,0),"") -> 129.46 | I67: =IFERROR(VLOOKUP($B67,'LED #2'!$A$14:$S$114,I$48,0),"") -> 0.69 | J67: =IFERROR(VLOOKUP($B67,'LED #2'!$A$14:$S$114,J$48,0),"") -> 188.88 | K67: =IFERROR(VLOOKUP($B67,'LED #2'!$A$14:$S$114,K$48,0),"") -> 103.00 | M67: =IFERROR(VLOOKUP($B67,'LED #3'!$A$14:$S$114,M$48,0),"") ->  | N67: =IFERROR(VLOOKUP($B67,'LED #3'!$A$14:$S$114,N$48,0),"") ->  | O67: =IFERROR(VLOOKUP($B67,'LED #3'!$A$14:$S$114,O$48,0),"") ->  | P67: =IFERROR(VLOOKUP($B67,'LED #3'!$A$14:$S$114,P$48,0),"") ->  | R67: =IFERROR(VLOOKUP($B67,'LED #4'!$A$14:$S$114,R$48,0),"") ->  | S67: =IFERROR(VLOOKUP($B67,'LED #4'!$A$14:$S$114,S$48,0),"") ->  | T67: =IFERROR(VLOOKUP($B67,'LED #4'!$A$14:$S$114,T$48,0),"") ->  | U67: =IFERROR(VLOOKUP($B67,'LED #4'!$A$14:$S$114,U$48,0),"") -> 
B68: 0.275 | C68: =IFERROR(VLOOKUP($B68,'LED #1'!$A$14:$S$114,C$48,0),"") -> 275.79 | D68: =IFERROR(VLOOKUP($B68,'LED #1'!$A$14:$S$114,D$48,0),"") -> 183.52 | E68: =IFERROR(VLOOKUP($B68,'LED #1'!$A$14:$S$114,E$48,0),"") -> 5.46 | F68: =IFERROR(VLOOKUP($B68,'LED #1'!$A$14:$S$114,F$48,0),"") -> 49.00 | H68: =IFERROR(VLOOKUP($B68,'LED #2'!$A$14:$S$114,H$48,0),"") -> 136.39 | I68: =IFERROR(VLOOKUP($B68,'LED #2'!$A$14:$S$114,I$48,0),"") -> 0.73 | J68: =IFERROR(VLOOKUP($B68,'LED #2'!$A$14:$S$114,J$48,0),"") -> 187.56 | K68: =IFERROR(VLOOKUP($B68,'LED #2'!$A$14:$S$114,K$48,0),"") -> 98.00 | M68: =IFERROR(VLOOKUP($B68,'LED #3'!$A$14:$S$114,M$48,0),"") ->  | N68: =IFERROR(VLOOKUP($B68,'LED #3'!$A$14:$S$114,N$48,0),"") ->  | O68: =IFERROR(VLOOKUP($B68,'LED #3'!$A$14:$S$114,O$48,0),"") ->  | P68: =IFERROR(VLOOKUP($B68,'LED #3'!$A$14:$S$114,P$48,0),"") ->  | R68: =IFERROR(VLOOKUP($B68,'LED #4'!$A$14:$S$114,R$48,0),"") ->  | S68: =IFERROR(VLOOKUP($B68,'LED #4'!$A$14:$S$114,S$48,0),"") ->  | T68: =IFERROR(VLOOKUP($B68,'LED #4'!$A$14:$S$114,T$48,0),"") ->  | U68: =IFERROR(VLOOKUP($B68,'LED #4'!$A$14:$S$114,U$48,0),"") -> 
B69: 0.290 | C69: =IFERROR(VLOOKUP($B69,'LED #1'!$A$14:$S$114,C$48,0),"") -> 290.09 | D69: =IFERROR(VLOOKUP($B69,'LED #1'!$A$14:$S$114,D$48,0),"") -> 182.31 | E69: =IFERROR(VLOOKUP($B69,'LED #1'!$A$14:$S$114,E$48,0),"") -> 5.49 | F69: =IFERROR(VLOOKUP($B69,'LED #1'!$A$14:$S$114,F$48,0),"") -> 46.00 | H69: =IFERROR(VLOOKUP($B69,'LED #2'!$A$14:$S$114,H$48,0),"") -> 143.28 | I69: =IFERROR(VLOOKUP($B69,'LED #2'!$A$14:$S$114,I$48,0),"") -> 0.77 | J69: =IFERROR(VLOOKUP($B69,'LED #2'!$A$14:$S$114,J$48,0),"") -> 186.28 | K69: =IFERROR(VLOOKUP($B69,'LED #2'!$A$14:$S$114,K$48,0),"") -> 94.00 | M69: =IFERROR(VLOOKUP($B69,'LED #3'!$A$14:$S$114,M$48,0),"") ->  | N69: =IFERROR(VLOOKUP($B69,'LED #3'!$A$14:$S$114,N$48,0),"") ->  | O69: =IFERROR(VLOOKUP($B69,'LED #3'!$A$14:$S$114,O$48,0),"") ->  | P69: =IFERROR(VLOOKUP($B69,'LED #3'!$A$14:$S$114,P$48,0),"") ->  | R69: =IFERROR(VLOOKUP($B69,'LED #4'!$A$14:$S$114,R$48,0),"") ->  | S69: =IFERROR(VLOOKUP($B69,'LED #4'!$A$14:$S$114,S$48,0),"") ->  | T69: =IFERROR(VLOOKUP($B69,'LED #4'!$A$14:$S$114,T$48,0),"") ->  | U69: =IFERROR(VLOOKUP($B69,'LED #4'!$A$14:$S$114,U$48,0),"") -> 
B70: 0.305 | C70: =IFERROR(VLOOKUP($B70,'LED #1'!$A$14:$S$114,C$48,0),"") -> 304.33 | D70: =IFERROR(VLOOKUP($B70,'LED #1'!$A$14:$S$114,D$48,0),"") -> 181.13 | E70: =IFERROR(VLOOKUP($B70,'LED #1'!$A$14:$S$114,E$48,0),"") -> 5.51 | F70: =IFERROR(VLOOKUP($B70,'LED #1'!$A$14:$S$114,F$48,0),"") -> 44.00 | H70: =IFERROR(VLOOKUP($B70,'LED #2'!$A$14:$S$114,H$48,0),"") -> 150.15 | I70: =IFERROR(VLOOKUP($B70,'LED #2'!$A$14:$S$114,I$48,0),"") -> 0.81 | J70: =IFERROR(VLOOKUP($B70,'LED #2'!$A$14:$S$114,J$48,0),"") -> 185.05 | K70: =IFERROR(VLOOKUP($B70,'LED #2'!$A$14:$S$114,K$48,0),"") -> 89.00 | M70: =IFERROR(VLOOKUP($B70,'LED #3'!$A$14:$S$114,M$48,0),"") ->  | N70: =IFERROR(VLOOKUP($B70,'LED #3'!$A$14:$S$114,N$48,0),"") ->  | O70: =IFERROR(VLOOKUP($B70,'LED #3'!$A$14:$S$114,O$48,0),"") ->  | P70: =IFERROR(VLOOKUP($B70,'LED #3'!$A$14:$S$114,P$48,0),"") ->  | R70: =IFERROR(VLOOKUP($B70,'LED #4'!$A$14:$S$114,R$48,0),"") ->  | S70: =IFERROR(VLOOKUP($B70,'LED #4'!$A$14:$S$114,S$48,0),"") ->  | T70: =IFERROR(VLOOKUP($B70,'LED #4'!$A$14:$S$114,T$48,0),"") ->  | U70: =IFERROR(VLOOKUP($B70,'LED #4'!$A$14:$S$114,U$48,0),"") -> 
B71: 0.320 | C71: =IFERROR(VLOOKUP($B71,'LED #1'!$A$14:$S$114,C$48,0),"") -> 318.50 | D71: =IFERROR(VLOOKUP($B71,'LED #1'!$A$14:$S$114,D$48,0),"") -> 179.96 | E71: =IFERROR(VLOOKUP($B71,'LED #1'!$A$14:$S$114,E$48,0),"") -> 5.53 | F71: =IFERROR(VLOOKUP($B71,'LED #1'!$A$14:$S$114,F$48,0),"") -> 42.00 | H71: =IFERROR(VLOOKUP($B71,'LED #2'!$A$14:$S$114,H$48,0),"") -> 156.98 | I71: =IFERROR(VLOOKUP($B71,'LED #2'!$A$14:$S$114,I$48,0),"") -> 0.85 | J71: =IFERROR(VLOOKUP($B71,'LED #2'!$A$14:$S$114,J$48,0),"") -> 183.85 | K71: =IFERROR(VLOOKUP($B71,'LED #2'!$A$14:$S$114,K$48,0),"") -> 85.00 | M71: =IFERROR(VLOOKUP($B71,'LED #3'!$A$14:$S$114,M$48,0),"") ->  | N71: =IFERROR(VLOOKUP($B71,'LED #3'!$A$14:$S$114,N$48,0),"") ->  | O71: =IFERROR(VLOOKUP($B71,'LED #3'!$A$14:$S$114,O$48,0),"") ->  | P71: =IFERROR(VLOOKUP($B71,'LED #3'!$A$14:$S$114,P$48,0),"") ->  | R71: =IFERROR(VLOOKUP($B71,'LED #4'!$A$14:$S$114,R$48,0),"") ->  | S71: =IFERROR(VLOOKUP($B71,'LED #4'!$A$14:$S$114,S$48,0),"") ->  | T71: =IFERROR(VLOOKUP($B71,'LED #4'!$A$14:$S$114,T$48,0),"") ->  | U71: =IFERROR(VLOOKUP($B71,'LED #4'!$A$14:$S$114,U$48,0),"") -> 
B72: 0.335 | C72: =IFERROR(VLOOKUP($B72,'LED #1'!$A$14:$S$114,C$48,0),"") -> 332.59 | D72: =IFERROR(VLOOKUP($B72,'LED #1'!$A$14:$S$114,D$48,0),"") -> 178.81 | E72: =IFERROR(VLOOKUP($B72,'LED #1'!$A$14:$S$114,E$48,0),"") -> 5.55 | F72: =IFERROR(VLOOKUP($B72,'LED #1'!$A$14:$S$114,F$48,0),"") -> 41.00 | H72: =IFERROR(VLOOKUP($B72,'LED #2'!$A$14:$S$114,H$48,0),"") -> 163.78 | I72: =IFERROR(VLOOKUP($B72,'LED #2'!$A$14:$S$114,I$48,0),"") -> 0.90 | J72: =IFERROR(VLOOKUP($B72,'LED #2'!$A$14:$S$114,J$48,0),"") -> 182.69 | K72: =IFERROR(VLOOKUP($B72,'LED #2'!$A$14:$S$114,K$48,0),"") -> 82.00 | M72: =IFERROR(VLOOKUP($B72,'LED #3'!$A$14:$S$114,M$48,0),"") ->  | N72: =IFERROR(VLOOKUP($B72,'LED #3'!$A$14:$S$114,N$48,0),"") ->  | O72: =IFERROR(VLOOKUP($B72,'LED #3'!$A$14:$S$114,O$48,0),"") ->  | P72: =IFERROR(VLOOKUP($B72,'LED #3'!$A$14:$S$114,P$48,0),"") ->  | R72: =IFERROR(VLOOKUP($B72,'LED #4'!$A$14:$S$114,R$48,0),"") ->  | S72: =IFERROR(VLOOKUP($B72,'LED #4'!$A$14:$S$114,S$48,0),"") ->  | T72: =IFERROR(VLOOKUP($B72,'LED #4'!$A$14:$S$114,T$48,0),"") ->  | U72: =IFERROR(VLOOKUP($B72,'LED #4'!$A$14:$S$114,U$48,0),"") -> 
B73: 0.350 | C73: =IFERROR(VLOOKUP($B73,'LED #1'!$A$14:$S$114,C$48,0),"") -> 346.63 | D73: =IFERROR(VLOOKUP($B73,'LED #1'!$A$14:$S$114,D$48,0),"") -> 177.68 | E73: =IFERROR(VLOOKUP($B73,'LED #1'!$A$14:$S$114,E$48,0),"") -> 5.57 | F73: =IFERROR(VLOOKUP($B73,'LED #1'!$A$14:$S$114,F$48,0),"") -> 39.00 | H73: =IFERROR(VLOOKUP($B73,'LED #2'!$A$14:$S$114,H$48,0),"") -> 170.55 | I73: =IFERROR(VLOOKUP($B73,'LED #2'!$A$14:$S$114,I$48,0),"") -> 0.94 | J73: =IFERROR(VLOOKUP($B73,'LED #2'!$A$14:$S$114,J$48,0),"") -> 181.55 | K73: =IFERROR(VLOOKUP($B73,'LED #2'!$A$14:$S$114,K$48,0),"") -> 79.00 | M73: =IFERROR(VLOOKUP($B73,'LED #3'!$A$14:$S$114,M$48,0),"") ->  | N73: =IFERROR(VLOOKUP($B73,'LED #3'!$A$14:$S$114,N$48,0),"") ->  | O73: =IFERROR(VLOOKUP($B73,'LED #3'!$A$14:$S$114,O$48,0),"") ->  | P73: =IFERROR(VLOOKUP($B73,'LED #3'!$A$14:$S$114,P$48,0),"") ->  | R73: =IFERROR(VLOOKUP($B73,'LED #4'!$A$14:$S$114,R$48,0),"") ->  | S73: =IFERROR(VLOOKUP($B73,'LED #4'!$A$14:$S$114,S$48,0),"") ->  | T73: =IFERROR(VLOOKUP($B73,'LED #4'!$A$14:$S$114,T$48,0),"") ->  | U73: =IFERROR(VLOOKUP($B73,'LED #4'!$A$14:$S$114,U$48,0),"") -> 
B74: 0.365 | C74: =IFERROR(VLOOKUP($B74,'LED #1'!$A$14:$S$114,C$48,0),"") -> 360.59 | D74: =IFERROR(VLOOKUP($B74,'LED #1'!$A$14:$S$114,D$48,0),"") -> 176.57 | E74: =IFERROR(VLOOKUP($B74,'LED #1'!$A$14:$S$114,E$48,0),"") -> 5.60 | F74: =IFERROR(VLOOKUP($B74,'LED #1'!$A$14:$S$114,F$48,0),"") -> 37.00 | H74: =IFERROR(VLOOKUP($B74,'LED #2'!$A$14:$S$114,H$48,0),"") -> 177.28 | I74: =IFERROR(VLOOKUP($B74,'LED #2'!$A$14:$S$114,I$48,0),"") -> 0.98 | J74: =IFERROR(VLOOKUP($B74,'LED #2'!$A$14:$S$114,J$48,0),"") -> 180.44 | K74: =IFERROR(VLOOKUP($B74,'LED #2'!$A$14:$S$114,K$48,0),"") -> 76.00 | M74: =IFERROR(VLOOKUP($B74,'LED #3'!$A$14:$S$114,M$48,0),"") ->  | N74: =IFERROR(VLOOKUP($B74,'LED #3'!$A$14:$S$114,N$48,0),"") ->  | O74: =IFERROR(VLOOKUP($B74,'LED #3'!$A$14:$S$114,O$48,0),"") ->  | P74: =IFERROR(VLOOKUP($B74,'LED #3'!$A$14:$S$114,P$48,0),"") ->  | R74: =IFERROR(VLOOKUP($B74,'LED #4'!$A$14:$S$114,R$48,0),"") ->  | S74: =IFERROR(VLOOKUP($B74,'LED #4'!$A$14:$S$114,S$48,0),"") ->  | T74: =IFERROR(VLOOKUP($B74,'LED #4'!$A$14:$S$114,T$48,0),"") ->  | U74: =IFERROR(VLOOKUP($B74,'LED #4'!$A$14:$S$114,U$48,0),"") -> 
B75: 0.380 | C75: =IFERROR(VLOOKUP($B75,'LED #1'!$A$14:$S$114,C$48,0),"") -> 374.49 | D75: =IFERROR(VLOOKUP($B75,'LED #1'!$A$14:$S$114,D$48,0),"") -> 175.47 | E75: =IFERROR(VLOOKUP($B75,'LED #1'!$A$14:$S$114,E$48,0),"") -> 5.62 | F75: =IFERROR(VLOOKUP($B75,'LED #1'!$A$14:$S$114,F$48,0),"") -> 36.00 | H75: =IFERROR(VLOOKUP($B75,'LED #2'!$A$14:$S$114,H$48,0),"") -> 183.99 | I75: =IFERROR(VLOOKUP($B75,'LED #2'!$A$14:$S$114,I$48,0),"") -> 1.03 | J75: =IFERROR(VLOOKUP($B75,'LED #2'!$A$14:$S$114,J$48,0),"") -> 179.36 | K75: =IFERROR(VLOOKUP($B75,'LED #2'!$A$14:$S$114,K$48,0),"") -> 73.00 | M75: =IFERROR(VLOOKUP($B75,'LED #3'!$A$14:$S$114,M$48,0),"") ->  | N75: =IFERROR(VLOOKUP($B75,'LED #3'!$A$14:$S$114,N$48,0),"") ->  | O75: =IFERROR(VLOOKUP($B75,'LED #3'!$A$14:$S$114,O$48,0),"") ->  | P75: =IFERROR(VLOOKUP($B75,'LED #3'!$A$14:$S$114,P$48,0),"") ->  | R75: =IFERROR(VLOOKUP($B75,'LED #4'!$A$14:$S$114,R$48,0),"") ->  | S75: =IFERROR(VLOOKUP($B75,'LED #4'!$A$14:$S$114,S$48,0),"") ->  | T75: =IFERROR(VLOOKUP($B75,'LED #4'!$A$14:$S$114,T$48,0),"") ->  | U75: =IFERROR(VLOOKUP($B75,'LED #4'!$A$14:$S$114,U$48,0),"") -> 
B76: 0.395 | C76: =IFERROR(VLOOKUP($B76,'LED #1'!$A$14:$S$114,C$48,0),"") -> 388.32 | D76: =IFERROR(VLOOKUP($B76,'LED #1'!$A$14:$S$114,D$48,0),"") -> 174.39 | E76: =IFERROR(VLOOKUP($B76,'LED #1'!$A$14:$S$114,E$48,0),"") -> 5.64 | F76: =IFERROR(VLOOKUP($B76,'LED #1'!$A$14:$S$114,F$48,0),"") -> 35.00 | H76: =IFERROR(VLOOKUP($B76,'LED #2'!$A$14:$S$114,H$48,0),"") -> 190.67 | I76: =IFERROR(VLOOKUP($B76,'LED #2'!$A$14:$S$114,I$48,0),"") -> 1.07 | J76: =IFERROR(VLOOKUP($B76,'LED #2'!$A$14:$S$114,J$48,0),"") -> 178.30 | K76: =IFERROR(VLOOKUP($B76,'LED #2'!$A$14:$S$114,K$48,0),"") -> 70.00 | M76: =IFERROR(VLOOKUP($B76,'LED #3'!$A$14:$S$114,M$48,0),"") ->  | N76: =IFERROR(VLOOKUP($B76,'LED #3'!$A$14:$S$114,N$48,0),"") ->  | O76: =IFERROR(VLOOKUP($B76,'LED #3'!$A$14:$S$114,O$48,0),"") ->  | P76: =IFERROR(VLOOKUP($B76,'LED #3'!$A$14:$S$114,P$48,0),"") ->  | R76: =IFERROR(VLOOKUP($B76,'LED #4'!$A$14:$S$114,R$48,0),"") ->  | S76: =IFERROR(VLOOKUP($B76,'LED #4'!$A$14:$S$114,S$48,0),"") ->  | T76: =IFERROR(VLOOKUP($B76,'LED #4'!$A$14:$S$114,T$48,0),"") ->  | U76: =IFERROR(VLOOKUP($B76,'LED #4'!$A$14:$S$114,U$48,0),"") -> 
B77: 0.410 | C77: =IFERROR(VLOOKUP($B77,'LED #1'!$A$14:$S$114,C$48,0),"") -> 402.09 | D77: =IFERROR(VLOOKUP($B77,'LED #1'!$A$14:$S$114,D$48,0),"") -> 173.32 | E77: =IFERROR(VLOOKUP($B77,'LED #1'!$A$14:$S$114,E$48,0),"") -> 5.66 | F77: =IFERROR(VLOOKUP($B77,'LED #1'!$A$14:$S$114,F$48,0),"") -> 34.00 | H77: =IFERROR(VLOOKUP($B77,'LED #2'!$A$14:$S$114,H$48,0),"") -> 197.32 | I77: =IFERROR(VLOOKUP($B77,'LED #2'!$A$14:$S$114,I$48,0),"") -> 1.11 | J77: =IFERROR(VLOOKUP($B77,'LED #2'!$A$14:$S$114,J$48,0),"") -> 177.26 | K77: =IFERROR(VLOOKUP($B77,'LED #2'!$A$14:$S$114,K$48,0),"") -> 68.00 | M77: =IFERROR(VLOOKUP($B77,'LED #3'!$A$14:$S$114,M$48,0),"") ->  | N77: =IFERROR(VLOOKUP($B77,'LED #3'!$A$14:$S$114,N$48,0),"") ->  | O77: =IFERROR(VLOOKUP($B77,'LED #3'!$A$14:$S$114,O$48,0),"") ->  | P77: =IFERROR(VLOOKUP($B77,'LED #3'!$A$14:$S$114,P$48,0),"") ->  | R77: =IFERROR(VLOOKUP($B77,'LED #4'!$A$14:$S$114,R$48,0),"") ->  | S77: =IFERROR(VLOOKUP($B77,'LED #4'!$A$14:$S$114,S$48,0),"") ->  | T77: =IFERROR(VLOOKUP($B77,'LED #4'!$A$14:$S$114,T$48,0),"") ->  | U77: =IFERROR(VLOOKUP($B77,'LED #4'!$A$14:$S$114,U$48,0),"") -> 
B78: 0.425 | C78: =IFERROR(VLOOKUP($B78,'LED #1'!$A$14:$S$114,C$48,0),"") -> 415.78 | D78: =IFERROR(VLOOKUP($B78,'LED #1'!$A$14:$S$114,D$48,0),"") -> 172.27 | E78: =IFERROR(VLOOKUP($B78,'LED #1'!$A$14:$S$114,E$48,0),"") -> 5.68 | F78: =IFERROR(VLOOKUP($B78,'LED #1'!$A$14:$S$114,F$48,0),"") -> 33.00 | H78: =IFERROR(VLOOKUP($B78,'LED #2'!$A$14:$S$114,H$48,0),"") -> 203.94 | I78: =IFERROR(VLOOKUP($B78,'LED #2'!$A$14:$S$114,I$48,0),"") -> 1.16 | J78: =IFERROR(VLOOKUP($B78,'LED #2'!$A$14:$S$114,J$48,0),"") -> 176.23 | K78: =IFERROR(VLOOKUP($B78,'LED #2'!$A$14:$S$114,K$48,0),"") -> 66.00 | M78: =IFERROR(VLOOKUP($B78,'LED #3'!$A$14:$S$114,M$48,0),"") ->  | N78: =IFERROR(VLOOKUP($B78,'LED #3'!$A$14:$S$114,N$48,0),"") ->  | O78: =IFERROR(VLOOKUP($B78,'LED #3'!$A$14:$S$114,O$48,0),"") ->  | P78: =IFERROR(VLOOKUP($B78,'LED #3'!$A$14:$S$114,P$48,0),"") ->  | R78: =IFERROR(VLOOKUP($B78,'LED #4'!$A$14:$S$114,R$48,0),"") ->  | S78: =IFERROR(VLOOKUP($B78,'LED #4'!$A$14:$S$114,S$48,0),"") ->  | T78: =IFERROR(VLOOKUP($B78,'LED #4'!$A$14:$S$114,T$48,0),"") ->  | U78: =IFERROR(VLOOKUP($B78,'LED #4'!$A$14:$S$114,U$48,0),"") -> 
B79: 0.440 | C79: =IFERROR(VLOOKUP($B79,'LED #1'!$A$14:$S$114,C$48,0),"") -> 429.42 | D79: =IFERROR(VLOOKUP($B79,'LED #1'!$A$14:$S$114,D$48,0),"") -> 171.23 | E79: =IFERROR(VLOOKUP($B79,'LED #1'!$A$14:$S$114,E$48,0),"") -> 5.70 | F79: =IFERROR(VLOOKUP($B79,'LED #1'!$A$14:$S$114,F$48,0),"") -> 32.00 | H79: =IFERROR(VLOOKUP($B79,'LED #2'!$A$14:$S$114,H$48,0),"") -> 210.52 | I79: =IFERROR(VLOOKUP($B79,'LED #2'!$A$14:$S$114,I$48,0),"") -> 1.20 | J79: =IFERROR(VLOOKUP($B79,'LED #2'!$A$14:$S$114,J$48,0),"") -> 175.23 | K79: =IFERROR(VLOOKUP($B79,'LED #2'!$A$14:$S$114,K$48,0),"") -> 64.00 | M79: =IFERROR(VLOOKUP($B79,'LED #3'!$A$14:$S$114,M$48,0),"") ->  | N79: =IFERROR(VLOOKUP($B79,'LED #3'!$A$14:$S$114,N$48,0),"") ->  | O79: =IFERROR(VLOOKUP($B79,'LED #3'!$A$14:$S$114,O$48,0),"") ->  | P79: =IFERROR(VLOOKUP($B79,'LED #3'!$A$14:$S$114,P$48,0),"") ->  | R79: =IFERROR(VLOOKUP($B79,'LED #4'!$A$14:$S$114,R$48,0),"") ->  | S79: =IFERROR(VLOOKUP($B79,'LED #4'!$A$14:$S$114,S$48,0),"") ->  | T79: =IFERROR(VLOOKUP($B79,'LED #4'!$A$14:$S$114,T$48,0),"") ->  | U79: =IFERROR(VLOOKUP($B79,'LED #4'!$A$14:$S$114,U$48,0),"") -> 
B80: 0.455 | C80: =IFERROR(VLOOKUP($B80,'LED #1'!$A$14:$S$114,C$48,0),"") -> 442.99 | D80: =IFERROR(VLOOKUP($B80,'LED #1'!$A$14:$S$114,D$48,0),"") -> 170.20 | E80: =IFERROR(VLOOKUP($B80,'LED #1'!$A$14:$S$114,E$48,0),"") -> 5.72 | F80: =IFERROR(VLOOKUP($B80,'LED #1'!$A$14:$S$114,F$48,0),"") -> 31.00 | H80: =IFERROR(VLOOKUP($B80,'LED #2'!$A$14:$S$114,H$48,0),"") -> 217.08 | I80: =IFERROR(VLOOKUP($B80,'LED #2'!$A$14:$S$114,I$48,0),"") -> 1.25 | J80: =IFERROR(VLOOKUP($B80,'LED #2'!$A$14:$S$114,J$48,0),"") -> 174.24 | K80: =IFERROR(VLOOKUP($B80,'LED #2'!$A$14:$S$114,K$48,0),"") -> 62.00 | M80: =IFERROR(VLOOKUP($B80,'LED #3'!$A$14:$S$114,M$48,0),"") ->  | N80: =IFERROR(VLOOKUP($B80,'LED #3'!$A$14:$S$114,N$48,0),"") ->  | O80: =IFERROR(VLOOKUP($B80,'LED #3'!$A$14:$S$114,O$48,0),"") ->  | P80: =IFERROR(VLOOKUP($B80,'LED #3'!$A$14:$S$114,P$48,0),"") ->  | R80: =IFERROR(VLOOKUP($B80,'LED #4'!$A$14:$S$114,R$48,0),"") ->  | S80: =IFERROR(VLOOKUP($B80,'LED #4'!$A$14:$S$114,S$48,0),"") ->  | T80: =IFERROR(VLOOKUP($B80,'LED #4'!$A$14:$S$114,T$48,0),"") ->  | U80: =IFERROR(VLOOKUP($B80,'LED #4'!$A$14:$S$114,U$48,0),"") -> 
B81: 0.470 | C81: =IFERROR(VLOOKUP($B81,'LED #1'!$A$14:$S$114,C$48,0),"") -> 456.49 | D81: =IFERROR(VLOOKUP($B81,'LED #1'!$A$14:$S$114,D$48,0),"") -> 169.19 | E81: =IFERROR(VLOOKUP($B81,'LED #1'!$A$14:$S$114,E$48,0),"") -> 5.74 | F81: =IFERROR(VLOOKUP($B81,'LED #1'!$A$14:$S$114,F$48,0),"") -> 30.00 | H81: =IFERROR(VLOOKUP($B81,'LED #2'!$A$14:$S$114,H$48,0),"") -> 223.61 | I81: =IFERROR(VLOOKUP($B81,'LED #2'!$A$14:$S$114,I$48,0),"") -> 1.29 | J81: =IFERROR(VLOOKUP($B81,'LED #2'!$A$14:$S$114,J$48,0),"") -> 173.27 | K81: =IFERROR(VLOOKUP($B81,'LED #2'!$A$14:$S$114,K$48,0),"") -> 60.00 | M81: =IFERROR(VLOOKUP($B81,'LED #3'!$A$14:$S$114,M$48,0),"") ->  | N81: =IFERROR(VLOOKUP($B81,'LED #3'!$A$14:$S$114,N$48,0),"") ->  | O81: =IFERROR(VLOOKUP($B81,'LED #3'!$A$14:$S$114,O$48,0),"") ->  | P81: =IFERROR(VLOOKUP($B81,'LED #3'!$A$14:$S$114,P$48,0),"") ->  | R81: =IFERROR(VLOOKUP($B81,'LED #4'!$A$14:$S$114,R$48,0),"") ->  | S81: =IFERROR(VLOOKUP($B81,'LED #4'!$A$14:$S$114,S$48,0),"") ->  | T81: =IFERROR(VLOOKUP($B81,'LED #4'!$A$14:$S$114,T$48,0),"") ->  | U81: =IFERROR(VLOOKUP($B81,'LED #4'!$A$14:$S$114,U$48,0),"") -> 
B82: 0.485 | C82: =IFERROR(VLOOKUP($B82,'LED #1'!$A$14:$S$114,C$48,0),"") -> 469.93 | D82: =IFERROR(VLOOKUP($B82,'LED #1'!$A$14:$S$114,D$48,0),"") -> 168.20 | E82: =IFERROR(VLOOKUP($B82,'LED #1'!$A$14:$S$114,E$48,0),"") -> 5.76 | F82: =IFERROR(VLOOKUP($B82,'LED #1'!$A$14:$S$114,F$48,0),"") -> 29.00 | H82: =IFERROR(VLOOKUP($B82,'LED #2'!$A$14:$S$114,H$48,0),"") -> 230.11 | I82: =IFERROR(VLOOKUP($B82,'LED #2'!$A$14:$S$114,I$48,0),"") -> 1.34 | J82: =IFERROR(VLOOKUP($B82,'LED #2'!$A$14:$S$114,J$48,0),"") -> 172.32 | K82: =IFERROR(VLOOKUP($B82,'LED #2'!$A$14:$S$114,K$48,0),"") -> 58.00 | M82: =IFERROR(VLOOKUP($B82,'LED #3'!$A$14:$S$114,M$48,0),"") ->  | N82: =IFERROR(VLOOKUP($B82,'LED #3'!$A$14:$S$114,N$48,0),"") ->  | O82: =IFERROR(VLOOKUP($B82,'LED #3'!$A$14:$S$114,O$48,0),"") ->  | P82: =IFERROR(VLOOKUP($B82,'LED #3'!$A$14:$S$114,P$48,0),"") ->  | R82: =IFERROR(VLOOKUP($B82,'LED #4'!$A$14:$S$114,R$48,0),"") ->  | S82: =IFERROR(VLOOKUP($B82,'LED #4'!$A$14:$S$114,S$48,0),"") ->  | T82: =IFERROR(VLOOKUP($B82,'LED #4'!$A$14:$S$114,T$48,0),"") ->  | U82: =IFERROR(VLOOKUP($B82,'LED #4'!$A$14:$S$114,U$48,0),"") -> 
B83: 0.500 | C83: =IFERROR(VLOOKUP($B83,'LED #1'!$A$14:$S$114,C$48,0),"") -> 483.30 | D83: =IFERROR(VLOOKUP($B83,'LED #1'!$A$14:$S$114,D$48,0),"") -> 167.21 | E83: =IFERROR(VLOOKUP($B83,'LED #1'!$A$14:$S$114,E$48,0),"") -> 5.78 | F83: =IFERROR(VLOOKUP($B83,'LED #1'!$A$14:$S$114,F$48,0),"") -> 28.00 | H83: =IFERROR(VLOOKUP($B83,'LED #2'!$A$14:$S$114,H$48,0),"") -> 236.57 | I83: =IFERROR(VLOOKUP($B83,'LED #2'!$A$14:$S$114,I$48,0),"") -> 1.38 | J83: =IFERROR(VLOOKUP($B83,'LED #2'!$A$14:$S$114,J$48,0),"") -> 171.38 | K83: =IFERROR(VLOOKUP($B83,'LED #2'!$A$14:$S$114,K$48,0),"") -> 57.00 | M83: =IFERROR(VLOOKUP($B83,'LED #3'!$A$14:$S$114,M$48,0),"") ->  | N83: =IFERROR(VLOOKUP($B83,'LED #3'!$A$14:$S$114,N$48,0),"") ->  | O83: =IFERROR(VLOOKUP($B83,'LED #3'!$A$14:$S$114,O$48,0),"") ->  | P83: =IFERROR(VLOOKUP($B83,'LED #3'!$A$14:$S$114,P$48,0),"") ->  | R83: =IFERROR(VLOOKUP($B83,'LED #4'!$A$14:$S$114,R$48,0),"") ->  | S83: =IFERROR(VLOOKUP($B83,'LED #4'!$A$14:$S$114,S$48,0),"") ->  | T83: =IFERROR(VLOOKUP($B83,'LED #4'!$A$14:$S$114,T$48,0),"") ->  | U83: =IFERROR(VLOOKUP($B83,'LED #4'!$A$14:$S$114,U$48,0),"") -> 
B84: 0.515 | C84: =IFERROR(VLOOKUP($B84,'LED #1'!$A$14:$S$114,C$48,0),"") -> 496.62 | D84: =IFERROR(VLOOKUP($B84,'LED #1'!$A$14:$S$114,D$48,0),"") -> 166.24 | E84: =IFERROR(VLOOKUP($B84,'LED #1'!$A$14:$S$114,E$48,0),"") -> 5.80 | F84: =IFERROR(VLOOKUP($B84,'LED #1'!$A$14:$S$114,F$48,0),"") -> 27.00 | H84: =IFERROR(VLOOKUP($B84,'LED #2'!$A$14:$S$114,H$48,0),"") -> 243.01 | I84: =IFERROR(VLOOKUP($B84,'LED #2'!$A$14:$S$114,I$48,0),"") -> 1.43 | J84: =IFERROR(VLOOKUP($B84,'LED #2'!$A$14:$S$114,J$48,0),"") -> 170.45 | K84: =IFERROR(VLOOKUP($B84,'LED #2'!$A$14:$S$114,K$48,0),"") -> 55.00 | M84: =IFERROR(VLOOKUP($B84,'LED #3'!$A$14:$S$114,M$48,0),"") ->  | N84: =IFERROR(VLOOKUP($B84,'LED #3'!$A$14:$S$114,N$48,0),"") ->  | O84: =IFERROR(VLOOKUP($B84,'LED #3'!$A$14:$S$114,O$48,0),"") ->  | P84: =IFERROR(VLOOKUP($B84,'LED #3'!$A$14:$S$114,P$48,0),"") ->  | R84: =IFERROR(VLOOKUP($B84,'LED #4'!$A$14:$S$114,R$48,0),"") ->  | S84: =IFERROR(VLOOKUP($B84,'LED #4'!$A$14:$S$114,S$48,0),"") ->  | T84: =IFERROR(VLOOKUP($B84,'LED #4'!$A$14:$S$114,T$48,0),"") ->  | U84: =IFERROR(VLOOKUP($B84,'LED #4'!$A$14:$S$114,U$48,0),"") -> 
B85: 0.530 | C85: =IFERROR(VLOOKUP($B85,'LED #1'!$A$14:$S$114,C$48,0),"") -> 509.86 | D85: =IFERROR(VLOOKUP($B85,'LED #1'!$A$14:$S$114,D$48,0),"") -> 165.28 | E85: =IFERROR(VLOOKUP($B85,'LED #1'!$A$14:$S$114,E$48,0),"") -> 5.82 | F85: =IFERROR(VLOOKUP($B85,'LED #1'!$A$14:$S$114,F$48,0),"") -> 27.00 | H85: =IFERROR(VLOOKUP($B85,'LED #2'!$A$14:$S$114,H$48,0),"") -> 249.42 | I85: =IFERROR(VLOOKUP($B85,'LED #2'!$A$14:$S$114,I$48,0),"") -> 1.47 | J85: =IFERROR(VLOOKUP($B85,'LED #2'!$A$14:$S$114,J$48,0),"") -> 169.53 | K85: =IFERROR(VLOOKUP($B85,'LED #2'!$A$14:$S$114,K$48,0),"") -> 54.00 | M85: =IFERROR(VLOOKUP($B85,'LED #3'!$A$14:$S$114,M$48,0),"") ->  | N85: =IFERROR(VLOOKUP($B85,'LED #3'!$A$14:$S$114,N$48,0),"") ->  | O85: =IFERROR(VLOOKUP($B85,'LED #3'!$A$14:$S$114,O$48,0),"") ->  | P85: =IFERROR(VLOOKUP($B85,'LED #3'!$A$14:$S$114,P$48,0),"") ->  | R85: =IFERROR(VLOOKUP($B85,'LED #4'!$A$14:$S$114,R$48,0),"") ->  | S85: =IFERROR(VLOOKUP($B85,'LED #4'!$A$14:$S$114,S$48,0),"") ->  | T85: =IFERROR(VLOOKUP($B85,'LED #4'!$A$14:$S$114,T$48,0),"") ->  | U85: =IFERROR(VLOOKUP($B85,'LED #4'!$A$14:$S$114,U$48,0),"") -> 
B86: =ROUND(B85+$J$4,3) -> 0.545 | C86: =IFERROR(VLOOKUP($B86,'LED #1'!$A$14:$S$114,C$48,0),"") -> 523.05 | D86: =IFERROR(VLOOKUP($B86,'LED #1'!$A$14:$S$114,D$48,0),"") -> 164.34 | E86: =IFERROR(VLOOKUP($B86,'LED #1'!$A$14:$S$114,E$48,0),"") -> 5.84 | F86: =IFERROR(VLOOKUP($B86,'LED #1'!$A$14:$S$114,F$48,0),"") -> 26.00 | H86: =IFERROR(VLOOKUP($B86,'LED #2'!$A$14:$S$114,H$48,0),"") -> 255.81 | I86: =IFERROR(VLOOKUP($B86,'LED #2'!$A$14:$S$114,I$48,0),"") -> 1.52 | J86: =IFERROR(VLOOKUP($B86,'LED #2'!$A$14:$S$114,J$48,0),"") -> 168.63 | K86: =IFERROR(VLOOKUP($B86,'LED #2'!$A$14:$S$114,K$48,0),"") -> 53.00 | M86: =IFERROR(VLOOKUP($B86,'LED #3'!$A$14:$S$114,M$48,0),"") ->  | N86: =IFERROR(VLOOKUP($B86,'LED #3'!$A$14:$S$114,N$48,0),"") ->  | O86: =IFERROR(VLOOKUP($B86,'LED #3'!$A$14:$S$114,O$48,0),"") ->  | P86: =IFERROR(VLOOKUP($B86,'LED #3'!$A$14:$S$114,P$48,0),"") ->  | R86: =IFERROR(VLOOKUP($B86,'LED #4'!$A$14:$S$114,R$48,0),"") ->  | S86: =IFERROR(VLOOKUP($B86,'LED #4'!$A$14:$S$114,S$48,0),"") ->  | T86: =IFERROR(VLOOKUP($B86,'LED #4'!$A$14:$S$114,T$48,0),"") ->  | U86: =IFERROR(VLOOKUP($B86,'LED #4'!$A$14:$S$114,U$48,0),"") -> 
B87: 0.560 | C87: =IFERROR(VLOOKUP($B87,'LED #1'!$A$14:$S$114,C$48,0),"") -> 536.17 | D87: =IFERROR(VLOOKUP($B87,'LED #1'!$A$14:$S$114,D$48,0),"") -> 163.40 | E87: =IFERROR(VLOOKUP($B87,'LED #1'!$A$14:$S$114,E$48,0),"") -> 5.86 | F87: =IFERROR(VLOOKUP($B87,'LED #1'!$A$14:$S$114,F$48,0),"") -> 25.00 | H87: =IFERROR(VLOOKUP($B87,'LED #2'!$A$14:$S$114,H$48,0),"") -> 262.16 | I87: =IFERROR(VLOOKUP($B87,'LED #2'!$A$14:$S$114,I$48,0),"") -> 1.56 | J87: =IFERROR(VLOOKUP($B87,'LED #2'!$A$14:$S$114,J$48,0),"") -> 167.74 | K87: =IFERROR(VLOOKUP($B87,'LED #2'!$A$14:$S$114,K$48,0),"") -> 51.00 | M87: =IFERROR(VLOOKUP($B87,'LED #3'!$A$14:$S$114,M$48,0),"") ->  | N87: =IFERROR(VLOOKUP($B87,'LED #3'!$A$14:$S$114,N$48,0),"") ->  | O87: =IFERROR(VLOOKUP($B87,'LED #3'!$A$14:$S$114,O$48,0),"") ->  | P87: =IFERROR(VLOOKUP($B87,'LED #3'!$A$14:$S$114,P$48,0),"") ->  | R87: =IFERROR(VLOOKUP($B87,'LED #4'!$A$14:$S$114,R$48,0),"") ->  | S87: =IFERROR(VLOOKUP($B87,'LED #4'!$A$14:$S$114,S$48,0),"") ->  | T87: =IFERROR(VLOOKUP($B87,'LED #4'!$A$14:$S$114,T$48,0),"") ->  | U87: =IFERROR(VLOOKUP($B87,'LED #4'!$A$14:$S$114,U$48,0),"") -> 
B88: 0.575 | C88: =IFERROR(VLOOKUP($B88,'LED #1'!$A$14:$S$114,C$48,0),"") -> 549.23 | D88: =IFERROR(VLOOKUP($B88,'LED #1'!$A$14:$S$114,D$48,0),"") -> 162.48 | E88: =IFERROR(VLOOKUP($B88,'LED #1'!$A$14:$S$114,E$48,0),"") -> 5.88 | F88: =IFERROR(VLOOKUP($B88,'LED #1'!$A$14:$S$114,F$48,0),"") -> 25.00 | H88: =IFERROR(VLOOKUP($B88,'LED #2'!$A$14:$S$114,H$48,0),"") -> 268.48 | I88: =IFERROR(VLOOKUP($B88,'LED #2'!$A$14:$S$114,I$48,0),"") -> 1.61 | J88: =IFERROR(VLOOKUP($B88,'LED #2'!$A$14:$S$114,J$48,0),"") -> 166.86 | K88: =IFERROR(VLOOKUP($B88,'LED #2'!$A$14:$S$114,K$48,0),"") -> 50.00 | M88: =IFERROR(VLOOKUP($B88,'LED #3'!$A$14:$S$114,M$48,0),"") ->  | N88: =IFERROR(VLOOKUP($B88,'LED #3'!$A$14:$S$114,N$48,0),"") ->  | O88: =IFERROR(VLOOKUP($B88,'LED #3'!$A$14:$S$114,O$48,0),"") ->  | P88: =IFERROR(VLOOKUP($B88,'LED #3'!$A$14:$S$114,P$48,0),"") ->  | R88: =IFERROR(VLOOKUP($B88,'LED #4'!$A$14:$S$114,R$48,0),"") ->  | S88: =IFERROR(VLOOKUP($B88,'LED #4'!$A$14:$S$114,S$48,0),"") ->  | T88: =IFERROR(VLOOKUP($B88,'LED #4'!$A$14:$S$114,T$48,0),"") ->  | U88: =IFERROR(VLOOKUP($B88,'LED #4'!$A$14:$S$114,U$48,0),"") -> 
B89: 0.590 | C89: =IFERROR(VLOOKUP($B89,'LED #1'!$A$14:$S$114,C$48,0),"") -> 562.22 | D89: =IFERROR(VLOOKUP($B89,'LED #1'!$A$14:$S$114,D$48,0),"") -> 161.57 | E89: =IFERROR(VLOOKUP($B89,'LED #1'!$A$14:$S$114,E$48,0),"") -> 5.90 | F89: =IFERROR(VLOOKUP($B89,'LED #1'!$A$14:$S$114,F$48,0),"") -> 24.00 | H89: =IFERROR(VLOOKUP($B89,'LED #2'!$A$14:$S$114,H$48,0),"") -> 274.78 | I89: =IFERROR(VLOOKUP($B89,'LED #2'!$A$14:$S$114,I$48,0),"") -> 1.66 | J89: =IFERROR(VLOOKUP($B89,'LED #2'!$A$14:$S$114,J$48,0),"") -> 166.00 | K89: =IFERROR(VLOOKUP($B89,'LED #2'!$A$14:$S$114,K$48,0),"") -> 49.00 | M89: =IFERROR(VLOOKUP($B89,'LED #3'!$A$14:$S$114,M$48,0),"") ->  | N89: =IFERROR(VLOOKUP($B89,'LED #3'!$A$14:$S$114,N$48,0),"") ->  | O89: =IFERROR(VLOOKUP($B89,'LED #3'!$A$14:$S$114,O$48,0),"") ->  | P89: =IFERROR(VLOOKUP($B89,'LED #3'!$A$14:$S$114,P$48,0),"") ->  | R89: =IFERROR(VLOOKUP($B89,'LED #4'!$A$14:$S$114,R$48,0),"") ->  | S89: =IFERROR(VLOOKUP($B89,'LED #4'!$A$14:$S$114,S$48,0),"") ->  | T89: =IFERROR(VLOOKUP($B89,'LED #4'!$A$14:$S$114,T$48,0),"") ->  | U89: =IFERROR(VLOOKUP($B89,'LED #4'!$A$14:$S$114,U$48,0),"") -> 
B90: 0.605 | C90: =IFERROR(VLOOKUP($B90,'LED #1'!$A$14:$S$114,C$48,0),"") -> 575.16 | D90: =IFERROR(VLOOKUP($B90,'LED #1'!$A$14:$S$114,D$48,0),"") -> 160.67 | E90: =IFERROR(VLOOKUP($B90,'LED #1'!$A$14:$S$114,E$48,0),"") -> 5.92 | F90: =IFERROR(VLOOKUP($B90,'LED #1'!$A$14:$S$114,F$48,0),"") -> 24.00 | H90: =IFERROR(VLOOKUP($B90,'LED #2'!$A$14:$S$114,H$48,0),"") -> 281.04 | I90: =IFERROR(VLOOKUP($B90,'LED #2'!$A$14:$S$114,I$48,0),"") -> 1.70 | J90: =IFERROR(VLOOKUP($B90,'LED #2'!$A$14:$S$114,J$48,0),"") -> 165.14 | K90: =IFERROR(VLOOKUP($B90,'LED #2'!$A$14:$S$114,K$48,0),"") -> 48.00 | M90: =IFERROR(VLOOKUP($B90,'LED #3'!$A$14:$S$114,M$48,0),"") ->  | N90: =IFERROR(VLOOKUP($B90,'LED #3'!$A$14:$S$114,N$48,0),"") ->  | O90: =IFERROR(VLOOKUP($B90,'LED #3'!$A$14:$S$114,O$48,0),"") ->  | P90: =IFERROR(VLOOKUP($B90,'LED #3'!$A$14:$S$114,P$48,0),"") ->  | R90: =IFERROR(VLOOKUP($B90,'LED #4'!$A$14:$S$114,R$48,0),"") ->  | S90: =IFERROR(VLOOKUP($B90,'LED #4'!$A$14:$S$114,S$48,0),"") ->  | T90: =IFERROR(VLOOKUP($B90,'LED #4'!$A$14:$S$114,T$48,0),"") ->  | U90: =IFERROR(VLOOKUP($B90,'LED #4'!$A$14:$S$114,U$48,0),"") -> 
B91: 0.620 | C91: =IFERROR(VLOOKUP($B91,'LED #1'!$A$14:$S$114,C$48,0),"") -> 588.03 | D91: =IFERROR(VLOOKUP($B91,'LED #1'!$A$14:$S$114,D$48,0),"") -> 159.78 | E91: =IFERROR(VLOOKUP($B91,'LED #1'!$A$14:$S$114,E$48,0),"") -> 5.94 | F91: =IFERROR(VLOOKUP($B91,'LED #1'!$A$14:$S$114,F$48,0),"") -> 23.00 | H91: =IFERROR(VLOOKUP($B91,'LED #2'!$A$14:$S$114,H$48,0),"") -> 287.28 | I91: =IFERROR(VLOOKUP($B91,'LED #2'!$A$14:$S$114,I$48,0),"") -> 1.75 | J91: =IFERROR(VLOOKUP($B91,'LED #2'!$A$14:$S$114,J$48,0),"") -> 164.29 | K91: =IFERROR(VLOOKUP($B91,'LED #2'!$A$14:$S$114,K$48,0),"") -> 47.00 | M91: =IFERROR(VLOOKUP($B91,'LED #3'!$A$14:$S$114,M$48,0),"") ->  | N91: =IFERROR(VLOOKUP($B91,'LED #3'!$A$14:$S$114,N$48,0),"") ->  | O91: =IFERROR(VLOOKUP($B91,'LED #3'!$A$14:$S$114,O$48,0),"") ->  | P91: =IFERROR(VLOOKUP($B91,'LED #3'!$A$14:$S$114,P$48,0),"") ->  | R91: =IFERROR(VLOOKUP($B91,'LED #4'!$A$14:$S$114,R$48,0),"") ->  | S91: =IFERROR(VLOOKUP($B91,'LED #4'!$A$14:$S$114,S$48,0),"") ->  | T91: =IFERROR(VLOOKUP($B91,'LED #4'!$A$14:$S$114,T$48,0),"") ->  | U91: =IFERROR(VLOOKUP($B91,'LED #4'!$A$14:$S$114,U$48,0),"") -> 
B92: 0.635 | C92: =IFERROR(VLOOKUP($B92,'LED #1'!$A$14:$S$114,C$48,0),"") -> 600.84 | D92: =IFERROR(VLOOKUP($B92,'LED #1'!$A$14:$S$114,D$48,0),"") -> 158.90 | E92: =IFERROR(VLOOKUP($B92,'LED #1'!$A$14:$S$114,E$48,0),"") -> 5.95 | F92: =IFERROR(VLOOKUP($B92,'LED #1'!$A$14:$S$114,F$48,0),"") -> 23.00 | H92: =IFERROR(VLOOKUP($B92,'LED #2'!$A$14:$S$114,H$48,0),"") -> 293.49 | I92: =IFERROR(VLOOKUP($B92,'LED #2'!$A$14:$S$114,I$48,0),"") -> 1.80 | J92: =IFERROR(VLOOKUP($B92,'LED #2'!$A$14:$S$114,J$48,0),"") -> 163.45 | K92: =IFERROR(VLOOKUP($B92,'LED #2'!$A$14:$S$114,K$48,0),"") -> 46.00 | M92: =IFERROR(VLOOKUP($B92,'LED #3'!$A$14:$S$114,M$48,0),"") ->  | N92: =IFERROR(VLOOKUP($B92,'LED #3'!$A$14:$S$114,N$48,0),"") ->  | O92: =IFERROR(VLOOKUP($B92,'LED #3'!$A$14:$S$114,O$48,0),"") ->  | P92: =IFERROR(VLOOKUP($B92,'LED #3'!$A$14:$S$114,P$48,0),"") ->  | R92: =IFERROR(VLOOKUP($B92,'LED #4'!$A$14:$S$114,R$48,0),"") ->  | S92: =IFERROR(VLOOKUP($B92,'LED #4'!$A$14:$S$114,S$48,0),"") ->  | T92: =IFERROR(VLOOKUP($B92,'LED #4'!$A$14:$S$114,T$48,0),"") ->  | U92: =IFERROR(VLOOKUP($B92,'LED #4'!$A$14:$S$114,U$48,0),"") -> 
B93: 0.650 | C93: =IFERROR(VLOOKUP($B93,'LED #1'!$A$14:$S$114,C$48,0),"") -> 613.59 | D93: =IFERROR(VLOOKUP($B93,'LED #1'!$A$14:$S$114,D$48,0),"") -> 158.03 | E93: =IFERROR(VLOOKUP($B93,'LED #1'!$A$14:$S$114,E$48,0),"") -> 5.97 | F93: =IFERROR(VLOOKUP($B93,'LED #1'!$A$14:$S$114,F$48,0),"") -> 22.00 | H93: =IFERROR(VLOOKUP($B93,'LED #2'!$A$14:$S$114,H$48,0),"") -> 299.67 | I93: =IFERROR(VLOOKUP($B93,'LED #2'!$A$14:$S$114,I$48,0),"") -> 1.84 | J93: =IFERROR(VLOOKUP($B93,'LED #2'!$A$14:$S$114,J$48,0),"") -> 162.63 | K93: =IFERROR(VLOOKUP($B93,'LED #2'!$A$14:$S$114,K$48,0),"") -> 45.00 | M93: =IFERROR(VLOOKUP($B93,'LED #3'!$A$14:$S$114,M$48,0),"") ->  | N93: =IFERROR(VLOOKUP($B93,'LED #3'!$A$14:$S$114,N$48,0),"") ->  | O93: =IFERROR(VLOOKUP($B93,'LED #3'!$A$14:$S$114,O$48,0),"") ->  | P93: =IFERROR(VLOOKUP($B93,'LED #3'!$A$14:$S$114,P$48,0),"") ->  | R93: =IFERROR(VLOOKUP($B93,'LED #4'!$A$14:$S$114,R$48,0),"") ->  | S93: =IFERROR(VLOOKUP($B93,'LED #4'!$A$14:$S$114,S$48,0),"") ->  | T93: =IFERROR(VLOOKUP($B93,'LED #4'!$A$14:$S$114,T$48,0),"") ->  | U93: =IFERROR(VLOOKUP($B93,'LED #4'!$A$14:$S$114,U$48,0),"") -> 
B94: 0.665 | C94: =IFERROR(VLOOKUP($B94,'LED #1'!$A$14:$S$114,C$48,0),"") -> 626.27 | D94: =IFERROR(VLOOKUP($B94,'LED #1'!$A$14:$S$114,D$48,0),"") -> 157.17 | E94: =IFERROR(VLOOKUP($B94,'LED #1'!$A$14:$S$114,E$48,0),"") -> 5.99 | F94: =IFERROR(VLOOKUP($B94,'LED #1'!$A$14:$S$114,F$48,0),"") -> 22.00 | H94: =IFERROR(VLOOKUP($B94,'LED #2'!$A$14:$S$114,H$48,0),"") -> 305.82 | I94: =IFERROR(VLOOKUP($B94,'LED #2'!$A$14:$S$114,I$48,0),"") -> 1.89 | J94: =IFERROR(VLOOKUP($B94,'LED #2'!$A$14:$S$114,J$48,0),"") -> 161.81 | K94: =IFERROR(VLOOKUP($B94,'LED #2'!$A$14:$S$114,K$48,0),"") -> 44.00 | M94: =IFERROR(VLOOKUP($B94,'LED #3'!$A$14:$S$114,M$48,0),"") ->  | N94: =IFERROR(VLOOKUP($B94,'LED #3'!$A$14:$S$114,N$48,0),"") ->  | O94: =IFERROR(VLOOKUP($B94,'LED #3'!$A$14:$S$114,O$48,0),"") ->  | P94: =IFERROR(VLOOKUP($B94,'LED #3'!$A$14:$S$114,P$48,0),"") ->  | R94: =IFERROR(VLOOKUP($B94,'LED #4'!$A$14:$S$114,R$48,0),"") ->  | S94: =IFERROR(VLOOKUP($B94,'LED #4'!$A$14:$S$114,S$48,0),"") ->  | T94: =IFERROR(VLOOKUP($B94,'LED #4'!$A$14:$S$114,T$48,0),"") ->  | U94: =IFERROR(VLOOKUP($B94,'LED #4'!$A$14:$S$114,U$48,0),"") -> 
B95: 0.680 | C95: =IFERROR(VLOOKUP($B95,'LED #1'!$A$14:$S$114,C$48,0),"") -> 638.90 | D95: =IFERROR(VLOOKUP($B95,'LED #1'!$A$14:$S$114,D$48,0),"") -> 156.32 | E95: =IFERROR(VLOOKUP($B95,'LED #1'!$A$14:$S$114,E$48,0),"") -> 6.01 | F95: =IFERROR(VLOOKUP($B95,'LED #1'!$A$14:$S$114,F$48,0),"") -> 21.00 | H95: =IFERROR(VLOOKUP($B95,'LED #2'!$A$14:$S$114,H$48,0),"") -> 311.95 | I95: =IFERROR(VLOOKUP($B95,'LED #2'!$A$14:$S$114,I$48,0),"") -> 1.94 | J95: =IFERROR(VLOOKUP($B95,'LED #2'!$A$14:$S$114,J$48,0),"") -> 161.00 | K95: =IFERROR(VLOOKUP($B95,'LED #2'!$A$14:$S$114,K$48,0),"") -> 43.00 | M95: =IFERROR(VLOOKUP($B95,'LED #3'!$A$14:$S$114,M$48,0),"") ->  | N95: =IFERROR(VLOOKUP($B95,'LED #3'!$A$14:$S$114,N$48,0),"") ->  | O95: =IFERROR(VLOOKUP($B95,'LED #3'!$A$14:$S$114,O$48,0),"") ->  | P95: =IFERROR(VLOOKUP($B95,'LED #3'!$A$14:$S$114,P$48,0),"") ->  | R95: =IFERROR(VLOOKUP($B95,'LED #4'!$A$14:$S$114,R$48,0),"") ->  | S95: =IFERROR(VLOOKUP($B95,'LED #4'!$A$14:$S$114,S$48,0),"") ->  | T95: =IFERROR(VLOOKUP($B95,'LED #4'!$A$14:$S$114,T$48,0),"") ->  | U95: =IFERROR(VLOOKUP($B95,'LED #4'!$A$14:$S$114,U$48,0),"") -> 
B96: 0.695 | C96: =IFERROR(VLOOKUP($B96,'LED #1'!$A$14:$S$114,C$48,0),"") -> 651.47 | D96: =IFERROR(VLOOKUP($B96,'LED #1'!$A$14:$S$114,D$48,0),"") -> 155.48 | E96: =IFERROR(VLOOKUP($B96,'LED #1'!$A$14:$S$114,E$48,0),"") -> 6.03 | F96: =IFERROR(VLOOKUP($B96,'LED #1'!$A$14:$S$114,F$48,0),"") -> 21.00 | H96: =IFERROR(VLOOKUP($B96,'LED #2'!$A$14:$S$114,H$48,0),"") -> 318.05 | I96: =IFERROR(VLOOKUP($B96,'LED #2'!$A$14:$S$114,I$48,0),"") -> 1.99 | J96: =IFERROR(VLOOKUP($B96,'LED #2'!$A$14:$S$114,J$48,0),"") -> 160.20 | K96: =IFERROR(VLOOKUP($B96,'LED #2'!$A$14:$S$114,K$48,0),"") -> 42.00 | M96: =IFERROR(VLOOKUP($B96,'LED #3'!$A$14:$S$114,M$48,0),"") ->  | N96: =IFERROR(VLOOKUP($B96,'LED #3'!$A$14:$S$114,N$48,0),"") ->  | O96: =IFERROR(VLOOKUP($B96,'LED #3'!$A$14:$S$114,O$48,0),"") ->  | P96: =IFERROR(VLOOKUP($B96,'LED #3'!$A$14:$S$114,P$48,0),"") ->  | R96: =IFERROR(VLOOKUP($B96,'LED #4'!$A$14:$S$114,R$48,0),"") ->  | S96: =IFERROR(VLOOKUP($B96,'LED #4'!$A$14:$S$114,S$48,0),"") ->  | T96: =IFERROR(VLOOKUP($B96,'LED #4'!$A$14:$S$114,T$48,0),"") ->  | U96: =IFERROR(VLOOKUP($B96,'LED #4'!$A$14:$S$114,U$48,0),"") -> 
B97: 0.710 | C97: =IFERROR(VLOOKUP($B97,'LED #1'!$A$14:$S$114,C$48,0),"") -> 663.98 | D97: =IFERROR(VLOOKUP($B97,'LED #1'!$A$14:$S$114,D$48,0),"") -> 154.65 | E97: =IFERROR(VLOOKUP($B97,'LED #1'!$A$14:$S$114,E$48,0),"") -> 6.05 | F97: =IFERROR(VLOOKUP($B97,'LED #1'!$A$14:$S$114,F$48,0),"") -> 21.00 | H97: =IFERROR(VLOOKUP($B97,'LED #2'!$A$14:$S$114,H$48,0),"") -> 324.12 | I97: =IFERROR(VLOOKUP($B97,'LED #2'!$A$14:$S$114,I$48,0),"") -> 2.03 | J97: =IFERROR(VLOOKUP($B97,'LED #2'!$A$14:$S$114,J$48,0),"") -> 159.41 | K97: =IFERROR(VLOOKUP($B97,'LED #2'!$A$14:$S$114,K$48,0),"") -> 42.00 | M97: =IFERROR(VLOOKUP($B97,'LED #3'!$A$14:$S$114,M$48,0),"") ->  | N97: =IFERROR(VLOOKUP($B97,'LED #3'!$A$14:$S$114,N$48,0),"") ->  | O97: =IFERROR(VLOOKUP($B97,'LED #3'!$A$14:$S$114,O$48,0),"") ->  | P97: =IFERROR(VLOOKUP($B97,'LED #3'!$A$14:$S$114,P$48,0),"") ->  | R97: =IFERROR(VLOOKUP($B97,'LED #4'!$A$14:$S$114,R$48,0),"") ->  | S97: =IFERROR(VLOOKUP($B97,'LED #4'!$A$14:$S$114,S$48,0),"") ->  | T97: =IFERROR(VLOOKUP($B97,'LED #4'!$A$14:$S$114,T$48,0),"") ->  | U97: =IFERROR(VLOOKUP($B97,'LED #4'!$A$14:$S$114,U$48,0),"") -> 
B98: 0.725 | C98: =IFERROR(VLOOKUP($B98,'LED #1'!$A$14:$S$114,C$48,0),"") -> 676.42 | D98: =IFERROR(VLOOKUP($B98,'LED #1'!$A$14:$S$114,D$48,0),"") -> 153.84 | E98: =IFERROR(VLOOKUP($B98,'LED #1'!$A$14:$S$114,E$48,0),"") -> 6.06 | F98: =IFERROR(VLOOKUP($B98,'LED #1'!$A$14:$S$114,F$48,0),"") -> 20.00 | H98: =IFERROR(VLOOKUP($B98,'LED #2'!$A$14:$S$114,H$48,0),"") -> 330.16 | I98: =IFERROR(VLOOKUP($B98,'LED #2'!$A$14:$S$114,I$48,0),"") -> 2.08 | J98: =IFERROR(VLOOKUP($B98,'LED #2'!$A$14:$S$114,J$48,0),"") -> 158.63 | K98: =IFERROR(VLOOKUP($B98,'LED #2'!$A$14:$S$114,K$48,0),"") -> 41.00 | M98: =IFERROR(VLOOKUP($B98,'LED #3'!$A$14:$S$114,M$48,0),"") ->  | N98: =IFERROR(VLOOKUP($B98,'LED #3'!$A$14:$S$114,N$48,0),"") ->  | O98: =IFERROR(VLOOKUP($B98,'LED #3'!$A$14:$S$114,O$48,0),"") ->  | P98: =IFERROR(VLOOKUP($B98,'LED #3'!$A$14:$S$114,P$48,0),"") ->  | R98: =IFERROR(VLOOKUP($B98,'LED #4'!$A$14:$S$114,R$48,0),"") ->  | S98: =IFERROR(VLOOKUP($B98,'LED #4'!$A$14:$S$114,S$48,0),"") ->  | T98: =IFERROR(VLOOKUP($B98,'LED #4'!$A$14:$S$114,T$48,0),"") ->  | U98: =IFERROR(VLOOKUP($B98,'LED #4'!$A$14:$S$114,U$48,0),"") -> 
B99: 0.740 | C99: =IFERROR(VLOOKUP($B99,'LED #1'!$A$14:$S$114,C$48,0),"") -> 688.81 | D99: =IFERROR(VLOOKUP($B99,'LED #1'!$A$14:$S$114,D$48,0),"") -> 153.03 | E99: =IFERROR(VLOOKUP($B99,'LED #1'!$A$14:$S$114,E$48,0),"") -> 6.08 | F99: =IFERROR(VLOOKUP($B99,'LED #1'!$A$14:$S$114,F$48,0),"") -> 20.00 | H99: =IFERROR(VLOOKUP($B99,'LED #2'!$A$14:$S$114,H$48,0),"") -> 336.17 | I99: =IFERROR(VLOOKUP($B99,'LED #2'!$A$14:$S$114,I$48,0),"") -> 2.13 | J99: =IFERROR(VLOOKUP($B99,'LED #2'!$A$14:$S$114,J$48,0),"") -> 157.85 | K99: =IFERROR(VLOOKUP($B99,'LED #2'!$A$14:$S$114,K$48,0),"") -> 40.00 | M99: =IFERROR(VLOOKUP($B99,'LED #3'!$A$14:$S$114,M$48,0),"") ->  | N99: =IFERROR(VLOOKUP($B99,'LED #3'!$A$14:$S$114,N$48,0),"") ->  | O99: =IFERROR(VLOOKUP($B99,'LED #3'!$A$14:$S$114,O$48,0),"") ->  | P99: =IFERROR(VLOOKUP($B99,'LED #3'!$A$14:$S$114,P$48,0),"") ->  | R99: =IFERROR(VLOOKUP($B99,'LED #4'!$A$14:$S$114,R$48,0),"") ->  | S99: =IFERROR(VLOOKUP($B99,'LED #4'!$A$14:$S$114,S$48,0),"") ->  | T99: =IFERROR(VLOOKUP($B99,'LED #4'!$A$14:$S$114,T$48,0),"") ->  | U99: =IFERROR(VLOOKUP($B99,'LED #4'!$A$14:$S$114,U$48,0),"") -> 
B100: 0.755 | C100: =IFERROR(VLOOKUP($B100,'LED #1'!$A$14:$S$114,C$48,0),"") -> 701.14 | D100: =IFERROR(VLOOKUP($B100,'LED #1'!$A$14:$S$114,D$48,0),"") -> 152.22 | E100: =IFERROR(VLOOKUP($B100,'LED #1'!$A$14:$S$114,E$48,0),"") -> 6.10 | F100: =IFERROR(VLOOKUP($B100,'LED #1'!$A$14:$S$114,F$48,0),"") -> 20.00 | H100: =IFERROR(VLOOKUP($B100,'LED #2'!$A$14:$S$114,H$48,0),"") -> 342.16 | I100: =IFERROR(VLOOKUP($B100,'LED #2'!$A$14:$S$114,I$48,0),"") -> 2.18 | J100: =IFERROR(VLOOKUP($B100,'LED #2'!$A$14:$S$114,J$48,0),"") -> 157.09 | K100: =IFERROR(VLOOKUP($B100,'LED #2'!$A$14:$S$114,K$48,0),"") -> 39.00 | M100: =IFERROR(VLOOKUP($B100,'LED #3'!$A$14:$S$114,M$48,0),"") ->  | N100: =IFERROR(VLOOKUP($B100,'LED #3'!$A$14:$S$114,N$48,0),"") ->  | O100: =IFERROR(VLOOKUP($B100,'LED #3'!$A$14:$S$114,O$48,0),"") ->  | P100: =IFERROR(VLOOKUP($B100,'LED #3'!$A$14:$S$114,P$48,0),"") ->  | R100: =IFERROR(VLOOKUP($B100,'LED #4'!$A$14:$S$114,R$48,0),"") ->  | S100: =IFERROR(VLOOKUP($B100,'LED #4'!$A$14:$S$114,S$48,0),"") ->  | T100: =IFERROR(VLOOKUP($B100,'LED #4'!$A$14:$S$114,T$48,0),"") ->  | U100: =IFERROR(VLOOKUP($B100,'LED #4'!$A$14:$S$114,U$48,0),"") -> 
B101: 0.770 | C101: =IFERROR(VLOOKUP($B101,'LED #1'!$A$14:$S$114,C$48,0),"") -> 713.41 | D101: =IFERROR(VLOOKUP($B101,'LED #1'!$A$14:$S$114,D$48,0),"") -> 151.43 | E101: =IFERROR(VLOOKUP($B101,'LED #1'!$A$14:$S$114,E$48,0),"") -> 6.12 | F101: =IFERROR(VLOOKUP($B101,'LED #1'!$A$14:$S$114,F$48,0),"") -> 19.00 | H101: =IFERROR(VLOOKUP($B101,'LED #2'!$A$14:$S$114,H$48,0),"") -> 348.12 | I101: =IFERROR(VLOOKUP($B101,'LED #2'!$A$14:$S$114,I$48,0),"") -> 2.23 | J101: =IFERROR(VLOOKUP($B101,'LED #2'!$A$14:$S$114,J$48,0),"") -> 156.33 | K101: =IFERROR(VLOOKUP($B101,'LED #2'!$A$14:$S$114,K$48,0),"") -> 39.00 | M101: =IFERROR(VLOOKUP($B101,'LED #3'!$A$14:$S$114,M$48,0),"") ->  | N101: =IFERROR(VLOOKUP($B101,'LED #3'!$A$14:$S$114,N$48,0),"") ->  | O101: =IFERROR(VLOOKUP($B101,'LED #3'!$A$14:$S$114,O$48,0),"") ->  | P101: =IFERROR(VLOOKUP($B101,'LED #3'!$A$14:$S$114,P$48,0),"") ->  | R101: =IFERROR(VLOOKUP($B101,'LED #4'!$A$14:$S$114,R$48,0),"") ->  | S101: =IFERROR(VLOOKUP($B101,'LED #4'!$A$14:$S$114,S$48,0),"") ->  | T101: =IFERROR(VLOOKUP($B101,'LED #4'!$A$14:$S$114,T$48,0),"") ->  | U101: =IFERROR(VLOOKUP($B101,'LED #4'!$A$14:$S$114,U$48,0),"") -> 
B102: 0.785 | C102: =IFERROR(VLOOKUP($B102,'LED #1'!$A$14:$S$114,C$48,0),"") -> 725.62 | D102: =IFERROR(VLOOKUP($B102,'LED #1'!$A$14:$S$114,D$48,0),"") -> 150.65 | E102: =IFERROR(VLOOKUP($B102,'LED #1'!$A$14:$S$114,E$48,0),"") -> 6.14 | F102: =IFERROR(VLOOKUP($B102,'LED #1'!$A$14:$S$114,F$48,0),"") -> 19.00 | H102: =IFERROR(VLOOKUP($B102,'LED #2'!$A$14:$S$114,H$48,0),"") -> 354.06 | I102: =IFERROR(VLOOKUP($B102,'LED #2'!$A$14:$S$114,I$48,0),"") -> 2.28 | J102: =IFERROR(VLOOKUP($B102,'LED #2'!$A$14:$S$114,J$48,0),"") -> 155.58 | K102: =IFERROR(VLOOKUP($B102,'LED #2'!$A$14:$S$114,K$48,0),"") -> 38.00 | M102: =IFERROR(VLOOKUP($B102,'LED #3'!$A$14:$S$114,M$48,0),"") ->  | N102: =IFERROR(VLOOKUP($B102,'LED #3'!$A$14:$S$114,N$48,0),"") ->  | O102: =IFERROR(VLOOKUP($B102,'LED #3'!$A$14:$S$114,O$48,0),"") ->  | P102: =IFERROR(VLOOKUP($B102,'LED #3'!$A$14:$S$114,P$48,0),"") ->  | R102: =IFERROR(VLOOKUP($B102,'LED #4'!$A$14:$S$114,R$48,0),"") ->  | S102: =IFERROR(VLOOKUP($B102,'LED #4'!$A$14:$S$114,S$48,0),"") ->  | T102: =IFERROR(VLOOKUP($B102,'LED #4'!$A$14:$S$114,T$48,0),"") ->  | U102: =IFERROR(VLOOKUP($B102,'LED #4'!$A$14:$S$114,U$48,0),"") -> 
B103: 0.800 | C103: =IFERROR(VLOOKUP($B103,'LED #1'!$A$14:$S$114,C$48,0),"") -> 737.77 | D103: =IFERROR(VLOOKUP($B103,'LED #1'!$A$14:$S$114,D$48,0),"") -> 149.88 | E103: =IFERROR(VLOOKUP($B103,'LED #1'!$A$14:$S$114,E$48,0),"") -> 6.15 | F103: =IFERROR(VLOOKUP($B103,'LED #1'!$A$14:$S$114,F$48,0),"") -> 19.00 | H103: =IFERROR(VLOOKUP($B103,'LED #2'!$A$14:$S$114,H$48,0),"") -> 359.96 | I103: =IFERROR(VLOOKUP($B103,'LED #2'!$A$14:$S$114,I$48,0),"") -> 2.32 | J103: =IFERROR(VLOOKUP($B103,'LED #2'!$A$14:$S$114,J$48,0),"") -> 154.83 | K103: =IFERROR(VLOOKUP($B103,'LED #2'!$A$14:$S$114,K$48,0),"") -> 38.00 | M103: =IFERROR(VLOOKUP($B103,'LED #3'!$A$14:$S$114,M$48,0),"") ->  | N103: =IFERROR(VLOOKUP($B103,'LED #3'!$A$14:$S$114,N$48,0),"") ->  | O103: =IFERROR(VLOOKUP($B103,'LED #3'!$A$14:$S$114,O$48,0),"") ->  | P103: =IFERROR(VLOOKUP($B103,'LED #3'!$A$14:$S$114,P$48,0),"") ->  | R103: =IFERROR(VLOOKUP($B103,'LED #4'!$A$14:$S$114,R$48,0),"") ->  | S103: =IFERROR(VLOOKUP($B103,'LED #4'!$A$14:$S$114,S$48,0),"") ->  | T103: =IFERROR(VLOOKUP($B103,'LED #4'!$A$14:$S$114,T$48,0),"") ->  | U103: =IFERROR(VLOOKUP($B103,'LED #4'!$A$14:$S$114,U$48,0),"") -> 
B104: 0.815 | C104: =IFERROR(VLOOKUP($B104,'LED #1'!$A$14:$S$114,C$48,0),"") ->  | D104: =IFERROR(VLOOKUP($B104,'LED #1'!$A$14:$S$114,D$48,0),"") ->  | E104: =IFERROR(VLOOKUP($B104,'LED #1'!$A$14:$S$114,E$48,0),"") ->  | F104: =IFERROR(VLOOKUP($B104,'LED #1'!$A$14:$S$114,F$48,0),"") ->  | H104: =IFERROR(VLOOKUP($B104,'LED #2'!$A$14:$S$114,H$48,0),"") -> 365.84 | I104: =IFERROR(VLOOKUP($B104,'LED #2'!$A$14:$S$114,I$48,0),"") -> 2.37 | J104: =IFERROR(VLOOKUP($B104,'LED #2'!$A$14:$S$114,J$48,0),"") -> 154.10 | K104: =IFERROR(VLOOKUP($B104,'LED #2'!$A$14:$S$114,K$48,0),"") -> 37.00 | M104: =IFERROR(VLOOKUP($B104,'LED #3'!$A$14:$S$114,M$48,0),"") ->  | N104: =IFERROR(VLOOKUP($B104,'LED #3'!$A$14:$S$114,N$48,0),"") ->  | O104: =IFERROR(VLOOKUP($B104,'LED #3'!$A$14:$S$114,O$48,0),"") ->  | P104: =IFERROR(VLOOKUP($B104,'LED #3'!$A$14:$S$114,P$48,0),"") ->  | R104: =IFERROR(VLOOKUP($B104,'LED #4'!$A$14:$S$114,R$48,0),"") ->  | S104: =IFERROR(VLOOKUP($B104,'LED #4'!$A$14:$S$114,S$48,0),"") ->  | T104: =IFERROR(VLOOKUP($B104,'LED #4'!$A$14:$S$114,T$48,0),"") ->  | U104: =IFERROR(VLOOKUP($B104,'LED #4'!$A$14:$S$114,U$48,0),"") -> 
B105: 0.830 | C105: =IFERROR(VLOOKUP($B105,'LED #1'!$A$14:$S$114,C$48,0),"") ->  | D105: =IFERROR(VLOOKUP($B105,'LED #1'!$A$14:$S$114,D$48,0),"") ->  | E105: =IFERROR(VLOOKUP($B105,'LED #1'!$A$14:$S$114,E$48,0),"") ->  | F105: =IFERROR(VLOOKUP($B105,'LED #1'!$A$14:$S$114,F$48,0),"") ->  | H105: =IFERROR(VLOOKUP($B105,'LED #2'!$A$14:$S$114,H$48,0),"") -> 371.70 | I105: =IFERROR(VLOOKUP($B105,'LED #2'!$A$14:$S$114,I$48,0),"") -> 2.42 | J105: =IFERROR(VLOOKUP($B105,'LED #2'!$A$14:$S$114,J$48,0),"") -> 153.37 | K105: =IFERROR(VLOOKUP($B105,'LED #2'!$A$14:$S$114,K$48,0),"") -> 36.00 | M105: =IFERROR(VLOOKUP($B105,'LED #3'!$A$14:$S$114,M$48,0),"") ->  | N105: =IFERROR(VLOOKUP($B105,'LED #3'!$A$14:$S$114,N$48,0),"") ->  | O105: =IFERROR(VLOOKUP($B105,'LED #3'!$A$14:$S$114,O$48,0),"") ->  | P105: =IFERROR(VLOOKUP($B105,'LED #3'!$A$14:$S$114,P$48,0),"") ->  | R105: =IFERROR(VLOOKUP($B105,'LED #4'!$A$14:$S$114,R$48,0),"") ->  | S105: =IFERROR(VLOOKUP($B105,'LED #4'!$A$14:$S$114,S$48,0),"") ->  | T105: =IFERROR(VLOOKUP($B105,'LED #4'!$A$14:$S$114,T$48,0),"") ->  | U105: =IFERROR(VLOOKUP($B105,'LED #4'!$A$14:$S$114,U$48,0),"") -> 
B106: 0.845 | C106: =IFERROR(VLOOKUP($B106,'LED #1'!$A$14:$S$114,C$48,0),"") ->  | D106: =IFERROR(VLOOKUP($B106,'LED #1'!$A$14:$S$114,D$48,0),"") ->  | E106: =IFERROR(VLOOKUP($B106,'LED #1'!$A$14:$S$114,E$48,0),"") ->  | F106: =IFERROR(VLOOKUP($B106,'LED #1'!$A$14:$S$114,F$48,0),"") ->  | H106: =IFERROR(VLOOKUP($B106,'LED #2'!$A$14:$S$114,H$48,0),"") -> 377.52 | I106: =IFERROR(VLOOKUP($B106,'LED #2'!$A$14:$S$114,I$48,0),"") -> 2.47 | J106: =IFERROR(VLOOKUP($B106,'LED #2'!$A$14:$S$114,J$48,0),"") -> 152.64 | K106: =IFERROR(VLOOKUP($B106,'LED #2'!$A$14:$S$114,K$48,0),"") -> 36.00 | M106: =IFERROR(VLOOKUP($B106,'LED #3'!$A$14:$S$114,M$48,0),"") ->  | N106: =IFERROR(VLOOKUP($B106,'LED #3'!$A$14:$S$114,N$48,0),"") ->  | O106: =IFERROR(VLOOKUP($B106,'LED #3'!$A$14:$S$114,O$48,0),"") ->  | P106: =IFERROR(VLOOKUP($B106,'LED #3'!$A$14:$S$114,P$48,0),"") ->  | R106: =IFERROR(VLOOKUP($B106,'LED #4'!$A$14:$S$114,R$48,0),"") ->  | S106: =IFERROR(VLOOKUP($B106,'LED #4'!$A$14:$S$114,S$48,0),"") ->  | T106: =IFERROR(VLOOKUP($B106,'LED #4'!$A$14:$S$114,T$48,0),"") ->  | U106: =IFERROR(VLOOKUP($B106,'LED #4'!$A$14:$S$114,U$48,0),"") -> 
B107: 0.860 | C107: =IFERROR(VLOOKUP($B107,'LED #1'!$A$14:$S$114,C$48,0),"") ->  | D107: =IFERROR(VLOOKUP($B107,'LED #1'!$A$14:$S$114,D$48,0),"") ->  | E107: =IFERROR(VLOOKUP($B107,'LED #1'!$A$14:$S$114,E$48,0),"") ->  | F107: =IFERROR(VLOOKUP($B107,'LED #1'!$A$14:$S$114,F$48,0),"") ->  | H107: =IFERROR(VLOOKUP($B107,'LED #2'!$A$14:$S$114,H$48,0),"") -> 383.32 | I107: =IFERROR(VLOOKUP($B107,'LED #2'!$A$14:$S$114,I$48,0),"") -> 2.52 | J107: =IFERROR(VLOOKUP($B107,'LED #2'!$A$14:$S$114,J$48,0),"") -> 151.93 | K107: =IFERROR(VLOOKUP($B107,'LED #2'!$A$14:$S$114,K$48,0),"") -> 35.00 | M107: =IFERROR(VLOOKUP($B107,'LED #3'!$A$14:$S$114,M$48,0),"") ->  | N107: =IFERROR(VLOOKUP($B107,'LED #3'!$A$14:$S$114,N$48,0),"") ->  | O107: =IFERROR(VLOOKUP($B107,'LED #3'!$A$14:$S$114,O$48,0),"") ->  | P107: =IFERROR(VLOOKUP($B107,'LED #3'!$A$14:$S$114,P$48,0),"") ->  | R107: =IFERROR(VLOOKUP($B107,'LED #4'!$A$14:$S$114,R$48,0),"") ->  | S107: =IFERROR(VLOOKUP($B107,'LED #4'!$A$14:$S$114,S$48,0),"") ->  | T107: =IFERROR(VLOOKUP($B107,'LED #4'!$A$14:$S$114,T$48,0),"") ->  | U107: =IFERROR(VLOOKUP($B107,'LED #4'!$A$14:$S$114,U$48,0),"") -> 
B108: 0.875 | C108: =IFERROR(VLOOKUP($B108,'LED #1'!$A$14:$S$114,C$48,0),"") ->  | D108: =IFERROR(VLOOKUP($B108,'LED #1'!$A$14:$S$114,D$48,0),"") ->  | E108: =IFERROR(VLOOKUP($B108,'LED #1'!$A$14:$S$114,E$48,0),"") ->  | F108: =IFERROR(VLOOKUP($B108,'LED #1'!$A$14:$S$114,F$48,0),"") ->  | H108: =IFERROR(VLOOKUP($B108,'LED #2'!$A$14:$S$114,H$48,0),"") -> 389.10 | I108: =IFERROR(VLOOKUP($B108,'LED #2'!$A$14:$S$114,I$48,0),"") -> 2.57 | J108: =IFERROR(VLOOKUP($B108,'LED #2'!$A$14:$S$114,J$48,0),"") -> 151.22 | K108: =IFERROR(VLOOKUP($B108,'LED #2'!$A$14:$S$114,K$48,0),"") -> 35.00 | M108: =IFERROR(VLOOKUP($B108,'LED #3'!$A$14:$S$114,M$48,0),"") ->  | N108: =IFERROR(VLOOKUP($B108,'LED #3'!$A$14:$S$114,N$48,0),"") ->  | O108: =IFERROR(VLOOKUP($B108,'LED #3'!$A$14:$S$114,O$48,0),"") ->  | P108: =IFERROR(VLOOKUP($B108,'LED #3'!$A$14:$S$114,P$48,0),"") ->  | R108: =IFERROR(VLOOKUP($B108,'LED #4'!$A$14:$S$114,R$48,0),"") ->  | S108: =IFERROR(VLOOKUP($B108,'LED #4'!$A$14:$S$114,S$48,0),"") ->  | T108: =IFERROR(VLOOKUP($B108,'LED #4'!$A$14:$S$114,T$48,0),"") ->  | U108: =IFERROR(VLOOKUP($B108,'LED #4'!$A$14:$S$114,U$48,0),"") -> 
B109: 0.890 | C109: =IFERROR(VLOOKUP($B109,'LED #1'!$A$14:$S$114,C$48,0),"") ->  | D109: =IFERROR(VLOOKUP($B109,'LED #1'!$A$14:$S$114,D$48,0),"") ->  | E109: =IFERROR(VLOOKUP($B109,'LED #1'!$A$14:$S$114,E$48,0),"") ->  | F109: =IFERROR(VLOOKUP($B109,'LED #1'!$A$14:$S$114,F$48,0),"") ->  | H109: =IFERROR(VLOOKUP($B109,'LED #2'!$A$14:$S$114,H$48,0),"") -> 394.84 | I109: =IFERROR(VLOOKUP($B109,'LED #2'!$A$14:$S$114,I$48,0),"") -> 2.62 | J109: =IFERROR(VLOOKUP($B109,'LED #2'!$A$14:$S$114,J$48,0),"") -> 150.52 | K109: =IFERROR(VLOOKUP($B109,'LED #2'!$A$14:$S$114,K$48,0),"") -> 34.00 | M109: =IFERROR(VLOOKUP($B109,'LED #3'!$A$14:$S$114,M$48,0),"") ->  | N109: =IFERROR(VLOOKUP($B109,'LED #3'!$A$14:$S$114,N$48,0),"") ->  | O109: =IFERROR(VLOOKUP($B109,'LED #3'!$A$14:$S$114,O$48,0),"") ->  | P109: =IFERROR(VLOOKUP($B109,'LED #3'!$A$14:$S$114,P$48,0),"") ->  | R109: =IFERROR(VLOOKUP($B109,'LED #4'!$A$14:$S$114,R$48,0),"") ->  | S109: =IFERROR(VLOOKUP($B109,'LED #4'!$A$14:$S$114,S$48,0),"") ->  | T109: =IFERROR(VLOOKUP($B109,'LED #4'!$A$14:$S$114,T$48,0),"") ->  | U109: =IFERROR(VLOOKUP($B109,'LED #4'!$A$14:$S$114,U$48,0),"") -> 
B110: 0.905 | C110: =IFERROR(VLOOKUP($B110,'LED #1'!$A$14:$S$114,C$48,0),"") ->  | D110: =IFERROR(VLOOKUP($B110,'LED #1'!$A$14:$S$114,D$48,0),"") ->  | E110: =IFERROR(VLOOKUP($B110,'LED #1'!$A$14:$S$114,E$48,0),"") ->  | F110: =IFERROR(VLOOKUP($B110,'LED #1'!$A$14:$S$114,F$48,0),"") ->  | H110: =IFERROR(VLOOKUP($B110,'LED #2'!$A$14:$S$114,H$48,0),"") -> 400.57 | I110: =IFERROR(VLOOKUP($B110,'LED #2'!$A$14:$S$114,I$48,0),"") -> 2.67 | J110: =IFERROR(VLOOKUP($B110,'LED #2'!$A$14:$S$114,J$48,0),"") -> 149.82 | K110: =IFERROR(VLOOKUP($B110,'LED #2'!$A$14:$S$114,K$48,0),"") -> 34.00 | M110: =IFERROR(VLOOKUP($B110,'LED #3'!$A$14:$S$114,M$48,0),"") ->  | N110: =IFERROR(VLOOKUP($B110,'LED #3'!$A$14:$S$114,N$48,0),"") ->  | O110: =IFERROR(VLOOKUP($B110,'LED #3'!$A$14:$S$114,O$48,0),"") ->  | P110: =IFERROR(VLOOKUP($B110,'LED #3'!$A$14:$S$114,P$48,0),"") ->  | R110: =IFERROR(VLOOKUP($B110,'LED #4'!$A$14:$S$114,R$48,0),"") ->  | S110: =IFERROR(VLOOKUP($B110,'LED #4'!$A$14:$S$114,S$48,0),"") ->  | T110: =IFERROR(VLOOKUP($B110,'LED #4'!$A$14:$S$114,T$48,0),"") ->  | U110: =IFERROR(VLOOKUP($B110,'LED #4'!$A$14:$S$114,U$48,0),"") -> 
B111: 0.920 | C111: =IFERROR(VLOOKUP($B111,'LED #1'!$A$14:$S$114,C$48,0),"") ->  | D111: =IFERROR(VLOOKUP($B111,'LED #1'!$A$14:$S$114,D$48,0),"") ->  | E111: =IFERROR(VLOOKUP($B111,'LED #1'!$A$14:$S$114,E$48,0),"") ->  | F111: =IFERROR(VLOOKUP($B111,'LED #1'!$A$14:$S$114,F$48,0),"") ->  | H111: =IFERROR(VLOOKUP($B111,'LED #2'!$A$14:$S$114,H$48,0),"") -> 406.26 | I111: =IFERROR(VLOOKUP($B111,'LED #2'!$A$14:$S$114,I$48,0),"") -> 2.72 | J111: =IFERROR(VLOOKUP($B111,'LED #2'!$A$14:$S$114,J$48,0),"") -> 149.13 | K111: =IFERROR(VLOOKUP($B111,'LED #2'!$A$14:$S$114,K$48,0),"") -> 33.00 | M111: =IFERROR(VLOOKUP($B111,'LED #3'!$A$14:$S$114,M$48,0),"") ->  | N111: =IFERROR(VLOOKUP($B111,'LED #3'!$A$14:$S$114,N$48,0),"") ->  | O111: =IFERROR(VLOOKUP($B111,'LED #3'!$A$14:$S$114,O$48,0),"") ->  | P111: =IFERROR(VLOOKUP($B111,'LED #3'!$A$14:$S$114,P$48,0),"") ->  | R111: =IFERROR(VLOOKUP($B111,'LED #4'!$A$14:$S$114,R$48,0),"") ->  | S111: =IFERROR(VLOOKUP($B111,'LED #4'!$A$14:$S$114,S$48,0),"") ->  | T111: =IFERROR(VLOOKUP($B111,'LED #4'!$A$14:$S$114,T$48,0),"") ->  | U111: =IFERROR(VLOOKUP($B111,'LED #4'!$A$14:$S$114,U$48,0),"") -> 
B112: 0.935 | C112: =IFERROR(VLOOKUP($B112,'LED #1'!$A$14:$S$114,C$48,0),"") ->  | D112: =IFERROR(VLOOKUP($B112,'LED #1'!$A$14:$S$114,D$48,0),"") ->  | E112: =IFERROR(VLOOKUP($B112,'LED #1'!$A$14:$S$114,E$48,0),"") ->  | F112: =IFERROR(VLOOKUP($B112,'LED #1'!$A$14:$S$114,F$48,0),"") ->  | H112: =IFERROR(VLOOKUP($B112,'LED #2'!$A$14:$S$114,H$48,0),"") -> 411.93 | I112: =IFERROR(VLOOKUP($B112,'LED #2'!$A$14:$S$114,I$48,0),"") -> 2.77 | J112: =IFERROR(VLOOKUP($B112,'LED #2'!$A$14:$S$114,J$48,0),"") -> 148.45 | K112: =IFERROR(VLOOKUP($B112,'LED #2'!$A$14:$S$114,K$48,0),"") -> 33.00 | M112: =IFERROR(VLOOKUP($B112,'LED #3'!$A$14:$S$114,M$48,0),"") ->  | N112: =IFERROR(VLOOKUP($B112,'LED #3'!$A$14:$S$114,N$48,0),"") ->  | O112: =IFERROR(VLOOKUP($B112,'LED #3'!$A$14:$S$114,O$48,0),"") ->  | P112: =IFERROR(VLOOKUP($B112,'LED #3'!$A$14:$S$114,P$48,0),"") ->  | R112: =IFERROR(VLOOKUP($B112,'LED #4'!$A$14:$S$114,R$48,0),"") ->  | S112: =IFERROR(VLOOKUP($B112,'LED #4'!$A$14:$S$114,S$48,0),"") ->  | T112: =IFERROR(VLOOKUP($B112,'LED #4'!$A$14:$S$114,T$48,0),"") ->  | U112: =IFERROR(VLOOKUP($B112,'LED #4'!$A$14:$S$114,U$48,0),"") -> 
B113: 0.950 | C113: =IFERROR(VLOOKUP($B113,'LED #1'!$A$14:$S$114,C$48,0),"") ->  | D113: =IFERROR(VLOOKUP($B113,'LED #1'!$A$14:$S$114,D$48,0),"") ->  | E113: =IFERROR(VLOOKUP($B113,'LED #1'!$A$14:$S$114,E$48,0),"") ->  | F113: =IFERROR(VLOOKUP($B113,'LED #1'!$A$14:$S$114,F$48,0),"") ->  | H113: =IFERROR(VLOOKUP($B113,'LED #2'!$A$14:$S$114,H$48,0),"") -> 417.58 | I113: =IFERROR(VLOOKUP($B113,'LED #2'!$A$14:$S$114,I$48,0),"") -> 2.83 | J113: =IFERROR(VLOOKUP($B113,'LED #2'!$A$14:$S$114,J$48,0),"") -> 147.77 | K113: =IFERROR(VLOOKUP($B113,'LED #2'!$A$14:$S$114,K$48,0),"") -> 32.00 | M113: =IFERROR(VLOOKUP($B113,'LED #3'!$A$14:$S$114,M$48,0),"") ->  | N113: =IFERROR(VLOOKUP($B113,'LED #3'!$A$14:$S$114,N$48,0),"") ->  | O113: =IFERROR(VLOOKUP($B113,'LED #3'!$A$14:$S$114,O$48,0),"") ->  | P113: =IFERROR(VLOOKUP($B113,'LED #3'!$A$14:$S$114,P$48,0),"") ->  | R113: =IFERROR(VLOOKUP($B113,'LED #4'!$A$14:$S$114,R$48,0),"") ->  | S113: =IFERROR(VLOOKUP($B113,'LED #4'!$A$14:$S$114,S$48,0),"") ->  | T113: =IFERROR(VLOOKUP($B113,'LED #4'!$A$14:$S$114,T$48,0),"") ->  | U113: =IFERROR(VLOOKUP($B113,'LED #4'!$A$14:$S$114,U$48,0),"") -> 
B114: 0.965 | C114: =IFERROR(VLOOKUP($B114,'LED #1'!$A$14:$S$114,C$48,0),"") ->  | D114: =IFERROR(VLOOKUP($B114,'LED #1'!$A$14:$S$114,D$48,0),"") ->  | E114: =IFERROR(VLOOKUP($B114,'LED #1'!$A$14:$S$114,E$48,0),"") ->  | F114: =IFERROR(VLOOKUP($B114,'LED #1'!$A$14:$S$114,F$48,0),"") ->  | H114: =IFERROR(VLOOKUP($B114,'LED #2'!$A$14:$S$114,H$48,0),"") -> 423.19 | I114: =IFERROR(VLOOKUP($B114,'LED #2'!$A$14:$S$114,I$48,0),"") -> 2.88 | J114: =IFERROR(VLOOKUP($B114,'LED #2'!$A$14:$S$114,J$48,0),"") -> 147.10 | K114: =IFERROR(VLOOKUP($B114,'LED #2'!$A$14:$S$114,K$48,0),"") -> 32.00 | M114: =IFERROR(VLOOKUP($B114,'LED #3'!$A$14:$S$114,M$48,0),"") ->  | N114: =IFERROR(VLOOKUP($B114,'LED #3'!$A$14:$S$114,N$48,0),"") ->  | O114: =IFERROR(VLOOKUP($B114,'LED #3'!$A$14:$S$114,O$48,0),"") ->  | P114: =IFERROR(VLOOKUP($B114,'LED #3'!$A$14:$S$114,P$48,0),"") ->  | R114: =IFERROR(VLOOKUP($B114,'LED #4'!$A$14:$S$114,R$48,0),"") ->  | S114: =IFERROR(VLOOKUP($B114,'LED #4'!$A$14:$S$114,S$48,0),"") ->  | T114: =IFERROR(VLOOKUP($B114,'LED #4'!$A$14:$S$114,T$48,0),"") ->  | U114: =IFERROR(VLOOKUP($B114,'LED #4'!$A$14:$S$114,U$48,0),"") -> 
B115: 0.980 | C115: =IFERROR(VLOOKUP($B115,'LED #1'!$A$14:$S$114,C$48,0),"") ->  | D115: =IFERROR(VLOOKUP($B115,'LED #1'!$A$14:$S$114,D$48,0),"") ->  | E115: =IFERROR(VLOOKUP($B115,'LED #1'!$A$14:$S$114,E$48,0),"") ->  | F115: =IFERROR(VLOOKUP($B115,'LED #1'!$A$14:$S$114,F$48,0),"") ->  | H115: =IFERROR(VLOOKUP($B115,'LED #2'!$A$14:$S$114,H$48,0),"") -> 428.79 | I115: =IFERROR(VLOOKUP($B115,'LED #2'!$A$14:$S$114,I$48,0),"") -> 2.93 | J115: =IFERROR(VLOOKUP($B115,'LED #2'!$A$14:$S$114,J$48,0),"") -> 146.44 | K115: =IFERROR(VLOOKUP($B115,'LED #2'!$A$14:$S$114,K$48,0),"") -> 32.00 | M115: =IFERROR(VLOOKUP($B115,'LED #3'!$A$14:$S$114,M$48,0),"") ->  | N115: =IFERROR(VLOOKUP($B115,'LED #3'!$A$14:$S$114,N$48,0),"") ->  | O115: =IFERROR(VLOOKUP($B115,'LED #3'!$A$14:$S$114,O$48,0),"") ->  | P115: =IFERROR(VLOOKUP($B115,'LED #3'!$A$14:$S$114,P$48,0),"") ->  | R115: =IFERROR(VLOOKUP($B115,'LED #4'!$A$14:$S$114,R$48,0),"") ->  | S115: =IFERROR(VLOOKUP($B115,'LED #4'!$A$14:$S$114,S$48,0),"") ->  | T115: =IFERROR(VLOOKUP($B115,'LED #4'!$A$14:$S$114,T$48,0),"") ->  | U115: =IFERROR(VLOOKUP($B115,'LED #4'!$A$14:$S$114,U$48,0),"") -> 
B116: 0.995 | C116: =IFERROR(VLOOKUP($B116,'LED #1'!$A$14:$S$114,C$48,0),"") ->  | D116: =IFERROR(VLOOKUP($B116,'LED #1'!$A$14:$S$114,D$48,0),"") ->  | E116: =IFERROR(VLOOKUP($B116,'LED #1'!$A$14:$S$114,E$48,0),"") ->  | F116: =IFERROR(VLOOKUP($B116,'LED #1'!$A$14:$S$114,F$48,0),"") ->  | H116: =IFERROR(VLOOKUP($B116,'LED #2'!$A$14:$S$114,H$48,0),"") -> 434.36 | I116: =IFERROR(VLOOKUP($B116,'LED #2'!$A$14:$S$114,I$48,0),"") -> 2.98 | J116: =IFERROR(VLOOKUP($B116,'LED #2'!$A$14:$S$114,J$48,0),"") -> 145.78 | K116: =IFERROR(VLOOKUP($B116,'LED #2'!$A$14:$S$114,K$48,0),"") -> 31.00 | M116: =IFERROR(VLOOKUP($B116,'LED #3'!$A$14:$S$114,M$48,0),"") ->  | N116: =IFERROR(VLOOKUP($B116,'LED #3'!$A$14:$S$114,N$48,0),"") ->  | O116: =IFERROR(VLOOKUP($B116,'LED #3'!$A$14:$S$114,O$48,0),"") ->  | P116: =IFERROR(VLOOKUP($B116,'LED #3'!$A$14:$S$114,P$48,0),"") ->  | R116: =IFERROR(VLOOKUP($B116,'LED #4'!$A$14:$S$114,R$48,0),"") ->  | S116: =IFERROR(VLOOKUP($B116,'LED #4'!$A$14:$S$114,S$48,0),"") ->  | T116: =IFERROR(VLOOKUP($B116,'LED #4'!$A$14:$S$114,T$48,0),"") ->  | U116: =IFERROR(VLOOKUP($B116,'LED #4'!$A$14:$S$114,U$48,0),"") -> 
B117: 1.010 | C117: =IFERROR(VLOOKUP($B117,'LED #1'!$A$14:$S$114,C$48,0),"") ->  | D117: =IFERROR(VLOOKUP($B117,'LED #1'!$A$14:$S$114,D$48,0),"") ->  | E117: =IFERROR(VLOOKUP($B117,'LED #1'!$A$14:$S$114,E$48,0),"") ->  | F117: =IFERROR(VLOOKUP($B117,'LED #1'!$A$14:$S$114,F$48,0),"") ->  | H117: =IFERROR(VLOOKUP($B117,'LED #2'!$A$14:$S$114,H$48,0),"") -> 439.90 | I117: =IFERROR(VLOOKUP($B117,'LED #2'!$A$14:$S$114,I$48,0),"") -> 3.03 | J117: =IFERROR(VLOOKUP($B117,'LED #2'!$A$14:$S$114,J$48,0),"") -> 145.12 | K117: =IFERROR(VLOOKUP($B117,'LED #2'!$A$14:$S$114,K$48,0),"") -> 31.00 | M117: =IFERROR(VLOOKUP($B117,'LED #3'!$A$14:$S$114,M$48,0),"") ->  | N117: =IFERROR(VLOOKUP($B117,'LED #3'!$A$14:$S$114,N$48,0),"") ->  | O117: =IFERROR(VLOOKUP($B117,'LED #3'!$A$14:$S$114,O$48,0),"") ->  | P117: =IFERROR(VLOOKUP($B117,'LED #3'!$A$14:$S$114,P$48,0),"") ->  | R117: =IFERROR(VLOOKUP($B117,'LED #4'!$A$14:$S$114,R$48,0),"") ->  | S117: =IFERROR(VLOOKUP($B117,'LED #4'!$A$14:$S$114,S$48,0),"") ->  | T117: =IFERROR(VLOOKUP($B117,'LED #4'!$A$14:$S$114,T$48,0),"") ->  | U117: =IFERROR(VLOOKUP($B117,'LED #4'!$A$14:$S$114,U$48,0),"") -> 
B118: =ROUND(B117+$J$4,3) -> 1.025 | C118: =IFERROR(VLOOKUP($B118,'LED #1'!$A$14:$S$114,C$48,0),"") ->  | D118: =IFERROR(VLOOKUP($B118,'LED #1'!$A$14:$S$114,D$48,0),"") ->  | E118: =IFERROR(VLOOKUP($B118,'LED #1'!$A$14:$S$114,E$48,0),"") ->  | F118: =IFERROR(VLOOKUP($B118,'LED #1'!$A$14:$S$114,F$48,0),"") ->  | H118: =IFERROR(VLOOKUP($B118,'LED #2'!$A$14:$S$114,H$48,0),"") -> 445.42 | I118: =IFERROR(VLOOKUP($B118,'LED #2'!$A$14:$S$114,I$48,0),"") -> 3.08 | J118: =IFERROR(VLOOKUP($B118,'LED #2'!$A$14:$S$114,J$48,0),"") -> 144.48 | K118: =IFERROR(VLOOKUP($B118,'LED #2'!$A$14:$S$114,K$48,0),"") -> 30.00 | M118: =IFERROR(VLOOKUP($B118,'LED #3'!$A$14:$S$114,M$48,0),"") ->  | N118: =IFERROR(VLOOKUP($B118,'LED #3'!$A$14:$S$114,N$48,0),"") ->  | O118: =IFERROR(VLOOKUP($B118,'LED #3'!$A$14:$S$114,O$48,0),"") ->  | P118: =IFERROR(VLOOKUP($B118,'LED #3'!$A$14:$S$114,P$48,0),"") ->  | R118: =IFERROR(VLOOKUP($B118,'LED #4'!$A$14:$S$114,R$48,0),"") ->  | S118: =IFERROR(VLOOKUP($B118,'LED #4'!$A$14:$S$114,S$48,0),"") ->  | T118: =IFERROR(VLOOKUP($B118,'LED #4'!$A$14:$S$114,T$48,0),"") ->  | U118: =IFERROR(VLOOKUP($B118,'LED #4'!$A$14:$S$114,U$48,0),"") -> 
B119: 1.040 | C119: =IFERROR(VLOOKUP($B119,'LED #1'!$A$14:$S$114,C$48,0),"") ->  | D119: =IFERROR(VLOOKUP($B119,'LED #1'!$A$14:$S$114,D$48,0),"") ->  | E119: =IFERROR(VLOOKUP($B119,'LED #1'!$A$14:$S$114,E$48,0),"") ->  | F119: =IFERROR(VLOOKUP($B119,'LED #1'!$A$14:$S$114,F$48,0),"") ->  | H119: =IFERROR(VLOOKUP($B119,'LED #2'!$A$14:$S$114,H$48,0),"") -> 450.91 | I119: =IFERROR(VLOOKUP($B119,'LED #2'!$A$14:$S$114,I$48,0),"") -> 3.13 | J119: =IFERROR(VLOOKUP($B119,'LED #2'!$A$14:$S$114,J$48,0),"") -> 143.83 | K119: =IFERROR(VLOOKUP($B119,'LED #2'!$A$14:$S$114,K$48,0),"") -> 30.00 | M119: =IFERROR(VLOOKUP($B119,'LED #3'!$A$14:$S$114,M$48,0),"") ->  | N119: =IFERROR(VLOOKUP($B119,'LED #3'!$A$14:$S$114,N$48,0),"") ->  | O119: =IFERROR(VLOOKUP($B119,'LED #3'!$A$14:$S$114,O$48,0),"") ->  | P119: =IFERROR(VLOOKUP($B119,'LED #3'!$A$14:$S$114,P$48,0),"") ->  | R119: =IFERROR(VLOOKUP($B119,'LED #4'!$A$14:$S$114,R$48,0),"") ->  | S119: =IFERROR(VLOOKUP($B119,'LED #4'!$A$14:$S$114,S$48,0),"") ->  | T119: =IFERROR(VLOOKUP($B119,'LED #4'!$A$14:$S$114,T$48,0),"") ->  | U119: =IFERROR(VLOOKUP($B119,'LED #4'!$A$14:$S$114,U$48,0),"") -> 
B120: 1.055 | C120: =IFERROR(VLOOKUP($B120,'LED #1'!$A$14:$S$114,C$48,0),"") ->  | D120: =IFERROR(VLOOKUP($B120,'LED #1'!$A$14:$S$114,D$48,0),"") ->  | E120: =IFERROR(VLOOKUP($B120,'LED #1'!$A$14:$S$114,E$48,0),"") ->  | F120: =IFERROR(VLOOKUP($B120,'LED #1'!$A$14:$S$114,F$48,0),"") ->  | H120: =IFERROR(VLOOKUP($B120,'LED #2'!$A$14:$S$114,H$48,0),"") -> 456.38 | I120: =IFERROR(VLOOKUP($B120,'LED #2'!$A$14:$S$114,I$48,0),"") -> 3.19 | J120: =IFERROR(VLOOKUP($B120,'LED #2'!$A$14:$S$114,J$48,0),"") -> 143.20 | K120: =IFERROR(VLOOKUP($B120,'LED #2'!$A$14:$S$114,K$48,0),"") -> 30.00 | M120: =IFERROR(VLOOKUP($B120,'LED #3'!$A$14:$S$114,M$48,0),"") ->  | N120: =IFERROR(VLOOKUP($B120,'LED #3'!$A$14:$S$114,N$48,0),"") ->  | O120: =IFERROR(VLOOKUP($B120,'LED #3'!$A$14:$S$114,O$48,0),"") ->  | P120: =IFERROR(VLOOKUP($B120,'LED #3'!$A$14:$S$114,P$48,0),"") ->  | R120: =IFERROR(VLOOKUP($B120,'LED #4'!$A$14:$S$114,R$48,0),"") ->  | S120: =IFERROR(VLOOKUP($B120,'LED #4'!$A$14:$S$114,S$48,0),"") ->  | T120: =IFERROR(VLOOKUP($B120,'LED #4'!$A$14:$S$114,T$48,0),"") ->  | U120: =IFERROR(VLOOKUP($B120,'LED #4'!$A$14:$S$114,U$48,0),"") -> 
B121: 1.070 | C121: =IFERROR(VLOOKUP($B121,'LED #1'!$A$14:$S$114,C$48,0),"") ->  | D121: =IFERROR(VLOOKUP($B121,'LED #1'!$A$14:$S$114,D$48,0),"") ->  | E121: =IFERROR(VLOOKUP($B121,'LED #1'!$A$14:$S$114,E$48,0),"") ->  | F121: =IFERROR(VLOOKUP($B121,'LED #1'!$A$14:$S$114,F$48,0),"") ->  | H121: =IFERROR(VLOOKUP($B121,'LED #2'!$A$14:$S$114,H$48,0),"") -> 461.82 | I121: =IFERROR(VLOOKUP($B121,'LED #2'!$A$14:$S$114,I$48,0),"") -> 3.24 | J121: =IFERROR(VLOOKUP($B121,'LED #2'!$A$14:$S$114,J$48,0),"") -> 142.57 | K121: =IFERROR(VLOOKUP($B121,'LED #2'!$A$14:$S$114,K$48,0),"") -> 29.00 | M121: =IFERROR(VLOOKUP($B121,'LED #3'!$A$14:$S$114,M$48,0),"") ->  | N121: =IFERROR(VLOOKUP($B121,'LED #3'!$A$14:$S$114,N$48,0),"") ->  | O121: =IFERROR(VLOOKUP($B121,'LED #3'!$A$14:$S$114,O$48,0),"") ->  | P121: =IFERROR(VLOOKUP($B121,'LED #3'!$A$14:$S$114,P$48,0),"") ->  | R121: =IFERROR(VLOOKUP($B121,'LED #4'!$A$14:$S$114,R$48,0),"") ->  | S121: =IFERROR(VLOOKUP($B121,'LED #4'!$A$14:$S$114,S$48,0),"") ->  | T121: =IFERROR(VLOOKUP($B121,'LED #4'!$A$14:$S$114,T$48,0),"") ->  | U121: =IFERROR(VLOOKUP($B121,'LED #4'!$A$14:$S$114,U$48,0),"") -> 
B122: 1.085 | C122: =IFERROR(VLOOKUP($B122,'LED #1'!$A$14:$S$114,C$48,0),"") ->  | D122: =IFERROR(VLOOKUP($B122,'LED #1'!$A$14:$S$114,D$48,0),"") ->  | E122: =IFERROR(VLOOKUP($B122,'LED #1'!$A$14:$S$114,E$48,0),"") ->  | F122: =IFERROR(VLOOKUP($B122,'LED #1'!$A$14:$S$114,F$48,0),"") ->  | H122: =IFERROR(VLOOKUP($B122,'LED #2'!$A$14:$S$114,H$48,0),"") -> 467.24 | I122: =IFERROR(VLOOKUP($B122,'LED #2'!$A$14:$S$114,I$48,0),"") -> 3.29 | J122: =IFERROR(VLOOKUP($B122,'LED #2'!$A$14:$S$114,J$48,0),"") -> 141.94 | K122: =IFERROR(VLOOKUP($B122,'LED #2'!$A$14:$S$114,K$48,0),"") -> 29.00 | M122: =IFERROR(VLOOKUP($B122,'LED #3'!$A$14:$S$114,M$48,0),"") ->  | N122: =IFERROR(VLOOKUP($B122,'LED #3'!$A$14:$S$114,N$48,0),"") ->  | O122: =IFERROR(VLOOKUP($B122,'LED #3'!$A$14:$S$114,O$48,0),"") ->  | P122: =IFERROR(VLOOKUP($B122,'LED #3'!$A$14:$S$114,P$48,0),"") ->  | R122: =IFERROR(VLOOKUP($B122,'LED #4'!$A$14:$S$114,R$48,0),"") ->  | S122: =IFERROR(VLOOKUP($B122,'LED #4'!$A$14:$S$114,S$48,0),"") ->  | T122: =IFERROR(VLOOKUP($B122,'LED #4'!$A$14:$S$114,T$48,0),"") ->  | U122: =IFERROR(VLOOKUP($B122,'LED #4'!$A$14:$S$114,U$48,0),"") -> 
B123: 1.100 | C123: =IFERROR(VLOOKUP($B123,'LED #1'!$A$14:$S$114,C$48,0),"") ->  | D123: =IFERROR(VLOOKUP($B123,'LED #1'!$A$14:$S$114,D$48,0),"") ->  | E123: =IFERROR(VLOOKUP($B123,'LED #1'!$A$14:$S$114,E$48,0),"") ->  | F123: =IFERROR(VLOOKUP($B123,'LED #1'!$A$14:$S$114,F$48,0),"") ->  | H123: =IFERROR(VLOOKUP($B123,'LED #2'!$A$14:$S$114,H$48,0),"") -> 472.63 | I123: =IFERROR(VLOOKUP($B123,'LED #2'!$A$14:$S$114,I$48,0),"") -> 3.34 | J123: =IFERROR(VLOOKUP($B123,'LED #2'!$A$14:$S$114,J$48,0),"") -> 141.32 | K123: =IFERROR(VLOOKUP($B123,'LED #2'!$A$14:$S$114,K$48,0),"") -> 29.00 | M123: =IFERROR(VLOOKUP($B123,'LED #3'!$A$14:$S$114,M$48,0),"") ->  | N123: =IFERROR(VLOOKUP($B123,'LED #3'!$A$14:$S$114,N$48,0),"") ->  | O123: =IFERROR(VLOOKUP($B123,'LED #3'!$A$14:$S$114,O$48,0),"") ->  | P123: =IFERROR(VLOOKUP($B123,'LED #3'!$A$14:$S$114,P$48,0),"") ->  | R123: =IFERROR(VLOOKUP($B123,'LED #4'!$A$14:$S$114,R$48,0),"") ->  | S123: =IFERROR(VLOOKUP($B123,'LED #4'!$A$14:$S$114,S$48,0),"") ->  | T123: =IFERROR(VLOOKUP($B123,'LED #4'!$A$14:$S$114,T$48,0),"") ->  | U123: =IFERROR(VLOOKUP($B123,'LED #4'!$A$14:$S$114,U$48,0),"") -> 
B124: 1.115 | C124: =IFERROR(VLOOKUP($B124,'LED #1'!$A$14:$S$114,C$48,0),"") ->  | D124: =IFERROR(VLOOKUP($B124,'LED #1'!$A$14:$S$114,D$48,0),"") ->  | E124: =IFERROR(VLOOKUP($B124,'LED #1'!$A$14:$S$114,E$48,0),"") ->  | F124: =IFERROR(VLOOKUP($B124,'LED #1'!$A$14:$S$114,F$48,0),"") ->  | H124: =IFERROR(VLOOKUP($B124,'LED #2'!$A$14:$S$114,H$48,0),"") -> 478.00 | I124: =IFERROR(VLOOKUP($B124,'LED #2'!$A$14:$S$114,I$48,0),"") -> 3.40 | J124: =IFERROR(VLOOKUP($B124,'LED #2'!$A$14:$S$114,J$48,0),"") -> 140.70 | K124: =IFERROR(VLOOKUP($B124,'LED #2'!$A$14:$S$114,K$48,0),"") -> 28.00 | M124: =IFERROR(VLOOKUP($B124,'LED #3'!$A$14:$S$114,M$48,0),"") ->  | N124: =IFERROR(VLOOKUP($B124,'LED #3'!$A$14:$S$114,N$48,0),"") ->  | O124: =IFERROR(VLOOKUP($B124,'LED #3'!$A$14:$S$114,O$48,0),"") ->  | P124: =IFERROR(VLOOKUP($B124,'LED #3'!$A$14:$S$114,P$48,0),"") ->  | R124: =IFERROR(VLOOKUP($B124,'LED #4'!$A$14:$S$114,R$48,0),"") ->  | S124: =IFERROR(VLOOKUP($B124,'LED #4'!$A$14:$S$114,S$48,0),"") ->  | T124: =IFERROR(VLOOKUP($B124,'LED #4'!$A$14:$S$114,T$48,0),"") ->  | U124: =IFERROR(VLOOKUP($B124,'LED #4'!$A$14:$S$114,U$48,0),"") -> 
B125: 1.130 | C125: =IFERROR(VLOOKUP($B125,'LED #1'!$A$14:$S$114,C$48,0),"") ->  | D125: =IFERROR(VLOOKUP($B125,'LED #1'!$A$14:$S$114,D$48,0),"") ->  | E125: =IFERROR(VLOOKUP($B125,'LED #1'!$A$14:$S$114,E$48,0),"") ->  | F125: =IFERROR(VLOOKUP($B125,'LED #1'!$A$14:$S$114,F$48,0),"") ->  | H125: =IFERROR(VLOOKUP($B125,'LED #2'!$A$14:$S$114,H$48,0),"") -> 483.34 | I125: =IFERROR(VLOOKUP($B125,'LED #2'!$A$14:$S$114,I$48,0),"") -> 3.45 | J125: =IFERROR(VLOOKUP($B125,'LED #2'!$A$14:$S$114,J$48,0),"") -> 140.09 | K125: =IFERROR(VLOOKUP($B125,'LED #2'!$A$14:$S$114,K$48,0),"") -> 28.00 | M125: =IFERROR(VLOOKUP($B125,'LED #3'!$A$14:$S$114,M$48,0),"") ->  | N125: =IFERROR(VLOOKUP($B125,'LED #3'!$A$14:$S$114,N$48,0),"") ->  | O125: =IFERROR(VLOOKUP($B125,'LED #3'!$A$14:$S$114,O$48,0),"") ->  | P125: =IFERROR(VLOOKUP($B125,'LED #3'!$A$14:$S$114,P$48,0),"") ->  | R125: =IFERROR(VLOOKUP($B125,'LED #4'!$A$14:$S$114,R$48,0),"") ->  | S125: =IFERROR(VLOOKUP($B125,'LED #4'!$A$14:$S$114,S$48,0),"") ->  | T125: =IFERROR(VLOOKUP($B125,'LED #4'!$A$14:$S$114,T$48,0),"") ->  | U125: =IFERROR(VLOOKUP($B125,'LED #4'!$A$14:$S$114,U$48,0),"") -> 
B126: 1.145 | C126: =IFERROR(VLOOKUP($B126,'LED #1'!$A$14:$S$114,C$48,0),"") ->  | D126: =IFERROR(VLOOKUP($B126,'LED #1'!$A$14:$S$114,D$48,0),"") ->  | E126: =IFERROR(VLOOKUP($B126,'LED #1'!$A$14:$S$114,E$48,0),"") ->  | F126: =IFERROR(VLOOKUP($B126,'LED #1'!$A$14:$S$114,F$48,0),"") ->  | H126: =IFERROR(VLOOKUP($B126,'LED #2'!$A$14:$S$114,H$48,0),"") -> 488.66 | I126: =IFERROR(VLOOKUP($B126,'LED #2'!$A$14:$S$114,I$48,0),"") -> 3.50 | J126: =IFERROR(VLOOKUP($B126,'LED #2'!$A$14:$S$114,J$48,0),"") -> 139.49 | K126: =IFERROR(VLOOKUP($B126,'LED #2'!$A$14:$S$114,K$48,0),"") -> 28.00 | M126: =IFERROR(VLOOKUP($B126,'LED #3'!$A$14:$S$114,M$48,0),"") ->  | N126: =IFERROR(VLOOKUP($B126,'LED #3'!$A$14:$S$114,N$48,0),"") ->  | O126: =IFERROR(VLOOKUP($B126,'LED #3'!$A$14:$S$114,O$48,0),"") ->  | P126: =IFERROR(VLOOKUP($B126,'LED #3'!$A$14:$S$114,P$48,0),"") ->  | R126: =IFERROR(VLOOKUP($B126,'LED #4'!$A$14:$S$114,R$48,0),"") ->  | S126: =IFERROR(VLOOKUP($B126,'LED #4'!$A$14:$S$114,S$48,0),"") ->  | T126: =IFERROR(VLOOKUP($B126,'LED #4'!$A$14:$S$114,T$48,0),"") ->  | U126: =IFERROR(VLOOKUP($B126,'LED #4'!$A$14:$S$114,U$48,0),"") -> 
B127: 1.160 | C127: =IFERROR(VLOOKUP($B127,'LED #1'!$A$14:$S$114,C$48,0),"") ->  | D127: =IFERROR(VLOOKUP($B127,'LED #1'!$A$14:$S$114,D$48,0),"") ->  | E127: =IFERROR(VLOOKUP($B127,'LED #1'!$A$14:$S$114,E$48,0),"") ->  | F127: =IFERROR(VLOOKUP($B127,'LED #1'!$A$14:$S$114,F$48,0),"") ->  | H127: =IFERROR(VLOOKUP($B127,'LED #2'!$A$14:$S$114,H$48,0),"") -> 493.96 | I127: =IFERROR(VLOOKUP($B127,'LED #2'!$A$14:$S$114,I$48,0),"") -> 3.56 | J127: =IFERROR(VLOOKUP($B127,'LED #2'!$A$14:$S$114,J$48,0),"") -> 138.89 | K127: =IFERROR(VLOOKUP($B127,'LED #2'!$A$14:$S$114,K$48,0),"") -> 27.00 | M127: =IFERROR(VLOOKUP($B127,'LED #3'!$A$14:$S$114,M$48,0),"") ->  | N127: =IFERROR(VLOOKUP($B127,'LED #3'!$A$14:$S$114,N$48,0),"") ->  | O127: =IFERROR(VLOOKUP($B127,'LED #3'!$A$14:$S$114,O$48,0),"") ->  | P127: =IFERROR(VLOOKUP($B127,'LED #3'!$A$14:$S$114,P$48,0),"") ->  | R127: =IFERROR(VLOOKUP($B127,'LED #4'!$A$14:$S$114,R$48,0),"") ->  | S127: =IFERROR(VLOOKUP($B127,'LED #4'!$A$14:$S$114,S$48,0),"") ->  | T127: =IFERROR(VLOOKUP($B127,'LED #4'!$A$14:$S$114,T$48,0),"") ->  | U127: =IFERROR(VLOOKUP($B127,'LED #4'!$A$14:$S$114,U$48,0),"") -> 
B128: 1.175 | C128: =IFERROR(VLOOKUP($B128,'LED #1'!$A$14:$S$114,C$48,0),"") ->  | D128: =IFERROR(VLOOKUP($B128,'LED #1'!$A$14:$S$114,D$48,0),"") ->  | E128: =IFERROR(VLOOKUP($B128,'LED #1'!$A$14:$S$114,E$48,0),"") ->  | F128: =IFERROR(VLOOKUP($B128,'LED #1'!$A$14:$S$114,F$48,0),"") ->  | H128: =IFERROR(VLOOKUP($B128,'LED #2'!$A$14:$S$114,H$48,0),"") -> 499.23 | I128: =IFERROR(VLOOKUP($B128,'LED #2'!$A$14:$S$114,I$48,0),"") -> 3.61 | J128: =IFERROR(VLOOKUP($B128,'LED #2'!$A$14:$S$114,J$48,0),"") -> 138.29 | K128: =IFERROR(VLOOKUP($B128,'LED #2'!$A$14:$S$114,K$48,0),"") -> 27.00 | M128: =IFERROR(VLOOKUP($B128,'LED #3'!$A$14:$S$114,M$48,0),"") ->  | N128: =IFERROR(VLOOKUP($B128,'LED #3'!$A$14:$S$114,N$48,0),"") ->  | O128: =IFERROR(VLOOKUP($B128,'LED #3'!$A$14:$S$114,O$48,0),"") ->  | P128: =IFERROR(VLOOKUP($B128,'LED #3'!$A$14:$S$114,P$48,0),"") ->  | R128: =IFERROR(VLOOKUP($B128,'LED #4'!$A$14:$S$114,R$48,0),"") ->  | S128: =IFERROR(VLOOKUP($B128,'LED #4'!$A$14:$S$114,S$48,0),"") ->  | T128: =IFERROR(VLOOKUP($B128,'LED #4'!$A$14:$S$114,T$48,0),"") ->  | U128: =IFERROR(VLOOKUP($B128,'LED #4'!$A$14:$S$114,U$48,0),"") -> 
B129: 1.190 | C129: =IFERROR(VLOOKUP($B129,'LED #1'!$A$14:$S$114,C$48,0),"") ->  | D129: =IFERROR(VLOOKUP($B129,'LED #1'!$A$14:$S$114,D$48,0),"") ->  | E129: =IFERROR(VLOOKUP($B129,'LED #1'!$A$14:$S$114,E$48,0),"") ->  | F129: =IFERROR(VLOOKUP($B129,'LED #1'!$A$14:$S$114,F$48,0),"") ->  | H129: =IFERROR(VLOOKUP($B129,'LED #2'!$A$14:$S$114,H$48,0),"") -> 504.48 | I129: =IFERROR(VLOOKUP($B129,'LED #2'!$A$14:$S$114,I$48,0),"") -> 3.66 | J129: =IFERROR(VLOOKUP($B129,'LED #2'!$A$14:$S$114,J$48,0),"") -> 137.70 | K129: =IFERROR(VLOOKUP($B129,'LED #2'!$A$14:$S$114,K$48,0),"") -> 27.00 | M129: =IFERROR(VLOOKUP($B129,'LED #3'!$A$14:$S$114,M$48,0),"") ->  | N129: =IFERROR(VLOOKUP($B129,'LED #3'!$A$14:$S$114,N$48,0),"") ->  | O129: =IFERROR(VLOOKUP($B129,'LED #3'!$A$14:$S$114,O$48,0),"") ->  | P129: =IFERROR(VLOOKUP($B129,'LED #3'!$A$14:$S$114,P$48,0),"") ->  | R129: =IFERROR(VLOOKUP($B129,'LED #4'!$A$14:$S$114,R$48,0),"") ->  | S129: =IFERROR(VLOOKUP($B129,'LED #4'!$A$14:$S$114,S$48,0),"") ->  | T129: =IFERROR(VLOOKUP($B129,'LED #4'!$A$14:$S$114,T$48,0),"") ->  | U129: =IFERROR(VLOOKUP($B129,'LED #4'!$A$14:$S$114,U$48,0),"") -> 
B130: 1.205 | C130: =IFERROR(VLOOKUP($B130,'LED #1'!$A$14:$S$114,C$48,0),"") ->  | D130: =IFERROR(VLOOKUP($B130,'LED #1'!$A$14:$S$114,D$48,0),"") ->  | E130: =IFERROR(VLOOKUP($B130,'LED #1'!$A$14:$S$114,E$48,0),"") ->  | F130: =IFERROR(VLOOKUP($B130,'LED #1'!$A$14:$S$114,F$48,0),"") ->  | H130: =IFERROR(VLOOKUP($B130,'LED #2'!$A$14:$S$114,H$48,0),"") -> 509.71 | I130: =IFERROR(VLOOKUP($B130,'LED #2'!$A$14:$S$114,I$48,0),"") -> 3.72 | J130: =IFERROR(VLOOKUP($B130,'LED #2'!$A$14:$S$114,J$48,0),"") -> 137.11 | K130: =IFERROR(VLOOKUP($B130,'LED #2'!$A$14:$S$114,K$48,0),"") -> 27.00 | M130: =IFERROR(VLOOKUP($B130,'LED #3'!$A$14:$S$114,M$48,0),"") ->  | N130: =IFERROR(VLOOKUP($B130,'LED #3'!$A$14:$S$114,N$48,0),"") ->  | O130: =IFERROR(VLOOKUP($B130,'LED #3'!$A$14:$S$114,O$48,0),"") ->  | P130: =IFERROR(VLOOKUP($B130,'LED #3'!$A$14:$S$114,P$48,0),"") ->  | R130: =IFERROR(VLOOKUP($B130,'LED #4'!$A$14:$S$114,R$48,0),"") ->  | S130: =IFERROR(VLOOKUP($B130,'LED #4'!$A$14:$S$114,S$48,0),"") ->  | T130: =IFERROR(VLOOKUP($B130,'LED #4'!$A$14:$S$114,T$48,0),"") ->  | U130: =IFERROR(VLOOKUP($B130,'LED #4'!$A$14:$S$114,U$48,0),"") -> 
B131: 1.220 | C131: =IFERROR(VLOOKUP($B131,'LED #1'!$A$14:$S$114,C$48,0),"") ->  | D131: =IFERROR(VLOOKUP($B131,'LED #1'!$A$14:$S$114,D$48,0),"") ->  | E131: =IFERROR(VLOOKUP($B131,'LED #1'!$A$14:$S$114,E$48,0),"") ->  | F131: =IFERROR(VLOOKUP($B131,'LED #1'!$A$14:$S$114,F$48,0),"") ->  | H131: =IFERROR(VLOOKUP($B131,'LED #2'!$A$14:$S$114,H$48,0),"") -> 514.91 | I131: =IFERROR(VLOOKUP($B131,'LED #2'!$A$14:$S$114,I$48,0),"") -> 3.77 | J131: =IFERROR(VLOOKUP($B131,'LED #2'!$A$14:$S$114,J$48,0),"") -> 136.53 | K131: =IFERROR(VLOOKUP($B131,'LED #2'!$A$14:$S$114,K$48,0),"") -> 26.00 | M131: =IFERROR(VLOOKUP($B131,'LED #3'!$A$14:$S$114,M$48,0),"") ->  | N131: =IFERROR(VLOOKUP($B131,'LED #3'!$A$14:$S$114,N$48,0),"") ->  | O131: =IFERROR(VLOOKUP($B131,'LED #3'!$A$14:$S$114,O$48,0),"") ->  | P131: =IFERROR(VLOOKUP($B131,'LED #3'!$A$14:$S$114,P$48,0),"") ->  | R131: =IFERROR(VLOOKUP($B131,'LED #4'!$A$14:$S$114,R$48,0),"") ->  | S131: =IFERROR(VLOOKUP($B131,'LED #4'!$A$14:$S$114,S$48,0),"") ->  | T131: =IFERROR(VLOOKUP($B131,'LED #4'!$A$14:$S$114,T$48,0),"") ->  | U131: =IFERROR(VLOOKUP($B131,'LED #4'!$A$14:$S$114,U$48,0),"") -> 
B132: 1.235 | C132: =IFERROR(VLOOKUP($B132,'LED #1'!$A$14:$S$114,C$48,0),"") ->  | D132: =IFERROR(VLOOKUP($B132,'LED #1'!$A$14:$S$114,D$48,0),"") ->  | E132: =IFERROR(VLOOKUP($B132,'LED #1'!$A$14:$S$114,E$48,0),"") ->  | F132: =IFERROR(VLOOKUP($B132,'LED #1'!$A$14:$S$114,F$48,0),"") ->  | H132: =IFERROR(VLOOKUP($B132,'LED #2'!$A$14:$S$114,H$48,0),"") -> 520.08 | I132: =IFERROR(VLOOKUP($B132,'LED #2'!$A$14:$S$114,I$48,0),"") -> 3.83 | J132: =IFERROR(VLOOKUP($B132,'LED #2'!$A$14:$S$114,J$48,0),"") -> 135.95 | K132: =IFERROR(VLOOKUP($B132,'LED #2'!$A$14:$S$114,K$48,0),"") -> 26.00 | M132: =IFERROR(VLOOKUP($B132,'LED #3'!$A$14:$S$114,M$48,0),"") ->  | N132: =IFERROR(VLOOKUP($B132,'LED #3'!$A$14:$S$114,N$48,0),"") ->  | O132: =IFERROR(VLOOKUP($B132,'LED #3'!$A$14:$S$114,O$48,0),"") ->  | P132: =IFERROR(VLOOKUP($B132,'LED #3'!$A$14:$S$114,P$48,0),"") ->  | R132: =IFERROR(VLOOKUP($B132,'LED #4'!$A$14:$S$114,R$48,0),"") ->  | S132: =IFERROR(VLOOKUP($B132,'LED #4'!$A$14:$S$114,S$48,0),"") ->  | T132: =IFERROR(VLOOKUP($B132,'LED #4'!$A$14:$S$114,T$48,0),"") ->  | U132: =IFERROR(VLOOKUP($B132,'LED #4'!$A$14:$S$114,U$48,0),"") -> 
B133: 1.250 | C133: =IFERROR(VLOOKUP($B133,'LED #1'!$A$14:$S$114,C$48,0),"") ->  | D133: =IFERROR(VLOOKUP($B133,'LED #1'!$A$14:$S$114,D$48,0),"") ->  | E133: =IFERROR(VLOOKUP($B133,'LED #1'!$A$14:$S$114,E$48,0),"") ->  | F133: =IFERROR(VLOOKUP($B133,'LED #1'!$A$14:$S$114,F$48,0),"") ->  | H133: =IFERROR(VLOOKUP($B133,'LED #2'!$A$14:$S$114,H$48,0),"") -> 525.24 | I133: =IFERROR(VLOOKUP($B133,'LED #2'!$A$14:$S$114,I$48,0),"") -> 3.88 | J133: =IFERROR(VLOOKUP($B133,'LED #2'!$A$14:$S$114,J$48,0),"") -> 135.38 | K133: =IFERROR(VLOOKUP($B133,'LED #2'!$A$14:$S$114,K$48,0),"") -> 26.00 | M133: =IFERROR(VLOOKUP($B133,'LED #3'!$A$14:$S$114,M$48,0),"") ->  | N133: =IFERROR(VLOOKUP($B133,'LED #3'!$A$14:$S$114,N$48,0),"") ->  | O133: =IFERROR(VLOOKUP($B133,'LED #3'!$A$14:$S$114,O$48,0),"") ->  | P133: =IFERROR(VLOOKUP($B133,'LED #3'!$A$14:$S$114,P$48,0),"") ->  | R133: =IFERROR(VLOOKUP($B133,'LED #4'!$A$14:$S$114,R$48,0),"") ->  | S133: =IFERROR(VLOOKUP($B133,'LED #4'!$A$14:$S$114,S$48,0),"") ->  | T133: =IFERROR(VLOOKUP($B133,'LED #4'!$A$14:$S$114,T$48,0),"") ->  | U133: =IFERROR(VLOOKUP($B133,'LED #4'!$A$14:$S$114,U$48,0),"") -> 
B134: 1.265 | C134: =IFERROR(VLOOKUP($B134,'LED #1'!$A$14:$S$114,C$48,0),"") ->  | D134: =IFERROR(VLOOKUP($B134,'LED #1'!$A$14:$S$114,D$48,0),"") ->  | E134: =IFERROR(VLOOKUP($B134,'LED #1'!$A$14:$S$114,E$48,0),"") ->  | F134: =IFERROR(VLOOKUP($B134,'LED #1'!$A$14:$S$114,F$48,0),"") ->  | H134: =IFERROR(VLOOKUP($B134,'LED #2'!$A$14:$S$114,H$48,0),"") -> 530.37 | I134: =IFERROR(VLOOKUP($B134,'LED #2'!$A$14:$S$114,I$48,0),"") -> 3.93 | J134: =IFERROR(VLOOKUP($B134,'LED #2'!$A$14:$S$114,J$48,0),"") -> 134.81 | K134: =IFERROR(VLOOKUP($B134,'LED #2'!$A$14:$S$114,K$48,0),"") -> 26.00 | M134: =IFERROR(VLOOKUP($B134,'LED #3'!$A$14:$S$114,M$48,0),"") ->  | N134: =IFERROR(VLOOKUP($B134,'LED #3'!$A$14:$S$114,N$48,0),"") ->  | O134: =IFERROR(VLOOKUP($B134,'LED #3'!$A$14:$S$114,O$48,0),"") ->  | P134: =IFERROR(VLOOKUP($B134,'LED #3'!$A$14:$S$114,P$48,0),"") ->  | R134: =IFERROR(VLOOKUP($B134,'LED #4'!$A$14:$S$114,R$48,0),"") ->  | S134: =IFERROR(VLOOKUP($B134,'LED #4'!$A$14:$S$114,S$48,0),"") ->  | T134: =IFERROR(VLOOKUP($B134,'LED #4'!$A$14:$S$114,T$48,0),"") ->  | U134: =IFERROR(VLOOKUP($B134,'LED #4'!$A$14:$S$114,U$48,0),"") -> 
B135: 1.280 | C135: =IFERROR(VLOOKUP($B135,'LED #1'!$A$14:$S$114,C$48,0),"") ->  | D135: =IFERROR(VLOOKUP($B135,'LED #1'!$A$14:$S$114,D$48,0),"") ->  | E135: =IFERROR(VLOOKUP($B135,'LED #1'!$A$14:$S$114,E$48,0),"") ->  | F135: =IFERROR(VLOOKUP($B135,'LED #1'!$A$14:$S$114,F$48,0),"") ->  | H135: =IFERROR(VLOOKUP($B135,'LED #2'!$A$14:$S$114,H$48,0),"") -> 535.48 | I135: =IFERROR(VLOOKUP($B135,'LED #2'!$A$14:$S$114,I$48,0),"") -> 3.99 | J135: =IFERROR(VLOOKUP($B135,'LED #2'!$A$14:$S$114,J$48,0),"") -> 134.25 | K135: =IFERROR(VLOOKUP($B135,'LED #2'!$A$14:$S$114,K$48,0),"") -> 25.00 | M135: =IFERROR(VLOOKUP($B135,'LED #3'!$A$14:$S$114,M$48,0),"") ->  | N135: =IFERROR(VLOOKUP($B135,'LED #3'!$A$14:$S$114,N$48,0),"") ->  | O135: =IFERROR(VLOOKUP($B135,'LED #3'!$A$14:$S$114,O$48,0),"") ->  | P135: =IFERROR(VLOOKUP($B135,'LED #3'!$A$14:$S$114,P$48,0),"") ->  | R135: =IFERROR(VLOOKUP($B135,'LED #4'!$A$14:$S$114,R$48,0),"") ->  | S135: =IFERROR(VLOOKUP($B135,'LED #4'!$A$14:$S$114,S$48,0),"") ->  | T135: =IFERROR(VLOOKUP($B135,'LED #4'!$A$14:$S$114,T$48,0),"") ->  | U135: =IFERROR(VLOOKUP($B135,'LED #4'!$A$14:$S$114,U$48,0),"") -> 
B136: 1.295 | C136: =IFERROR(VLOOKUP($B136,'LED #1'!$A$14:$S$114,C$48,0),"") ->  | D136: =IFERROR(VLOOKUP($B136,'LED #1'!$A$14:$S$114,D$48,0),"") ->  | E136: =IFERROR(VLOOKUP($B136,'LED #1'!$A$14:$S$114,E$48,0),"") ->  | F136: =IFERROR(VLOOKUP($B136,'LED #1'!$A$14:$S$114,F$48,0),"") ->  | H136: =IFERROR(VLOOKUP($B136,'LED #2'!$A$14:$S$114,H$48,0),"") -> 540.56 | I136: =IFERROR(VLOOKUP($B136,'LED #2'!$A$14:$S$114,I$48,0),"") -> 4.04 | J136: =IFERROR(VLOOKUP($B136,'LED #2'!$A$14:$S$114,J$48,0),"") -> 133.69 | K136: =IFERROR(VLOOKUP($B136,'LED #2'!$A$14:$S$114,K$48,0),"") -> 25.00 | M136: =IFERROR(VLOOKUP($B136,'LED #3'!$A$14:$S$114,M$48,0),"") ->  | N136: =IFERROR(VLOOKUP($B136,'LED #3'!$A$14:$S$114,N$48,0),"") ->  | O136: =IFERROR(VLOOKUP($B136,'LED #3'!$A$14:$S$114,O$48,0),"") ->  | P136: =IFERROR(VLOOKUP($B136,'LED #3'!$A$14:$S$114,P$48,0),"") ->  | R136: =IFERROR(VLOOKUP($B136,'LED #4'!$A$14:$S$114,R$48,0),"") ->  | S136: =IFERROR(VLOOKUP($B136,'LED #4'!$A$14:$S$114,S$48,0),"") ->  | T136: =IFERROR(VLOOKUP($B136,'LED #4'!$A$14:$S$114,T$48,0),"") ->  | U136: =IFERROR(VLOOKUP($B136,'LED #4'!$A$14:$S$114,U$48,0),"") -> 
B137: 1.310 | C137: =IFERROR(VLOOKUP($B137,'LED #1'!$A$14:$S$114,C$48,0),"") ->  | D137: =IFERROR(VLOOKUP($B137,'LED #1'!$A$14:$S$114,D$48,0),"") ->  | E137: =IFERROR(VLOOKUP($B137,'LED #1'!$A$14:$S$114,E$48,0),"") ->  | F137: =IFERROR(VLOOKUP($B137,'LED #1'!$A$14:$S$114,F$48,0),"") ->  | H137: =IFERROR(VLOOKUP($B137,'LED #2'!$A$14:$S$114,H$48,0),"") -> 545.62 | I137: =IFERROR(VLOOKUP($B137,'LED #2'!$A$14:$S$114,I$48,0),"") -> 4.10 | J137: =IFERROR(VLOOKUP($B137,'LED #2'!$A$14:$S$114,J$48,0),"") -> 133.14 | K137: =IFERROR(VLOOKUP($B137,'LED #2'!$A$14:$S$114,K$48,0),"") -> 25.00 | M137: =IFERROR(VLOOKUP($B137,'LED #3'!$A$14:$S$114,M$48,0),"") ->  | N137: =IFERROR(VLOOKUP($B137,'LED #3'!$A$14:$S$114,N$48,0),"") ->  | O137: =IFERROR(VLOOKUP($B137,'LED #3'!$A$14:$S$114,O$48,0),"") ->  | P137: =IFERROR(VLOOKUP($B137,'LED #3'!$A$14:$S$114,P$48,0),"") ->  | R137: =IFERROR(VLOOKUP($B137,'LED #4'!$A$14:$S$114,R$48,0),"") ->  | S137: =IFERROR(VLOOKUP($B137,'LED #4'!$A$14:$S$114,S$48,0),"") ->  | T137: =IFERROR(VLOOKUP($B137,'LED #4'!$A$14:$S$114,T$48,0),"") ->  | U137: =IFERROR(VLOOKUP($B137,'LED #4'!$A$14:$S$114,U$48,0),"") -> 
B138: 1.325 | C138: =IFERROR(VLOOKUP($B138,'LED #1'!$A$14:$S$114,C$48,0),"") ->  | D138: =IFERROR(VLOOKUP($B138,'LED #1'!$A$14:$S$114,D$48,0),"") ->  | E138: =IFERROR(VLOOKUP($B138,'LED #1'!$A$14:$S$114,E$48,0),"") ->  | F138: =IFERROR(VLOOKUP($B138,'LED #1'!$A$14:$S$114,F$48,0),"") ->  | H138: =IFERROR(VLOOKUP($B138,'LED #2'!$A$14:$S$114,H$48,0),"") -> 550.66 | I138: =IFERROR(VLOOKUP($B138,'LED #2'!$A$14:$S$114,I$48,0),"") -> 4.15 | J138: =IFERROR(VLOOKUP($B138,'LED #2'!$A$14:$S$114,J$48,0),"") -> 132.59 | K138: =IFERROR(VLOOKUP($B138,'LED #2'!$A$14:$S$114,K$48,0),"") -> 25.00 | M138: =IFERROR(VLOOKUP($B138,'LED #3'!$A$14:$S$114,M$48,0),"") ->  | N138: =IFERROR(VLOOKUP($B138,'LED #3'!$A$14:$S$114,N$48,0),"") ->  | O138: =IFERROR(VLOOKUP($B138,'LED #3'!$A$14:$S$114,O$48,0),"") ->  | P138: =IFERROR(VLOOKUP($B138,'LED #3'!$A$14:$S$114,P$48,0),"") ->  | R138: =IFERROR(VLOOKUP($B138,'LED #4'!$A$14:$S$114,R$48,0),"") ->  | S138: =IFERROR(VLOOKUP($B138,'LED #4'!$A$14:$S$114,S$48,0),"") ->  | T138: =IFERROR(VLOOKUP($B138,'LED #4'!$A$14:$S$114,T$48,0),"") ->  | U138: =IFERROR(VLOOKUP($B138,'LED #4'!$A$14:$S$114,U$48,0),"") -> 
B139: 1.340 | C139: =IFERROR(VLOOKUP($B139,'LED #1'!$A$14:$S$114,C$48,0),"") ->  | D139: =IFERROR(VLOOKUP($B139,'LED #1'!$A$14:$S$114,D$48,0),"") ->  | E139: =IFERROR(VLOOKUP($B139,'LED #1'!$A$14:$S$114,E$48,0),"") ->  | F139: =IFERROR(VLOOKUP($B139,'LED #1'!$A$14:$S$114,F$48,0),"") ->  | H139: =IFERROR(VLOOKUP($B139,'LED #2'!$A$14:$S$114,H$48,0),"") -> 555.67 | I139: =IFERROR(VLOOKUP($B139,'LED #2'!$A$14:$S$114,I$48,0),"") -> 4.21 | J139: =IFERROR(VLOOKUP($B139,'LED #2'!$A$14:$S$114,J$48,0),"") -> 132.04 | K139: =IFERROR(VLOOKUP($B139,'LED #2'!$A$14:$S$114,K$48,0),"") -> 24.00 | M139: =IFERROR(VLOOKUP($B139,'LED #3'!$A$14:$S$114,M$48,0),"") ->  | N139: =IFERROR(VLOOKUP($B139,'LED #3'!$A$14:$S$114,N$48,0),"") ->  | O139: =IFERROR(VLOOKUP($B139,'LED #3'!$A$14:$S$114,O$48,0),"") ->  | P139: =IFERROR(VLOOKUP($B139,'LED #3'!$A$14:$S$114,P$48,0),"") ->  | R139: =IFERROR(VLOOKUP($B139,'LED #4'!$A$14:$S$114,R$48,0),"") ->  | S139: =IFERROR(VLOOKUP($B139,'LED #4'!$A$14:$S$114,S$48,0),"") ->  | T139: =IFERROR(VLOOKUP($B139,'LED #4'!$A$14:$S$114,T$48,0),"") ->  | U139: =IFERROR(VLOOKUP($B139,'LED #4'!$A$14:$S$114,U$48,0),"") -> 
B140: 1.355 | C140: =IFERROR(VLOOKUP($B140,'LED #1'!$A$14:$S$114,C$48,0),"") ->  | D140: =IFERROR(VLOOKUP($B140,'LED #1'!$A$14:$S$114,D$48,0),"") ->  | E140: =IFERROR(VLOOKUP($B140,'LED #1'!$A$14:$S$114,E$48,0),"") ->  | F140: =IFERROR(VLOOKUP($B140,'LED #1'!$A$14:$S$114,F$48,0),"") ->  | H140: =IFERROR(VLOOKUP($B140,'LED #2'!$A$14:$S$114,H$48,0),"") -> 560.67 | I140: =IFERROR(VLOOKUP($B140,'LED #2'!$A$14:$S$114,I$48,0),"") -> 4.26 | J140: =IFERROR(VLOOKUP($B140,'LED #2'!$A$14:$S$114,J$48,0),"") -> 131.50 | K140: =IFERROR(VLOOKUP($B140,'LED #2'!$A$14:$S$114,K$48,0),"") -> 24.00 | M140: =IFERROR(VLOOKUP($B140,'LED #3'!$A$14:$S$114,M$48,0),"") ->  | N140: =IFERROR(VLOOKUP($B140,'LED #3'!$A$14:$S$114,N$48,0),"") ->  | O140: =IFERROR(VLOOKUP($B140,'LED #3'!$A$14:$S$114,O$48,0),"") ->  | P140: =IFERROR(VLOOKUP($B140,'LED #3'!$A$14:$S$114,P$48,0),"") ->  | R140: =IFERROR(VLOOKUP($B140,'LED #4'!$A$14:$S$114,R$48,0),"") ->  | S140: =IFERROR(VLOOKUP($B140,'LED #4'!$A$14:$S$114,S$48,0),"") ->  | T140: =IFERROR(VLOOKUP($B140,'LED #4'!$A$14:$S$114,T$48,0),"") ->  | U140: =IFERROR(VLOOKUP($B140,'LED #4'!$A$14:$S$114,U$48,0),"") -> 
B141: 1.370 | C141: =IFERROR(VLOOKUP($B141,'LED #1'!$A$14:$S$114,C$48,0),"") ->  | D141: =IFERROR(VLOOKUP($B141,'LED #1'!$A$14:$S$114,D$48,0),"") ->  | E141: =IFERROR(VLOOKUP($B141,'LED #1'!$A$14:$S$114,E$48,0),"") ->  | F141: =IFERROR(VLOOKUP($B141,'LED #1'!$A$14:$S$114,F$48,0),"") ->  | H141: =IFERROR(VLOOKUP($B141,'LED #2'!$A$14:$S$114,H$48,0),"") -> 565.64 | I141: =IFERROR(VLOOKUP($B141,'LED #2'!$A$14:$S$114,I$48,0),"") -> 4.32 | J141: =IFERROR(VLOOKUP($B141,'LED #2'!$A$14:$S$114,J$48,0),"") -> 130.96 | K141: =IFERROR(VLOOKUP($B141,'LED #2'!$A$14:$S$114,K$48,0),"") -> 24.00 | M141: =IFERROR(VLOOKUP($B141,'LED #3'!$A$14:$S$114,M$48,0),"") ->  | N141: =IFERROR(VLOOKUP($B141,'LED #3'!$A$14:$S$114,N$48,0),"") ->  | O141: =IFERROR(VLOOKUP($B141,'LED #3'!$A$14:$S$114,O$48,0),"") ->  | P141: =IFERROR(VLOOKUP($B141,'LED #3'!$A$14:$S$114,P$48,0),"") ->  | R141: =IFERROR(VLOOKUP($B141,'LED #4'!$A$14:$S$114,R$48,0),"") ->  | S141: =IFERROR(VLOOKUP($B141,'LED #4'!$A$14:$S$114,S$48,0),"") ->  | T141: =IFERROR(VLOOKUP($B141,'LED #4'!$A$14:$S$114,T$48,0),"") ->  | U141: =IFERROR(VLOOKUP($B141,'LED #4'!$A$14:$S$114,U$48,0),"") -> 
B142: 1.385 | C142: =IFERROR(VLOOKUP($B142,'LED #1'!$A$14:$S$114,C$48,0),"") ->  | D142: =IFERROR(VLOOKUP($B142,'LED #1'!$A$14:$S$114,D$48,0),"") ->  | E142: =IFERROR(VLOOKUP($B142,'LED #1'!$A$14:$S$114,E$48,0),"") ->  | F142: =IFERROR(VLOOKUP($B142,'LED #1'!$A$14:$S$114,F$48,0),"") ->  | H142: =IFERROR(VLOOKUP($B142,'LED #2'!$A$14:$S$114,H$48,0),"") -> 570.58 | I142: =IFERROR(VLOOKUP($B142,'LED #2'!$A$14:$S$114,I$48,0),"") -> 4.37 | J142: =IFERROR(VLOOKUP($B142,'LED #2'!$A$14:$S$114,J$48,0),"") -> 130.43 | K142: =IFERROR(VLOOKUP($B142,'LED #2'!$A$14:$S$114,K$48,0),"") -> 24.00 | M142: =IFERROR(VLOOKUP($B142,'LED #3'!$A$14:$S$114,M$48,0),"") ->  | N142: =IFERROR(VLOOKUP($B142,'LED #3'!$A$14:$S$114,N$48,0),"") ->  | O142: =IFERROR(VLOOKUP($B142,'LED #3'!$A$14:$S$114,O$48,0),"") ->  | P142: =IFERROR(VLOOKUP($B142,'LED #3'!$A$14:$S$114,P$48,0),"") ->  | R142: =IFERROR(VLOOKUP($B142,'LED #4'!$A$14:$S$114,R$48,0),"") ->  | S142: =IFERROR(VLOOKUP($B142,'LED #4'!$A$14:$S$114,S$48,0),"") ->  | T142: =IFERROR(VLOOKUP($B142,'LED #4'!$A$14:$S$114,T$48,0),"") ->  | U142: =IFERROR(VLOOKUP($B142,'LED #4'!$A$14:$S$114,U$48,0),"") -> 
B143: 1.400 | C143: =IFERROR(VLOOKUP($B143,'LED #1'!$A$14:$S$114,C$48,0),"") ->  | D143: =IFERROR(VLOOKUP($B143,'LED #1'!$A$14:$S$114,D$48,0),"") ->  | E143: =IFERROR(VLOOKUP($B143,'LED #1'!$A$14:$S$114,E$48,0),"") ->  | F143: =IFERROR(VLOOKUP($B143,'LED #1'!$A$14:$S$114,F$48,0),"") ->  | H143: =IFERROR(VLOOKUP($B143,'LED #2'!$A$14:$S$114,H$48,0),"") -> 575.51 | I143: =IFERROR(VLOOKUP($B143,'LED #2'!$A$14:$S$114,I$48,0),"") -> 4.43 | J143: =IFERROR(VLOOKUP($B143,'LED #2'!$A$14:$S$114,J$48,0),"") -> 129.90 | K143: =IFERROR(VLOOKUP($B143,'LED #2'!$A$14:$S$114,K$48,0),"") -> 24.00 | M143: =IFERROR(VLOOKUP($B143,'LED #3'!$A$14:$S$114,M$48,0),"") ->  | N143: =IFERROR(VLOOKUP($B143,'LED #3'!$A$14:$S$114,N$48,0),"") ->  | O143: =IFERROR(VLOOKUP($B143,'LED #3'!$A$14:$S$114,O$48,0),"") ->  | P143: =IFERROR(VLOOKUP($B143,'LED #3'!$A$14:$S$114,P$48,0),"") ->  | R143: =IFERROR(VLOOKUP($B143,'LED #4'!$A$14:$S$114,R$48,0),"") ->  | S143: =IFERROR(VLOOKUP($B143,'LED #4'!$A$14:$S$114,S$48,0),"") ->  | T143: =IFERROR(VLOOKUP($B143,'LED #4'!$A$14:$S$114,T$48,0),"") ->  | U143: =IFERROR(VLOOKUP($B143,'LED #4'!$A$14:$S$114,U$48,0),"") -> 
B144: 1.415 | C144: =IFERROR(VLOOKUP($B144,'LED #1'!$A$14:$S$114,C$48,0),"") ->  | D144: =IFERROR(VLOOKUP($B144,'LED #1'!$A$14:$S$114,D$48,0),"") ->  | E144: =IFERROR(VLOOKUP($B144,'LED #1'!$A$14:$S$114,E$48,0),"") ->  | F144: =IFERROR(VLOOKUP($B144,'LED #1'!$A$14:$S$114,F$48,0),"") ->  | H144: =IFERROR(VLOOKUP($B144,'LED #2'!$A$14:$S$114,H$48,0),"") -> 580.41 | I144: =IFERROR(VLOOKUP($B144,'LED #2'!$A$14:$S$114,I$48,0),"") -> 4.49 | J144: =IFERROR(VLOOKUP($B144,'LED #2'!$A$14:$S$114,J$48,0),"") -> 129.37 | K144: =IFERROR(VLOOKUP($B144,'LED #2'!$A$14:$S$114,K$48,0),"") -> 23.00 | M144: =IFERROR(VLOOKUP($B144,'LED #3'!$A$14:$S$114,M$48,0),"") ->  | N144: =IFERROR(VLOOKUP($B144,'LED #3'!$A$14:$S$114,N$48,0),"") ->  | O144: =IFERROR(VLOOKUP($B144,'LED #3'!$A$14:$S$114,O$48,0),"") ->  | P144: =IFERROR(VLOOKUP($B144,'LED #3'!$A$14:$S$114,P$48,0),"") ->  | R144: =IFERROR(VLOOKUP($B144,'LED #4'!$A$14:$S$114,R$48,0),"") ->  | S144: =IFERROR(VLOOKUP($B144,'LED #4'!$A$14:$S$114,S$48,0),"") ->  | T144: =IFERROR(VLOOKUP($B144,'LED #4'!$A$14:$S$114,T$48,0),"") ->  | U144: =IFERROR(VLOOKUP($B144,'LED #4'!$A$14:$S$114,U$48,0),"") -> 
B145: 1.430 | C145: =IFERROR(VLOOKUP($B145,'LED #1'!$A$14:$S$114,C$48,0),"") ->  | D145: =IFERROR(VLOOKUP($B145,'LED #1'!$A$14:$S$114,D$48,0),"") ->  | E145: =IFERROR(VLOOKUP($B145,'LED #1'!$A$14:$S$114,E$48,0),"") ->  | F145: =IFERROR(VLOOKUP($B145,'LED #1'!$A$14:$S$114,F$48,0),"") ->  | H145: =IFERROR(VLOOKUP($B145,'LED #2'!$A$14:$S$114,H$48,0),"") -> 585.29 | I145: =IFERROR(VLOOKUP($B145,'LED #2'!$A$14:$S$114,I$48,0),"") -> 4.54 | J145: =IFERROR(VLOOKUP($B145,'LED #2'!$A$14:$S$114,J$48,0),"") -> 128.85 | K145: =IFERROR(VLOOKUP($B145,'LED #2'!$A$14:$S$114,K$48,0),"") -> 23.00 | M145: =IFERROR(VLOOKUP($B145,'LED #3'!$A$14:$S$114,M$48,0),"") ->  | N145: =IFERROR(VLOOKUP($B145,'LED #3'!$A$14:$S$114,N$48,0),"") ->  | O145: =IFERROR(VLOOKUP($B145,'LED #3'!$A$14:$S$114,O$48,0),"") ->  | P145: =IFERROR(VLOOKUP($B145,'LED #3'!$A$14:$S$114,P$48,0),"") ->  | R145: =IFERROR(VLOOKUP($B145,'LED #4'!$A$14:$S$114,R$48,0),"") ->  | S145: =IFERROR(VLOOKUP($B145,'LED #4'!$A$14:$S$114,S$48,0),"") ->  | T145: =IFERROR(VLOOKUP($B145,'LED #4'!$A$14:$S$114,T$48,0),"") ->  | U145: =IFERROR(VLOOKUP($B145,'LED #4'!$A$14:$S$114,U$48,0),"") -> 
B146: 1.445 | C146: =IFERROR(VLOOKUP($B146,'LED #1'!$A$14:$S$114,C$48,0),"") ->  | D146: =IFERROR(VLOOKUP($B146,'LED #1'!$A$14:$S$114,D$48,0),"") ->  | E146: =IFERROR(VLOOKUP($B146,'LED #1'!$A$14:$S$114,E$48,0),"") ->  | F146: =IFERROR(VLOOKUP($B146,'LED #1'!$A$14:$S$114,F$48,0),"") ->  | H146: =IFERROR(VLOOKUP($B146,'LED #2'!$A$14:$S$114,H$48,0),"") -> 590.15 | I146: =IFERROR(VLOOKUP($B146,'LED #2'!$A$14:$S$114,I$48,0),"") -> 4.60 | J146: =IFERROR(VLOOKUP($B146,'LED #2'!$A$14:$S$114,J$48,0),"") -> 128.33 | K146: =IFERROR(VLOOKUP($B146,'LED #2'!$A$14:$S$114,K$48,0),"") -> 23.00 | M146: =IFERROR(VLOOKUP($B146,'LED #3'!$A$14:$S$114,M$48,0),"") ->  | N146: =IFERROR(VLOOKUP($B146,'LED #3'!$A$14:$S$114,N$48,0),"") ->  | O146: =IFERROR(VLOOKUP($B146,'LED #3'!$A$14:$S$114,O$48,0),"") ->  | P146: =IFERROR(VLOOKUP($B146,'LED #3'!$A$14:$S$114,P$48,0),"") ->  | R146: =IFERROR(VLOOKUP($B146,'LED #4'!$A$14:$S$114,R$48,0),"") ->  | S146: =IFERROR(VLOOKUP($B146,'LED #4'!$A$14:$S$114,S$48,0),"") ->  | T146: =IFERROR(VLOOKUP($B146,'LED #4'!$A$14:$S$114,T$48,0),"") ->  | U146: =IFERROR(VLOOKUP($B146,'LED #4'!$A$14:$S$114,U$48,0),"") -> 
B147: 1.460 | C147: =IFERROR(VLOOKUP($B147,'LED #1'!$A$14:$S$114,C$48,0),"") ->  | D147: =IFERROR(VLOOKUP($B147,'LED #1'!$A$14:$S$114,D$48,0),"") ->  | E147: =IFERROR(VLOOKUP($B147,'LED #1'!$A$14:$S$114,E$48,0),"") ->  | F147: =IFERROR(VLOOKUP($B147,'LED #1'!$A$14:$S$114,F$48,0),"") ->  | H147: =IFERROR(VLOOKUP($B147,'LED #2'!$A$14:$S$114,H$48,0),"") -> 594.99 | I147: =IFERROR(VLOOKUP($B147,'LED #2'!$A$14:$S$114,I$48,0),"") -> 4.66 | J147: =IFERROR(VLOOKUP($B147,'LED #2'!$A$14:$S$114,J$48,0),"") -> 127.82 | K147: =IFERROR(VLOOKUP($B147,'LED #2'!$A$14:$S$114,K$48,0),"") -> 23.00 | M147: =IFERROR(VLOOKUP($B147,'LED #3'!$A$14:$S$114,M$48,0),"") ->  | N147: =IFERROR(VLOOKUP($B147,'LED #3'!$A$14:$S$114,N$48,0),"") ->  | O147: =IFERROR(VLOOKUP($B147,'LED #3'!$A$14:$S$114,O$48,0),"") ->  | P147: =IFERROR(VLOOKUP($B147,'LED #3'!$A$14:$S$114,P$48,0),"") ->  | R147: =IFERROR(VLOOKUP($B147,'LED #4'!$A$14:$S$114,R$48,0),"") ->  | S147: =IFERROR(VLOOKUP($B147,'LED #4'!$A$14:$S$114,S$48,0),"") ->  | T147: =IFERROR(VLOOKUP($B147,'LED #4'!$A$14:$S$114,T$48,0),"") ->  | U147: =IFERROR(VLOOKUP($B147,'LED #4'!$A$14:$S$114,U$48,0),"") -> 
B148: 1.475 | C148: =IFERROR(VLOOKUP($B148,'LED #1'!$A$14:$S$114,C$48,0),"") ->  | D148: =IFERROR(VLOOKUP($B148,'LED #1'!$A$14:$S$114,D$48,0),"") ->  | E148: =IFERROR(VLOOKUP($B148,'LED #1'!$A$14:$S$114,E$48,0),"") ->  | F148: =IFERROR(VLOOKUP($B148,'LED #1'!$A$14:$S$114,F$48,0),"") ->  | H148: =IFERROR(VLOOKUP($B148,'LED #2'!$A$14:$S$114,H$48,0),"") -> 599.80 | I148: =IFERROR(VLOOKUP($B148,'LED #2'!$A$14:$S$114,I$48,0),"") -> 4.71 | J148: =IFERROR(VLOOKUP($B148,'LED #2'!$A$14:$S$114,J$48,0),"") -> 127.31 | K148: =IFERROR(VLOOKUP($B148,'LED #2'!$A$14:$S$114,K$48,0),"") -> 23.00 | M148: =IFERROR(VLOOKUP($B148,'LED #3'!$A$14:$S$114,M$48,0),"") ->  | N148: =IFERROR(VLOOKUP($B148,'LED #3'!$A$14:$S$114,N$48,0),"") ->  | O148: =IFERROR(VLOOKUP($B148,'LED #3'!$A$14:$S$114,O$48,0),"") ->  | P148: =IFERROR(VLOOKUP($B148,'LED #3'!$A$14:$S$114,P$48,0),"") ->  | R148: =IFERROR(VLOOKUP($B148,'LED #4'!$A$14:$S$114,R$48,0),"") ->  | S148: =IFERROR(VLOOKUP($B148,'LED #4'!$A$14:$S$114,S$48,0),"") ->  | T148: =IFERROR(VLOOKUP($B148,'LED #4'!$A$14:$S$114,T$48,0),"") ->  | U148: =IFERROR(VLOOKUP($B148,'LED #4'!$A$14:$S$114,U$48,0),"") -> 
B149: 1.490 | C149: =IFERROR(VLOOKUP($B149,'LED #1'!$A$14:$S$114,C$48,0),"") ->  | D149: =IFERROR(VLOOKUP($B149,'LED #1'!$A$14:$S$114,D$48,0),"") ->  | E149: =IFERROR(VLOOKUP($B149,'LED #1'!$A$14:$S$114,E$48,0),"") ->  | F149: =IFERROR(VLOOKUP($B149,'LED #1'!$A$14:$S$114,F$48,0),"") ->  | H149: =IFERROR(VLOOKUP($B149,'LED #2'!$A$14:$S$114,H$48,0),"") -> 604.59 | I149: =IFERROR(VLOOKUP($B149,'LED #2'!$A$14:$S$114,I$48,0),"") -> 4.77 | J149: =IFERROR(VLOOKUP($B149,'LED #2'!$A$14:$S$114,J$48,0),"") -> 126.80 | K149: =IFERROR(VLOOKUP($B149,'LED #2'!$A$14:$S$114,K$48,0),"") -> 23.00 | M149: =IFERROR(VLOOKUP($B149,'LED #3'!$A$14:$S$114,M$48,0),"") ->  | N149: =IFERROR(VLOOKUP($B149,'LED #3'!$A$14:$S$114,N$48,0),"") ->  | O149: =IFERROR(VLOOKUP($B149,'LED #3'!$A$14:$S$114,O$48,0),"") ->  | P149: =IFERROR(VLOOKUP($B149,'LED #3'!$A$14:$S$114,P$48,0),"") ->  | R149: =IFERROR(VLOOKUP($B149,'LED #4'!$A$14:$S$114,R$48,0),"") ->  | S149: =IFERROR(VLOOKUP($B149,'LED #4'!$A$14:$S$114,S$48,0),"") ->  | T149: =IFERROR(VLOOKUP($B149,'LED #4'!$A$14:$S$114,T$48,0),"") ->  | U149: =IFERROR(VLOOKUP($B149,'LED #4'!$A$14:$S$114,U$48,0),"") -> 
B150: 1.505 | C150: =IFERROR(VLOOKUP($B150,'LED #1'!$A$14:$S$114,C$48,0),"") ->  | D150: =IFERROR(VLOOKUP($B150,'LED #1'!$A$14:$S$114,D$48,0),"") ->  | E150: =IFERROR(VLOOKUP($B150,'LED #1'!$A$14:$S$114,E$48,0),"") ->  | F150: =IFERROR(VLOOKUP($B150,'LED #1'!$A$14:$S$114,F$48,0),"") ->  | H150: =IFERROR(VLOOKUP($B150,'LED #2'!$A$14:$S$114,H$48,0),"") ->  | I150: =IFERROR(VLOOKUP($B150,'LED #2'!$A$14:$S$114,I$48,0),"") ->  | J150: =IFERROR(VLOOKUP($B150,'LED #2'!$A$14:$S$114,J$48,0),"") ->  | K150: =IFERROR(VLOOKUP($B150,'LED #2'!$A$14:$S$114,K$48,0),"") ->  | M150: =IFERROR(VLOOKUP($B150,'LED #3'!$A$14:$S$114,M$48,0),"") ->  | N150: =IFERROR(VLOOKUP($B150,'LED #3'!$A$14:$S$114,N$48,0),"") ->  | O150: =IFERROR(VLOOKUP($B150,'LED #3'!$A$14:$S$114,O$48,0),"") ->  | P150: =IFERROR(VLOOKUP($B150,'LED #3'!$A$14:$S$114,P$48,0),"") ->  | R150: =IFERROR(VLOOKUP($B150,'LED #4'!$A$14:$S$114,R$48,0),"") ->  | S150: =IFERROR(VLOOKUP($B150,'LED #4'!$A$14:$S$114,S$48,0),"") ->  | T150: =IFERROR(VLOOKUP($B150,'LED #4'!$A$14:$S$114,T$48,0),"") ->  | U150: =IFERROR(VLOOKUP($B150,'LED #4'!$A$14:$S$114,U$48,0),"") -> 
B151: 1.520 | C151: =IFERROR(VLOOKUP($B151,'LED #1'!$A$14:$S$114,C$48,0),"") ->  | D151: =IFERROR(VLOOKUP($B151,'LED #1'!$A$14:$S$114,D$48,0),"") ->  | E151: =IFERROR(VLOOKUP($B151,'LED #1'!$A$14:$S$114,E$48,0),"") ->  | F151: =IFERROR(VLOOKUP($B151,'LED #1'!$A$14:$S$114,F$48,0),"") ->  | H151: =IFERROR(VLOOKUP($B151,'LED #2'!$A$14:$S$114,H$48,0),"") ->  | I151: =IFERROR(VLOOKUP($B151,'LED #2'!$A$14:$S$114,I$48,0),"") ->  | J151: =IFERROR(VLOOKUP($B151,'LED #2'!$A$14:$S$114,J$48,0),"") ->  | K151: =IFERROR(VLOOKUP($B151,'LED #2'!$A$14:$S$114,K$48,0),"") ->  | M151: =IFERROR(VLOOKUP($B151,'LED #3'!$A$14:$S$114,M$48,0),"") ->  | N151: =IFERROR(VLOOKUP($B151,'LED #3'!$A$14:$S$114,N$48,0),"") ->  | O151: =IFERROR(VLOOKUP($B151,'LED #3'!$A$14:$S$114,O$48,0),"") ->  | P151: =IFERROR(VLOOKUP($B151,'LED #3'!$A$14:$S$114,P$48,0),"") ->  | R151: =IFERROR(VLOOKUP($B151,'LED #4'!$A$14:$S$114,R$48,0),"") ->  | S151: =IFERROR(VLOOKUP($B151,'LED #4'!$A$14:$S$114,S$48,0),"") ->  | T151: =IFERROR(VLOOKUP($B151,'LED #4'!$A$14:$S$114,T$48,0),"") ->  | U151: =IFERROR(VLOOKUP($B151,'LED #4'!$A$14:$S$114,U$48,0),"") -> 
B152: 1.535 | C152: =IFERROR(VLOOKUP($B152,'LED #1'!$A$14:$S$114,C$48,0),"") ->  | D152: =IFERROR(VLOOKUP($B152,'LED #1'!$A$14:$S$114,D$48,0),"") ->  | E152: =IFERROR(VLOOKUP($B152,'LED #1'!$A$14:$S$114,E$48,0),"") ->  | F152: =IFERROR(VLOOKUP($B152,'LED #1'!$A$14:$S$114,F$48,0),"") ->  | H152: =IFERROR(VLOOKUP($B152,'LED #2'!$A$14:$S$114,H$48,0),"") ->  | I152: =IFERROR(VLOOKUP($B152,'LED #2'!$A$14:$S$114,I$48,0),"") ->  | J152: =IFERROR(VLOOKUP($B152,'LED #2'!$A$14:$S$114,J$48,0),"") ->  | K152: =IFERROR(VLOOKUP($B152,'LED #2'!$A$14:$S$114,K$48,0),"") ->  | M152: =IFERROR(VLOOKUP($B152,'LED #3'!$A$14:$S$114,M$48,0),"") ->  | N152: =IFERROR(VLOOKUP($B152,'LED #3'!$A$14:$S$114,N$48,0),"") ->  | O152: =IFERROR(VLOOKUP($B152,'LED #3'!$A$14:$S$114,O$48,0),"") ->  | P152: =IFERROR(VLOOKUP($B152,'LED #3'!$A$14:$S$114,P$48,0),"") ->  | R152: =IFERROR(VLOOKUP($B152,'LED #4'!$A$14:$S$114,R$48,0),"") ->  | S152: =IFERROR(VLOOKUP($B152,'LED #4'!$A$14:$S$114,S$48,0),"") ->  | T152: =IFERROR(VLOOKUP($B152,'LED #4'!$A$14:$S$114,T$48,0),"") ->  | U152: =IFERROR(VLOOKUP($B152,'LED #4'!$A$14:$S$114,U$48,0),"") -> 

Sheet Graph
B4: Y-Value | D4: Scale Range
B5: Unit | C5: Decimal | D5: min | E5: max
B6: PD | C6: 1
G34: X-Value | I34: Scale Range
G35: Unit | H35: Decimal | I35: min | J35: max
G36: VF | H36: 4
B38: IF | C38: =Table!D7 -> STW0L8PA | E38: =Table!I7 -> SZ5-M3-Wx-C7 | G38: =Table!N7 -> 0 | I38: =Table!S7 -> 0
C39: =VLOOKUP($G$36,참조!$E$3:$F$11,2,0) -> 3 | D39: =VLOOKUP($B$6,참조!$E$3:$F$11,2,0) -> 4 | E39: =C39 -> 3 | F39: =D39 -> 4 | G39: =E39 -> 3 | H39: =F39 -> 4 | I39: =G39 -> 3 | J39: 4
B40: =Table!B53 -> 0.050 | C40: =VLOOKUP($B40,'LED #1'!$A$15:$I$114,C$39,0) -> 5.113350856 | D40: =VLOOKUP($B40,'LED #1'!$A$15:$I$114,D$39,0) -> 0.2556675428 | E40: =VLOOKUP($B40,'LED #2'!$A$15:$I$114,E$39,0) -> 2.52074235 | F40: =VLOOKUP($B40,'LED #2'!$A$15:$I$114,F$39,0) -> 0.1260371175 | G40: =VLOOKUP($B40,'LED #3'!$A$15:$I$114,G$39,0) ->  | H40: =VLOOKUP($B40,'LED #3'!$A$15:$I$114,H$39,0) ->  | I40: =VLOOKUP($B40,'LED #4'!$A$15:$I$114,I$39,0) ->  | J40: =VLOOKUP($B40,'LED #4'!$A$15:$I$114,J$39,0) -> 
B41: =Table!B54 -> 0.065 | C41: =VLOOKUP($B41,'LED #1'!$A$15:$I$114,C$39,0) -> 5.137950268 | D41: =VLOOKUP($B41,'LED #1'!$A$15:$I$114,D$39,0) -> 0.3339667674 | E41: =VLOOKUP($B41,'LED #2'!$A$15:$I$114,E$39,0) -> 2.529206806 | F41: =VLOOKUP($B41,'LED #2'!$A$15:$I$114,F$39,0) -> 0.1643984424 | G41: =VLOOKUP($B41,'LED #3'!$A$15:$I$114,G$39,0) ->  | H41: =VLOOKUP($B41,'LED #3'!$A$15:$I$114,H$39,0) ->  | I41: =VLOOKUP($B41,'LED #4'!$A$15:$I$114,I$39,0) ->  | J41: =VLOOKUP($B41,'LED #4'!$A$15:$I$114,J$39,0) -> 
B42: =Table!B55 -> 0.080 | C42: =VLOOKUP($B42,'LED #1'!$A$15:$I$114,C$39,0) -> 5.162376427 | D42: =VLOOKUP($B42,'LED #1'!$A$15:$I$114,D$39,0) -> 0.4129901142 | E42: =VLOOKUP($B42,'LED #2'!$A$15:$I$114,E$39,0) -> 2.537638377 | F42: =VLOOKUP($B42,'LED #2'!$A$15:$I$114,F$39,0) -> 0.2030110701 | G42: =VLOOKUP($B42,'LED #3'!$A$15:$I$114,G$39,0) ->  | H42: =VLOOKUP($B42,'LED #3'!$A$15:$I$114,H$39,0) ->  | I42: =VLOOKUP($B42,'LED #4'!$A$15:$I$114,I$39,0) ->  | J42: =VLOOKUP($B42,'LED #4'!$A$15:$I$114,J$39,0) -> 
B43: =Table!B56 -> 0.095 | C43: =VLOOKUP($B43,'LED #1'!$A$15:$I$114,C$39,0) -> 5.186630553 | D43: =VLOOKUP($B43,'LED #1'!$A$15:$I$114,D$39,0) -> 0.4927299025 | E43: =VLOOKUP($B43,'LED #2'!$A$15:$I$114,E$39,0) -> 2.546037189 | F43: =VLOOKUP($B43,'LED #2'!$A$15:$I$114,F$39,0) -> 0.2418735329 | G43: =VLOOKUP($B43,'LED #3'!$A$15:$I$114,G$39,0) ->  | H43: =VLOOKUP($B43,'LED #3'!$A$15:$I$114,H$39,0) ->  | I43: =VLOOKUP($B43,'LED #4'!$A$15:$I$114,I$39,0) ->  | J43: =VLOOKUP($B43,'LED #4'!$A$15:$I$114,J$39,0) -> 
B44: =Table!B57 -> 0.110 | C44: =VLOOKUP($B44,'LED #1'!$A$15:$I$114,C$39,0) -> 5.210713857 | D44: =VLOOKUP($B44,'LED #1'!$A$15:$I$114,D$39,0) -> 0.5731785243 | E44: =VLOOKUP($B44,'LED #2'!$A$15:$I$114,E$39,0) -> 2.554403371 | F44: =VLOOKUP($B44,'LED #2'!$A$15:$I$114,F$39,0) -> 0.2809843708 | G44: =VLOOKUP($B44,'LED #3'!$A$15:$I$114,G$39,0) ->  | H44: =VLOOKUP($B44,'LED #3'!$A$15:$I$114,H$39,0) ->  | I44: =VLOOKUP($B44,'LED #4'!$A$15:$I$114,I$39,0) ->  | J44: =VLOOKUP($B44,'LED #4'!$A$15:$I$114,J$39,0) -> 
B45: =Table!B58 -> 0.125 | C45: =VLOOKUP($B45,'LED #1'!$A$15:$I$114,C$39,0) -> 5.234627542 | D45: =VLOOKUP($B45,'LED #1'!$A$15:$I$114,D$39,0) -> 0.6543284428 | E45: =VLOOKUP($B45,'LED #2'!$A$15:$I$114,E$39,0) -> 2.562737048 | F45: =VLOOKUP($B45,'LED #2'!$A$15:$I$114,F$39,0) -> 0.320342131 | G45: =VLOOKUP($B45,'LED #3'!$A$15:$I$114,G$39,0) ->  | H45: =VLOOKUP($B45,'LED #3'!$A$15:$I$114,H$39,0) ->  | I45: =VLOOKUP($B45,'LED #4'!$A$15:$I$114,I$39,0) ->  | J45: =VLOOKUP($B45,'LED #4'!$A$15:$I$114,J$39,0) -> 
B46: =Table!B59 -> 0.140 | C46: =VLOOKUP($B46,'LED #1'!$A$15:$I$114,C$39,0) -> 5.258372804 | D46: =VLOOKUP($B46,'LED #1'!$A$15:$I$114,D$39,0) -> 0.7361721925 | E46: =VLOOKUP($B46,'LED #2'!$A$15:$I$114,E$39,0) -> 2.571038348 | F46: =VLOOKUP($B46,'LED #2'!$A$15:$I$114,F$39,0) -> 0.3599453688 | G46: =VLOOKUP($B46,'LED #3'!$A$15:$I$114,G$39,0) ->  | H46: =VLOOKUP($B46,'LED #3'!$A$15:$I$114,H$39,0) ->  | I46: =VLOOKUP($B46,'LED #4'!$A$15:$I$114,I$39,0) ->  | J46: =VLOOKUP($B46,'LED #4'!$A$15:$I$114,J$39,0) -> 
B47: =Table!B60 -> 0.155 | C47: =VLOOKUP($B47,'LED #1'!$A$15:$I$114,C$39,0) -> 5.281950828 | D47: =VLOOKUP($B47,'LED #1'!$A$15:$I$114,D$39,0) -> 0.8187023783 | E47: =VLOOKUP($B47,'LED #2'!$A$15:$I$114,E$39,0) -> 2.579307397 | F47: =VLOOKUP($B47,'LED #2'!$A$15:$I$114,F$39,0) -> 0.3997926465 | G47: =VLOOKUP($B47,'LED #3'!$A$15:$I$114,G$39,0) ->  | H47: =VLOOKUP($B47,'LED #3'!$A$15:$I$114,H$39,0) ->  | I47: =VLOOKUP($B47,'LED #4'!$A$15:$I$114,I$39,0) ->  | J47: =VLOOKUP($B47,'LED #4'!$A$15:$I$114,J$39,0) -> 
B48: =Table!B61 -> 0.170 | C48: =VLOOKUP($B48,'LED #1'!$A$15:$I$114,C$39,0) -> 5.305362792 | D48: =VLOOKUP($B48,'LED #1'!$A$15:$I$114,D$39,0) -> 0.9019116746 | E48: =VLOOKUP($B48,'LED #2'!$A$15:$I$114,E$39,0) -> 2.587544318 | F48: =VLOOKUP($B48,'LED #2'!$A$15:$I$114,F$39,0) -> 0.4398825341 | G48: =VLOOKUP($B48,'LED #3'!$A$15:$I$114,G$39,0) ->  | H48: =VLOOKUP($B48,'LED #3'!$A$15:$I$114,H$39,0) ->  | I48: =VLOOKUP($B48,'LED #4'!$A$15:$I$114,I$39,0) ->  | J48: =VLOOKUP($B48,'LED #4'!$A$15:$I$114,J$39,0) -> 
B49: =Table!B62 -> 0.185 | C49: =VLOOKUP($B49,'LED #1'!$A$15:$I$114,C$39,0) -> 5.328609865 | D49: =VLOOKUP($B49,'LED #1'!$A$15:$I$114,D$39,0) -> 0.985792825 | E49: =VLOOKUP($B49,'LED #2'!$A$15:$I$114,E$39,0) -> 2.595749238 | F49: =VLOOKUP($B49,'LED #2'!$A$15:$I$114,F$39,0) -> 0.4802136091 | G49: =VLOOKUP($B49,'LED #3'!$A$15:$I$114,G$39,0) ->  | H49: =VLOOKUP($B49,'LED #3'!$A$15:$I$114,H$39,0) ->  | I49: =VLOOKUP($B49,'LED #4'!$A$15:$I$114,I$39,0) ->  | J49: =VLOOKUP($B49,'LED #4'!$A$15:$I$114,J$39,0) -> 
B50: =Table!B63 -> 0.200 | C50: =VLOOKUP($B50,'LED #1'!$A$15:$I$114,C$39,0) -> 5.35169321 | D50: =VLOOKUP($B50,'LED #1'!$A$15:$I$114,D$39,0) -> 1.070338642 | E50: =VLOOKUP($B50,'LED #2'!$A$15:$I$114,E$39,0) -> 2.603922281 | F50: =VLOOKUP($B50,'LED #2'!$A$15:$I$114,F$39,0) -> 0.5207844562 | G50: =VLOOKUP($B50,'LED #3'!$A$15:$I$114,G$39,0) ->  | H50: =VLOOKUP($B50,'LED #3'!$A$15:$I$114,H$39,0) ->  | I50: =VLOOKUP($B50,'LED #4'!$A$15:$I$114,I$39,0) ->  | J50: =VLOOKUP($B50,'LED #4'!$A$15:$I$114,J$39,0) -> 
B51: =Table!B64 -> 0.215 | C51: =VLOOKUP($B51,'LED #1'!$A$15:$I$114,C$39,0) -> 5.374613978 | D51: =VLOOKUP($B51,'LED #1'!$A$15:$I$114,D$39,0) -> 1.155542005 | E51: =VLOOKUP($B51,'LED #2'!$A$15:$I$114,E$39,0) -> 2.61206357 | F51: =VLOOKUP($B51,'LED #2'!$A$15:$I$114,F$39,0) -> 0.5615936675 | G51: =VLOOKUP($B51,'LED #3'!$A$15:$I$114,G$39,0) ->  | H51: =VLOOKUP($B51,'LED #3'!$A$15:$I$114,H$39,0) ->  | I51: =VLOOKUP($B51,'LED #4'!$A$15:$I$114,I$39,0) ->  | J51: =VLOOKUP($B51,'LED #4'!$A$15:$I$114,J$39,0) -> 
B52: =Table!B65 -> 0.230 | C52: =VLOOKUP($B52,'LED #1'!$A$15:$I$114,C$39,0) -> 5.397373316 | D52: =VLOOKUP($B52,'LED #1'!$A$15:$I$114,D$39,0) -> 1.241395863 | E52: =VLOOKUP($B52,'LED #2'!$A$15:$I$114,E$39,0) -> 2.620173229 | F52: =VLOOKUP($B52,'LED #2'!$A$15:$I$114,F$39,0) -> 0.6026398426 | G52: =VLOOKUP($B52,'LED #3'!$A$15:$I$114,G$39,0) ->  | H52: =VLOOKUP($B52,'LED #3'!$A$15:$I$114,H$39,0) ->  | I52: =VLOOKUP($B52,'LED #4'!$A$15:$I$114,I$39,0) ->  | J52: =VLOOKUP($B52,'LED #4'!$A$15:$I$114,J$39,0) -> 
B53: =Table!B66 -> 0.245 | C53: =VLOOKUP($B53,'LED #1'!$A$15:$I$114,C$39,0) -> 5.41997236 | D53: =VLOOKUP($B53,'LED #1'!$A$15:$I$114,D$39,0) -> 1.327893228 | E53: =VLOOKUP($B53,'LED #2'!$A$15:$I$114,E$39,0) -> 2.62825138 | F53: =VLOOKUP($B53,'LED #2'!$A$15:$I$114,F$39,0) -> 0.6439215881 | G53: =VLOOKUP($B53,'LED #3'!$A$15:$I$114,G$39,0) ->  | H53: =VLOOKUP($B53,'LED #3'!$A$15:$I$114,H$39,0) ->  | I53: =VLOOKUP($B53,'LED #4'!$A$15:$I$114,I$39,0) ->  | J53: =VLOOKUP($B53,'LED #4'!$A$15:$I$114,J$39,0) -> 
B54: =Table!B67 -> 0.260 | C54: =VLOOKUP($B54,'LED #1'!$A$15:$I$114,C$39,0) -> 5.442412239 | D54: =VLOOKUP($B54,'LED #1'!$A$15:$I$114,D$39,0) -> 1.415027182 | E54: =VLOOKUP($B54,'LED #2'!$A$15:$I$114,E$39,0) -> 2.636298147 | F54: =VLOOKUP($B54,'LED #2'!$A$15:$I$114,F$39,0) -> 0.6854375182 | G54: =VLOOKUP($B54,'LED #3'!$A$15:$I$114,G$39,0) ->  | H54: =VLOOKUP($B54,'LED #3'!$A$15:$I$114,H$39,0) ->  | I54: =VLOOKUP($B54,'LED #4'!$A$15:$I$114,I$39,0) ->  | J54: =VLOOKUP($B54,'LED #4'!$A$15:$I$114,J$39,0) -> 
B55: =Table!B68 -> 0.275 | C55: =VLOOKUP($B55,'LED #1'!$A$15:$I$114,C$39,0) -> 5.464694075 | D55: =VLOOKUP($B55,'LED #1'!$A$15:$I$114,D$39,0) -> 1.502790871 | E55: =VLOOKUP($B55,'LED #2'!$A$15:$I$114,E$39,0) -> 2.64431365 | F55: =VLOOKUP($B55,'LED #2'!$A$15:$I$114,F$39,0) -> 0.7271862539 | G55: =VLOOKUP($B55,'LED #3'!$A$15:$I$114,G$39,0) ->  | H55: =VLOOKUP($B55,'LED #3'!$A$15:$I$114,H$39,0) ->  | I55: =VLOOKUP($B55,'LED #4'!$A$15:$I$114,I$39,0) ->  | J55: =VLOOKUP($B55,'LED #4'!$A$15:$I$114,J$39,0) -> 
B56: =Table!B69 -> 0.290 | C56: =VLOOKUP($B56,'LED #1'!$A$15:$I$114,C$39,0) -> 5.486818979 | D56: =VLOOKUP($B56,'LED #1'!$A$15:$I$114,D$39,0) -> 1.591177504 | E56: =VLOOKUP($B56,'LED #2'!$A$15:$I$114,E$39,0) -> 2.652298013 | F56: =VLOOKUP($B56,'LED #2'!$A$15:$I$114,F$39,0) -> 0.7691664237 | G56: =VLOOKUP($B56,'LED #3'!$A$15:$I$114,G$39,0) ->  | H56: =VLOOKUP($B56,'LED #3'!$A$15:$I$114,H$39,0) ->  | I56: =VLOOKUP($B56,'LED #4'!$A$15:$I$114,I$39,0) ->  | J56: =VLOOKUP($B56,'LED #4'!$A$15:$I$114,J$39,0) -> 
B57: =Table!B70 -> 0.305 | C57: =VLOOKUP($B57,'LED #1'!$A$15:$I$114,C$39,0) -> 5.508788058 | D57: =VLOOKUP($B57,'LED #1'!$A$15:$I$114,D$39,0) -> 1.680180358 | E57: =VLOOKUP($B57,'LED #2'!$A$15:$I$114,E$39,0) -> 2.660251354 | F57: =VLOOKUP($B57,'LED #2'!$A$15:$I$114,F$39,0) -> 0.8113766631 | G57: =VLOOKUP($B57,'LED #3'!$A$15:$I$114,G$39,0) ->  | H57: =VLOOKUP($B57,'LED #3'!$A$15:$I$114,H$39,0) ->  | I57: =VLOOKUP($B57,'LED #4'!$A$15:$I$114,I$39,0) ->  | J57: =VLOOKUP($B57,'LED #4'!$A$15:$I$114,J$39,0) -> 
B58: =Table!B71 -> 0.320 | C58: =VLOOKUP($B58,'LED #1'!$A$15:$I$114,C$39,0) -> 5.530602408 | D58: =VLOOKUP($B58,'LED #1'!$A$15:$I$114,D$39,0) -> 1.769792771 | E58: =VLOOKUP($B58,'LED #2'!$A$15:$I$114,E$39,0) -> 2.668173796 | F58: =VLOOKUP($B58,'LED #2'!$A$15:$I$114,F$39,0) -> 0.8538156148 | G58: =VLOOKUP($B58,'LED #3'!$A$15:$I$114,G$39,0) ->  | H58: =VLOOKUP($B58,'LED #3'!$A$15:$I$114,H$39,0) ->  | I58: =VLOOKUP($B58,'LED #4'!$A$15:$I$114,I$39,0) ->  | J58: =VLOOKUP($B58,'LED #4'!$A$15:$I$114,J$39,0) -> 
B59: =Table!B72 -> 0.335 | C59: =VLOOKUP($B59,'LED #1'!$A$15:$I$114,C$39,0) -> 5.552263121 | D59: =VLOOKUP($B59,'LED #1'!$A$15:$I$114,D$39,0) -> 1.860008145 | E59: =VLOOKUP($B59,'LED #2'!$A$15:$I$114,E$39,0) -> 2.676065458 | F59: =VLOOKUP($B59,'LED #2'!$A$15:$I$114,F$39,0) -> 0.8964819284 | G59: =VLOOKUP($B59,'LED #3'!$A$15:$I$114,G$39,0) ->  | H59: =VLOOKUP($B59,'LED #3'!$A$15:$I$114,H$39,0) ->  | I59: =VLOOKUP($B59,'LED #4'!$A$15:$I$114,I$39,0) ->  | J59: =VLOOKUP($B59,'LED #4'!$A$15:$I$114,J$39,0) -> 
B60: =Table!B73 -> 0.350 | C60: =VLOOKUP($B60,'LED #1'!$A$15:$I$114,C$39,0) -> 5.573771277 | D60: =VLOOKUP($B60,'LED #1'!$A$15:$I$114,D$39,0) -> 1.950819947 | E60: =VLOOKUP($B60,'LED #2'!$A$15:$I$114,E$39,0) -> 2.683926459 | F60: =VLOOKUP($B60,'LED #2'!$A$15:$I$114,F$39,0) -> 0.9393742608 | G60: =VLOOKUP($B60,'LED #3'!$A$15:$I$114,G$39,0) ->  | H60: =VLOOKUP($B60,'LED #3'!$A$15:$I$114,H$39,0) ->  | I60: =VLOOKUP($B60,'LED #4'!$A$15:$I$114,I$39,0) ->  | J60: =VLOOKUP($B60,'LED #4'!$A$15:$I$114,J$39,0) -> 
B61: =Table!B74 -> 0.365 | C61: =VLOOKUP($B61,'LED #1'!$A$15:$I$114,C$39,0) -> 5.595127951 | D61: =VLOOKUP($B61,'LED #1'!$A$15:$I$114,D$39,0) -> 2.042221702 | E61: =VLOOKUP($B61,'LED #2'!$A$15:$I$114,E$39,0) -> 2.69175692 | F61: =VLOOKUP($B61,'LED #2'!$A$15:$I$114,F$39,0) -> 0.9824912757 | G61: =VLOOKUP($B61,'LED #3'!$A$15:$I$114,G$39,0) ->  | H61: =VLOOKUP($B61,'LED #3'!$A$15:$I$114,H$39,0) ->  | I61: =VLOOKUP($B61,'LED #4'!$A$15:$I$114,I$39,0) ->  | J61: =VLOOKUP($B61,'LED #4'!$A$15:$I$114,J$39,0) -> 
B62: =Table!B75 -> 0.380 | C62: =VLOOKUP($B62,'LED #1'!$A$15:$I$114,C$39,0) -> 5.61633421 | D62: =VLOOKUP($B62,'LED #1'!$A$15:$I$114,D$39,0) -> 2.134207 | E62: =VLOOKUP($B62,'LED #2'!$A$15:$I$114,E$39,0) -> 2.699556957 | F62: =VLOOKUP($B62,'LED #2'!$A$15:$I$114,F$39,0) -> 1.025831644 | G62: =VLOOKUP($B62,'LED #3'!$A$15:$I$114,G$39,0) ->  | H62: =VLOOKUP($B62,'LED #3'!$A$15:$I$114,H$39,0) ->  | I62: =VLOOKUP($B62,'LED #4'!$A$15:$I$114,I$39,0) ->  | J62: =VLOOKUP($B62,'LED #4'!$A$15:$I$114,J$39,0) -> 
B63: =Table!B76 -> 0.395 | C63: =VLOOKUP($B63,'LED #1'!$A$15:$I$114,C$39,0) -> 5.637391114 | D63: =VLOOKUP($B63,'LED #1'!$A$15:$I$114,D$39,0) -> 2.22676949 | E63: =VLOOKUP($B63,'LED #2'!$A$15:$I$114,E$39,0) -> 2.707326691 | F63: =VLOOKUP($B63,'LED #2'!$A$15:$I$114,F$39,0) -> 1.069394043 | G63: =VLOOKUP($B63,'LED #3'!$A$15:$I$114,G$39,0) ->  | H63: =VLOOKUP($B63,'LED #3'!$A$15:$I$114,H$39,0) ->  | I63: =VLOOKUP($B63,'LED #4'!$A$15:$I$114,I$39,0) ->  | J63: =VLOOKUP($B63,'LED #4'!$A$15:$I$114,J$39,0) -> 
B64: =Table!B77 -> 0.410 | C64: =VLOOKUP($B64,'LED #1'!$A$15:$I$114,C$39,0) -> 5.658299714 | D64: =VLOOKUP($B64,'LED #1'!$A$15:$I$114,D$39,0) -> 2.319902883 | E64: =VLOOKUP($B64,'LED #2'!$A$15:$I$114,E$39,0) -> 2.715066237 | F64: =VLOOKUP($B64,'LED #2'!$A$15:$I$114,F$39,0) -> 1.113177157 | G64: =VLOOKUP($B64,'LED #3'!$A$15:$I$114,G$39,0) ->  | H64: =VLOOKUP($B64,'LED #3'!$A$15:$I$114,H$39,0) ->  | I64: =VLOOKUP($B64,'LED #4'!$A$15:$I$114,I$39,0) ->  | J64: =VLOOKUP($B64,'LED #4'!$A$15:$I$114,J$39,0) -> 
B65: =Table!B78 -> 0.425 | C65: =VLOOKUP($B65,'LED #1'!$A$15:$I$114,C$39,0) -> 5.679061056 | D65: =VLOOKUP($B65,'LED #1'!$A$15:$I$114,D$39,0) -> 2.413600949 | E65: =VLOOKUP($B65,'LED #2'!$A$15:$I$114,E$39,0) -> 2.722775715 | F65: =VLOOKUP($B65,'LED #2'!$A$15:$I$114,F$39,0) -> 1.157179679 | G65: =VLOOKUP($B65,'LED #3'!$A$15:$I$114,G$39,0) ->  | H65: =VLOOKUP($B65,'LED #3'!$A$15:$I$114,H$39,0) ->  | I65: =VLOOKUP($B65,'LED #4'!$A$15:$I$114,I$39,0) ->  | J65: =VLOOKUP($B65,'LED #4'!$A$15:$I$114,J$39,0) -> 
B66: =Table!B79 -> 0.440 | C66: =VLOOKUP($B66,'LED #1'!$A$15:$I$114,C$39,0) -> 5.699676175 | D66: =VLOOKUP($B66,'LED #1'!$A$15:$I$114,D$39,0) -> 2.507857517 | E66: =VLOOKUP($B66,'LED #2'!$A$15:$I$114,E$39,0) -> 2.73045524 | F66: =VLOOKUP($B66,'LED #2'!$A$15:$I$114,F$39,0) -> 1.201400305 | G66: =VLOOKUP($B66,'LED #3'!$A$15:$I$114,G$39,0) ->  | H66: =VLOOKUP($B66,'LED #3'!$A$15:$I$114,H$39,0) ->  | I66: =VLOOKUP($B66,'LED #4'!$A$15:$I$114,I$39,0) ->  | J66: =VLOOKUP($B66,'LED #4'!$A$15:$I$114,J$39,0) -> 
B67: =Table!B80 -> 0.455 | C67: =VLOOKUP($B67,'LED #1'!$A$15:$I$114,C$39,0) -> 5.720146101 | D67: =VLOOKUP($B67,'LED #1'!$A$15:$I$114,D$39,0) -> 2.602666476 | E67: =VLOOKUP($B67,'LED #2'!$A$15:$I$114,E$39,0) -> 2.738104928 | F67: =VLOOKUP($B67,'LED #2'!$A$15:$I$114,F$39,0) -> 1.245837742 | G67: =VLOOKUP($B67,'LED #3'!$A$15:$I$114,G$39,0) ->  | H67: =VLOOKUP($B67,'LED #3'!$A$15:$I$114,H$39,0) ->  | I67: =VLOOKUP($B67,'LED #4'!$A$15:$I$114,I$39,0) ->  | J67: =VLOOKUP($B67,'LED #4'!$A$15:$I$114,J$39,0) -> 
B68: =Table!B81 -> 0.470 | C68: =VLOOKUP($B68,'LED #1'!$A$15:$I$114,C$39,0) -> 5.740471859 | D68: =VLOOKUP($B68,'LED #1'!$A$15:$I$114,D$39,0) -> 2.698021774 | E68: =VLOOKUP($B68,'LED #2'!$A$15:$I$114,E$39,0) -> 2.745724897 | F68: =VLOOKUP($B68,'LED #2'!$A$15:$I$114,F$39,0) -> 1.290490701 | G68: =VLOOKUP($B68,'LED #3'!$A$15:$I$114,G$39,0) ->  | H68: =VLOOKUP($B68,'LED #3'!$A$15:$I$114,H$39,0) ->  | I68: =VLOOKUP($B68,'LED #4'!$A$15:$I$114,I$39,0) ->  | J68: =VLOOKUP($B68,'LED #4'!$A$15:$I$114,J$39,0) -> 
B69: =Table!B82 -> 0.485 | C69: =VLOOKUP($B69,'LED #1'!$A$15:$I$114,C$39,0) -> 5.760654462 | D69: =VLOOKUP($B69,'LED #1'!$A$15:$I$114,D$39,0) -> 2.793917414 | E69: =VLOOKUP($B69,'LED #2'!$A$15:$I$114,E$39,0) -> 2.75331526 | F69: =VLOOKUP($B69,'LED #2'!$A$15:$I$114,F$39,0) -> 1.335357901 | G69: =VLOOKUP($B69,'LED #3'!$A$15:$I$114,G$39,0) ->  | H69: =VLOOKUP($B69,'LED #3'!$A$15:$I$114,H$39,0) ->  | I69: =VLOOKUP($B69,'LED #4'!$A$15:$I$114,I$39,0) ->  | J69: =VLOOKUP($B69,'LED #4'!$A$15:$I$114,J$39,0) -> 
B70: =Table!B83 -> 0.500 | C70: =VLOOKUP($B70,'LED #1'!$A$15:$I$114,C$39,0) -> 5.780694919 | D70: =VLOOKUP($B70,'LED #1'!$A$15:$I$114,D$39,0) -> 2.89034746 | E70: =VLOOKUP($B70,'LED #2'!$A$15:$I$114,E$39,0) -> 2.760876134 | F70: =VLOOKUP($B70,'LED #2'!$A$15:$I$114,F$39,0) -> 1.380438067 | G70: =VLOOKUP($B70,'LED #3'!$A$15:$I$114,G$39,0) ->  | H70: =VLOOKUP($B70,'LED #3'!$A$15:$I$114,H$39,0) ->  | I70: =VLOOKUP($B70,'LED #4'!$A$15:$I$114,I$39,0) ->  | J70: =VLOOKUP($B70,'LED #4'!$A$15:$I$114,J$39,0) -> 
B71: =Table!B84 -> 0.515 | C71: =VLOOKUP($B71,'LED #1'!$A$15:$I$114,C$39,0) -> 5.800594231 | D71: =VLOOKUP($B71,'LED #1'!$A$15:$I$114,D$39,0) -> 2.987306029 | E71: =VLOOKUP($B71,'LED #2'!$A$15:$I$114,E$39,0) -> 2.768407633 | F71: =VLOOKUP($B71,'LED #2'!$A$15:$I$114,F$39,0) -> 1.425729931 | G71: =VLOOKUP($B71,'LED #3'!$A$15:$I$114,G$39,0) ->  | H71: =VLOOKUP($B71,'LED #3'!$A$15:$I$114,H$39,0) ->  | I71: =VLOOKUP($B71,'LED #4'!$A$15:$I$114,I$39,0) ->  | J71: =VLOOKUP($B71,'LED #4'!$A$15:$I$114,J$39,0) -> 
B72: =Table!B85 -> 0.530 | C72: =VLOOKUP($B72,'LED #1'!$A$15:$I$114,C$39,0) -> 5.820353393 | D72: =VLOOKUP($B72,'LED #1'!$A$15:$I$114,D$39,0) -> 3.084787298 | E72: =VLOOKUP($B72,'LED #2'!$A$15:$I$114,E$39,0) -> 2.775909871 | F72: =VLOOKUP($B72,'LED #2'!$A$15:$I$114,F$39,0) -> 1.471232231 | G72: =VLOOKUP($B72,'LED #3'!$A$15:$I$114,G$39,0) ->  | H72: =VLOOKUP($B72,'LED #3'!$A$15:$I$114,H$39,0) ->  | I72: =VLOOKUP($B72,'LED #4'!$A$15:$I$114,I$39,0) ->  | J72: =VLOOKUP($B72,'LED #4'!$A$15:$I$114,J$39,0) -> 
B73: =Table!B86 -> 0.545 | C73: =VLOOKUP($B73,'LED #1'!$A$15:$I$114,C$39,0) -> 5.839973391 | D73: =VLOOKUP($B73,'LED #1'!$A$15:$I$114,D$39,0) -> 3.182785498 | E73: =VLOOKUP($B73,'LED #2'!$A$15:$I$114,E$39,0) -> 2.783382961 | F73: =VLOOKUP($B73,'LED #2'!$A$15:$I$114,F$39,0) -> 1.516943714 | G73: =VLOOKUP($B73,'LED #3'!$A$15:$I$114,G$39,0) ->  | H73: =VLOOKUP($B73,'LED #3'!$A$15:$I$114,H$39,0) ->  | I73: =VLOOKUP($B73,'LED #4'!$A$15:$I$114,I$39,0) ->  | J73: =VLOOKUP($B73,'LED #4'!$A$15:$I$114,J$39,0) -> 
B74: =Table!B87 -> 0.560 | C74: =VLOOKUP($B74,'LED #1'!$A$15:$I$114,C$39,0) -> 5.859455206 | D74: =VLOOKUP($B74,'LED #1'!$A$15:$I$114,D$39,0) -> 3.281294915 | E74: =VLOOKUP($B74,'LED #2'!$A$15:$I$114,E$39,0) -> 2.790827017 | F74: =VLOOKUP($B74,'LED #2'!$A$15:$I$114,F$39,0) -> 1.56286313 | G74: =VLOOKUP($B74,'LED #3'!$A$15:$I$114,G$39,0) ->  | H74: =VLOOKUP($B74,'LED #3'!$A$15:$I$114,H$39,0) ->  | I74: =VLOOKUP($B74,'LED #4'!$A$15:$I$114,I$39,0) ->  | J74: =VLOOKUP($B74,'LED #4'!$A$15:$I$114,J$39,0) -> 
B75: =Table!B88 -> 0.575 | C75: =VLOOKUP($B75,'LED #1'!$A$15:$I$114,C$39,0) -> 5.87879981 | D75: =VLOOKUP($B75,'LED #1'!$A$15:$I$114,D$39,0) -> 3.380309891 | E75: =VLOOKUP($B75,'LED #2'!$A$15:$I$114,E$39,0) -> 2.798242152 | F75: =VLOOKUP($B75,'LED #2'!$A$15:$I$114,F$39,0) -> 1.608989237 | G75: =VLOOKUP($B75,'LED #3'!$A$15:$I$114,G$39,0) ->  | H75: =VLOOKUP($B75,'LED #3'!$A$15:$I$114,H$39,0) ->  | I75: =VLOOKUP($B75,'LED #4'!$A$15:$I$114,I$39,0) ->  | J75: =VLOOKUP($B75,'LED #4'!$A$15:$I$114,J$39,0) -> 
B76: =Table!B89 -> 0.590 | C76: =VLOOKUP($B76,'LED #1'!$A$15:$I$114,C$39,0) -> 5.89800817 | D76: =VLOOKUP($B76,'LED #1'!$A$15:$I$114,D$39,0) -> 3.47982482 | E76: =VLOOKUP($B76,'LED #2'!$A$15:$I$114,E$39,0) -> 2.805628478 | F76: =VLOOKUP($B76,'LED #2'!$A$15:$I$114,F$39,0) -> 1.655320802 | G76: =VLOOKUP($B76,'LED #3'!$A$15:$I$114,G$39,0) ->  | H76: =VLOOKUP($B76,'LED #3'!$A$15:$I$114,H$39,0) ->  | I76: =VLOOKUP($B76,'LED #4'!$A$15:$I$114,I$39,0) ->  | J76: =VLOOKUP($B76,'LED #4'!$A$15:$I$114,J$39,0) -> 
B77: =Table!B90 -> 0.605 | C77: =VLOOKUP($B77,'LED #1'!$A$15:$I$114,C$39,0) -> 5.917081246 | D77: =VLOOKUP($B77,'LED #1'!$A$15:$I$114,D$39,0) -> 3.579834154 | E77: =VLOOKUP($B77,'LED #2'!$A$15:$I$114,E$39,0) -> 2.812986107 | F77: =VLOOKUP($B77,'LED #2'!$A$15:$I$114,F$39,0) -> 1.701856595 | G77: =VLOOKUP($B77,'LED #3'!$A$15:$I$114,G$39,0) ->  | H77: =VLOOKUP($B77,'LED #3'!$A$15:$I$114,H$39,0) ->  | I77: =VLOOKUP($B77,'LED #4'!$A$15:$I$114,I$39,0) ->  | J77: =VLOOKUP($B77,'LED #4'!$A$15:$I$114,J$39,0) -> 
B78: =Table!B91 -> 0.620 | C78: =VLOOKUP($B78,'LED #1'!$A$15:$I$114,C$39,0) -> 5.93601999 | D78: =VLOOKUP($B78,'LED #1'!$A$15:$I$114,D$39,0) -> 3.680332394 | E78: =VLOOKUP($B78,'LED #2'!$A$15:$I$114,E$39,0) -> 2.82031515 | F78: =VLOOKUP($B78,'LED #2'!$A$15:$I$114,F$39,0) -> 1.748595393 | G78: =VLOOKUP($B78,'LED #3'!$A$15:$I$114,G$39,0) ->  | H78: =VLOOKUP($B78,'LED #3'!$A$15:$I$114,H$39,0) ->  | I78: =VLOOKUP($B78,'LED #4'!$A$15:$I$114,I$39,0) ->  | J78: =VLOOKUP($B78,'LED #4'!$A$15:$I$114,J$39,0) -> 
B79: =Table!B92 -> 0.635 | C79: =VLOOKUP($B79,'LED #1'!$A$15:$I$114,C$39,0) -> 5.954825349 | D79: =VLOOKUP($B79,'LED #1'!$A$15:$I$114,D$39,0) -> 3.781314097 | E79: =VLOOKUP($B79,'LED #2'!$A$15:$I$114,E$39,0) -> 2.827615719 | F79: =VLOOKUP($B79,'LED #2'!$A$15:$I$114,F$39,0) -> 1.795535982 | G79: =VLOOKUP($B79,'LED #3'!$A$15:$I$114,G$39,0) ->  | H79: =VLOOKUP($B79,'LED #3'!$A$15:$I$114,H$39,0) ->  | I79: =VLOOKUP($B79,'LED #4'!$A$15:$I$114,I$39,0) ->  | J79: =VLOOKUP($B79,'LED #4'!$A$15:$I$114,J$39,0) -> 
B80: =Table!B93 -> 0.650 | C80: =VLOOKUP($B80,'LED #1'!$A$15:$I$114,C$39,0) -> 5.973498262 | D80: =VLOOKUP($B80,'LED #1'!$A$15:$I$114,D$39,0) -> 3.88277387 | E80: =VLOOKUP($B80,'LED #2'!$A$15:$I$114,E$39,0) -> 2.834887924 | F80: =VLOOKUP($B80,'LED #2'!$A$15:$I$114,F$39,0) -> 1.842677151 | G80: =VLOOKUP($B80,'LED #3'!$A$15:$I$114,G$39,0) ->  | H80: =VLOOKUP($B80,'LED #3'!$A$15:$I$114,H$39,0) ->  | I80: =VLOOKUP($B80,'LED #4'!$A$15:$I$114,I$39,0) ->  | J80: =VLOOKUP($B80,'LED #4'!$A$15:$I$114,J$39,0) -> 
B81: =Table!B94 -> 0.665 | C81: =VLOOKUP($B81,'LED #1'!$A$15:$I$114,C$39,0) -> 5.992039662 | D81: =VLOOKUP($B81,'LED #1'!$A$15:$I$114,D$39,0) -> 3.984706375 | E81: =VLOOKUP($B81,'LED #2'!$A$15:$I$114,E$39,0) -> 2.842131875 | F81: =VLOOKUP($B81,'LED #2'!$A$15:$I$114,F$39,0) -> 1.890017697 | G81: =VLOOKUP($B81,'LED #3'!$A$15:$I$114,G$39,0) ->  | H81: =VLOOKUP($B81,'LED #3'!$A$15:$I$114,H$39,0) ->  | I81: =VLOOKUP($B81,'LED #4'!$A$15:$I$114,I$39,0) ->  | J81: =VLOOKUP($B81,'LED #4'!$A$15:$I$114,J$39,0) -> 
B82: =Table!B95 -> 0.680 | C82: =VLOOKUP($B82,'LED #1'!$A$15:$I$114,C$39,0) -> 6.010450474 | D82: =VLOOKUP($B82,'LED #1'!$A$15:$I$114,D$39,0) -> 4.087106323 | E82: =VLOOKUP($B82,'LED #2'!$A$15:$I$114,E$39,0) -> 2.849347683 | F82: =VLOOKUP($B82,'LED #2'!$A$15:$I$114,F$39,0) -> 1.937556424 | G82: =VLOOKUP($B82,'LED #3'!$A$15:$I$114,G$39,0) ->  | H82: =VLOOKUP($B82,'LED #3'!$A$15:$I$114,H$39,0) ->  | I82: =VLOOKUP($B82,'LED #4'!$A$15:$I$114,I$39,0) ->  | J82: =VLOOKUP($B82,'LED #4'!$A$15:$I$114,J$39,0) -> 
B83: =Table!B96 -> 0.695 | C83: =VLOOKUP($B83,'LED #1'!$A$15:$I$114,C$39,0) -> 6.02873162 | D83: =VLOOKUP($B83,'LED #1'!$A$15:$I$114,D$39,0) -> 4.189968476 | E83: =VLOOKUP($B83,'LED #2'!$A$15:$I$114,E$39,0) -> 2.856535456 | F83: =VLOOKUP($B83,'LED #2'!$A$15:$I$114,F$39,0) -> 1.985292142 | G83: =VLOOKUP($B83,'LED #3'!$A$15:$I$114,G$39,0) ->  | H83: =VLOOKUP($B83,'LED #3'!$A$15:$I$114,H$39,0) ->  | I83: =VLOOKUP($B83,'LED #4'!$A$15:$I$114,I$39,0) ->  | J83: =VLOOKUP($B83,'LED #4'!$A$15:$I$114,J$39,0) -> 
B84: =Table!B97 -> 0.710 | C84: =VLOOKUP($B84,'LED #1'!$A$15:$I$114,C$39,0) -> 6.046884011 | D84: =VLOOKUP($B84,'LED #1'!$A$15:$I$114,D$39,0) -> 4.293287648 | E84: =VLOOKUP($B84,'LED #2'!$A$15:$I$114,E$39,0) -> 2.863695303 | F84: =VLOOKUP($B84,'LED #2'!$A$15:$I$114,F$39,0) -> 2.033223665 | G84: =VLOOKUP($B84,'LED #3'!$A$15:$I$114,G$39,0) ->  | H84: =VLOOKUP($B84,'LED #3'!$A$15:$I$114,H$39,0) ->  | I84: =VLOOKUP($B84,'LED #4'!$A$15:$I$114,I$39,0) ->  | J84: =VLOOKUP($B84,'LED #4'!$A$15:$I$114,J$39,0) -> 
B85: =Table!B98 -> 0.725 | C85: =VLOOKUP($B85,'LED #1'!$A$15:$I$114,C$39,0) -> 6.064908556 | D85: =VLOOKUP($B85,'LED #1'!$A$15:$I$114,D$39,0) -> 4.397058703 | E85: =VLOOKUP($B85,'LED #2'!$A$15:$I$114,E$39,0) -> 2.870827333 | F85: =VLOOKUP($B85,'LED #2'!$A$15:$I$114,F$39,0) -> 2.081349817 | G85: =VLOOKUP($B85,'LED #3'!$A$15:$I$114,G$39,0) ->  | H85: =VLOOKUP($B85,'LED #3'!$A$15:$I$114,H$39,0) ->  | I85: =VLOOKUP($B85,'LED #4'!$A$15:$I$114,I$39,0) ->  | J85: =VLOOKUP($B85,'LED #4'!$A$15:$I$114,J$39,0) -> 
B86: =Table!B99 -> 0.740 | C86: =VLOOKUP($B86,'LED #1'!$A$15:$I$114,C$39,0) -> 6.082806153 | D86: =VLOOKUP($B86,'LED #1'!$A$15:$I$114,D$39,0) -> 4.501276553 | E86: =VLOOKUP($B86,'LED #2'!$A$15:$I$114,E$39,0) -> 2.877931654 | F86: =VLOOKUP($B86,'LED #2'!$A$15:$I$114,F$39,0) -> 2.129669424 | G86: =VLOOKUP($B86,'LED #3'!$A$15:$I$114,G$39,0) ->  | H86: =VLOOKUP($B86,'LED #3'!$A$15:$I$114,H$39,0) ->  | I86: =VLOOKUP($B86,'LED #4'!$A$15:$I$114,I$39,0) ->  | J86: =VLOOKUP($B86,'LED #4'!$A$15:$I$114,J$39,0) -> 
B87: =Table!B100 -> 0.755 | C87: =VLOOKUP($B87,'LED #1'!$A$15:$I$114,C$39,0) -> 6.100577698 | D87: =VLOOKUP($B87,'LED #1'!$A$15:$I$114,D$39,0) -> 4.605936162 | E87: =VLOOKUP($B87,'LED #2'!$A$15:$I$114,E$39,0) -> 2.885008374 | F87: =VLOOKUP($B87,'LED #2'!$A$15:$I$114,F$39,0) -> 2.178181322 | G87: =VLOOKUP($B87,'LED #3'!$A$15:$I$114,G$39,0) ->  | H87: =VLOOKUP($B87,'LED #3'!$A$15:$I$114,H$39,0) ->  | I87: =VLOOKUP($B87,'LED #4'!$A$15:$I$114,I$39,0) ->  | J87: =VLOOKUP($B87,'LED #4'!$A$15:$I$114,J$39,0) -> 
B88: =Table!B101 -> 0.770 | C88: =VLOOKUP($B88,'LED #1'!$A$15:$I$114,C$39,0) -> 6.118224078 | D88: =VLOOKUP($B88,'LED #1'!$A$15:$I$114,D$39,0) -> 4.71103254 | E88: =VLOOKUP($B88,'LED #2'!$A$15:$I$114,E$39,0) -> 2.8920576 | F88: =VLOOKUP($B88,'LED #2'!$A$15:$I$114,F$39,0) -> 2.226884352 | G88: =VLOOKUP($B88,'LED #3'!$A$15:$I$114,G$39,0) ->  | H88: =VLOOKUP($B88,'LED #3'!$A$15:$I$114,H$39,0) ->  | I88: =VLOOKUP($B88,'LED #4'!$A$15:$I$114,I$39,0) ->  | J88: =VLOOKUP($B88,'LED #4'!$A$15:$I$114,J$39,0) -> 
B89: =Table!B102 -> 0.785 | C89: =VLOOKUP($B89,'LED #1'!$A$15:$I$114,C$39,0) -> 6.135746175 | D89: =VLOOKUP($B89,'LED #1'!$A$15:$I$114,D$39,0) -> 4.816560747 | E89: =VLOOKUP($B89,'LED #2'!$A$15:$I$114,E$39,0) -> 2.899079438 | F89: =VLOOKUP($B89,'LED #2'!$A$15:$I$114,F$39,0) -> 2.275777359 | G89: =VLOOKUP($B89,'LED #3'!$A$15:$I$114,G$39,0) ->  | H89: =VLOOKUP($B89,'LED #3'!$A$15:$I$114,H$39,0) ->  | I89: =VLOOKUP($B89,'LED #4'!$A$15:$I$114,I$39,0) ->  | J89: =VLOOKUP($B89,'LED #4'!$A$15:$I$114,J$39,0) -> 
B90: =Table!B103 -> 0.800 | C90: =VLOOKUP($B90,'LED #1'!$A$15:$I$114,C$39,0) -> 6.153144863 | D90: =VLOOKUP($B90,'LED #1'!$A$15:$I$114,D$39,0) -> 4.922515891 | E90: =VLOOKUP($B90,'LED #2'!$A$15:$I$114,E$39,0) -> 2.906073995 | F90: =VLOOKUP($B90,'LED #2'!$A$15:$I$114,F$39,0) -> 2.324859196 | G90: =VLOOKUP($B90,'LED #3'!$A$15:$I$114,G$39,0) ->  | H90: =VLOOKUP($B90,'LED #3'!$A$15:$I$114,H$39,0) ->  | I90: =VLOOKUP($B90,'LED #4'!$A$15:$I$114,I$39,0) ->  | J90: =VLOOKUP($B90,'LED #4'!$A$15:$I$114,J$39,0) -> 
B91: =Table!B104 -> 0.815 | C91: =VLOOKUP($B91,'LED #1'!$A$15:$I$114,C$39,0) ->  | D91: =VLOOKUP($B91,'LED #1'!$A$15:$I$114,D$39,0) ->  | E91: =VLOOKUP($B91,'LED #2'!$A$15:$I$114,E$39,0) -> 2.913041377 | F91: =VLOOKUP($B91,'LED #2'!$A$15:$I$114,F$39,0) -> 2.374128723 | G91: =VLOOKUP($B91,'LED #3'!$A$15:$I$114,G$39,0) ->  | H91: =VLOOKUP($B91,'LED #3'!$A$15:$I$114,H$39,0) ->  | I91: =VLOOKUP($B91,'LED #4'!$A$15:$I$114,I$39,0) ->  | J91: =VLOOKUP($B91,'LED #4'!$A$15:$I$114,J$39,0) -> 
B92: =Table!B105 -> 0.830 | C92: =VLOOKUP($B92,'LED #1'!$A$15:$I$114,C$39,0) ->  | D92: =VLOOKUP($B92,'LED #1'!$A$15:$I$114,D$39,0) ->  | E92: =VLOOKUP($B92,'LED #2'!$A$15:$I$114,E$39,0) -> 2.91998169 | F92: =VLOOKUP($B92,'LED #2'!$A$15:$I$114,F$39,0) -> 2.423584803 | G92: =VLOOKUP($B92,'LED #3'!$A$15:$I$114,G$39,0) ->  | H92: =VLOOKUP($B92,'LED #3'!$A$15:$I$114,H$39,0) ->  | I92: =VLOOKUP($B92,'LED #4'!$A$15:$I$114,I$39,0) ->  | J92: =VLOOKUP($B92,'LED #4'!$A$15:$I$114,J$39,0) -> 
B93: =Table!B106 -> 0.845 | C93: =VLOOKUP($B93,'LED #1'!$A$15:$I$114,C$39,0) ->  | D93: =VLOOKUP($B93,'LED #1'!$A$15:$I$114,D$39,0) ->  | E93: =VLOOKUP($B93,'LED #2'!$A$15:$I$114,E$39,0) -> 2.926895039 | F93: =VLOOKUP($B93,'LED #2'!$A$15:$I$114,F$39,0) -> 2.473226308 | G93: =VLOOKUP($B93,'LED #3'!$A$15:$I$114,G$39,0) ->  | H93: =VLOOKUP($B93,'LED #3'!$A$15:$I$114,H$39,0) ->  | I93: =VLOOKUP($B93,'LED #4'!$A$15:$I$114,I$39,0) ->  | J93: =VLOOKUP($B93,'LED #4'!$A$15:$I$114,J$39,0) -> 
B94: =Table!B107 -> 0.860 | C94: =VLOOKUP($B94,'LED #1'!$A$15:$I$114,C$39,0) ->  | D94: =VLOOKUP($B94,'LED #1'!$A$15:$I$114,D$39,0) ->  | E94: =VLOOKUP($B94,'LED #2'!$A$15:$I$114,E$39,0) -> 2.933781528 | F94: =VLOOKUP($B94,'LED #2'!$A$15:$I$114,F$39,0) -> 2.523052114 | G94: =VLOOKUP($B94,'LED #3'!$A$15:$I$114,G$39,0) ->  | H94: =VLOOKUP($B94,'LED #3'!$A$15:$I$114,H$39,0) ->  | I94: =VLOOKUP($B94,'LED #4'!$A$15:$I$114,I$39,0) ->  | J94: =VLOOKUP($B94,'LED #4'!$A$15:$I$114,J$39,0) -> 
B95: =Table!B108 -> 0.875 | C95: =VLOOKUP($B95,'LED #1'!$A$15:$I$114,C$39,0) ->  | D95: =VLOOKUP($B95,'LED #1'!$A$15:$I$114,D$39,0) ->  | E95: =VLOOKUP($B95,'LED #2'!$A$15:$I$114,E$39,0) -> 2.940641263 | F95: =VLOOKUP($B95,'LED #2'!$A$15:$I$114,F$39,0) -> 2.573061105 | G95: =VLOOKUP($B95,'LED #3'!$A$15:$I$114,G$39,0) ->  | H95: =VLOOKUP($B95,'LED #3'!$A$15:$I$114,H$39,0) ->  | I95: =VLOOKUP($B95,'LED #4'!$A$15:$I$114,I$39,0) ->  | J95: =VLOOKUP($B95,'LED #4'!$A$15:$I$114,J$39,0) -> 
B96: =Table!B109 -> 0.890 | C96: =VLOOKUP($B96,'LED #1'!$A$15:$I$114,C$39,0) ->  | D96: =VLOOKUP($B96,'LED #1'!$A$15:$I$114,D$39,0) ->  | E96: =VLOOKUP($B96,'LED #2'!$A$15:$I$114,E$39,0) -> 2.947474346 | F96: =VLOOKUP($B96,'LED #2'!$A$15:$I$114,F$39,0) -> 2.623252168 | G96: =VLOOKUP($B96,'LED #3'!$A$15:$I$114,G$39,0) ->  | H96: =VLOOKUP($B96,'LED #3'!$A$15:$I$114,H$39,0) ->  | I96: =VLOOKUP($B96,'LED #4'!$A$15:$I$114,I$39,0) ->  | J96: =VLOOKUP($B96,'LED #4'!$A$15:$I$114,J$39,0) -> 
B97: =Table!B110 -> 0.905 | C97: =VLOOKUP($B97,'LED #1'!$A$15:$I$114,C$39,0) ->  | D97: =VLOOKUP($B97,'LED #1'!$A$15:$I$114,D$39,0) ->  | E97: =VLOOKUP($B97,'LED #2'!$A$15:$I$114,E$39,0) -> 2.954280881 | F97: =VLOOKUP($B97,'LED #2'!$A$15:$I$114,F$39,0) -> 2.673624197 | G97: =VLOOKUP($B97,'LED #3'!$A$15:$I$114,G$39,0) ->  | H97: =VLOOKUP($B97,'LED #3'!$A$15:$I$114,H$39,0) ->  | I97: =VLOOKUP($B97,'LED #4'!$A$15:$I$114,I$39,0) ->  | J97: =VLOOKUP($B97,'LED #4'!$A$15:$I$114,J$39,0) -> 
B98: =Table!B111 -> 0.920 | C98: =VLOOKUP($B98,'LED #1'!$A$15:$I$114,C$39,0) ->  | D98: =VLOOKUP($B98,'LED #1'!$A$15:$I$114,D$39,0) ->  | E98: =VLOOKUP($B98,'LED #2'!$A$15:$I$114,E$39,0) -> 2.961060972 | F98: =VLOOKUP($B98,'LED #2'!$A$15:$I$114,F$39,0) -> 2.724176094 | G98: =VLOOKUP($B98,'LED #3'!$A$15:$I$114,G$39,0) ->  | H98: =VLOOKUP($B98,'LED #3'!$A$15:$I$114,H$39,0) ->  | I98: =VLOOKUP($B98,'LED #4'!$A$15:$I$114,I$39,0) ->  | J98: =VLOOKUP($B98,'LED #4'!$A$15:$I$114,J$39,0) -> 
B99: =Table!B112 -> 0.935 | C99: =VLOOKUP($B99,'LED #1'!$A$15:$I$114,C$39,0) ->  | D99: =VLOOKUP($B99,'LED #1'!$A$15:$I$114,D$39,0) ->  | E99: =VLOOKUP($B99,'LED #2'!$A$15:$I$114,E$39,0) -> 2.967814721 | F99: =VLOOKUP($B99,'LED #2'!$A$15:$I$114,F$39,0) -> 2.774906765 | G99: =VLOOKUP($B99,'LED #3'!$A$15:$I$114,G$39,0) ->  | H99: =VLOOKUP($B99,'LED #3'!$A$15:$I$114,H$39,0) ->  | I99: =VLOOKUP($B99,'LED #4'!$A$15:$I$114,I$39,0) ->  | J99: =VLOOKUP($B99,'LED #4'!$A$15:$I$114,J$39,0) -> 
B100: =Table!B113 -> 0.950 | C100: =VLOOKUP($B100,'LED #1'!$A$15:$I$114,C$39,0) ->  | D100: =VLOOKUP($B100,'LED #1'!$A$15:$I$114,D$39,0) ->  | E100: =VLOOKUP($B100,'LED #2'!$A$15:$I$114,E$39,0) -> 2.974542231 | F100: =VLOOKUP($B100,'LED #2'!$A$15:$I$114,F$39,0) -> 2.82581512 | G100: =VLOOKUP($B100,'LED #3'!$A$15:$I$114,G$39,0) ->  | H100: =VLOOKUP($B100,'LED #3'!$A$15:$I$114,H$39,0) ->  | I100: =VLOOKUP($B100,'LED #4'!$A$15:$I$114,I$39,0) ->  | J100: =VLOOKUP($B100,'LED #4'!$A$15:$I$114,J$39,0) -> 
B101: =Table!B114 -> 0.965 | C101: =VLOOKUP($B101,'LED #1'!$A$15:$I$114,C$39,0) ->  | D101: =VLOOKUP($B101,'LED #1'!$A$15:$I$114,D$39,0) ->  | E101: =VLOOKUP($B101,'LED #2'!$A$15:$I$114,E$39,0) -> 2.981243604 | F101: =VLOOKUP($B101,'LED #2'!$A$15:$I$114,F$39,0) -> 2.876900078 | G101: =VLOOKUP($B101,'LED #3'!$A$15:$I$114,G$39,0) ->  | H101: =VLOOKUP($B101,'LED #3'!$A$15:$I$114,H$39,0) ->  | I101: =VLOOKUP($B101,'LED #4'!$A$15:$I$114,I$39,0) ->  | J101: =VLOOKUP($B101,'LED #4'!$A$15:$I$114,J$39,0) -> 
B102: =Table!B115 -> 0.980 | C102: =VLOOKUP($B102,'LED #1'!$A$15:$I$114,C$39,0) ->  | D102: =VLOOKUP($B102,'LED #1'!$A$15:$I$114,D$39,0) ->  | E102: =VLOOKUP($B102,'LED #2'!$A$15:$I$114,E$39,0) -> 2.98791894 | F102: =VLOOKUP($B102,'LED #2'!$A$15:$I$114,F$39,0) -> 2.928160562 | G102: =VLOOKUP($B102,'LED #3'!$A$15:$I$114,G$39,0) ->  | H102: =VLOOKUP($B102,'LED #3'!$A$15:$I$114,H$39,0) ->  | I102: =VLOOKUP($B102,'LED #4'!$A$15:$I$114,I$39,0) ->  | J102: =VLOOKUP($B102,'LED #4'!$A$15:$I$114,J$39,0) -> 
B103: =Table!B116 -> 0.995 | C103: =VLOOKUP($B103,'LED #1'!$A$15:$I$114,C$39,0) ->  | D103: =VLOOKUP($B103,'LED #1'!$A$15:$I$114,D$39,0) ->  | E103: =VLOOKUP($B103,'LED #2'!$A$15:$I$114,E$39,0) -> 2.994568342 | F103: =VLOOKUP($B103,'LED #2'!$A$15:$I$114,F$39,0) -> 2.979595501 | G103: =VLOOKUP($B103,'LED #3'!$A$15:$I$114,G$39,0) ->  | H103: =VLOOKUP($B103,'LED #3'!$A$15:$I$114,H$39,0) ->  | I103: =VLOOKUP($B103,'LED #4'!$A$15:$I$114,I$39,0) ->  | J103: =VLOOKUP($B103,'LED #4'!$A$15:$I$114,J$39,0) -> 
B104: =Table!B117 -> 1.010 | C104: =VLOOKUP($B104,'LED #1'!$A$15:$I$114,C$39,0) ->  | D104: =VLOOKUP($B104,'LED #1'!$A$15:$I$114,D$39,0) ->  | E104: =VLOOKUP($B104,'LED #2'!$A$15:$I$114,E$39,0) -> 3.00119191 | F104: =VLOOKUP($B104,'LED #2'!$A$15:$I$114,F$39,0) -> 3.031203829 | G104: =VLOOKUP($B104,'LED #3'!$A$15:$I$114,G$39,0) ->  | H104: =VLOOKUP($B104,'LED #3'!$A$15:$I$114,H$39,0) ->  | I104: =VLOOKUP($B104,'LED #4'!$A$15:$I$114,I$39,0) ->  | J104: =VLOOKUP($B104,'LED #4'!$A$15:$I$114,J$39,0) -> 
B105: =Table!B118 -> 1.025 | C105: =VLOOKUP($B105,'LED #1'!$A$15:$I$114,C$39,0) ->  | D105: =VLOOKUP($B105,'LED #1'!$A$15:$I$114,D$39,0) ->  | E105: =VLOOKUP($B105,'LED #2'!$A$15:$I$114,E$39,0) -> 3.007789745 | F105: =VLOOKUP($B105,'LED #2'!$A$15:$I$114,F$39,0) -> 3.082984488 | G105: =VLOOKUP($B105,'LED #3'!$A$15:$I$114,G$39,0) ->  | H105: =VLOOKUP($B105,'LED #3'!$A$15:$I$114,H$39,0) ->  | I105: =VLOOKUP($B105,'LED #4'!$A$15:$I$114,I$39,0) ->  | J105: =VLOOKUP($B105,'LED #4'!$A$15:$I$114,J$39,0) -> 
B106: =Table!B119 -> 1.040 | C106: =VLOOKUP($B106,'LED #1'!$A$15:$I$114,C$39,0) ->  | D106: =VLOOKUP($B106,'LED #1'!$A$15:$I$114,D$39,0) ->  | E106: =VLOOKUP($B106,'LED #2'!$A$15:$I$114,E$39,0) -> 3.014361945 | F106: =VLOOKUP($B106,'LED #2'!$A$15:$I$114,F$39,0) -> 3.134936423 | G106: =VLOOKUP($B106,'LED #3'!$A$15:$I$114,G$39,0) ->  | H106: =VLOOKUP($B106,'LED #3'!$A$15:$I$114,H$39,0) ->  | I106: =VLOOKUP($B106,'LED #4'!$A$15:$I$114,I$39,0) ->  | J106: =VLOOKUP($B106,'LED #4'!$A$15:$I$114,J$39,0) -> 
B107: =Table!B120 -> 1.055 | C107: =VLOOKUP($B107,'LED #1'!$A$15:$I$114,C$39,0) ->  | D107: =VLOOKUP($B107,'LED #1'!$A$15:$I$114,D$39,0) ->  | E107: =VLOOKUP($B107,'LED #2'!$A$15:$I$114,E$39,0) -> 3.020908612 | F107: =VLOOKUP($B107,'LED #2'!$A$15:$I$114,F$39,0) -> 3.187058586 | G107: =VLOOKUP($B107,'LED #3'!$A$15:$I$114,G$39,0) ->  | H107: =VLOOKUP($B107,'LED #3'!$A$15:$I$114,H$39,0) ->  | I107: =VLOOKUP($B107,'LED #4'!$A$15:$I$114,I$39,0) ->  | J107: =VLOOKUP($B107,'LED #4'!$A$15:$I$114,J$39,0) -> 
B108: =Table!B121 -> 1.070 | C108: =VLOOKUP($B108,'LED #1'!$A$15:$I$114,C$39,0) ->  | D108: =VLOOKUP($B108,'LED #1'!$A$15:$I$114,D$39,0) ->  | E108: =VLOOKUP($B108,'LED #2'!$A$15:$I$114,E$39,0) -> 3.027429844 | F108: =VLOOKUP($B108,'LED #2'!$A$15:$I$114,F$39,0) -> 3.239349933 | G108: =VLOOKUP($B108,'LED #3'!$A$15:$I$114,G$39,0) ->  | H108: =VLOOKUP($B108,'LED #3'!$A$15:$I$114,H$39,0) ->  | I108: =VLOOKUP($B108,'LED #4'!$A$15:$I$114,I$39,0) ->  | J108: =VLOOKUP($B108,'LED #4'!$A$15:$I$114,J$39,0) -> 
B109: =Table!B122 -> 1.085 | C109: =VLOOKUP($B109,'LED #1'!$A$15:$I$114,C$39,0) ->  | D109: =VLOOKUP($B109,'LED #1'!$A$15:$I$114,D$39,0) ->  | E109: =VLOOKUP($B109,'LED #2'!$A$15:$I$114,E$39,0) -> 3.03392574 | F109: =VLOOKUP($B109,'LED #2'!$A$15:$I$114,F$39,0) -> 3.291809428 | G109: =VLOOKUP($B109,'LED #3'!$A$15:$I$114,G$39,0) ->  | H109: =VLOOKUP($B109,'LED #3'!$A$15:$I$114,H$39,0) ->  | I109: =VLOOKUP($B109,'LED #4'!$A$15:$I$114,I$39,0) ->  | J109: =VLOOKUP($B109,'LED #4'!$A$15:$I$114,J$39,0) -> 
B110: =Table!B123 -> 1.100 | C110: =VLOOKUP($B110,'LED #1'!$A$15:$I$114,C$39,0) ->  | D110: =VLOOKUP($B110,'LED #1'!$A$15:$I$114,D$39,0) ->  | E110: =VLOOKUP($B110,'LED #2'!$A$15:$I$114,E$39,0) -> 3.040396398 | F110: =VLOOKUP($B110,'LED #2'!$A$15:$I$114,F$39,0) -> 3.344436038 | G110: =VLOOKUP($B110,'LED #3'!$A$15:$I$114,G$39,0) ->  | H110: =VLOOKUP($B110,'LED #3'!$A$15:$I$114,H$39,0) ->  | I110: =VLOOKUP($B110,'LED #4'!$A$15:$I$114,I$39,0) ->  | J110: =VLOOKUP($B110,'LED #4'!$A$15:$I$114,J$39,0) -> 
B111: =Table!B124 -> 1.115 | C111: =VLOOKUP($B111,'LED #1'!$A$15:$I$114,C$39,0) ->  | D111: =VLOOKUP($B111,'LED #1'!$A$15:$I$114,D$39,0) ->  | E111: =VLOOKUP($B111,'LED #2'!$A$15:$I$114,E$39,0) -> 3.046841917 | F111: =VLOOKUP($B111,'LED #2'!$A$15:$I$114,F$39,0) -> 3.397228737 | G111: =VLOOKUP($B111,'LED #3'!$A$15:$I$114,G$39,0) ->  | H111: =VLOOKUP($B111,'LED #3'!$A$15:$I$114,H$39,0) ->  | I111: =VLOOKUP($B111,'LED #4'!$A$15:$I$114,I$39,0) ->  | J111: =VLOOKUP($B111,'LED #4'!$A$15:$I$114,J$39,0) -> 
B112: =Table!B125 -> 1.130 | C112: =VLOOKUP($B112,'LED #1'!$A$15:$I$114,C$39,0) ->  | D112: =VLOOKUP($B112,'LED #1'!$A$15:$I$114,D$39,0) ->  | E112: =VLOOKUP($B112,'LED #2'!$A$15:$I$114,E$39,0) -> 3.053262394 | F112: =VLOOKUP($B112,'LED #2'!$A$15:$I$114,F$39,0) -> 3.450186505 | G112: =VLOOKUP($B112,'LED #3'!$A$15:$I$114,G$39,0) ->  | H112: =VLOOKUP($B112,'LED #3'!$A$15:$I$114,H$39,0) ->  | I112: =VLOOKUP($B112,'LED #4'!$A$15:$I$114,I$39,0) ->  | J112: =VLOOKUP($B112,'LED #4'!$A$15:$I$114,J$39,0) -> 
B113: =Table!B126 -> 1.145 | C113: =VLOOKUP($B113,'LED #1'!$A$15:$I$114,C$39,0) ->  | D113: =VLOOKUP($B113,'LED #1'!$A$15:$I$114,D$39,0) ->  | E113: =VLOOKUP($B113,'LED #2'!$A$15:$I$114,E$39,0) -> 3.059657926 | F113: =VLOOKUP($B113,'LED #2'!$A$15:$I$114,F$39,0) -> 3.503308325 | G113: =VLOOKUP($B113,'LED #3'!$A$15:$I$114,G$39,0) ->  | H113: =VLOOKUP($B113,'LED #3'!$A$15:$I$114,H$39,0) ->  | I113: =VLOOKUP($B113,'LED #4'!$A$15:$I$114,I$39,0) ->  | J113: =VLOOKUP($B113,'LED #4'!$A$15:$I$114,J$39,0) -> 
B114: =Table!B127 -> 1.160 | C114: =VLOOKUP($B114,'LED #1'!$A$15:$I$114,C$39,0) ->  | D114: =VLOOKUP($B114,'LED #1'!$A$15:$I$114,D$39,0) ->  | E114: =VLOOKUP($B114,'LED #2'!$A$15:$I$114,E$39,0) -> 3.066028611 | F114: =VLOOKUP($B114,'LED #2'!$A$15:$I$114,F$39,0) -> 3.556593188 | G114: =VLOOKUP($B114,'LED #3'!$A$15:$I$114,G$39,0) ->  | H114: =VLOOKUP($B114,'LED #3'!$A$15:$I$114,H$39,0) ->  | I114: =VLOOKUP($B114,'LED #4'!$A$15:$I$114,I$39,0) ->  | J114: =VLOOKUP($B114,'LED #4'!$A$15:$I$114,J$39,0) -> 
B115: =Table!B128 -> 1.175 | C115: =VLOOKUP($B115,'LED #1'!$A$15:$I$114,C$39,0) ->  | D115: =VLOOKUP($B115,'LED #1'!$A$15:$I$114,D$39,0) ->  | E115: =VLOOKUP($B115,'LED #2'!$A$15:$I$114,E$39,0) -> 3.072374544 | F115: =VLOOKUP($B115,'LED #2'!$A$15:$I$114,F$39,0) -> 3.61004009 | G115: =VLOOKUP($B115,'LED #3'!$A$15:$I$114,G$39,0) ->  | H115: =VLOOKUP($B115,'LED #3'!$A$15:$I$114,H$39,0) ->  | I115: =VLOOKUP($B115,'LED #4'!$A$15:$I$114,I$39,0) ->  | J115: =VLOOKUP($B115,'LED #4'!$A$15:$I$114,J$39,0) -> 
B116: =Table!B129 -> 1.190 | C116: =VLOOKUP($B116,'LED #1'!$A$15:$I$114,C$39,0) ->  | D116: =VLOOKUP($B116,'LED #1'!$A$15:$I$114,D$39,0) ->  | E116: =VLOOKUP($B116,'LED #2'!$A$15:$I$114,E$39,0) -> 3.078695823 | F116: =VLOOKUP($B116,'LED #2'!$A$15:$I$114,F$39,0) -> 3.663648029 | G116: =VLOOKUP($B116,'LED #3'!$A$15:$I$114,G$39,0) ->  | H116: =VLOOKUP($B116,'LED #3'!$A$15:$I$114,H$39,0) ->  | I116: =VLOOKUP($B116,'LED #4'!$A$15:$I$114,I$39,0) ->  | J116: =VLOOKUP($B116,'LED #4'!$A$15:$I$114,J$39,0) -> 
B117: =Table!B130 -> 1.205 | C117: =VLOOKUP($B117,'LED #1'!$A$15:$I$114,C$39,0) ->  | D117: =VLOOKUP($B117,'LED #1'!$A$15:$I$114,D$39,0) ->  | E117: =VLOOKUP($B117,'LED #2'!$A$15:$I$114,E$39,0) -> 3.084992543 | F117: =VLOOKUP($B117,'LED #2'!$A$15:$I$114,F$39,0) -> 3.717416014 | G117: =VLOOKUP($B117,'LED #3'!$A$15:$I$114,G$39,0) ->  | H117: =VLOOKUP($B117,'LED #3'!$A$15:$I$114,H$39,0) ->  | I117: =VLOOKUP($B117,'LED #4'!$A$15:$I$114,I$39,0) ->  | J117: =VLOOKUP($B117,'LED #4'!$A$15:$I$114,J$39,0) -> 
B118: =Table!B131 -> 1.220 | C118: =VLOOKUP($B118,'LED #1'!$A$15:$I$114,C$39,0) ->  | D118: =VLOOKUP($B118,'LED #1'!$A$15:$I$114,D$39,0) ->  | E118: =VLOOKUP($B118,'LED #2'!$A$15:$I$114,E$39,0) -> 3.091264798 | F118: =VLOOKUP($B118,'LED #2'!$A$15:$I$114,F$39,0) -> 3.771343054 | G118: =VLOOKUP($B118,'LED #3'!$A$15:$I$114,G$39,0) ->  | H118: =VLOOKUP($B118,'LED #3'!$A$15:$I$114,H$39,0) ->  | I118: =VLOOKUP($B118,'LED #4'!$A$15:$I$114,I$39,0) ->  | J118: =VLOOKUP($B118,'LED #4'!$A$15:$I$114,J$39,0) -> 
B119: =Table!B132 -> 1.235 | C119: =VLOOKUP($B119,'LED #1'!$A$15:$I$114,C$39,0) ->  | D119: =VLOOKUP($B119,'LED #1'!$A$15:$I$114,D$39,0) ->  | E119: =VLOOKUP($B119,'LED #2'!$A$15:$I$114,E$39,0) -> 3.097512685 | F119: =VLOOKUP($B119,'LED #2'!$A$15:$I$114,F$39,0) -> 3.825428166 | G119: =VLOOKUP($B119,'LED #3'!$A$15:$I$114,G$39,0) ->  | H119: =VLOOKUP($B119,'LED #3'!$A$15:$I$114,H$39,0) ->  | I119: =VLOOKUP($B119,'LED #4'!$A$15:$I$114,I$39,0) ->  | J119: =VLOOKUP($B119,'LED #4'!$A$15:$I$114,J$39,0) -> 
B120: =Table!B133 -> 1.250 | C120: =VLOOKUP($B120,'LED #1'!$A$15:$I$114,C$39,0) ->  | D120: =VLOOKUP($B120,'LED #1'!$A$15:$I$114,D$39,0) ->  | E120: =VLOOKUP($B120,'LED #2'!$A$15:$I$114,E$39,0) -> 3.103736298 | F120: =VLOOKUP($B120,'LED #2'!$A$15:$I$114,F$39,0) -> 3.879670373 | G120: =VLOOKUP($B120,'LED #3'!$A$15:$I$114,G$39,0) ->  | H120: =VLOOKUP($B120,'LED #3'!$A$15:$I$114,H$39,0) ->  | I120: =VLOOKUP($B120,'LED #4'!$A$15:$I$114,I$39,0) ->  | J120: =VLOOKUP($B120,'LED #4'!$A$15:$I$114,J$39,0) -> 
B121: =Table!B134 -> 1.265 | C121: =VLOOKUP($B121,'LED #1'!$A$15:$I$114,C$39,0) ->  | D121: =VLOOKUP($B121,'LED #1'!$A$15:$I$114,D$39,0) ->  | E121: =VLOOKUP($B121,'LED #2'!$A$15:$I$114,E$39,0) -> 3.109935732 | F121: =VLOOKUP($B121,'LED #2'!$A$15:$I$114,F$39,0) -> 3.934068701 | G121: =VLOOKUP($B121,'LED #3'!$A$15:$I$114,G$39,0) ->  | H121: =VLOOKUP($B121,'LED #3'!$A$15:$I$114,H$39,0) ->  | I121: =VLOOKUP($B121,'LED #4'!$A$15:$I$114,I$39,0) ->  | J121: =VLOOKUP($B121,'LED #4'!$A$15:$I$114,J$39,0) -> 
B122: =Table!B135 -> 1.280 | C122: =VLOOKUP($B122,'LED #1'!$A$15:$I$114,C$39,0) ->  | D122: =VLOOKUP($B122,'LED #1'!$A$15:$I$114,D$39,0) ->  | E122: =VLOOKUP($B122,'LED #2'!$A$15:$I$114,E$39,0) -> 3.116111079 | F122: =VLOOKUP($B122,'LED #2'!$A$15:$I$114,F$39,0) -> 3.988622182 | G122: =VLOOKUP($B122,'LED #3'!$A$15:$I$114,G$39,0) ->  | H122: =VLOOKUP($B122,'LED #3'!$A$15:$I$114,H$39,0) ->  | I122: =VLOOKUP($B122,'LED #4'!$A$15:$I$114,I$39,0) ->  | J122: =VLOOKUP($B122,'LED #4'!$A$15:$I$114,J$39,0) -> 
B123: =Table!B136 -> 1.295 | C123: =VLOOKUP($B123,'LED #1'!$A$15:$I$114,C$39,0) ->  | D123: =VLOOKUP($B123,'LED #1'!$A$15:$I$114,D$39,0) ->  | E123: =VLOOKUP($B123,'LED #2'!$A$15:$I$114,E$39,0) -> 3.122262435 | F123: =VLOOKUP($B123,'LED #2'!$A$15:$I$114,F$39,0) -> 4.043329853 | G123: =VLOOKUP($B123,'LED #3'!$A$15:$I$114,G$39,0) ->  | H123: =VLOOKUP($B123,'LED #3'!$A$15:$I$114,H$39,0) ->  | I123: =VLOOKUP($B123,'LED #4'!$A$15:$I$114,I$39,0) ->  | J123: =VLOOKUP($B123,'LED #4'!$A$15:$I$114,J$39,0) -> 
B124: =Table!B137 -> 1.310 | C124: =VLOOKUP($B124,'LED #1'!$A$15:$I$114,C$39,0) ->  | D124: =VLOOKUP($B124,'LED #1'!$A$15:$I$114,D$39,0) ->  | E124: =VLOOKUP($B124,'LED #2'!$A$15:$I$114,E$39,0) -> 3.128389891 | F124: =VLOOKUP($B124,'LED #2'!$A$15:$I$114,F$39,0) -> 4.098190757 | G124: =VLOOKUP($B124,'LED #3'!$A$15:$I$114,G$39,0) ->  | H124: =VLOOKUP($B124,'LED #3'!$A$15:$I$114,H$39,0) ->  | I124: =VLOOKUP($B124,'LED #4'!$A$15:$I$114,I$39,0) ->  | J124: =VLOOKUP($B124,'LED #4'!$A$15:$I$114,J$39,0) -> 
B125: =Table!B138 -> 1.325 | C125: =VLOOKUP($B125,'LED #1'!$A$15:$I$114,C$39,0) ->  | D125: =VLOOKUP($B125,'LED #1'!$A$15:$I$114,D$39,0) ->  | E125: =VLOOKUP($B125,'LED #2'!$A$15:$I$114,E$39,0) -> 3.134493541 | F125: =VLOOKUP($B125,'LED #2'!$A$15:$I$114,F$39,0) -> 4.153203942 | G125: =VLOOKUP($B125,'LED #3'!$A$15:$I$114,G$39,0) ->  | H125: =VLOOKUP($B125,'LED #3'!$A$15:$I$114,H$39,0) ->  | I125: =VLOOKUP($B125,'LED #4'!$A$15:$I$114,I$39,0) ->  | J125: =VLOOKUP($B125,'LED #4'!$A$15:$I$114,J$39,0) -> 
B126: =Table!B139 -> 1.340 | C126: =VLOOKUP($B126,'LED #1'!$A$15:$I$114,C$39,0) ->  | D126: =VLOOKUP($B126,'LED #1'!$A$15:$I$114,D$39,0) ->  | E126: =VLOOKUP($B126,'LED #2'!$A$15:$I$114,E$39,0) -> 3.140573478 | F126: =VLOOKUP($B126,'LED #2'!$A$15:$I$114,F$39,0) -> 4.208368461 | G126: =VLOOKUP($B126,'LED #3'!$A$15:$I$114,G$39,0) ->  | H126: =VLOOKUP($B126,'LED #3'!$A$15:$I$114,H$39,0) ->  | I126: =VLOOKUP($B126,'LED #4'!$A$15:$I$114,I$39,0) ->  | J126: =VLOOKUP($B126,'LED #4'!$A$15:$I$114,J$39,0) -> 
B127: =Table!B140 -> 1.355 | C127: =VLOOKUP($B127,'LED #1'!$A$15:$I$114,C$39,0) ->  | D127: =VLOOKUP($B127,'LED #1'!$A$15:$I$114,D$39,0) ->  | E127: =VLOOKUP($B127,'LED #2'!$A$15:$I$114,E$39,0) -> 3.146629793 | F127: =VLOOKUP($B127,'LED #2'!$A$15:$I$114,F$39,0) -> 4.26368337 | G127: =VLOOKUP($B127,'LED #3'!$A$15:$I$114,G$39,0) ->  | H127: =VLOOKUP($B127,'LED #3'!$A$15:$I$114,H$39,0) ->  | I127: =VLOOKUP($B127,'LED #4'!$A$15:$I$114,I$39,0) ->  | J127: =VLOOKUP($B127,'LED #4'!$A$15:$I$114,J$39,0) -> 
B128: =Table!B141 -> 1.370 | C128: =VLOOKUP($B128,'LED #1'!$A$15:$I$114,C$39,0) ->  | D128: =VLOOKUP($B128,'LED #1'!$A$15:$I$114,D$39,0) ->  | E128: =VLOOKUP($B128,'LED #2'!$A$15:$I$114,E$39,0) -> 3.152662579 | F128: =VLOOKUP($B128,'LED #2'!$A$15:$I$114,F$39,0) -> 4.319147733 | G128: =VLOOKUP($B128,'LED #3'!$A$15:$I$114,G$39,0) ->  | H128: =VLOOKUP($B128,'LED #3'!$A$15:$I$114,H$39,0) ->  | I128: =VLOOKUP($B128,'LED #4'!$A$15:$I$114,I$39,0) ->  | J128: =VLOOKUP($B128,'LED #4'!$A$15:$I$114,J$39,0) -> 
B129: =Table!B142 -> 1.385 | C129: =VLOOKUP($B129,'LED #1'!$A$15:$I$114,C$39,0) ->  | D129: =VLOOKUP($B129,'LED #1'!$A$15:$I$114,D$39,0) ->  | E129: =VLOOKUP($B129,'LED #2'!$A$15:$I$114,E$39,0) -> 3.158671926 | F129: =VLOOKUP($B129,'LED #2'!$A$15:$I$114,F$39,0) -> 4.374760617 | G129: =VLOOKUP($B129,'LED #3'!$A$15:$I$114,G$39,0) ->  | H129: =VLOOKUP($B129,'LED #3'!$A$15:$I$114,H$39,0) ->  | I129: =VLOOKUP($B129,'LED #4'!$A$15:$I$114,I$39,0) ->  | J129: =VLOOKUP($B129,'LED #4'!$A$15:$I$114,J$39,0) -> 
B130: =Table!B143 -> 1.400 | C130: =VLOOKUP($B130,'LED #1'!$A$15:$I$114,C$39,0) ->  | D130: =VLOOKUP($B130,'LED #1'!$A$15:$I$114,D$39,0) ->  | E130: =VLOOKUP($B130,'LED #2'!$A$15:$I$114,E$39,0) -> 3.164657925 | F130: =VLOOKUP($B130,'LED #2'!$A$15:$I$114,F$39,0) -> 4.430521096 | G130: =VLOOKUP($B130,'LED #3'!$A$15:$I$114,G$39,0) ->  | H130: =VLOOKUP($B130,'LED #3'!$A$15:$I$114,H$39,0) ->  | I130: =VLOOKUP($B130,'LED #4'!$A$15:$I$114,I$39,0) ->  | J130: =VLOOKUP($B130,'LED #4'!$A$15:$I$114,J$39,0) -> 
B131: =Table!B144 -> 1.415 | C131: =VLOOKUP($B131,'LED #1'!$A$15:$I$114,C$39,0) ->  | D131: =VLOOKUP($B131,'LED #1'!$A$15:$I$114,D$39,0) ->  | E131: =VLOOKUP($B131,'LED #2'!$A$15:$I$114,E$39,0) -> 3.170620669 | F131: =VLOOKUP($B131,'LED #2'!$A$15:$I$114,F$39,0) -> 4.486428246 | G131: =VLOOKUP($B131,'LED #3'!$A$15:$I$114,G$39,0) ->  | H131: =VLOOKUP($B131,'LED #3'!$A$15:$I$114,H$39,0) ->  | I131: =VLOOKUP($B131,'LED #4'!$A$15:$I$114,I$39,0) ->  | J131: =VLOOKUP($B131,'LED #4'!$A$15:$I$114,J$39,0) -> 
B132: =Table!B145 -> 1.430 | C132: =VLOOKUP($B132,'LED #1'!$A$15:$I$114,C$39,0) ->  | D132: =VLOOKUP($B132,'LED #1'!$A$15:$I$114,D$39,0) ->  | E132: =VLOOKUP($B132,'LED #2'!$A$15:$I$114,E$39,0) -> 3.176560246 | F132: =VLOOKUP($B132,'LED #2'!$A$15:$I$114,F$39,0) -> 4.542481152 | G132: =VLOOKUP($B132,'LED #3'!$A$15:$I$114,G$39,0) ->  | H132: =VLOOKUP($B132,'LED #3'!$A$15:$I$114,H$39,0) ->  | I132: =VLOOKUP($B132,'LED #4'!$A$15:$I$114,I$39,0) ->  | J132: =VLOOKUP($B132,'LED #4'!$A$15:$I$114,J$39,0) -> 
B133: =Table!B146 -> 1.445 | C133: =VLOOKUP($B133,'LED #1'!$A$15:$I$114,C$39,0) ->  | D133: =VLOOKUP($B133,'LED #1'!$A$15:$I$114,D$39,0) ->  | E133: =VLOOKUP($B133,'LED #2'!$A$15:$I$114,E$39,0) -> 3.182476747 | F133: =VLOOKUP($B133,'LED #2'!$A$15:$I$114,F$39,0) -> 4.598678899 | G133: =VLOOKUP($B133,'LED #3'!$A$15:$I$114,G$39,0) ->  | H133: =VLOOKUP($B133,'LED #3'!$A$15:$I$114,H$39,0) ->  | I133: =VLOOKUP($B133,'LED #4'!$A$15:$I$114,I$39,0) ->  | J133: =VLOOKUP($B133,'LED #4'!$A$15:$I$114,J$39,0) -> 
B134: =Table!B147 -> 1.460 | C134: =VLOOKUP($B134,'LED #1'!$A$15:$I$114,C$39,0) ->  | D134: =VLOOKUP($B134,'LED #1'!$A$15:$I$114,D$39,0) ->  | E134: =VLOOKUP($B134,'LED #2'!$A$15:$I$114,E$39,0) -> 3.188370261 | F134: =VLOOKUP($B134,'LED #2'!$A$15:$I$114,F$39,0) -> 4.655020581 | G134: =VLOOKUP($B134,'LED #3'!$A$15:$I$114,G$39,0) ->  | H134: =VLOOKUP($B134,'LED #3'!$A$15:$I$114,H$39,0) ->  | I134: =VLOOKUP($B134,'LED #4'!$A$15:$I$114,I$39,0) ->  | J134: =VLOOKUP($B134,'LED #4'!$A$15:$I$114,J$39,0) -> 
B135: =Table!B148 -> 1.475 | C135: =VLOOKUP($B135,'LED #1'!$A$15:$I$114,C$39,0) ->  | D135: =VLOOKUP($B135,'LED #1'!$A$15:$I$114,D$39,0) ->  | E135: =VLOOKUP($B135,'LED #2'!$A$15:$I$114,E$39,0) -> 3.194240878 | F135: =VLOOKUP($B135,'LED #2'!$A$15:$I$114,F$39,0) -> 4.711505295 | G135: =VLOOKUP($B135,'LED #3'!$A$15:$I$114,G$39,0) ->  | H135: =VLOOKUP($B135,'LED #3'!$A$15:$I$114,H$39,0) ->  | I135: =VLOOKUP($B135,'LED #4'!$A$15:$I$114,I$39,0) ->  | J135: =VLOOKUP($B135,'LED #4'!$A$15:$I$114,J$39,0) -> 
B136: =Table!B149 -> 1.490 | C136: =VLOOKUP($B136,'LED #1'!$A$15:$I$114,C$39,0) ->  | D136: =VLOOKUP($B136,'LED #1'!$A$15:$I$114,D$39,0) ->  | E136: =VLOOKUP($B136,'LED #2'!$A$15:$I$114,E$39,0) -> 3.200088687 | F136: =VLOOKUP($B136,'LED #2'!$A$15:$I$114,F$39,0) -> 4.768132144 | G136: =VLOOKUP($B136,'LED #3'!$A$15:$I$114,G$39,0) ->  | H136: =VLOOKUP($B136,'LED #3'!$A$15:$I$114,H$39,0) ->  | I136: =VLOOKUP($B136,'LED #4'!$A$15:$I$114,I$39,0) ->  | J136: =VLOOKUP($B136,'LED #4'!$A$15:$I$114,J$39,0) -> 
B137: =Table!B150 -> 1.505 | C137: =VLOOKUP($B137,'LED #1'!$A$15:$I$114,C$39,0) ->  | D137: =VLOOKUP($B137,'LED #1'!$A$15:$I$114,D$39,0) ->  | E137: =VLOOKUP($B137,'LED #2'!$A$15:$I$114,E$39,0) ->  | F137: =VLOOKUP($B137,'LED #2'!$A$15:$I$114,F$39,0) ->  | G137: =VLOOKUP($B137,'LED #3'!$A$15:$I$114,G$39,0) ->  | H137: =VLOOKUP($B137,'LED #3'!$A$15:$I$114,H$39,0) ->  | I137: =VLOOKUP($B137,'LED #4'!$A$15:$I$114,I$39,0) ->  | J137: =VLOOKUP($B137,'LED #4'!$A$15:$I$114,J$39,0) -> 
B138: =Table!B151 -> 1.520 | C138: =VLOOKUP($B138,'LED #1'!$A$15:$I$114,C$39,0) ->  | D138: =VLOOKUP($B138,'LED #1'!$A$15:$I$114,D$39,0) ->  | E138: =VLOOKUP($B138,'LED #2'!$A$15:$I$114,E$39,0) ->  | F138: =VLOOKUP($B138,'LED #2'!$A$15:$I$114,F$39,0) ->  | G138: =VLOOKUP($B138,'LED #3'!$A$15:$I$114,G$39,0) ->  | H138: =VLOOKUP($B138,'LED #3'!$A$15:$I$114,H$39,0) ->  | I138: =VLOOKUP($B138,'LED #4'!$A$15:$I$114,I$39,0) ->  | J138: =VLOOKUP($B138,'LED #4'!$A$15:$I$114,J$39,0) -> 
B139: =Table!B152 -> 1.535 | C139: =VLOOKUP($B139,'LED #1'!$A$15:$I$114,C$39,0) ->  | D139: =VLOOKUP($B139,'LED #1'!$A$15:$I$114,D$39,0) ->  | E139: =VLOOKUP($B139,'LED #2'!$A$15:$I$114,E$39,0) ->  | F139: =VLOOKUP($B139,'LED #2'!$A$15:$I$114,F$39,0) ->  | G139: =VLOOKUP($B139,'LED #3'!$A$15:$I$114,G$39,0) ->  | H139: =VLOOKUP($B139,'LED #3'!$A$15:$I$114,H$39,0) ->  | I139: =VLOOKUP($B139,'LED #4'!$A$15:$I$114,I$39,0) ->  | J139: =VLOOKUP($B139,'LED #4'!$A$15:$I$114,J$39,0) -> 

Sheet List (hidden)
A1: Manufacturer | B1: Power | C1: PKG | D1: CRI | E1: Part-name | F1: CCT | G1: Spec | H1: Rank | I1: Min | J1: Typ | K1: Max | L1: 비고
A2: SSC | B2: Mid | C2: Y11-3V | D2: 70 | E2: SZ8-Y11-Wx-C7-A | F2: Cool | G2: Flux | H2: W1 | I2: 64 | J2: =+(K2-I2)/2+I2 -> 66 | K2: =+I3 -> 68
A3: SSC | B3: Mid | C3: Y11-3V | D3: 70 | E3: SZ8-Y11-Wx-C7-A | F3: Cool | G3: Flux | H3: W2 | I3: 68 | J3: 70.5 | K3: =+I4 -> 73
A4: SSC | B4: Mid | C4: Y11-3V | D4: 70 | E4: SZ8-Y11-Wx-C7-A | F4: Cool | G4: Flux | H4: W3 | I4: 73 | J4: 75 | K4: 77
A5: SSC | B5: Mid | C5: Y11-3V | D5: 70 | E5: SZ8-Y11-Wx-C7-A | F5: Neutral | G5: Flux | H5: W1 | I5: 64 | J5: 66 | K5: =+I6 -> 68
A6: SSC | B6: Mid | C6: Y11-3V | D6: 70 | E6: SZ8-Y11-Wx-C7-A | F6: Neutral | G6: Flux | H6: W2 | I6: 68 | J6: 70.5 | K6: =+I7 -> 73
A7: SSC | B7: Mid | C7: Y11-3V | D7: 70 | E7: SZ8-Y11-Wx-C7-A | F7: Neutral | G7: Flux | H7: W3 | I7: 73 | J7: 75 | K7: 77
A8: SSC | B8: Mid | C8: Y11-3V | D8: 70 | E8: SZ8-Y11-Wx-C7-A | G8: VF | H8: G | I8: 2.55 | J8: =+(K8-I8)/2+I8 -> 2.675 | K8: 2.8
A9: SSC | B9: Mid | C9: Y11-3V | D9: 70 | E9: SZ8-Y11-Wx-C7-A | G9: VF | H9: H | I9: 2.8 | J9: 2.925 | K9: 3.05
A10: SSC | B10: Mid | C10: Y11-3V | D10: 80 | E10: SZ8-Y11-Wx-C8-A | F10: Cool | G10: Flux | H10: V2 | I10: 56 | J10: 58 | K10: 60
A11: SSC | B11: Mid | C11: Y11-3V | D11: 80 | E11: SZ8-Y11-Wx-C8-A | F11: Cool | G11: Flux | H11: V3 | I11: 60 | J11: 62 | K11: 64
A12: SSC | B12: Mid | C12: Y11-3V | D12: 80 | E12: SZ8-Y11-Wx-C8-A | F12: Cool | G12: Flux | H12: W1 | I12: 64 | J12: 66 | K12: 68
A13: SSC | B13: Mid | C13: Y11-3V | D13: 80 | E13: SZ8-Y11-Wx-C8-A | F13: Cool | G13: Flux | H13: W2 | I13: 68 | J13: 70.5 | K13: 73
A14: SSC | B14: Mid | C14: Y11-3V | D14: 80 | E14: SZ8-Y11-Wx-C8-A | F14: Neutral | G14: Flux | H14: V2 | I14: 56 | J14: 58 | K14: 60
A15: SSC | B15: Mid | C15: Y11-3V | D15: 80 | E15: SZ8-Y11-Wx-C8-A | F15: Neutral | G15: Flux | H15: V3 | I15: 60 | J15: 62 | K15: 64
A16: SSC | B16: Mid | C16: Y11-3V | D16: 80 | E16: SZ8-Y11-Wx-C8-A | F16: Neutral | G16: Flux | H16: W1 | I16: 64 | J16: 66 | K16: 68
A17: SSC | B17: Mid | C17: Y11-3V | D17: 80 | E17: SZ8-Y11-Wx-C8-A | F17: Neutral | G17: Flux | H17: W2 | I17: 68 | J17: 70.5 | K17: 73
A18: SSC | B18: Mid | C18: Y11-3V | D18: 80 | E18: SZ8-Y11-Wx-C8-A | F18: Warm | G18: Flux | H18: V1 | I18: 52 | J18: 54 | K18: 56
A19: SSC | B19: Mid | C19: Y11-3V | D19: 80 | E19: SZ8-Y11-Wx-C8-A | F19: Warm | G19: Flux | H19: V2 | I19: 56 | J19: 58 | K19: 60
A20: SSC | B20: Mid | C20: Y11-3V | D20: 80 | E20: SZ8-Y11-Wx-C8-A | F20: Warm | G20: Flux | H20: V3 | I20: 60 | J20: 62 | K20: 64
A21: SSC | B21: Mid | C21: Y11-3V | D21: 80 | E21: SZ8-Y11-Wx-C8-A | G21: VF | H21: G | I21: 2.55 | J21: 2.675 | K21: 2.8
A22: SSC | B22: Mid | C22: Y11-3V | D22: 80 | E22: SZ8-Y11-Wx-C8-A | G22: VF | H22: H | I22: 2.8 | J22: 2.925 | K22: 3.05
A23: SSC | B23: Mid | C23: Y11-3V | D23: 90 | E23: SZ8-Y11-Wx-C9-A | F23: Cool | G23: Flux | H23: U3 | I23: 49 | J23: 50.5 | K23: 52
A24: SSC | B24: Mid | C24: Y11-3V | D24: 90 | E24: SZ8-Y11-Wx-C9-A | F24: Cool | G24: Flux | H24: V1 | I24: 52 | J24: 54 | K24: 56
A25: SSC | B25: Mid | C25: Y11-3V | D25: 90 | E25: SZ8-Y11-Wx-C9-A | F25: Cool | G25: Flux | H25: V2 | I25: 56 | J25: 58 | K25: 60
A26: SSC | B26: Mid | C26: Y11-3V | D26: 90 | E26: SZ8-Y11-Wx-C9-A | F26: Cool | G26: Flux | H26: V3 | I26: 60 | J26: 62 | K26: 64
A27: SSC | B27: Mid | C27: Y11-3V | D27: 90 | E27: SZ8-Y11-Wx-C9-A | F27: Neutral | G27: Flux | H27: U3 | I27: 49 | J27: =+(K27-I27)/2+I27 -> 50.5 | K27: 52
A28: SSC | B28: Mid | C28: Y11-3V | D28: 90 | E28: SZ8-Y11-Wx-C9-A | F28: Neutral | G28: Flux | H28: V1 | I28: 52 | J28: 54 | K28: 56
A29: SSC | B29: Mid | C29: Y11-3V | D29: 90 | E29: SZ8-Y11-Wx-C9-A | F29: Neutral | G29: Flux | H29: V2 | I29: 56 | J29: 58 | K29: 60
A30: SSC | B30: Mid | C30: Y11-3V | D30: 90 | E30: SZ8-Y11-Wx-C9-A | F30: Neutral | G30: Flux | H30: V3 | I30: 60 | J30: 62 | K30: 64
A31: SSC | B31: Mid | C31: Y11-3V | D31: 90 | E31: SZ8-Y11-Wx-C9-A | F31: Warm | G31: Flux | H31: U1 | I31: 43 | J31: 44.5 | K31: 46
A32: SSC | B32: Mid | C32: Y11-3V | D32: 90 | E32: SZ8-Y11-Wx-C9-A | F32: Warm | G32: Flux | H32: U2 | I32: 46 | J32: 47.5 | K32: 49
A33: SSC | B33: Mid | C33: Y11-3V | D33: 90 | E33: SZ8-Y11-Wx-C9-A | F33: Warm | G33: Flux | H33: U3 | I33: 49 | J33: =+(K33-I33)/2+I33 -> 50.5 | K33: 52
A34: SSC | B34: Mid | C34: Y11-3V | D34: 90 | E34: SZ8-Y11-Wx-C9-A | F34: Warm | G34: Flux | H34: V1 | I34: 52 | J34: 54 | K34: 56
A35: SSC | B35: Mid | C35: Y11-3V | D35: 90 | E35: SZ8-Y11-Wx-C9-A | G35: VF | H35: G | I35: 2.55 | J35: =+(K35-I35)/2+I35 -> 2.675 | K35: 2.8
A36: SSC | B36: Mid | C36: Y11-3V | D36: 90 | E36: SZ8-Y11-Wx-C9-A | G36: VF | H36: H | I36: 2.8 | J36: 2.925 | K36: 3.05
A37: SSC | B37: Mid | C37: Y11-6V | D37: 80 | E37: SZ8-Y11-Wx-C8-B | F37: Cool | G37: Flux | H37: V2 | I37: 116 | J37: 120.5 | K37: =+I38 -> 125
A38: SSC | B38: Mid | C38: Y11-6V | D38: 80 | E38: SZ8-Y11-Wx-C8-B | F38: Cool | G38: Flux | H38: V3 | I38: 125 | J38: 129 | K38: =+I39 -> 133
A39: SSC | B39: Mid | C39: Y11-6V | D39: 80 | E39: SZ8-Y11-Wx-C8-B | F39: Cool | G39: Flux | H39: W1 | I39: 133 | J39: 137.5 | K39: 142
A40: SSC | B40: Mid | C40: Y11-6V | D40: 80 | E40: SZ8-Y11-Wx-C8-B | F40: Cool | G40: Flux | H40: W2 | I40: 142 | J40: 147 | K40: 152
A41: SSC | B41: Mid | C41: Y11-6V | D41: 80 | E41: SZ8-Y11-Wx-C8-B | F41: Neutral | G41: Flux | H41: V2 | I41: 116 | J41: 120.5 | K41: 125
A42: SSC | B42: Mid | C42: Y11-6V | D42: 80 | E42: SZ8-Y11-Wx-C8-B | F42: Neutral | G42: Flux | H42: V3 | I42: 125 | J42: 129 | K42: 133
A43: SSC | B43: Mid | C43: Y11-6V | D43: 80 | E43: SZ8-Y11-Wx-C8-B | F43: Neutral | G43: Flux | H43: W1 | I43: 133 | J43: 137.5 | K43: 142
A44: SSC | B44: Mid | C44: Y11-6V | D44: 80 | E44: SZ8-Y11-Wx-C8-B | F44: Neutral | G44: Flux | H44: W2 | I44: 142 | J44: 147 | K44: 152
A45: SSC | B45: Mid | C45: Y11-6V | D45: 80 | E45: SZ8-Y11-Wx-C8-B | F45: Warm | G45: Flux | H45: V1 | I45: 109 | J45: 112.5 | K45: 116
A46: SSC | B46: Mid | C46: Y11-6V | D46: 80 | E46: SZ8-Y11-Wx-C8-B | F46: Warm | G46: Flux | H46: V2 | I46: 116 | J46: 120.5 | K46: 125
A47: SSC | B47: Mid | C47: Y11-6V | D47: 80 | E47: SZ8-Y11-Wx-C8-B | F47: Warm | G47: Flux | H47: V3 | I47: 125 | J47: 129 | K47: 133
A48: SSC | B48: Mid | C48: Y11-6V | D48: 80 | E48: SZ8-Y11-Wx-C8-B | F48: Warm | G48: Flux | H48: W1 | I48: 133 | J48: 137.5 | K48: 142
A49: SSC | B49: Mid | C49: Y11-6V | D49: 90 | E49: SZ8-Y11-Wx-C8-B | G49: VF | H49: H | I49: 5.6 | J49: =+(K49-I49)/2+I49 -> 5.75 | K49: 5.9
A50: SSC | B50: Mid | C50: Y11-6V | D50: 90 | E50: SZ8-Y11-Wx-C8-B | G50: VF | H50: I | I50: 5.9 | J50: 6.05 | K50: 6.2
A51: SSC | B51: Mid | C51: Y11-6V | D51: 90 | E51: SZ8-Y11-Wx-C9-B | F51: Warm | G51: Flux | H51: U1 | I51: 89 | J51: 92.5 | K51: 96
A52: SSC | B52: Mid | C52: Y11-6V | D52: 90 | E52: SZ8-Y11-Wx-C9-B | F52: Warm | G52: Flux | H52: U2 | I52: 96 | J52: 99 | K52: 102
A53: SSC | B53: Mid | C53: Y11-6V | D53: 90 | E53: SZ8-Y11-Wx-C9-B | F53: Warm | G53: Flux | H53: U3 | I53: 102 | J53: 105.5 | K53: 109
A54: SSC | B54: Mid | C54: Y11-6V | D54: 90 | E54: SZ8-Y11-Wx-C9-B | F54: Warm | G54: Flux | H54: V1 | I54: 109 | J54: 112.5 | K54: 116
A55: SSC | B55: Mid | C55: Y11-6V | D55: 90 | E55: SZ8-Y11-Wx-C9-B | G55: VF | H55: H | I55: 5.6 | J55: 5.75 | K55: 5.9
A56: SSC | B56: Mid | C56: Y11-6V | D56: 90 | E56: SZ8-Y11-Wx-C9-B | G56: VF | H56: I | I56: 5.9 | J56: 6.05 | K56: 6.2
A57: SSC | B57: Mid | C57: Y11-9V | D57: 80 | E57: SZ8-Y11-Wx-C8-C | F57: Cool | G57: Flux | H57: V2 | I57: 116 | J57: 120.5 | K57: 125
A58: SSC | B58: Mid | C58: Y11-9V | D58: 80 | E58: SZ8-Y11-Wx-C8-C | F58: Cool | G58: Flux | H58: V3 | I58: 125 | J58: 129 | K58: 133
A59: SSC | B59: Mid | C59: Y11-9V | D59: 80 | E59: SZ8-Y11-Wx-C8-C | F59: Cool | G59: Flux | H59: W1 | I59: 133 | J59: 137.5 | K59: 142
A60: SSC | B60: Mid | C60: Y11-9V | D60: 80 | E60: SZ8-Y11-Wx-C8-C | F60: Neutral | G60: Flux | H60: V2 | I60: 116 | J60: 120.5 | K60: 125
A61: SSC | B61: Mid | C61: Y11-9V | D61: 80 | E61: SZ8-Y11-Wx-C8-C | F61: Neutral | G61: Flux | H61: V3 | I61: 125 | J61: 129 | K61: 133
A62: SSC | B62: Mid | C62: Y11-9V | D62: 80 | E62: SZ8-Y11-Wx-C8-C | F62: Neutral | G62: Flux | H62: W1 | I62: 133 | J62: 137.5 | K62: 142
A63: SSC | B63: Mid | C63: Y11-9V | D63: 80 | E63: SZ8-Y11-Wx-C8-C | F63: Warm | G63: Flux | H63: V1 | I63: 109 | J63: 112.5 | K63: 116
A64: SSC | B64: Mid | C64: Y11-9V | D64: 80 | E64: SZ8-Y11-Wx-C8-C | F64: Warm | G64: Flux | H64: V2 | I64: 116 | J64: 120.5 | K64: 125
A65: SSC | B65: Mid | C65: Y11-9V | D65: 80 | E65: SZ8-Y11-Wx-C8-C | F65: Warm | G65: Flux | H65: V3 | I65: 125 | J65: 129 | K65: 133
A66: SSC | B66: Mid | C66: Y11-9V | D66: 80 | E66: SZ8-Y11-Wx-C8-C | G66: VF | H66: H | I66: 8.5 | J66: 8.65 | K66: 8.8
A67: SSC | B67: Mid | C67: Y11-9V | D67: 80 | E67: SZ8-Y11-Wx-C8-C | G67: VF | H67: I | I67: 8.8 | J67: 8.975 | K67: 9.15
A68: SSC | B68: Mid | C68: Y11-9V | D68: 90 | E68: SZ8-Y11-Wx-C9-C | F68: Warm | G68: Flux | H68: U1 | I68: 89 | J68: 92.5 | K68: 96
A69: SSC | B69: Mid | C69: Y11-9V | D69: 90 | E69: SZ8-Y11-Wx-C9-C | F69: Warm | G69: Flux | H69: U2 | I69: 96 | J69: 99 | K69: 102
A70: SSC | B70: Mid | C70: Y11-9V | D70: 90 | E70: SZ8-Y11-Wx-C9-C | F70: Warm | G70: Flux | H70: U3 | I70: 102 | J70: 105.5 | K70: 109
A71: SSC | B71: Mid | C71: Y11-9V | D71: 90 | E71: SZ8-Y11-Wx-C9-C | G71: VF | H71: H | I71: 8.5 | J71: =+(K71-I71)/2+I71 -> 8.65 | K71: 8.8
A72: SSC | B72: Mid | C72: Y11-9V | D72: 90 | E72: SZ8-Y11-Wx-C9-C | G72: VF | H72: I | I72: 8.8 | J72: 8.975 | K72: 9.15
A73: SSC | B73: Mid | C73: Y15 | D73: 70 | E73: SZ8-Y15-Wx-C7 | F73: Cool | G73: Flux | H73: V3 | I73: 223 | J73: 230 | K73: 237
A74: SSC | B74: Mid | C74: Y15 | D74: 70 | E74: SZ8-Y15-Wx-C7 | F74: Cool | G74: Flux | H74: W1 | I74: 237 | J74: 245.5 | K74: 254
A75: SSC | B75: Mid | C75: Y15 | D75: 70 | E75: SZ8-Y15-Wx-C7 | F75: Cool | G75: Flux | H75: W2 | I75: 254 | J75: 262.5 | K75: 271
A76: SSC | B76: Mid | C76: Y15 | D76: 70 | E76: SZ8-Y15-Wx-C7 | F76: Cool | G76: Flux | H76: W3 | I76: 271 | J76: 279.5 | K76: 288
A77: SSC | B77: Mid | C77: Y15 | D77: 70 | E77: SZ8-Y15-Wx-C7 | F77: Neutral | G77: Flux | H77: V3 | I77: 223 | J77: 230 | K77: 237
A78: SSC | B78: Mid | C78: Y15 | D78: 70 | E78: SZ8-Y15-Wx-C7 | F78: Neutral | G78: Flux | H78: W1 | I78: 237 | J78: 245.5 | K78: 254
A79: SSC | B79: Mid | C79: Y15 | D79: 70 | E79: SZ8-Y15-Wx-C7 | F79: Neutral | G79: Flux | H79: W2 | I79: 254 | J79: 262.5 | K79: 271
A80: SSC | B80: Mid | C80: Y15 | D80: 70 | E80: SZ8-Y15-Wx-C7 | F80: Neutral | G80: Flux | H80: W3 | I80: 271 | J80: 279.5 | K80: 288
A81: SSC | B81: Mid | C81: Y15 | D81: 70 | E81: SZ8-Y15-Wx-C7 | F81: Warm | G81: Flux | H81: V2 | I81: 208 | J81: 215.5 | K81: 223
A82: SSC | B82: Mid | C82: Y15 | D82: 70 | E82: SZ8-Y15-Wx-C7 | F82: Warm | G82: Flux | H82: V3 | I82: 223 | J82: 230 | K82: 237
A83: SSC | B83: Mid | C83: Y15 | D83: 70 | E83: SZ8-Y15-Wx-C7 | F83: Warm | G83: Flux | H83: W1 | I83: 237 | J83: 245.5 | K83: 254
A84: SSC | B84: Mid | C84: Y15 | D84: 70 | E84: SZ8-Y15-Wx-C7 | G84: VF | H84: G | I84: 2.75 | J84: 2.875 | K84: 3
A85: SSC | B85: Mid | C85: Y15 | D85: 70 | E85: SZ8-Y15-Wx-C7 | G85: VF | H85: H | I85: 3 | J85: 3.125 | K85: 3.25
A86: SSC | B86: Mid | C86: Y15 | D86: 80 | E86: SZ8-Y15-Wx-C8 | F86: Cool | G86: Flux | H86: V2 | I86: 208 | J86: 215.5 | K86: 223
A87: SSC | B87: Mid | C87: Y15 | D87: 80 | E87: SZ8-Y15-Wx-C8 | F87: Cool | G87: Flux | H87: V3 | I87: 223 | J87: 230 | K87: 237
A88: SSC | B88: Mid | C88: Y15 | D88: 80 | E88: SZ8-Y15-Wx-C8 | F88: Cool | G88: Flux | H88: W1 | I88: 237 | J88: 245.5 | K88: 254
A89: SSC | B89: Mid | C89: Y15 | D89: 80 | E89: SZ8-Y15-Wx-C8 | F89: Neutral | G89: Flux | H89: V2 | I89: 208 | J89: 215.5 | K89: 223
A90: SSC | B90: Mid | C90: Y15 | D90: 80 | E90: SZ8-Y15-Wx-C8 | F90: Neutral | G90: Flux | H90: V3 | I90: 223 | J90: 230 | K90: 237
A91: SSC | B91: Mid | C91: Y15 | D91: 80 | E91: SZ8-Y15-Wx-C8 | F91: Neutral | G91: Flux | H91: W1 | I91: 237 | J91: 245.5 | K91: 254
A92: SSC | B92: Mid | C92: Y15 | D92: 80 | E92: SZ8-Y15-Wx-C8 | F92: Warm | G92: Flux | H92: U3 | I92: 182 | J92: 188.5 | K92: 195
A93: SSC | B93: Mid | C93: Y15 | D93: 80 | E93: SZ8-Y15-Wx-C8 | F93: Warm | G93: Flux | H93: V1 | I93: 195 | J93: 201.5 | K93: 208
A94: SSC | B94: Mid | C94: Y15 | D94: 80 | E94: SZ8-Y15-Wx-C8 | F94: Warm | G94: Flux | H94: V2 | I94: 208 | J94: 215.5 | K94: 223
A95: SSC | B95: Mid | C95: Y15 | D95: 80 | E95: SZ8-Y15-Wx-C8 | F95: Warm | G95: Flux | H95: V3 | I95: 223 | J95: 230 | K95: 237
A96: SSC | B96: Mid | C96: Y15 | D96: 80 | E96: SZ8-Y15-Wx-C8 | G96: VF | H96: G | I96: 2.75 | J96: 2.875 | K96: 3
A97: SSC | B97: Mid | C97: Y15 | D97: 80 | E97: SZ8-Y15-Wx-C8 | G97: VF | H97: H | I97: 3 | J97: 3.125 | K97: 3.25
A98: SSC | B98: Mid | C98: Y15 | D98: 90 | E98: SZ8-Y15-Wx-C9 | F98: Cool | G98: Flux | H98: U3 | I98: 182 | J98: 188.5 | K98: 195
A99: SSC | B99: Mid | C99: Y15 | D99: 90 | E99: SZ8-Y15-Wx-C9 | F99: Cool | G99: Flux | H99: V1 | I99: 195 | J99: 201.5 | K99: 208
A100: SSC | B100: Mid | C100: Y15 | D100: 90 | E100: SZ8-Y15-Wx-C9 | F100: Cool | G100: Flux | H100: V2 | I100: 208 | J100: 215.5 | K100: 223
A101: SSC | B101: Mid | C101: Y15 | D101: 90 | E101: SZ8-Y15-Wx-C9 | F101: Neutral | G101: Flux | H101: U3 | I101: 182 | J101: 188.5 | K101: 195
A102: SSC | B102: Mid | C102: Y15 | D102: 90 | E102: SZ8-Y15-Wx-C9 | F102: Neutral | G102: Flux | H102: V1 | I102: 195 | J102: 201.5 | K102: 208
A103: SSC | B103: Mid | C103: Y15 | D103: 90 | E103: SZ8-Y15-Wx-C9 | F103: Neutral | G103: Flux | H103: V2 | I103: 208 | J103: 215.5 | K103: 223
A104: SSC | B104: Mid | C104: Y15 | D104: 90 | E104: SZ8-Y15-Wx-C9 | F104: Warm | G104: Flux | H104: U1 | I104: 160 | J104: 166 | K104: 172
A105: SSC | B105: Mid | C105: Y15 | D105: 90 | E105: SZ8-Y15-Wx-C9 | F105: Warm | G105: Flux | H105: U2 | I105: 172 | J105: 177 | K105: 182
A106: SSC | B106: Mid | C106: Y15 | D106: 90 | E106: SZ8-Y15-Wx-C9 | F106: Warm | G106: Flux | H106: U3 | I106: 182 | J106: 188.5 | K106: 195
A107: SSC | B107: Mid | C107: Y15 | D107: 90 | E107: SZ8-Y15-Wx-C9 | G107: VF | H107: G | I107: 2.75 | J107: 2.875 | K107: 3
A108: SSC | B108: Mid | C108: Y15 | D108: 90 | E108: SZ8-Y15-Wx-C9 | G108: VF | H108: H | I108: 3 | J108: 3.125 | K108: 3.25
A109: SSC | B109: High | C109: Y19 | D109: 70 | E109: SZ8-Y19-Wx-C7 | F109: Cool | G109: Flux | H109: W2 | I109: 254 | J109: 262.5 | K109: 271
A110: SSC | B110: High | C110: Y19 | D110: 70 | E110: SZ8-Y19-Wx-C7 | F110: Cool | G110: Flux | H110: W3 | I110: 271 | J110: 278 | K110: 285
A111: SSC | B111: High | C111: Y19 | D111: 70 | E111: SZ8-Y19-Wx-C7 | F111: Cool | G111: Flux | H111: W4 | I111: 285 | J111: 292 | K111: 299
A112: SSC | B112: High | C112: Y19 | D112: 70 | E112: SZ8-Y19-Wx-C7 | F112: Cool | G112: Flux | H112: W5 | I112: 299 | J112: 306 | K112: 313
A113: SSC | B113: High | C113: Y19 | D113: 70 | E113: SZ8-Y19-Wx-C7 | F113: Neutral | G113: Flux | H113: W2 | I113: 254 | J113: 262.5 | K113: 271
A114: SSC | B114: High | C114: Y19 | D114: 70 | E114: SZ8-Y19-Wx-C7 | F114: Neutral | G114: Flux | H114: W3 | I114: 271 | J114: 278 | K114: 285
A115: SSC | B115: High | C115: Y19 | D115: 70 | E115: SZ8-Y19-Wx-C7 | F115: Neutral | G115: Flux | H115: W4 | I115: 285 | J115: 292 | K115: 299
A116: SSC | B116: High | C116: Y19 | D116: 70 | E116: SZ8-Y19-Wx-C7 | F116: Neutral | G116: Flux | H116: W5 | I116: 299 | J116: 306 | K116: 313
A117: SSC | B117: High | C117: Y19 | D117: 70 | E117: SZ8-Y19-Wx-C7 | F117: Warm | G117: Flux | H117: V3 | I117: 223 | J117: 230 | K117: 237
A118: SSC | B118: High | C118: Y19 | D118: 70 | E118: SZ8-Y19-Wx-C7 | F118: Warm | G118: Flux | H118: W1 | I118: 237 | J118: 245.5 | K118: 254
A119: SSC | B119: High | C119: Y19 | D119: 70 | E119: SZ8-Y19-Wx-C7 | F119: Warm | G119: Flux | H119: W2 | I119: 254 | J119: 262.5 | K119: 271
A120: SSC | B120: High | C120: Y19 | D120: 70 | E120: SZ8-Y19-Wx-C7 | G120: VF | H120: G | I120: 2.75 | J120: 2.875 | K120: 3
A121: SSC | B121: High | C121: Y19 | D121: 70 | E121: SZ8-Y19-Wx-C7 | G121: VF | H121: H | I121: 3 | J121: 3.125 | K121: 3.25
A122: SSC | B122: High | C122: Y19 | D122: 80 | E122: SZ8-Y19-Wx-C8 | F122: Cool | G122: Flux | H122: V3 | I122: 223 | J122: 230 | K122: 237
A123: SSC | B123: High | C123: Y19 | D123: 80 | E123: SZ8-Y19-Wx-C8 | F123: Cool | G123: Flux | H123: W1 | I123: 237 | J123: 245.5 | K123: 254
A124: SSC | B124: High | C124: Y19 | D124: 80 | E124: SZ8-Y19-Wx-C8 | F124: Cool | G124: Flux | H124: W2 | I124: 254 | J124: 262.5 | K124: 271
A125: SSC | B125: High | C125: Y19 | D125: 80 | E125: SZ8-Y19-Wx-C8 | F125: Neutral | G125: Flux | H125: V3 | I125: 223 | J125: 230 | K125: 237
A126: SSC | B126: High | C126: Y19 | D126: 80 | E126: SZ8-Y19-Wx-C8 | F126: Neutral | G126: Flux | H126: W1 | I126: 237 | J126: 245.5 | K126: 254
A127: SSC | B127: High | C127: Y19 | D127: 80 | E127: SZ8-Y19-Wx-C8 | F127: Neutral | G127: Flux | H127: W2 | I127: 254 | J127: 262.5 | K127: 271
A128: SSC | B128: High | C128: Y19 | D128: 80 | E128: SZ8-Y19-Wx-C8 | F128: Warm | G128: Flux | H128: V1 | I128: 195 | J128: 201.5 | K128: 208
A129: SSC | B129: High | C129: Y19 | D129: 80 | E129: SZ8-Y19-Wx-C8 | F129: Warm | G129: Flux | H129: V2 | I129: 208 | J129: 215.5 | K129: 223
A130: SSC | B130: High | C130: Y19 | D130: 80 | E130: SZ8-Y19-Wx-C8 | F130: Warm | G130: Flux | H130: V3 | I130: 223 | J130: 230 | K130: 237
A131: SSC | B131: High | C131: Y19 | D131: 80 | E131: SZ8-Y19-Wx-C8 | G131: VF | H131: G | I131: 2.75 | J131: 2.875 | K131: 3
A132: SSC | B132: High | C132: Y19 | D132: 80 | E132: SZ8-Y19-Wx-C8 | G132: VF | H132: H | I132: 3 | J132: 3.125 | K132: 3.25
A133: SSC | B133: High | C133: Y19 | D133: 90 | E133: SZ8-Y19-Wx-C9 | F133: Cool | G133: Flux | H133: V1 | I133: 195 | J133: 201.5 | K133: 208
A134: SSC | B134: High | C134: Y19 | D134: 90 | E134: SZ8-Y19-Wx-C9 | F134: Cool | G134: Flux | H134: V2 | I134: 208 | J134: 215.5 | K134: 223
A135: SSC | B135: High | C135: Y19 | D135: 90 | E135: SZ8-Y19-Wx-C9 | F135: Cool | G135: Flux | H135: V3 | I135: 223 | J135: 230 | K135: 237
A136: SSC | B136: High | C136: Y19 | D136: 90 | E136: SZ8-Y19-Wx-C9 | F136: Neutral | G136: Flux | H136: V1 | I136: 195 | J136: 201.5 | K136: 208
A137: SSC | B137: High | C137: Y19 | D137: 90 | E137: SZ8-Y19-Wx-C9 | F137: Neutral | G137: Flux | H137: V2 | I137: 208 | J137: 215.5 | K137: 223
A138: SSC | B138: High | C138: Y19 | D138: 90 | E138: SZ8-Y19-Wx-C9 | F138: Neutral | G138: Flux | H138: V3 | I138: 223 | J138: 230 | K138: 237
A139: SSC | B139: High | C139: Y19 | D139: 90 | E139: SZ8-Y19-Wx-C9 | F139: Warm | G139: Flux | H139: U2 | I139: 172 | J139: 177 | K139: 182
A140: SSC | B140: High | C140: Y19 | D140: 90 | E140: SZ8-Y19-Wx-C9 | F140: Warm | G140: Flux | H140: U3 | I140: 182 | J140: 188.5 | K140: 195
A141: SSC | B141: High | C141: Y19 | D141: 90 | E141: SZ8-Y19-Wx-C9 | F141: Warm | G141: Flux | H141: V1 | I141: 195 | J141: 201.5 | K141: 208
A142: SSC | B142: High | C142: Y19 | D142: 90 | E142: SZ8-Y19-Wx-C9 | G142: VF | H142: G | I142: 2.75 | J142: 2.875 | K142: 3
A143: SSC | B143: High | C143: Y19 | D143: 90 | E143: SZ8-Y19-Wx-C9 | G143: VF | H143: H | I143: 3 | J143: 3.125 | K143: 3.25
A144: SSC | B144: High | C144: Y22 | D144: 70 | E144: SZ8-Y22-Wx-C7-x | F144: Cool | G144: Flux | H144: W5 | I144: 299 | J144: 306 | K144: 313
A145: SSC | B145: High | C145: Y22 | D145: 70 | E145: SZ8-Y22-Wx-C7-x | F145: Cool | G145: Flux | H145: W6 | I145: 313 | J145: 320 | K145: 327
A146: SSC | B146: High | C146: Y22 | D146: 70 | E146: SZ8-Y22-Wx-C7-x | F146: Cool | G146: Flux | H146: W7 | I146: 327 | J146: 334 | K146: 341
A147: SSC | B147: High | C147: Y22 | D147: 70 | E147: SZ8-Y22-Wx-C7-x | F147: Cool | G147: Flux | H147: W8 | I147: 341 | J147: 348 | K147: 355
A148: SSC | B148: High | C148: Y22 | D148: 70 | E148: SZ8-Y22-Wx-C7-x | F148: Neutral | G148: Flux | H148: W5 | I148: 299 | J148: 306 | K148: 313
A149: SSC | B149: High | C149: Y22 | D149: 70 | E149: SZ8-Y22-Wx-C7-x | F149: Neutral | G149: Flux | H149: W6 | I149: 313 | J149: 320 | K149: 327
A150: SSC | B150: High | C150: Y22 | D150: 70 | E150: SZ8-Y22-Wx-C7-x | F150: Neutral | G150: Flux | H150: W7 | I150: 327 | J150: 334 | K150: 341
A151: SSC | B151: High | C151: Y22 | D151: 70 | E151: SZ8-Y22-Wx-C7-x | F151: Neutral | G151: Flux | H151: W8 | I151: 341 | J151: =+(K151-I151)/2+I151 -> 348 | K151: 355
A152: SSC | B152: High | C152: Y22 | D152: 70 | E152: SZ8-Y22-Wx-C7-x | F152: Warm | G152: Flux | H152: W4 | I152: 285 | J152: 292 | K152: 299
A153: SSC | B153: High | C153: Y22 | D153: 70 | E153: SZ8-Y22-Wx-C7-x | F153: Warm | G153: Flux | H153: W5 | I153: 299 | J153: 306 | K153: 313
A154: SSC | B154: High | C154: Y22 | D154: 70 | E154: SZ8-Y22-Wx-C7-x | F154: Warm | G154: Flux | H154: W6 | I154: 313 | J154: 320 | K154: 327
A155: SSC | B155: High | C155: Y22 | D155: 70 | E155: SZ8-Y22-Wx-C7-x | G155: VF | H155: F | I155: 2.5 | J155: 2.625 | K155: 2.75
A156: SSC | B156: High | C156: Y22 | D156: 70 | E156: SZ8-Y22-Wx-C7-x | G156: VF | H156: G | I156: 2.75 | J156: 2.875 | K156: 3
A157: SSC | B157: High | C157: Y22 | D157: 80 | E157: SZ8-Y22-Wx-C8-x | F157: Cool | G157: Flux | H157: W3 | I157: 271 | J157: =+(K157-I157)/2+I157 -> 278 | K157: 285
A158: SSC | B158: High | C158: Y22 | D158: 80 | E158: SZ8-Y22-Wx-C8-x | F158: Cool | G158: Flux | H158: W4 | I158: 285 | J158: =+(K158-I158)/2+I158 -> 292 | K158: 299
A159: SSC | B159: High | C159: Y22 | D159: 80 | E159: SZ8-Y22-Wx-C8-x | F159: Cool | G159: Flux | H159: W5 | I159: 299 | J159: 306 | K159: 313
A160: SSC | B160: High | C160: Y22 | D160: 80 | E160: SZ8-Y22-Wx-C8-x | F160: Neutral | G160: Flux | H160: W4 | I160: 285 | J160: =+(K160-I160)/2+I160 -> 292 | K160: 299
A161: SSC | B161: High | C161: Y22 | D161: 80 | E161: SZ8-Y22-Wx-C8-x | F161: Neutral | G161: Flux | H161: W5 | I161: 299 | J161: 306 | K161: 313
A162: SSC | B162: High | C162: Y22 | D162: 80 | E162: SZ8-Y22-Wx-C8-x | F162: Neutral | G162: Flux | H162: W6 | I162: 313 | J162: 320 | K162: 327
A163: SSC | B163: High | C163: Y22 | D163: 80 | E163: SZ8-Y22-Wx-C8-x | F163: Warm | G163: Flux | H163: W2 | I163: 254 | J163: =+(K163-I163)/2+I163 -> 262.5 | K163: 271
A164: SSC | B164: High | C164: Y22 | D164: 80 | E164: SZ8-Y22-Wx-C8-x | F164: Warm | G164: Flux | H164: W3 | I164: 271 | J164: =+(K164-I164)/2+I164 -> 278 | K164: 285
A165: SSC | B165: High | C165: Y22 | D165: 80 | E165: SZ8-Y22-Wx-C8-x | F165: Warm | G165: Flux | H165: W4 | I165: 285 | J165: =+(K165-I165)/2+I165 -> 292 | K165: 299
A166: SSC | B166: High | C166: Y22 | D166: 80 | E166: SZ8-Y22-Wx-C8-x | G166: VF | H166: F | I166: 2.5 | J166: 2.625 | K166: 2.75
A167: SSC | B167: High | C167: Y22 | D167: 80 | E167: SZ8-Y22-Wx-C8-x | G167: VF | H167: G | I167: 2.75 | J167: 2.875 | K167: 3
A168: SSC | B168: High | C168: Y22 | D168: 90 | E168: SZ8-Y22-Wx-C9-x | F168: Cool | G168: Flux | H168: V3 | I168: 223 | J168: 230 | K168: 237
A169: SSC | B169: High | C169: Y22 | D169: 90 | E169: SZ8-Y22-Wx-C9-x | F169: Cool | G169: Flux | H169: W1 | I169: 237 | J169: 245.5 | K169: 254
A170: SSC | B170: High | C170: Y22 | D170: 90 | E170: SZ8-Y22-Wx-C9-x | F170: Cool | G170: Flux | H170: W2 | I170: 254 | J170: 262.5 | K170: 271
A171: SSC | B171: High | C171: Y22 | D171: 90 | E171: SZ8-Y22-Wx-C9-x | F171: Neutral | G171: Flux | H171: V2 | I171: 208 | J171: 215.5 | K171: 223
A172: SSC | B172: High | C172: Y22 | D172: 90 | E172: SZ8-Y22-Wx-C9-x | F172: Neutral | G172: Flux | H172: V3 | I172: 223 | J172: =+(K172-I172)/2+I172 -> 230 | K172: 237
A173: SSC | B173: High | C173: Y22 | D173: 90 | E173: SZ8-Y22-Wx-C9-x | F173: Neutral | G173: Flux | H173: W1 | I173: 237 | J173: 245.5 | K173: 254
A174: SSC | B174: High | C174: Y22 | D174: 90 | E174: SZ8-Y22-Wx-C9-x | F174: Warm | G174: Flux | H174: V1 | I174: 195 | J174: 201.5 | K174: 208
A175: SSC | B175: High | C175: Y22 | D175: 90 | E175: SZ8-Y22-Wx-C9-x | F175: Warm | G175: Flux | H175: V2 | I175: 208 | J175: =+(K175-I175)/2+I175 -> 215.5 | K175: 223
A176: SSC | B176: High | C176: Y22 | D176: 90 | E176: SZ8-Y22-Wx-C9-x | F176: Warm | G176: Flux | H176: V3 | I176: 223 | J176: 230 | K176: 237
A177: SSC | B177: High | C177: Y22 | D177: 90 | E177: SZ8-Y22-Wx-C9-x | G177: VF | H177: F | I177: 2.5 | J177: 2.625 | K177: 2.75
A178: SSC | B178: High | C178: Y22 | D178: 90 | E178: SZ8-Y22-Wx-C9-x | G178: VF | H178: G | I178: 2.75 | J178: 2.875 | K178: 3
A179: SSC | B179: High | C179: Z5M2 | D179: 70 | E179: SZ5-M2-Wx-00 | F179: Cool | G179: Flux | H179: W3 | I179: 272 | J179: 278.5 | K179: 285
A180: SSC | B180: High | C180: Z5M2 | D180: 70 | E180: SZ5-M2-Wx-00 | F180: Cool | G180: Flux | H180: W4 | I180: 285 | J180: 292 | K180: 299
A181: SSC | B181: High | C181: Z5M2 | D181: 70 | E181: SZ5-M2-Wx-00 | F181: Cool | G181: Flux | H181: W5 | I181: 299 | J181: 306 | K181: 313
A182: SSC | B182: High | C182: Z5M2 | D182: 70 | E182: SZ5-M2-Wx-00 | F182: Neutral | G182: Flux | H182: W3 | I182: 272 | J182: 278.5 | K182: 285
A183: SSC | B183: High | C183: Z5M2 | D183: 70 | E183: SZ5-M2-Wx-00 | F183: Neutral | G183: Flux | H183: W4 | I183: 285 | J183: 292 | K183: 299
A184: SSC | B184: High | C184: Z5M2 | D184: 70 | E184: SZ5-M2-Wx-00 | F184: Neutral | G184: Flux | H184: W5 | I184: 299 | J184: 306 | K184: 313
A185: SSC | B185: High | C185: Z5M2 | D185: 70 | E185: SZ5-M2-Wx-00 | F185: Warm | G185: Flux | H185: V3 | I185: 218 | J185: 229 | K185: 240
A186: SSC | B186: High | C186: Z5M2 | D186: 70 | E186: SZ5-M2-Wx-00 | F186: Warm | G186: Flux | H186: W1 | I186: 240 | J186: 248 | K186: 256
A187: SSC | B187: High | C187: Z5M2 | D187: 70 | E187: SZ5-M2-Wx-00 | F187: Warm | G187: Flux | H187: W2 | I187: 256 | J187: 264 | K187: 272
A188: SSC | B188: High | C188: Z5M2 | D188: 70 | E188: SZ5-M2-Wx-00 | G188: VF | H188: G | I188: 2.75 | J188: 2.875 | K188: 3
A189: SSC | B189: High | C189: Z5M2 | D189: 80 | E189: SZ5-M2-Wx-C8 | F189: Cool | G189: Flux | H189: V3 | I189: 218 | J189: 229 | K189: 240
A190: SSC | B190: High | C190: Z5M2 | D190: 80 | E190: SZ5-M2-Wx-C8 | F190: Cool | G190: Flux | H190: W1 | I190: 240 | J190: 248 | K190: 256
A191: SSC | B191: High | C191: Z5M2 | D191: 80 | E191: SZ5-M2-Wx-C8 | F191: Cool | G191: Flux | H191: W2 | I191: 256 | J191: 264 | K191: 272
A192: SSC | B192: High | C192: Z5M2 | D192: 80 | E192: SZ5-M2-Wx-C8 | F192: Cool | G192: Flux | H192: W3 | I192: 272 | J192: 278.5 | K192: 285
A193: SSC | B193: High | C193: Z5M2 | D193: 80 | E193: SZ5-M2-Wx-C8 | F193: Neutral | G193: Flux | H193: V2 | I193: 203 | J193: 210.5 | K193: 218
A194: SSC | B194: High | C194: Z5M2 | D194: 80 | E194: SZ5-M2-Wx-C8 | F194: Neutral | G194: Flux | H194: V3 | I194: 218 | J194: =+(K194-I194)/2+I194 -> 229 | K194: 240
A195: SSC | B195: High | C195: Z5M2 | D195: 80 | E195: SZ5-M2-Wx-C8 | F195: Neutral | G195: Flux | H195: W1 | I195: 240 | J195: 248 | K195: 256
A196: SSC | B196: High | C196: Z5M2 | D196: 80 | E196: SZ5-M2-Wx-C8 | F196: Warm | G196: Flux | H196: V1 | I196: 185 | J196: 194 | K196: 203
A197: SSC | B197: High | C197: Z5M2 | D197: 80 | E197: SZ5-M2-Wx-C8 | F197: Warm | G197: Flux | H197: V2 | I197: 203 | J197: 210.5 | K197: 218
A198: SSC | B198: High | C198: Z5M2 | D198: 80 | E198: SZ5-M2-Wx-C8 | F198: Warm | G198: Flux | H198: V3 | I198: 218 | J198: 229 | K198: 240
A199: SSC | B199: High | C199: Z5M2 | D199: 80 | E199: SZ5-M2-Wx-C8 | G199: VF | H199: G | I199: 2.75 | J199: =+(K199-I199)/2+I199 -> 2.875 | K199: 3
A200: SSC | B200: High | C200: Z5M2 | D200: 90 | E200: SZ5-M2-Wx-C9 | F200: Warm | G200: Flux | H200: U1 | I200: 132 | J200: 138.5 | K200: 145
... 471 more rows

Sheet Parameter (hidden)
A1: Part-name | B1: Forward Current | E1: Rth | F1: Size | G1: @Current | O1: @Temperature | W1: Rev. Date
G2: Relative Flux | K2: Relative VF | O2: Relative Flux | S2: Relative VF
B3: min | C3: typ | D3: max | G3: y0 | H3: A1 | I3: t1 | J3: R-Square | K3: y0 | L3: A1 | M3: t1 | N3: R-Square | O3: y0 | P3: A1 | Q3: t1 | R3: R-Square | S3: y0 | T3: A1 | U3: t1 | V3: R-Square
A4: SZ8-Y11-Wx-C7-A | B4: 50 | C4: 150 | D4: 700 | E4: 10 | F4: 1.1 x 1.1 x 0.4 | G4: 7.43843 | H4: -7.43653 | I4: 1055.48875 | J4: 0.99996 | K4: 1.22473 | L4: -0.30553 | M4: 508.16278 | N4: 0.99884 | O4: -1.80137 | P4: 2.95359 | Q4: 1587.6193 | R4: 0.99563 | S4: 0.932 | T4: 0.12085 | U4: 146.83506 | V4: 0.99059 | W4: 17/07/03
A5: SZ8-Y11-Wx-C7-C | B5: 20 | C5: 115 | D5: 230 | E5: 10 | F5: 1.1 x 1.1 x 0.4 | G5: 3.46516 | H5: -3.44036 | I5: 344.07745 | J5: 0.99991 | K5: 1.16729 | L5: -0.28589 | M5: 214.76656 | N5: 0.99953 | O5: 0.6787 | P5: 0.49869 | Q5: 193.12126 | R5: 0.99983 | S5: 0.95153 | T5: 0.11566 | U5: 95.5272 | V5: 0.99238 | W5: 17/07/03
A6: SZ8-Y11-Wx-C8-A | B6: 50 | C6: 150 | D6: 700 | E6: 10 | F6: 1.1 x 1.1 x 0.4 | G6: 7.43843 | H6: -7.43653 | I6: 1055.48875 | J6: 0.99996 | K6: 1.22473 | L6: -0.30553 | M6: 508.16278 | N6: 0.99884 | O6: -1.80137 | P6: 2.95359 | Q6: 1587.6193 | R6: 0.99563 | S6: 0.932 | T6: 0.12085 | U6: 146.83506 | V6: 0.99059 | W6: 17/07/03
A7: SZ8-Y11-Wx-C9-A | B7: 50 | C7: 150 | D7: 700 | E7: 10 | F7: 1.1 x 1.1 x 0.4 | G7: 7.43843 | H7: -7.43653 | I7: 1055.48875 | J7: 0.99996 | K7: 1.22473 | L7: -0.30553 | M7: 508.16278 | N7: 0.99884 | O7: -1.80137 | P7: 2.95359 | Q7: 1587.6193 | R7: 0.99563 | S7: 0.932 | T7: 0.12085 | U7: 146.83506 | V7: 0.99059 | W7: 18/10/14
A8: SZ8-Y11-Wx-C8-C | B8: 20 | C8: 115 | D8: 230 | E8: 10 | F8: 1.1 x 1.1 x 0.4 | G8: 3.46516 | H8: -3.44036 | I8: 344.07745 | J8: 0.99991 | K8: 1.16729 | L8: -0.28589 | M8: 214.76656 | N8: 0.99953 | O8: 0.6787 | P8: 0.49869 | Q8: 193.12126 | R8: 0.99983 | S8: 0.95153 | T8: 0.11566 | U8: 95.5272 | V8: 0.99238 | W8: 17/07/03
A9: SZ8-Y11-Wx-C9-C | B9: 20 | C9: 115 | D9: 230 | E9: 10 | F9: 1.1 x 1.1 x 0.4 | G9: 3.46516 | H9: -3.44036 | I9: 344.07745 | J9: 0.99991 | K9: 1.16729 | L9: -0.28589 | M9: 214.76656 | N9: 0.99953 | O9: 0.6787 | P9: 0.49869 | Q9: 193.12126 | R9: 0.99983 | S9: 0.95153 | T9: 0.11566 | U9: 95.5272 | V9: 0.99238 | W9: 17/07/03
A10: SZ8-Y11-Wx-C8-B | B10: 50 | C10: 175 | D10: 350 | E10: 10 | F10: 1.1 x 1.1 x 0.4 | G10: 3.12747 | H10: -3.108 | I10: 459.34347 | J10: 0.9999 | K10: 1.28993 | L10: -0.42279 | M10: 468.1007 | N10: 0.9995 | O10: -1.14039 | P10: 2.2779 | Q10: 1330.658 | R10: 0.99894 | S10: 0.95734 | T10: 0.10718 | U10: 91.45339 | V10: 0.99898 | W10: 18/05/30
A11: SZ8-Y11-Wx-C9-B | B11: 50 | C11: 175 | D11: 350 | E11: 10 | F11: 1.1 x 1.1 x 0.4 | G11: 3.12747 | H11: -3.108 | I11: 459.34347 | J11: 0.9999 | K11: 1.28993 | L11: -0.42279 | M11: 468.1007 | N11: 0.9995 | O11: -1.14039 | P11: 2.2779 | Q11: 1330.658 | R11: 0.99894 | S11: 0.95734 | T11: 0.10718 | U11: 91.45339 | V11: 0.99898 | W11: 18/05/30
A12: SZ8-Y15-Wx-C7 | B12: 20 | C12: 700 | D12: 1200 | E12: 7.5 | F12: 1.4 x 1.4 x 0.4 | G12: 2.35234 | H12: -2.33964 | I12: 1273.82144 | J12: 0.99996 | K12: 1.03825 | L12: -0.21055 | M12: 438.22318 | N12: 0.98177 | O12: 7.49153 | P12: -6.32681 | Q12: -3198.11695 | R12: 0.99743 | S12: 0.93317 | T12: 0.21967 | U12: 70.79044 | V12: 0.99923 | W12: 17/07/03
A13: SZ8-Y15-Wx-C8 | B13: 20 | C13: 700 | D13: 1200 | E13: 7.5 | F13: 1.4 x 1.4 x 0.4 | G13: 2.35234 | H13: -2.33964 | I13: 1273.82144 | J13: 0.99996 | K13: 1.03825 | L13: -0.21055 | M13: 438.22318 | N13: 0.98177 | O13: 7.49153 | P13: -6.32681 | Q13: -3198.11695 | R13: 0.99743 | S13: 0.93317 | T13: 0.21967 | U13: 70.79044 | V13: 0.99923 | W13: 17/07/03
A14: SZ8-Y15-Wx-C9 | B14: 20 | C14: 700 | D14: 1200 | E14: 7.5 | F14: 1.4 x 1.4 x 0.4 | G14: 2.35234 | H14: -2.33964 | I14: 1273.82144 | J14: 0.99996 | K14: 1.03825 | L14: -0.21055 | M14: 438.22318 | N14: 0.98177 | O14: 7.49153 | P14: -6.32681 | Q14: -3198.11695 | R14: 0.99743 | S14: 0.93317 | T14: 0.21967 | U14: 70.79044 | V14: 0.99923 | W14: 17/07/03
A15: SZ8-Y19-Wx-C7 | B15: 20 | C15: 700 | D15: 1500 | E15: 4.5 | F15: 1.8 x 1.8 x 0.4 | G15: 3.82114 | H15: -3.81383 | I15: 2322.60812 | J15: 1 | K15: 1.02472 | L15: -0.23134 | M15: 486.95071 | N15: 0.93079 | O15: 7.49153 | P15: -6.32681 | Q15: -3198.11695 | R15: 0.99743 | S15: 0.93555 | T15: 0.14385 | U15: 102.16017 | V15: 0.99602 | W15: 17/07/03
A16: SZ8-Y19-Wx-C8 | B16: 20 | C16: 700 | D16: 1500 | E16: 4.5 | F16: 1.8 x 1.8 x 0.4 | G16: 3.82114 | H16: -3.81383 | I16: 2322.60812 | J16: 1 | K16: 1.02472 | L16: -0.23134 | M16: 486.95071 | N16: 0.93079 | O16: 7.49153 | P16: -6.32681 | Q16: -3198.11695 | R16: 0.99743 | S16: 0.93555 | T16: 0.14385 | U16: 102.16017 | V16: 0.99602 | W16: 17/07/03
A17: SZ8-Y19-Wx-C9 | B17: 20 | C17: 700 | D17: 1500 | E17: 4.5 | F17: 1.8 x 1.8 x 0.4 | G17: 3.82114 | H17: -3.81383 | I17: 2322.60812 | J17: 1 | K17: 1.02472 | L17: -0.23134 | M17: 486.95071 | N17: 0.93079 | O17: 7.49153 | P17: -6.32681 | Q17: -3198.11695 | R17: 0.99743 | S17: 0.93555 | T17: 0.14385 | U17: 102.16017 | V17: 0.99602 | W17: 17/07/03
A18: SZ8-Y22-Wx-C7-x | B18: 20 | C18: 700 | D18: 2000 | E18: 4 | F18: 2.2 x 2.2 x 0.4 | G18: 4.6243 | H18: -4.62271 | I18: 2873.05848 | J18: 0.99999 | K18: 1.20324 | L18: -0.29095 | M18: 1963.7596 | N18: 0.99903 | O18: 0.36324 | P18: 0.77486 | Q18: 429.64088 | R18: 0.99987 | S18: 0.94029 | T18: 0.12492 | U18: 115.03668 | V18: 0.99011 | W18: 17/07/03
A19: SZ8-Y22-Wx-C8-x | B19: 20 | C19: 700 | D19: 2000 | E19: 4 | F19: 2.2 x 2.2 x 0.4 | G19: 4.6243 | H19: -4.62271 | I19: 2873.05848 | J19: 0.99999 | K19: 1.20324 | L19: -0.29095 | M19: 1963.7596 | N19: 0.99903 | O19: 0.36324 | P19: 0.77486 | Q19: 429.64088 | R19: 0.99987 | S19: 0.94029 | T19: 0.12492 | U19: 115.03668 | V19: 0.99011 | W19: 17/07/03
A20: SZ8-Y22-Wx-C9-x | B20: 20 | C20: 700 | D20: 2000 | E20: 4 | F20: 2.2 x 2.2 x 0.4 | G20: 4.6243 | H20: -4.62271 | I20: 2873.05848 | J20: 0.99999 | K20: 1.20324 | L20: -0.29095 | M20: 1963.7596 | N20: 0.99903 | O20: 0.36324 | P20: 0.77486 | Q20: 429.64088 | R20: 0.99987 | S20: 0.94029 | T20: 0.12492 | U20: 115.03668 | V20: 0.99011 | W20: 17/07/03
A21: SZ5-M2-Wx-00 | B21: 20 | C21: 700 | D21: 2000 | E21: 3.45 | F21: 3.5 x 3.5 x 2.0 | G21: 2.98 | H21: -2.94986 | I21: 1730.25382 | J21: 0.99991 | K21: 1.14888 | L21: -0.28936 | M21: 1048.11334 | N21: 0.99835 | O21: 1.90292 | P21: -0.76836 | Q21: -487.36279 | R21: 0.99672 | S21: 0.92754 | T21: 0.14453 | U21: 122.73142 | V21: 0.99987 | W21: 17/07/03
A22: SZ5-M2-Wx-C8 | B22: 20 | C22: 700 | D22: 2000 | E22: 3.45 | F22: 3.5 x 3.5 x 2.0 | G22: 2.98 | H22: -2.94986 | I22: 1730.25382 | J22: 0.99991 | K22: 1.14888 | L22: -0.28936 | M22: 1048.11334 | N22: 0.99835 | O22: 1.90292 | P22: -0.76836 | Q22: -487.36279 | R22: 0.99672 | S22: 0.92754 | T22: 0.14453 | U22: 122.73142 | V22: 0.99987 | W22: 17/07/03
A23: SZ5-M2-Wx-C9 | B23: 20 | C23: 700 | D23: 2000 | E23: 3.45 | F23: 3.5 x 3.5 x 2.0 | G23: 2.98 | H23: -2.94986 | I23: 1730.25382 | J23: 0.99991 | K23: 1.14888 | L23: -0.28936 | M23: 1048.11334 | N23: 0.99835 | O23: 1.90292 | P23: -0.76836 | Q23: -487.36279 | R23: 0.99672 | S23: 0.92754 | T23: 0.14453 | U23: 122.73142 | V23: 0.99987 | W23: 17/07/03
A24: SZ5-M3-Wx-C7 | B24: 20 | C24: 700 | D24: 1500 | E24: 3.2 | F24: 3.5 x 3.5 x 2.0 | G24: 5.19474 | H24: -5.18128 | I24: 3300.72768 | J24: 0.99995 | K24: 1.63459 | L24: -0.7677 | M24: 3853.34348 | N24: 0.99865 | O24: 1.08857 | P24: -0.02949 | Q24: -74.77381 | R24: 0.99679 | S24: 0.93604 | T24: 0.10676 | U24: 165.86871 | V24: 0.99942 | W24: 19/12/04
A25: STW8C2PB-E1 | B25: 20 | C25: 65 | D25: 400 | E25: 10 | F25: 3.0 x 3.0 x 0.6 | G25: 19.02833 | H25: -19.00956 | I25: 1226.19662 | J25: 1 | K25: 1.50689 | L25: -0.56267 | M25: 621.99022 | N25: 0.99949 | O25: 1.1767 | P25: -0.15246 | Q25: -166.12781 | R25: 0.99739 | S25: 0.88818 | T25: 0.12442 | U25: 233.318 | V25: 0.99949 | W25: 17/07/03
A26: STW8C2PB-E2 | B26: 20 | C26: 65 | D26: 400 | E26: 10 | F26: 3.0 x 3.0 x 0.6 | G26: 19.2 | H26: -19.17739 | I26: 1237.69583 | J26: 0.99994 | K26: 1.565 | L26: -0.54925 | M26: 607.24189 | N26: 0.99897 | O26: 1.10051 | P26: -0.08691 | Q26: -129.005 | R26: 0.99699 | S26: 0.88237 | T26: 0.06305 | U26: 115.14664 | V26: 0.97939 | W26: 18/10/14
A27: STW8C12C-E0 | B27: 10 | C27: 65 | D27: 200 | E27: 7.5 | F27: 3.5 x 2.8 x 0.75 | G27: 20.81583 | H27: -20.79597 | I27: 1344.81776 | J27: 0.99999 | K27: 1.16893 | L27: -0.21253 | M27: 289.40087 | N27: 0.9996 | O27: 1.06654 | P27: -0.05263 | Q27: -105.05522 | R27: 0.99744 | S27: -90.35419 | T27: 91.36453 | U27: 211751.8485 | V27: 0.99507 | W27: 19/01/01
A28: STW8C1SB | B28: 20 | C28: 65 | D28: 400 | E28: 10 | F28: 3.0 x 3.0 x 0.6 | G28: 15.2281 | H28: -15.21267 | I28: 975.21322 | J28: 0.99999 | K28: 2.56557 | L28: -1.65741 | M28: 1163.45907 | N28: 0.99981 | O28: 1.34619 | P28: -0.31791 | Q28: -282.47483 | R28: 0.99931 | S28: 1.03641 | T28: -0.03137 | U28: -170.78582 | V28: 0.99659 | W28: 17/07/03
A29: STW7C2SB | B29: 20 | C29: 100 | D29: 200 | E29: 10 | F29: 3.0 x 3.0 x 0.6 | G29: 5.60031 | H29: -5.59388 | I29: 512.08079 | J29: 1 | K29: 1.48247 | L29: -0.61943 | M29: 402.47287 | N29: 0.99992 | O29: 1.24529 | P29: -0.21761 | Q29: -202.58682 | R29: 0.99959 | S29: 0.8875 | T29: 0.13657 | U29: 127.1862 | V29: 0.99965 | W29: 17/07/03
A30: STW8C2SB | B30: 20 | C30: 100 | D30: 200 | E30: 10 | F30: 3.0 x 3.0 x 0.6 | G30: 5.60031 | H30: -5.59388 | I30: 512.08079 | J30: 1 | K30: 1.48247 | L30: -0.61943 | M30: 402.47287 | N30: 0.99992 | O30: 1.24529 | P30: -0.21761 | Q30: -202.58682 | R30: 0.99959 | S30: 0.8875 | T30: 0.13657 | U30: 127.1862 | V30: 0.99965 | W30: 17/07/03
A31: SAW7C22B-IZ | B31: 20 | C31: 150 | D31: 250 | E31: 11 | F31: 3.0 x 3.0 x 0.6 | G31: 4.5539 | H31: -4.55246 | I31: 604.01637 | J31: 0.99998 | K31: 1.1736 | L31: -0.3348 | M31: 218.72303 | N31: 0.99332 | O31: 2.3492 | P31: -1.31344 | Q31: -922.42472 | R31: 0.99937 | S31: 0.91565 | T31: 0.10052 | U31: 142.2478 | V31: 0.9998 | W31: 18/05/30
A32: SAW8C22B-IZ | B32: 20 | C32: 150 | D32: 250 | E32: 11 | F32: 3.0 x 3.0 x 0.6 | G32: 4.5539 | H32: -4.55246 | I32: 604.01637 | J32: 0.99998 | K32: 1.1736 | L32: -0.3348 | M32: 218.72303 | N32: 0.99332 | O32: 2.3492 | P32: -1.31344 | Q32: -922.42472 | R32: 0.99937 | S32: 0.91565 | T32: 0.10052 | U32: 142.2478 | V32: 0.9998 | W32: 17/07/03
A33: SAW8C22B-NZ | B33: 20 | C33: 150 | D33: 250 | E33: 11 | F33: 3.0 x 3.0 x 0.6 | G33: 4.5539 | H33: -4.55246 | I33: 604.01637 | J33: 0.99998 | K33: 1.1736 | L33: -0.3348 | M33: 218.72303 | N33: 0.99332 | O33: 2.3492 | P33: -1.31344 | Q33: -922.42472 | R33: 0.99937 | S33: 0.91565 | T33: 0.10052 | U33: 142.2478 | V33: 0.9998 | W33: 18/05/30
A34: STW8A12D-E1 | B34: 10 | C34: 65 | D34: 200 | E34: 25 | F34: 3.5 x2.8 x 0.7 | G34: 8.35529 | H34: -8.36385 | I34: 508.00689 | J34: 0.99992 | K34: 1.16163 | L34: -0.23508 | M34: 173.5588 | N34: 0.98993 | O34: 0.4004 | P34: 0.65889 | Q34: 265.23617 | R34: 0.99996 | S34: 0.93999 | T34: 0.08622 | U34: 68.9882 | V34: 0.99998 | W34: 17/07/03
A35: STW8A12D-E2 | B35: 10 | C35: 65 | D35: 200 | E35: 20 | F35: 3.5 x2.8 x 0.7 | G35: 9.2162 | H35: -9.20447 | I35: 573.18915 | J35: 1 | K35: 1.40354 | L35: -0.4848 | M35: 357.59815 | N35: 0.99989 | O35: 1.22876 | P35: -0.19779 | Q35: -169.85357 | R35: 0.99537 | S35: 0.91261 | T35: 0.10667 | U35: 125.15433 | V35: 0.99828 | W35: 17/07/03
A36: STW8A2PD | B36: 10 | C36: 65 | D36: 300 | E36: 15 | F36: 3.5 x2.8 x 0.7 | G36: 12.64226 | H36: -12.63434 | I36: 795.71907 | J36: 1 | K36: 1.21576 | L36: -0.28193 | M36: 245.00678 | N36: 0.99985 | O36: 1.78994 | P36: -0.753 | Q36: -519.1683 | R36: 0.99848 | S36: 0.92273 | T36: 0.09737 | U36: 107.99552 | V36: 0.99958 | W36: 17/07/03
A37: STW8A2SD | B37: 20 | C37: 100 | D37: 150 | E37: 35 | F37: 3.5 x2.8 x 0.7 | G37: 6.8083 | H37: -6.804 | I37: 633.851 | J37: 0.99987 | K37: 1.91733 | L37: -1.05309 | M37: 733.463 | N37: 0.999 | O37: 0.33971 | P37: 0.7204 | Q37: 294.927 | R37: 0.999 | S37: 0.92816 | T37: 0.0973 | U37: 90.234 | V37: 0.9892 | W37: 18/20/02
A38: STW8Q14D | B38: 10 | C38: 65 | D38: 200 | E38: 15 | F38: 5.6 x 3.0 x 0.65 | G38: 15.73205 | H38: -15.73511 | I38: 993.63998 | J38: 0.99994 | K38: 1.37578 | L38: -0.47416 | M38: 280.9724 | N38: 0.99937 | O38: -0.02504 | P38: 1.07007 | Q38: 541.77916 | R38: 0.99639 | S38: 0.93499 | T38: 0.08462 | U38: 89.8351 | V38: 0.99377 | W38: 17/07/03
A39: STW8Q14D-E3 | B39: 10 | C39: 65 | D39: 200 | E39: 10 | F39: 5.6 x 3.0 x 0.65 | G39: 15.89431 | H39: -15.89561 | I39: 999.96829 | J39: 1 | K39: 1.5022 | L39: -0.5762 | M39: 478.2898 | N39: 0.99957 | O39: 1.90816 | P39: -0.87663 | Q39: -644.07606 | R39: 0.99557 | S39: 0.92777 | T39: 0.09286 | U39: 94.56117 | V39: 0.99463 | W39: 17/07/03
A40: STW9Q14D | B40: 10 | C40: 65 | D40: 200 | E40: 15 | F40: 5.6 x 3.0 x 0.65 | G40: 15.73205 | H40: -15.73511 | I40: 993.63998 | J40: 0.99994 | K40: 1.37578 | L40: -0.47416 | M40: 280.9724 | N40: 0.99937 | O40: -0.02504 | P40: 1.07007 | Q40: 541.77916 | R40: 0.99639 | S40: 0.93499 | T40: 0.08462 | U40: 89.8351 | V40: 0.99377 | W40: 17/08/31
A41: STW9Q14D-E3 | B41: 10 | C41: 65 | D41: 200 | E41: 10 | F41: 5.6 x 3.0 x 0.65 | G41: 15.89431 | H41: -15.89561 | I41: 999.96829 | J41: 1 | K41: 1.5022 | L41: -0.5762 | M41: 478.2898 | N41: 0.99957 | O41: 1.90816 | P41: -0.87663 | Q41: -644.07606 | R41: 0.99557 | S41: 0.92777 | T41: 0.09286 | U41: 94.56117 | V41: 0.99463 | W41: 17/08/31
A42: SAW7Q24D | B42: 10 | C42: 32 | D42: 100 | E42: 7 | F42: 5.6 x 3.0 x 0.65 | G42: 17.341 | H42: -17.3354 | I42: 543.137 | J42: 0.99998 | K42: 1.0684 | L42: -0.1452 | M42: 41.015 | N42: 0.9734 | O42: 1.2571 | P42: -0.2365 | Q42: -233.951 | R42: 0.9981 | S42: 0.9235 | T42: 0.09151 | U42: 131.84 | V42: 0.981 | W42: 18/20/02
A43: SAW8Q24D | B43: 10 | C43: 32 | D43: 100 | E43: 7 | F43: 5.6 x 3.0 x 0.65 | G43: 16.977 | H43: -16.977 | I43: 528.897 | J43: 0.99999 | K43: 1.0652 | L43: -0.144 | M43: 37.811 | N43: 0.974 | O43: 2.481 | P43: -1.446 | Q43: -990.32 | R43: 0.999 | S43: 0.939 | T43: 0.0764 | U43: 98.662 | V43: 0.987 | W43: 18/20/02
A44: STW9C2SB | B44: 20 | C44: 100 | D44: 200 | E44: 10 | F44: 3.0 x 3.0 x 0.6 | G44: 5.64237 | H44: -5.6347 | I44: 519.28 | J44: 0.9999 | K44: 1.32405 | L44: -0.46141 | M44: 281.445 | N44: 0.9994 | O44: 4.8988 | P44: -3.86005 | Q44: -2391.54 | R44: 0.999 | S44: 0.9198 | T44: 0.11301 | U44: 74.3824 | V44: 0.9925 | W44: 17/10/07
A45: STW8A12D-E3 | B45: 10 | C45: 65 | D45: 200 | E45: 15 | F45: 3.5 x2.8 x 0.7 | G45: 8.7979 | H45: -8.81029 | I45: 538.595 | J45: 0.9999 | K45: 1.1667 | L45: -0.2387 | M45: 182.312 | N45: 0.9938 | O45: 0.37453 | P45: 0.6847 | Q45: 280.385 | R45: 0.9985 | S45: 0.93464 | T45: 0.09343 | U45: 80.0338 | V45: 0.9804 | W45: 17/10/07
A46: SAW9C22B-NZ | B46: 20 | C46: 150 | D46: 250 | E46: 11 | F46: 3.0 x 3.0 x 0.6 | G46: 4.09513 | H46: -4.09227 | I46: 536.0334 | J46: 0.99995 | K46: 1.19019 | L46: -0.3491 | M46: 239.9688 | N46: 0.99643 | O46: 1.72179 | P46: -0.69424 | Q46: -578.4337 | R46: 0.9983 | S46: 0.89579 | T46: 0.11846 | U46: 186.51867 | V46: 0.9935 | W46: 17/10/07
A47: STW9A12D-E1 | B47: 10 | C47: 65 | D47: 200 | E47: 25 | F47: 3.5 x 2.8 x 0.7 | G47: 8.824 | H47: -8.82707 | I47: 545.586 | J47: 0.9999 | K47: 1.15938 | L47: -0.23168 | M47: 173.83995 | N47: 0.9934 | O47: 0.22541 | P47: 0.83121 | Q47: 346.86087 | R47: 0.999 | S47: 0.92544 | T47: 0.0942 | U47: 103.77141 | V47: 0.9882 | W47: 17/10/07
A48: STW8A12D | B48: 20 | C48: 150 | D48: 180 | E48: 35 | F48: 3.5 x 2.8 x 0.7 | G48: 3.32338 | H48: -3.33067 | I48: 418.84526 | J48: 0.99996 | K48: 1.07458 | L48: -0.19878 | M48: 152.63751 | N48: 0.99412 | O48: 0.14992 | P48: 0.90646 | Q48: 390.14017 | R48: 0.99929 | S48: 0.93366 | T48: 0.09122 | U48: 80.16682 | V48: 0.98988 | W48: 17/10/07
A49: SAW8A32E-E1 | B49: 20 | C49: 100 | D49: 120 | E49: 13 | F49: 3.5 x 2.8 x 0.7 | G49: 3.7638 | H49: -3.78089 | I49: 322.24741 | J49: 0.9998 | K49: 1.04008 | L49: -0.21407 | M49: 63.60298 | N49: 0.99415 | O49: 1.30256 | P49: -0.27155 | Q49: -217.76618 | R49: 0.99947 | S49: 0.93007 | T49: 0.09723 | U49: 80.66486 | V49: 0.98873 | W49: 17/10/07
A50: SAW8A42E-E1 | B50: 10 | C50: 75 | D50: 100 | E50: 13 | F50: 3.5 x 2.8 x 0.7 | G50: 3.32284 | H50: -3.33776 | I50: 208.22762 | J50: 0.99996 | K50: 1.24942 | L50: -0.29832 | M50: 491.81543 | N50: 0.99436 | O50: 1.40072 | P50: -0.36626 | Q50: -267.4944 | R50: 0.99931 | S50: 0.94782 | T50: 0.09408 | U50: 43.63674 | V50: 0.96257 | W50: 17/10/07
A51: SAW8A62E-E1 | B51: 10 | C51: 50 | D51: 60 | E51: 13 | F51: 3.5 x 2.8 x 0.7 | G51: 3.83741 | H51: -3.8215 | I51: 169.41536 | J51: 0.99991 | K51: 1.12172 | L51: -0.25647 | M51: 67.09206 | N51: 0.99969 | O51: 1.22576 | P51: -0.19866 | Q51: -174.60042 | R51: 0.99907 | S51: 0.9364 | T51: 0.09073 | U51: 74.74704 | V51: 0.99156 | W51: 17/10/07
A52: SAW8A62E-E2 | B52: 10 | C52: 50 | D52: 60 | E52: 15 | F52: 3.5 x 2.8 x 0.7 | G52: 3.90805 | H52: -3.92242 | I52: 167.52909 | J52: 0.99995 | K52: 1.09902 | L52: -0.23081 | M52: 61.00959 | N52: 0.99978 | O52: 1.21401 | P52: -0.18837 | Q52: -182.6494 | R52: 0.99969 | S52: 0.83564 | T52: 0.185 | U52: 224.5997 | V52: 0.99956 | W52: 2019-07-29
A53: SAW9A32E-E1 | B53: 20 | C53: 100 | D53: 120 | E53: 13 | F53: 3.5 x 2.8 x 0.7 | G53: 2.63363 | H53: -2.64614 | I53: 208.40739 | J53: 0.99999 | K53: 1.06027 | L53: -0.23628 | M53: 73.18633 | N53: 0.9956 | O53: 1.29362 | P53: -0.26296 | Q53: -212.74839 | R53: 0.99889 | S53: 0.92037 | T53: 0.10409 | U53: 105.89677 | V53: 0.9866 | W53: 17/10/07
A54: SAW0L60A | B54: 20 | C54: 60 | D54: 320 | E54: 1.8 | F54: 5.0 x 5.0 x 0.7 | G54: 25.0611 | H54: -25.049 | I54: 1518.553 | J54: 0.9999 | K54: 1.2992 | L54: -0.3487 | M54: 418.88 | N54: 0.9972 | O54: -0.4366 | P54: 1.475 | Q54: 923.921 | R54: 0.9997 | S54: 0.9329 | T54: 0.0839 | U54: 114.593 | V54: 0.9984 | W54: 18/01/12
A55: SAW8L60A | B55: 20 | C55: 60 | D55: 320 | E55: 1.8 | F55: 5.0 x 5.0 x 0.7 | G55: 25.0611 | H55: -25.049 | I55: 1518.553 | J55: 0.9999 | K55: 1.323 | L55: -0.375 | M55: 439.602 | N55: 0.997 | O55: -0.4366 | P55: 1.475 | Q55: 923.921 | R55: 0.9997 | S55: 0.9346 | T55: 0.0827 | U55: 109.028 | V55: 0.997 | W55: 18/01/12
A56: STW9C2PB-S | B56: 10 | C56: 65 | D56: 150 | E56: 10 | F56: 3.0 x 3.0 x 0.6 | G56: 21.587 | H56: -21.586 | I56: 1374.65 | J56: 0.9999 | K56: 1.324 | L56: -0.4614 | M56: 281.445 | N56: 0.9994 | O56: 1.145 | P56: -0.1177 | Q56: -109.78 | R56: 0.9995 | S56: 0.849 | T56: 0.1631 | U56: 334.978 | V56: 0.9999 | W56: 18/20/02
A57: SAWS0661A | B57: 25 | C57: 170 | D57: 260 | E57: 1.5 | F57: 13.5 x 13.5 x 1.45 | G57: 7.4111 | H57: -7.413 | I57: 1173.29 | J57: 0.9999 | K57: 1.208 | L57: -0.3014 | M57: 455.983 | N57: 0.99999 | O57: 1.287 | P57: -0.085 | Q57: -69.874 | R57: 0.9999 | S57: 0.9391 | T57: 0.1049 | U57: 155.006 | V57: 0.99997 | W57: 18/20/02
A58: SAWS1063A | B58: 50 | C58: 290 | D58: 580 | E58: 0.7 | F58: 13.5 x 13.5 x 1.45 | G58: 13.166 | H58: -13.168 | I58: 3674.753 | J58: 0.99999 | K58: 1.252 | L58: -0.3114 | M58: 1370.547 | N58: 0.9998 | O58: 1.28112 | P58: -0.0816 | Q58: -68.796 | R58: 0.9999 | S58: 0.9422 | T58: 0.10219 | U58: 149.463 | V58: 0.9997 | W58: 18/20/02
A59: SAWS1564A | B59: 100 | C59: 430 | D59: 860 | E59: 0.5 | F59: 19 x 19 x 1.45 | G59: 10.796 | H59: -10.797 | I59: 4427.605 | J59: 0.9999 | K59: 1.2571 | L59: -0.322 | M59: 1907.489 | N59: 0.9997 | O59: 1.276 | P59: -0.0794 | Q59: -68.17343 | R59: 0.9999 | S59: 0.9438 | T59: 0.10035 | U59: 145.391 | V59: 0.9996 | W59: 18/20/02
A60: SAWS1566A | B60: 150 | C60: 720 | D60: 1440 | E60: 0.34 | F60: 19 x 19 x 1.45 | G60: 10.564 | H60: -10.566 | I60: 7234.558 | J60: 0.99995 | K60: 1.2212 | L60: -0.2936 | M60: 2557.73 | N60: 0.9999 | O60: 1.2903 | P60: -0.0872 | Q60: -70.451 | R60: 0.9999 | S60: 0.93856 | T60: 0.10556 | U60: 158.0667 | V60: 0.9995 | W60: 18/20/02
A61: STW0L6PA | B61: 50 | C61: 750 | D61: 1000 | E61: 2.9 | F61: 5.0 x 5.0 x 0.7 | G61: 4.5721 | H61: -4.56808 | I61: 3042.57403 | J61: 0.99993 | K61: 1.37186 | L61: -0.57136 | M61: 1741.57051 | N61: 0.99948 | O61: 2.31262 | P61: -1.27549 | Q61: -826.60323 | R61: 0.99774 | S61: 0.94162 | T61: 0.07826 | U61: 83.97265 | V61: 0.99645 | W61: 18/10/14
A62: STW0L8PA | B62: 100 | C62: 640 | D62: 800 | E62: 2 | F62: 5.0 x 5.0 x 0.7 | G62: 5.39227 | H62: -5.39055 | I62: 3129.49751 | J62: 1 | K62: 1.44373 | L62: -0.5999 | M62: 2122.26731 | N62: 0.99986 | O62: 1.29541 | P62: -0.26308 | Q62: -205.55455 | R62: 0.99982 | S62: 0.94459 | T62: 0.06929 | U62: 112.85336 | V62: 0.99974 | W62: 19/07/23
A63: STW8A12D-S1 | B63: 10 | C63: 65 | D63: 180 | E63: 30 | F63: 3.5 x 2.8 x 0.7 | G63: 9.2384 | H63: -9.22075 | I63: 576.90662 | J63: 0.99993 | K63: 1.236 | L63: -0.31873 | M63: 218.10204 | N63: 0.99585 | O63: 0.10912 | P63: 0.94531 | Q63: 421.06078 | R63: 0.99927 | S63: 0.92682 | T63: 0.0983 | U63: 91.28153 | V63: 0.9905 | W63: 18/11/06
A64: STW8A2PD-S1 | B64: 10 | C64: 65 | D64: 200 | E64: 15 | F64: 3.5 x 2.8 x 0.7 | G64: 9.0625 | H64: -9.05318 | I64: 559.51583 | J64: 0.99992 | K64: 1.24931 | L64: -0.33724 | M64: 215.86693 | N64: 0.99568 | O64: 0.03872 | P64: 1.01309 | Q64: 455.11925 | R64: 0.9991 | S64: 0.89627 | T64: 0.12177 | U64: 161.62078 | V64: 0.98607 | W64: 18/11/06
A65: STW9A2PD | B65: 10 | C65: 65 | D65: 300 | E65: 15 | F65: 3.5 x 2.8 x 0.7 | G65: 32.43284 | H65: -32.38389 | I65: 2205.32421 | J65: 0.99994 | K65: 1.22886 | L65: -0.29793 | M65: 252.80292 | N65: 0.99938 | O65: 0.27505 | P65: 0.78389 | Q65: 329.39893 | R65: 0.99987 | S65: 0.89371 | T65: 0.12685 | U65: 167.74126 | V65: 0.9972 | W65: 19/06/27
A66: STW9A2PD-E1 | B66: 10 | C66: 65 | D66: 200 | E66: 13 | F66: 3.5 x 2.8 x 0.7 | G66: 45.99109 | H66: -45.95579 | I66: 3067.84741 | J66: 0.99991 | K66: 1.39899 | L66: -0.51631 | M66: 256.63619 | N66: 0.99405 | O66: 1.17526 | P66: -0.15479 | Q66: -195.48889 | R66: 0.99875 | S66: 2.52734 | T66: -1.52021 | U66: -4311.38057 | V66: 0.99695 | W66: 19/06/27
A67: STW8A2PD-E1(H) | B67: 10 | C67: 65 | D67: 200 | E67: 13 | F67: 3.5 x 2.8 x 0.7 | G67: 19.60397 | H67: -19.60713 | I67: 1240.44553 | J67: 1 | K67: 1.30331 | L67: -0.37247 | M67: 318.86831 | N67: 0.99863 | O67: 1.22057 | P67: -0.19597 | Q67: -229.3582 | R67: 0.99968 | S67: 0.79139 | T67: 0.21876 | U67: 529.27591 | V67: 0.9976 | W67: 2019-07-30
A68: STW8A2PD-E1 | B68: 10 | C68: 65 | D68: 200 | E68: 10 | F68: 3.5 x 2.8 x 0.7 | G68: 18.3385 | H68: -18.32884 | I68: 1169.59221 | J68: 0.99998 | K68: 1.228 | L68: -0.32177 | M68: 197.37779 | N68: 0.99267 | O68: 1.2213 | P68: -0.19913 | Q68: -230.67095 | R68: 0.99885 | S68: 0.92707 | T68: 0.09973 | U68: 97.68227 | V68: 0.98614 | W68: 18/11/06

Sheet LED #1 (hidden)
A2: =IF(Table!D7="",NA(),Table!D7) -> STW0L8PA | G2: 7 | H2: =G2+1 -> 8 | I2: 9 | J2: 10 | K2: 11 | L2: 12 | M2: 13 | N2: 14
G3: @Current
A4: Flux | B4: VF | G4: Relative Flux (FC) | K4: Relative VF (VC)
A5: =Table!C15 -> 675.0 | B5: =Table!E15 -> 6.100 | G5: y0 | H5: A1 | I5: t1 | J5: R2 | K5: y0 | L5: A1 | M5: t1 | N5: R2
G6: =VLOOKUP($A$2,Parameter!$A:$W,G2,0) -> 5.3923 | H6: =VLOOKUP($A$2,Parameter!$A:$W,H2,0) -> -5.3906 | I6: =VLOOKUP($A$2,Parameter!$A:$W,I2,0) -> 3129.4975 | J6: =VLOOKUP($A$2,Parameter!$A:$W,J2,0) -> 1 | K6: =VLOOKUP($A$2,Parameter!$A:$W,K2,0) -> 1.4437 | L6: =VLOOKUP($A$2,Parameter!$A:$W,L2,0) -> -0.5999 | M6: =VLOOKUP($A$2,Parameter!$A:$W,M2,0) -> 2122.2673 | N6: =VLOOKUP($A$2,Parameter!$A:$W,N2,0) -> 0.99986
A7: Ta/Tc [℃] | B7: Rth | C7: IOPPR. [mA] | D7: Price [$] | E7: Req.Flux | G7: =N2+1 -> 15 | H7: =G7+1 -> 16 | I7: 17 | J7: 18 | K7: 19 | L7: 20 | M7: 21 | N7: 22
A8: =Table!D18 -> 85.0 | B8: =Table!D10 -> 2.0 | C8: =Table!D20 -> 800 | D8: =Table!D22 -> 0.000 | E8: =Table!$F$4 -> 13,333 | G8: @Temperature
G9: Relative Flux (FT) | K9: Relative VF (VT)
A10: I. Interval | B10: I. Range max | C10: I. max | G10: y0 | H10: A1 | I10: t1 | J10: R2 | K10: y0 | L10: A1 | M10: t1 | N10: R2
A11: =Table!$J$4 -> 0.015 | B11: =Table!$I$4 -> 1.500 | C11: =Table!F10/1000 -> 0.800 | G11: =VLOOKUP($A$2,Parameter!$A:$W,G7,0) -> 1.2954 | H11: =VLOOKUP($A$2,Parameter!$A:$W,H7,0) -> -0.2631 | I11: =VLOOKUP($A$2,Parameter!$A:$W,I7,0) -> -205.5546 | J11: =VLOOKUP($A$2,Parameter!$A:$W,J7,0) -> 0.99982 | K11: =VLOOKUP($A$2,Parameter!$A:$W,K7,0) -> 0.9446 | L11: =VLOOKUP($A$2,Parameter!$A:$W,L7,0) -> 0.0693 | M11: =VLOOKUP($A$2,Parameter!$A:$W,M7,0) -> 112.8534 | N11: =VLOOKUP($A$2,Parameter!$A:$W,N7,0) -> 0.99974
A14: IF | B14: Flux | C14: VF | D14: PD | E14: TJ | F14: lm/W | G14: lm/$ | H14: # LEDs | I14: Tot.lm
A15: =IF(A2="",NA(),Table!$H$4) -> 0.050 | B15: =IFERROR(A$5*(led1FTA1*EXP(-$A$8/led1FTt1)+led1FTy0)*(led1FCA1*EXP(-$A15*1000/led1FCt1)+led1FCy0),NA()) -> 52.809 | C15: =IFERROR(B$5*(led1VTA1*EXP(-$A$8/led1VTt1)+led1VTy0)*(led1VCA1*EXP(-$A15*1000/led1VCt1)+led1VCy0),NA()) -> 5.113 | D15: =C15*A15 -> 0.256 | E15: =$A$8+D15*$B$8 -> 85.51 | F15: =B15/D15 -> 206.6 | G15: =B15/$D$8 ->  | H15: =ROUNDUP($E$8/B15,0) -> 253 | I15: =H15*B15 -> 13361
A16: =IF(OR(ROUND(A15+$A$11,3)>$B$11,ROUND(A15+$A$11,3)>$C$11),NA(),ROUND(A15+$A$11,3)) -> 0.065 | B16: 68.178 | C16: 5.138 | D16: 0.334 | E16: 85.67 | F16: 204.1 | H16: 196 | I16: 13363
A17: =IF(OR(ROUND(A16+$A$11,3)>$B$11,ROUND(A16+$A$11,3)>$C$11),NA(),ROUND(A16+$A$11,3)) -> 0.080 | B17: 83.474 | C17: 5.162 | D17: 0.413 | E17: 85.83 | F17: 202.1 | H17: 160 | I17: 13356
A18: 0.095 | B18: 98.697 | C18: 5.187 | D18: 0.493 | E18: 85.99 | F18: 200.3 | H18: 136 | I18: 13423
A19: 0.110 | B19: 113.847 | C19: 5.211 | D19: 0.573 | E19: 86.15 | F19: 198.6 | H19: 118 | I19: 13434
A20: 0.125 | B20: 128.924 | C20: 5.235 | D20: 0.654 | E20: 86.31 | F20: 197.0 | H20: 104 | I20: 13408
A21: 0.140 | B21: 143.930 | C21: 5.258 | D21: 0.736 | E21: 86.47 | F21: 195.5 | H21: 93 | I21: 13385
A22: 0.155 | B22: 158.864 | C22: 5.282 | D22: 0.819 | E22: 86.64 | F22: 194.0 | H22: 84 | I22: 13345
A23: 0.170 | B23: 173.726 | C23: 5.305 | D23: 0.902 | E23: 86.80 | F23: 192.6 | H23: 77 | I23: 13377
A24: 0.185 | B24: 188.517 | C24: 5.329 | D24: 0.986 | E24: 86.97 | F24: 191.2 | H24: 71 | I24: 13385
A25: 0.200 | B25: 203.238 | C25: 5.352 | D25: 1.070 | E25: 87.14 | F25: 189.9 | H25: 66 | I25: 13414
A26: 0.215 | B26: 217.888 | C26: 5.375 | D26: 1.156 | E26: 87.31 | F26: 188.6 | H26: 62 | I26: 13509
A27: 0.230 | B27: 232.468 | C27: 5.397 | D27: 1.241 | E27: 87.48 | F27: 187.3 | H27: 58 | I27: 13483
A28: 0.245 | B28: 246.978 | C28: 5.420 | D28: 1.328 | E28: 87.66 | F28: 186.0 | H28: 54 | I28: 13337
A29: 0.260 | B29: 261.419 | C29: 5.442 | D29: 1.415 | E29: 87.83 | F29: 184.7 | H29: 52 | I29: 13594
A30: 0.275 | B30: 275.791 | C30: 5.465 | D30: 1.503 | E30: 88.01 | F30: 183.5 | H30: 49 | I30: 13514
A31: 0.290 | B31: 290.094 | C31: 5.487 | D31: 1.591 | E31: 88.18 | F31: 182.3 | H31: 46 | I31: 13344
A32: 0.305 | B32: 304.329 | C32: 5.509 | D32: 1.680 | E32: 88.36 | F32: 181.1 | H32: 44 | I32: 13390
A33: 0.320 | B33: 318.496 | C33: 5.531 | D33: 1.770 | E33: 88.54 | F33: 180.0 | H33: 42 | I33: 13377
A34: 0.335 | B34: 332.595 | C34: 5.552 | D34: 1.860 | E34: 88.72 | F34: 178.8 | H34: 41 | I34: 13636
A35: 0.350 | B35: 346.626 | C35: 5.574 | D35: 1.951 | E35: 88.90 | F35: 177.7 | H35: 39 | I35: 13518
A36: 0.365 | B36: 360.591 | C36: 5.595 | D36: 2.042 | E36: 89.08 | F36: 176.6 | H36: 37 | I36: 13342
A37: 0.380 | B37: 374.489 | C37: 5.616 | D37: 2.134 | E37: 89.27 | F37: 175.5 | H37: 36 | I37: 13482
A38: 0.395 | B38: 388.320 | C38: 5.637 | D38: 2.227 | E38: 89.45 | F38: 174.4 | H38: 35 | I38: 13591
A39: 0.410 | B39: 402.085 | C39: 5.658 | D39: 2.320 | E39: 89.64 | F39: 173.3 | H39: 34 | I39: 13671
A40: 0.425 | B40: 415.784 | C40: 5.679 | D40: =C40*A40 -> 2.414 | E40: =$A$8+D40*$B$8 -> 89.83 | F40: =B40/D40 -> 172.3 | H40: 33 | I40: =H40*B40 -> 13721
A41: 0.440 | B41: 429.418 | C41: 5.700 | D41: 2.508 | E41: 90.02 | F41: 171.2 | H41: 32 | I41: 13741
A42: 0.455 | B42: 442.987 | C42: 5.720 | D42: 2.603 | E42: 90.21 | F42: 170.2 | H42: 31 | I42: 13733
A43: 0.470 | B43: 456.490 | C43: 5.740 | D43: 2.698 | E43: 90.40 | F43: 169.2 | H43: 30 | I43: 13695
A44: 0.485 | B44: 469.930 | C44: 5.761 | D44: 2.794 | E44: 90.59 | F44: 168.2 | H44: 29 | I44: 13628
A45: 0.500 | B45: 483.305 | C45: 5.781 | D45: 2.890 | E45: 90.78 | F45: 167.2 | H45: 28 | I45: 13533
A46: 0.515 | B46: 496.615 | C46: 5.801 | D46: 2.987 | E46: 90.97 | F46: 166.2 | H46: 27 | I46: 13409
A47: 0.530 | B47: =IFERROR(A$5*(led1FTA1*EXP(-$A$8/led1FTt1)+led1FTy0)*(led1FCA1*EXP(-$A47*1000/led1FCt1)+led1FCy0),NA()) -> 509.863 | C47: =IFERROR(B$5*(led1VTA1*EXP(-$A$8/led1VTt1)+led1VTy0)*(led1VCA1*EXP(-$A47*1000/led1VCt1)+led1VCy0),NA()) -> 5.820 | D47: 3.085 | E47: 91.17 | F47: 165.3 | G47: =B47/$D$8 ->  | H47: =ROUNDUP($E$8/B47,0) -> 27 | I47: 13766
A48: =IF(OR(ROUND(A47+$A$11,3)>$B$11,ROUND(A47+$A$11,3)>$C$11),NA(),ROUND(A47+$A$11,3)) -> 0.545 | B48: 523.047 | C48: 5.840 | D48: 3.183 | E48: 91.37 | F48: 164.3 | H48: 26 | I48: 13599
A49: 0.560 | B49: 536.168 | C49: 5.859 | D49: 3.281 | E49: 91.56 | F49: 163.4 | H49: 25 | I49: 13404
A50: 0.575 | B50: 549.226 | C50: 5.879 | D50: 3.380 | E50: 91.76 | F50: 162.5 | H50: 25 | I50: 13731
A51: 0.590 | B51: 562.222 | C51: 5.898 | D51: 3.480 | E51: 91.96 | F51: 161.6 | H51: 24 | I51: 13493
A52: 0.605 | B52: 575.155 | C52: 5.917 | D52: 3.580 | E52: 92.16 | F52: 160.7 | H52: 24 | I52: 13804
A53: 0.620 | B53: 588.027 | C53: 5.936 | D53: 3.680 | E53: 92.36 | F53: 159.8 | H53: 23 | I53: 13525
A54: 0.635 | B54: 600.837 | C54: 5.955 | D54: 3.781 | E54: 92.56 | F54: 158.9 | H54: 23 | I54: 13819
A55: 0.650 | B55: 613.586 | C55: 5.973 | D55: 3.883 | E55: 92.77 | F55: 158.0 | H55: 22 | I55: 13499
A56: 0.665 | B56: 626.274 | C56: 5.992 | D56: 3.985 | E56: 92.97 | F56: 157.2 | H56: 22 | I56: 13778
A57: 0.680 | B57: 638.901 | C57: 6.010 | D57: 4.087 | E57: 93.17 | F57: 156.3 | H57: 21 | I57: 13417
A58: 0.695 | B58: 651.468 | C58: 6.029 | D58: 4.190 | E58: 93.38 | F58: 155.5 | H58: 21 | I58: 13681
A59: 0.710 | B59: 663.975 | C59: 6.047 | D59: 4.293 | E59: 93.59 | F59: 154.7 | H59: 21 | I59: 13943
A60: 0.725 | B60: 676.422 | C60: 6.065 | D60: 4.397 | E60: 93.79 | F60: 153.8 | H60: 20 | I60: 13528
A61: 0.740 | B61: 688.810 | C61: 6.083 | D61: 4.501 | E61: 94.00 | F61: 153.0 | H61: 20 | I61: 13776
A62: 0.755 | B62: 701.138 | C62: 6.101 | D62: 4.606 | E62: 94.21 | F62: 152.2 | H62: 20 | I62: 14023
A63: 0.770 | B63: 713.407 | C63: 6.118 | D63: 4.711 | E63: 94.42 | F63: 151.4 | H63: 19 | I63: 13555
A64: 0.785 | B64: 725.618 | C64: 6.136 | D64: 4.817 | E64: 94.63 | F64: 150.7 | H64: 19 | I64: 13787
A65: 0.800 | B65: 737.770 | C65: 6.153 | D65: 4.923 | E65: 94.85 | F65: 149.9 | H65: 19 | I65: 14018
B79: =IFERROR(A$5*(led1FTA1*EXP(-$A$8/led1FTt1)+led1FTy0)*(led1FCA1*EXP(-$A79*1000/led1FCt1)+led1FCy0),NA()) ->  | C79: =IFERROR(B$5*(led1VTA1*EXP(-$A$8/led1VTt1)+led1VTy0)*(led1VCA1*EXP(-$A79*1000/led1VCt1)+led1VCy0),NA()) ->  | G79: =B79/$D$8 ->  | H79: =ROUNDUP($E$8/B79,0) -> 
A80: =IF(OR(ROUND(A79+$A$11,3)>$B$11,ROUND(A79+$A$11,3)>$C$11),NA(),ROUND(A79+$A$11,3)) -> 
D104: =C104*A104 ->  | E104: =$A$8+D104*$B$8 ->  | F104: =B104/D104 ->  | I104: =H104*B104 -> 
B111: =IFERROR(A$5*(led1FTA1*EXP(-$A$8/led1FTt1)+led1FTy0)*(led1FCA1*EXP(-$A111*1000/led1FCt1)+led1FCy0),NA()) ->  | C111: =IFERROR(B$5*(led1VTA1*EXP(-$A$8/led1VTt1)+led1VTy0)*(led1VCA1*EXP(-$A111*1000/led1VCt1)+led1VCy0),NA()) -> 

Sheet LED #2 (hidden)
A2: =IF(Table!I7="",NA(),Table!I7) -> SZ5-M3-Wx-C7 | G2: 7 | H2: =G2+1 -> 8 | I2: 9 | J2: 10 | K2: 11 | L2: 12 | M2: 13 | N2: 14
G3: @Current
A4: Flux | B4: VF | G4: Relative Flux (FC) | K4: Relative VF (VC)
A5: =Table!H15 -> 320.0 | B5: =Table!J15 -> 2.875 | G5: y0 | H5: A1 | I5: t1 | J5: R2 | K5: y0 | L5: A1 | M5: t1 | N5: R2
G6: =VLOOKUP($A$2,Parameter!$A:$W,G2,0) -> 5.1947 | H6: =VLOOKUP($A$2,Parameter!$A:$W,H2,0) -> -5.1813 | I6: =VLOOKUP($A$2,Parameter!$A:$W,I2,0) -> 3300.7277 | J6: =VLOOKUP($A$2,Parameter!$A:$W,J2,0) -> 0.99995 | K6: =VLOOKUP($A$2,Parameter!$A:$W,K2,0) -> 1.6346 | L6: =VLOOKUP($A$2,Parameter!$A:$W,L2,0) -> -0.7677 | M6: =VLOOKUP($A$2,Parameter!$A:$W,M2,0) -> 3853.3435 | N6: =VLOOKUP($A$2,Parameter!$A:$W,N2,0) -> 0.99865
A7: Ta/Tc [℃] | B7: Rth | C7: IOPPR. [mA] | D7: Price [$] | E7: Req.Flux | G7: =N2+1 -> 15 | H7: =G7+1 -> 16 | I7: 17 | J7: 18 | K7: 19 | L7: 20 | M7: 21 | N7: 22
A8: =Table!I18 -> 85.0 | B8: =Table!I10 -> 3.2 | C8: =Table!I20 -> 700 | D8: =Table!I22 -> 0.000 | E8: =Table!$F$4 -> 13,333 | G8: @Temperature
G9: Relative Flux (FT) | K9: Relative VF (VT)
A10: I. Interval | B10: I. Range max | C10: I. max | G10: y0 | H10: A1 | I10: t1 | J10: R2 | K10: y0 | L10: A1 | M10: t1 | N10: R2
A11: =Table!$J$4 -> 0.015 | B11: =Table!$I$4 -> 1.500 | C11: =Table!K10/1000 -> 1.500 | G11: =VLOOKUP($A$2,Parameter!$A:$W,G7,0) -> 1.0886 | H11: =VLOOKUP($A$2,Parameter!$A:$W,H7,0) -> -0.0295 | I11: =VLOOKUP($A$2,Parameter!$A:$W,I7,0) -> -74.7738 | J11: =VLOOKUP($A$2,Parameter!$A:$W,J7,0) -> 0.99679 | K11: =VLOOKUP($A$2,Parameter!$A:$W,K7,0) -> 0.9360 | L11: =VLOOKUP($A$2,Parameter!$A:$W,L7,0) -> 0.1068 | M11: =VLOOKUP($A$2,Parameter!$A:$W,M7,0) -> 165.8687 | N11: =VLOOKUP($A$2,Parameter!$A:$W,N7,0) -> 0.99942
A14: IF | B14: Flux | C14: VF | D14: PD | E14: TJ | F14: lm/W | G14: lm/$ | H14: # LEDs | I14: Tot.lm
A15: =IF(A2="",NA(),Table!$H$4) -> 0.050 | B15: =IFERROR(A$5*(led2FTA1*EXP(-$A$8/led2FTt1)+led2FTy0)*(led2FCA1*EXP(-$A15*1000/led2FCt1)+led2FCy0),NA()) -> 29.136 | C15: =IFERROR(B$5*(led2VTA1*EXP(-$A$8/led2VTt1)+led2VTy0)*(led2VCA1*EXP(-$A15*1000/led2VCt1)+led2VCy0),NA()) -> 2.521 | D15: =C15*A15 -> 0.126 | E15: =$A$8+D15*$B$8 -> 85.40 | F15: =B15/D15 -> 231.2 | G15: =B15/$D$8 ->  | H15: =ROUNDUP($E$8/B15,0) -> 458 | I15: =H15*B15 -> 13344
A16: =IF(OR(ROUND(A15+$A$11,3)>$B$11,ROUND(A15+$A$11,3)>$C$11),NA(),ROUND(A15+$A$11,3)) -> 0.065 | B16: 36.516 | C16: 2.529 | D16: 0.164 | E16: 85.53 | F16: 222.1 | H16: 366 | I16: 13365
A17: 0.080 | B17: 43.862 | C17: 2.538 | D17: 0.203 | E17: 85.65 | F17: 216.1 | H17: 304 | I17: 13334
A18: 0.095 | B18: 51.176 | C18: 2.546 | D18: 0.242 | E18: 85.77 | F18: 211.6 | H18: 261 | I18: 13357
A19: 0.110 | B19: 58.456 | C19: 2.554 | D19: 0.281 | E19: 85.90 | F19: 208.0 | H19: 229 | I19: 13386
A20: 0.125 | B20: 65.702 | C20: 2.563 | D20: 0.320 | E20: 86.03 | F20: 205.1 | H20: 203 | I20: 13338
A21: 0.140 | B21: 72.917 | C21: 2.571 | D21: 0.360 | E21: 86.15 | F21: 202.6 | H21: 183 | I21: 13344
A22: 0.155 | B22: 80.098 | C22: 2.579 | D22: 0.400 | E22: 86.28 | F22: 200.3 | H22: 167 | I22: 13376
A23: 0.170 | B23: 87.247 | C23: 2.588 | D23: 0.440 | E23: 86.41 | F23: 198.3 | H23: 153 | I23: 13349
A24: 0.185 | B24: 94.363 | C24: 2.596 | D24: 0.480 | E24: 86.54 | F24: 196.5 | H24: 142 | I24: 13400
A25: 0.200 | B25: 101.447 | C25: 2.604 | D25: 0.521 | E25: 86.67 | F25: 194.8 | H25: 132 | I25: 13391
A26: 0.215 | B26: 108.499 | C26: 2.612 | D26: 0.562 | E26: 86.80 | F26: 193.2 | H26: 123 | I26: 13345
A27: 0.230 | B27: 115.519 | C27: 2.620 | D27: 0.603 | E27: 86.93 | F27: 191.7 | H27: 116 | I27: 13400
A28: 0.245 | B28: 122.508 | C28: 2.628 | D28: 0.644 | E28: 87.06 | F28: 190.3 | H28: 109 | I28: 13353
A29: 0.260 | B29: 129.464 | C29: 2.636 | D29: 0.685 | E29: 87.19 | F29: 188.9 | H29: 103 | I29: 13335
A30: 0.275 | B30: 136.389 | C30: 2.644 | D30: 0.727 | E30: 87.33 | F30: 187.6 | H30: 98 | I30: 13366
A31: 0.290 | B31: 143.283 | C31: 2.652 | D31: 0.769 | E31: 87.46 | F31: 186.3 | H31: 94 | I31: 13469
A32: 0.305 | B32: 150.145 | C32: 2.660 | D32: 0.811 | E32: 87.60 | F32: 185.0 | H32: 89 | I32: 13363
A33: 0.320 | B33: 156.976 | C33: 2.668 | D33: 0.854 | E33: 87.73 | F33: 183.9 | H33: 85 | I33: 13343
A34: 0.335 | B34: 163.777 | C34: 2.676 | D34: 0.896 | E34: 87.87 | F34: 182.7 | H34: 82 | I34: 13430
A35: 0.350 | B35: 170.546 | C35: 2.684 | D35: 0.939 | E35: 88.01 | F35: 181.6 | H35: 79 | I35: 13473
A36: 0.365 | B36: 177.285 | C36: 2.692 | D36: 0.982 | E36: 88.14 | F36: 180.4 | H36: 76 | I36: 13474
A37: 0.380 | B37: 183.993 | C37: 2.700 | D37: 1.026 | E37: 88.28 | F37: 179.4 | H37: 73 | I37: 13431
A38: 0.395 | B38: 190.671 | C38: 2.707 | D38: 1.069 | E38: 88.42 | F38: 178.3 | H38: 70 | I38: 13347
A39: 0.410 | B39: 197.318 | C39: 2.715 | D39: 1.113 | E39: 88.56 | F39: 177.3 | H39: 68 | I39: 13418
A40: 0.425 | B40: 203.935 | C40: 2.723 | D40: 1.157 | E40: 88.70 | F40: 176.2 | H40: 66 | I40: 13460
A41: 0.440 | B41: 210.523 | C41: 2.730 | D41: 1.201 | E41: 88.84 | F41: 175.2 | H41: 64 | I41: 13473
A42: 0.455 | B42: 217.080 | C42: 2.738 | D42: 1.246 | E42: 88.99 | F42: 174.2 | H42: 62 | I42: 13459
A43: 0.470 | B43: 223.608 | C43: 2.746 | D43: 1.290 | E43: 89.13 | F43: 173.3 | H43: 60 | I43: 13416
A44: 0.485 | B44: 230.106 | C44: 2.753 | D44: 1.335 | E44: 89.27 | F44: 172.3 | H44: 58 | I44: 13346
A45: 0.500 | B45: 236.575 | C45: 2.761 | D45: 1.380 | E45: 89.42 | F45: 171.4 | H45: 57 | I45: 13485
A46: 0.515 | B46: 243.014 | C46: 2.768 | D46: 1.426 | E46: 89.56 | F46: 170.4 | H46: 55 | I46: 13366
A47: 0.530 | B47: =IFERROR(A$5*(led2FTA1*EXP(-$A$8/led2FTt1)+led2FTy0)*(led2FCA1*EXP(-$A47*1000/led2FCt1)+led2FCy0),NA()) -> 249.424 | C47: =IFERROR(B$5*(led2VTA1*EXP(-$A$8/led2VTt1)+led2VTy0)*(led2VCA1*EXP(-$A47*1000/led2VCt1)+led2VCy0),NA()) -> 2.776 | D47: 1.471 | E47: 89.71 | F47: 169.5 | G47: =B47/$D$8 ->  | H47: =ROUNDUP($E$8/B47,0) -> 54 | I47: 13469
A48: 0.545 | B48: 255.805 | C48: 2.783 | D48: 1.517 | E48: 89.85 | F48: 168.6 | H48: 53 | I48: 13558
A49: 0.560 | B49: 262.158 | C49: 2.791 | D49: 1.563 | E49: 90.00 | F49: 167.7 | H49: 51 | I49: 13370
A50: 0.575 | B50: 268.481 | C50: 2.798 | D50: 1.609 | E50: 90.15 | F50: 166.9 | H50: 50 | I50: 13424
A51: 0.590 | B51: 274.776 | C51: 2.806 | D51: 1.655 | E51: 90.30 | F51: 166.0 | H51: 49 | I51: 13464
A52: 0.605 | B52: 281.042 | C52: 2.813 | D52: 1.702 | E52: 90.45 | F52: 165.1 | H52: 48 | I52: 13490
A53: 0.620 | B53: 287.279 | C53: 2.820 | D53: 1.749 | E53: 90.60 | F53: 164.3 | H53: 47 | I53: 13502
A54: 0.635 | B54: 293.489 | C54: 2.828 | D54: 1.796 | E54: 90.75 | F54: 163.5 | H54: 46 | I54: 13500
A55: 0.650 | B55: 299.670 | C55: 2.835 | D55: 1.843 | E55: 90.90 | F55: 162.6 | H55: 45 | I55: 13485
A56: 0.665 | B56: 305.823 | C56: 2.842 | D56: 1.890 | E56: 91.05 | F56: 161.8 | H56: 44 | I56: 13456
A57: 0.680 | B57: 311.949 | C57: 2.849 | D57: 1.938 | E57: 91.20 | F57: 161.0 | H57: 43 | I57: 13414
A58: 0.695 | B58: 318.046 | C58: 2.857 | D58: 1.985 | E58: 91.35 | F58: 160.2 | H58: 42 | I58: 13358
A59: 0.710 | B59: 324.116 | C59: 2.864 | D59: 2.033 | E59: 91.51 | F59: 159.4 | H59: 42 | I59: 13613
A60: 0.725 | B60: 330.159 | C60: 2.871 | D60: 2.081 | E60: 91.66 | F60: 158.6 | H60: 41 | I60: 13537
A61: 0.740 | B61: 336.174 | C61: 2.878 | D61: 2.130 | E61: 91.81 | F61: 157.9 | H61: 40 | I61: 13447
A62: 0.755 | B62: 342.161 | C62: 2.885 | D62: 2.178 | E62: 91.97 | F62: 157.1 | H62: 39 | I62: 13344
A63: 0.770 | B63: 348.122 | C63: 2.892 | D63: 2.227 | E63: 92.13 | F63: 156.3 | H63: 39 | I63: 13577
A64: 0.785 | B64: 354.056 | C64: 2.899 | D64: 2.276 | E64: 92.28 | F64: 155.6 | H64: 38 | I64: 13454
A65: 0.800 | B65: 359.962 | C65: 2.906 | D65: 2.325 | E65: 92.44 | F65: 154.8 | H65: 38 | I65: 13679
A66: 0.815 | B66: 365.842 | C66: 2.913 | D66: 2.374 | E66: 92.60 | F66: 154.1 | H66: 37 | I66: 13536
A67: 0.830 | B67: 371.695 | C67: 2.920 | D67: 2.424 | E67: 92.76 | F67: 153.4 | H67: 36 | I67: 13381
A68: 0.845 | B68: 377.522 | C68: 2.927 | D68: 2.473 | E68: 92.91 | F68: 152.6 | H68: 36 | I68: 13591
A69: 0.860 | B69: 383.322 | C69: 2.934 | D69: 2.523 | E69: 93.07 | F69: 151.9 | H69: 35 | I69: 13416
A70: 0.875 | B70: 389.096 | C70: 2.941 | D70: 2.573 | E70: 93.23 | F70: 151.2 | H70: 35 | I70: 13618
A71: 0.890 | B71: 394.844 | C71: 2.947 | D71: 2.623 | E71: 93.39 | F71: 150.5 | H71: 34 | I71: 13425
A72: 0.905 | B72: 400.566 | C72: 2.954 | D72: 2.674 | E72: 93.56 | F72: 149.8 | H72: 34 | I72: 13619
A73: 0.920 | B73: 406.262 | C73: 2.961 | D73: 2.724 | E73: 93.72 | F73: 149.1 | H73: 33 | I73: 13407
A74: 0.935 | B74: 411.932 | C74: 2.968 | D74: 2.775 | E74: 93.88 | F74: 148.4 | H74: 33 | I74: 13594
A75: 0.950 | B75: 417.576 | C75: 2.975 | D75: 2.826 | E75: 94.04 | F75: 147.8 | H75: 32 | I75: 13362
A76: 0.965 | B76: 423.194 | C76: 2.981 | D76: 2.877 | E76: 94.21 | F76: 147.1 | H76: 32 | I76: 13542
A77: 0.980 | B77: 428.788 | C77: 2.988 | D77: 2.928 | E77: 94.37 | F77: 146.4 | H77: 32 | I77: 13721
A78: 0.995 | B78: 434.355 | C78: 2.995 | D78: 2.980 | E78: 94.53 | F78: 145.8 | H78: 31 | I78: 13465
A79: 1.010 | B79: =IFERROR(A$5*(led2FTA1*EXP(-$A$8/led2FTt1)+led2FTy0)*(led2FCA1*EXP(-$A79*1000/led2FCt1)+led2FCy0),NA()) -> 439.898 | C79: =IFERROR(B$5*(led2VTA1*EXP(-$A$8/led2VTt1)+led2VTy0)*(led2VCA1*EXP(-$A79*1000/led2VCt1)+led2VCy0),NA()) -> 3.001 | D79: =C79*A79 -> 3.031 | E79: =$A$8+D79*$B$8 -> 94.70 | F79: =B79/D79 -> 145.1 | G79: =B79/$D$8 ->  | H79: =ROUNDUP($E$8/B79,0) -> 31 | I79: =H79*B79 -> 13637
A80: =IF(OR(ROUND(A79+$A$11,3)>$B$11,ROUND(A79+$A$11,3)>$C$11),NA(),ROUND(A79+$A$11,3)) -> 1.025 | B80: 445.415 | C80: 3.008 | D80: 3.083 | E80: 94.87 | F80: 144.5 | H80: 30 | I80: 13362
A81: 1.040 | B81: 450.908 | C81: 3.014 | D81: 3.135 | E81: 95.03 | F81: 143.8 | H81: 30 | I81: 13527
A82: 1.055 | B82: 456.375 | C82: 3.021 | D82: 3.187 | E82: 95.20 | F82: 143.2 | H82: 30 | I82: 13691
A83: 1.070 | B83: 461.818 | C83: 3.027 | D83: 3.239 | E83: 95.37 | F83: 142.6 | H83: 29 | I83: 13393
A84: 1.085 | B84: 467.236 | C84: 3.034 | D84: 3.292 | E84: 95.53 | F84: 141.9 | H84: 29 | I84: 13550
A85: 1.100 | B85: 472.630 | C85: 3.040 | D85: 3.344 | E85: 95.70 | F85: 141.3 | H85: 29 | I85: 13706
A86: 1.115 | B86: 477.999 | C86: 3.047 | D86: 3.397 | E86: 95.87 | F86: 140.7 | H86: 28 | I86: 13384
A87: 1.130 | B87: 483.343 | C87: 3.053 | D87: 3.450 | E87: 96.04 | F87: 140.1 | H87: 28 | I87: 13534
A88: 1.145 | B88: 488.664 | C88: 3.060 | D88: 3.503 | E88: 96.21 | F88: 139.5 | H88: 28 | I88: 13683
A89: 1.160 | B89: 493.960 | C89: 3.066 | D89: 3.557 | E89: 96.38 | F89: 138.9 | H89: 27 | I89: 13337
A90: 1.175 | B90: 499.233 | C90: 3.072 | D90: 3.610 | E90: 96.55 | F90: 138.3 | H90: 27 | I90: 13479
A91: 1.190 | B91: 504.481 | C91: 3.079 | D91: 3.664 | E91: 96.72 | F91: 137.7 | H91: 27 | I91: 13621
A92: 1.205 | B92: 509.706 | C92: 3.085 | D92: 3.717 | E92: 96.90 | F92: 137.1 | H92: 27 | I92: 13762
A93: 1.220 | B93: 514.906 | C93: 3.091 | D93: 3.771 | E93: 97.07 | F93: 136.5 | H93: 26 | I93: 13388
A94: 1.235 | B94: 520.084 | C94: 3.098 | D94: 3.825 | E94: 97.24 | F94: 136.0 | H94: 26 | I94: 13522
A95: 1.250 | B95: 525.238 | C95: 3.104 | D95: 3.880 | E95: 97.41 | F95: 135.4 | H95: 26 | I95: 13656
A96: 1.265 | B96: 530.368 | C96: 3.110 | D96: 3.934 | E96: 97.59 | F96: 134.8 | H96: 26 | I96: 13790
A97: 1.280 | B97: 535.475 | C97: 3.116 | D97: 3.989 | E97: 97.76 | F97: 134.3 | H97: 25 | I97: 13387
A98: 1.295 | B98: 540.560 | C98: 3.122 | D98: 4.043 | E98: 97.94 | F98: 133.7 | H98: 25 | I98: 13514
A99: 1.310 | B99: 545.621 | C99: 3.128 | D99: 4.098 | E99: 98.11 | F99: 133.1 | H99: 25 | I99: 13641
A100: 1.325 | B100: 550.659 | C100: 3.134 | D100: 4.153 | E100: 98.29 | F100: 132.6 | H100: 25 | I100: 13766
A101: 1.340 | B101: 555.674 | C101: 3.141 | D101: 4.208 | E101: 98.47 | F101: 132.0 | H101: 24 | I101: 13336
A102: 1.355 | B102: 560.666 | C102: 3.147 | D102: 4.264 | E102: 98.64 | F102: 131.5 | H102: 24 | I102: 13456
A103: 1.370 | B103: 565.636 | C103: 3.153 | D103: 4.319 | E103: 98.82 | F103: 131.0 | H103: 24 | I103: 13575
A104: 1.385 | B104: 570.584 | C104: 3.159 | D104: 4.375 | E104: 99.00 | F104: 130.4 | H104: 24 | I104: 13694
A105: 1.400 | B105: 575.508 | C105: 3.165 | D105: 4.431 | E105: 99.18 | F105: 129.9 | H105: 24 | I105: 13812
A106: 1.415 | B106: 580.411 | C106: 3.171 | D106: 4.486 | E106: 99.36 | F106: 129.4 | H106: 23 | I106: 13349
A107: 1.430 | B107: 585.291 | C107: 3.177 | D107: 4.542 | E107: 99.54 | F107: 128.8 | H107: 23 | I107: 13462
A108: 1.445 | B108: 590.150 | C108: 3.182 | D108: 4.599 | E108: 99.72 | F108: 128.3 | H108: 23 | I108: 13573
A109: 1.460 | B109: 594.986 | C109: 3.188 | D109: 4.655 | E109: 99.90 | F109: 127.8 | H109: 23 | I109: 13685
A110: 1.475 | B110: 599.800 | C110: 3.194 | D110: 4.712 | E110: 100.08 | F110: 127.3 | H110: 23 | I110: 13795
A111: 1.490 | B111: =IFERROR(A$5*(led2FTA1*EXP(-$A$8/led2FTt1)+led2FTy0)*(led2FCA1*EXP(-$A111*1000/led2FCt1)+led2FCy0),NA()) -> 604.592 | C111: =IFERROR(B$5*(led2VTA1*EXP(-$A$8/led2VTt1)+led2VTy0)*(led2VCA1*EXP(-$A111*1000/led2VCt1)+led2VCy0),NA()) -> 3.200 | D111: 4.768 | E111: 100.26 | F111: 126.8 | H111: 23 | I111: 13906

Sheet LED #3 (hidden)
A2: =IF(Table!N7="",NA(),Table!N7) ->  | G2: 7 | H2: =G2+1 -> 8 | I2: 9 | J2: 10 | K2: 11 | L2: 12 | M2: 13 | N2: 14
G3: @Current
A4: Flux | B4: VF | G4: Relative Flux (FC) | K4: Relative VF (VC)
A5: =Table!M15 ->  | B5: =Table!O15 ->  | G5: y0 | H5: A1 | I5: t1 | J5: R2 | K5: y0 | L5: A1 | M5: t1 | N5: R2
G6: =VLOOKUP($A$2,Parameter!$A:$W,G$2,0) ->  | H6: =VLOOKUP($A$2,Parameter!$A:$W,H$2,0) ->  | I6: =VLOOKUP($A$2,Parameter!$A:$W,I$2,0) ->  | J6: =VLOOKUP($A$2,Parameter!$A:$W,J$2,0) ->  | K6: =VLOOKUP($A$2,Parameter!$A:$W,K$2,0) ->  | L6: =VLOOKUP($A$2,Parameter!$A:$W,L$2,0) ->  | M6: =VLOOKUP($A$2,Parameter!$A:$W,M$2,0) ->  | N6: =VLOOKUP($A$2,Parameter!$A:$W,N$2,0) -> 
A7: Ta/Tc [℃] | B7: Rth | C7: IOPPR. [mA] | D7: Price [$] | E7: Req.Flux | G7: =N2+1 -> 15 | H7: =G7+1 -> 16 | I7: 17 | J7: 18 | K7: 19 | L7: 20 | M7: 21 | N7: 22
A8: =Table!N18 -> 85.0 | B8: =Table!N10 ->  | C8: =Table!N20 -> 1000 | D8: =Table!N22 -> . | E8: =Table!$F$4 -> 13,333 | G8: @Temperature
G9: Relative Flux (FT) | K9: Relative VF (VT)
A10: I. Interval | B10: I. Range max | C10: I. max | G10: y0 | H10: A1 | I10: t1 | J10: R2 | K10: y0 | L10: A1 | M10: t1 | N10: R2
A11: =Table!$J$4 -> 0.015 | B11: =Table!$I$4 -> 1.500 | C11: =Table!P10/1000 ->  | G11: =VLOOKUP($A$2,Parameter!$A:$W,G7,0) ->  | H11: =VLOOKUP($A$2,Parameter!$A:$W,H7,0) ->  | I11: =VLOOKUP($A$2,Parameter!$A:$W,I7,0) ->  | J11: =VLOOKUP($A$2,Parameter!$A:$W,J7,0) ->  | K11: =VLOOKUP($A$2,Parameter!$A:$W,K7,0) ->  | L11: =VLOOKUP($A$2,Parameter!$A:$W,L7,0) ->  | M11: =VLOOKUP($A$2,Parameter!$A:$W,M7,0) ->  | N11: =VLOOKUP($A$2,Parameter!$A:$W,N7,0) -> 
A14: IF | B14: Flux | C14: VF | D14: PD | E14: TJ | F14: lm/W | G14: lm/$ | H14: # LEDs | I14: Tot.lm
A15: =IF(A2="",NA(),Table!$H$4) ->  | B15: =IFERROR(A$5*(led3FTA1*EXP(-$A$8/led3FTt1)+led3FTy0)*(led3FCA1*EXP(-$A15*1000/led3FCt1)+led3FCy0),NA()) ->  | C15: =IFERROR(B$5*(led3VTA1*EXP(-$A$8/led3VTt1)+led3VTy0)*(led3VCA1*EXP(-$A15*1000/led3VCt1)+led3VCy0),NA()) ->  | D15: =C15*A15 ->  | E15: =$A$8+D15*$B$8 ->  | F15: =B15/D15 ->  | G15: =B15/$D$8 ->  | H15: =ROUNDUP($E$8/B15,0) ->  | I15: =H15*B15 -> 
A16: =IF(OR(ROUND(A15+$A$11,3)>$B$11,ROUND(A15+$A$11,3)>$C$11),NA(),ROUND(A15+$A$11,3)) -> 
B47: =IFERROR(A$5*(led3FTA1*EXP(-$A$8/led3FTt1)+led3FTy0)*(led3FCA1*EXP(-$A47*1000/led3FCt1)+led3FCy0),NA()) ->  | C47: =IFERROR(B$5*(led3VTA1*EXP(-$A$8/led3VTt1)+led3VTy0)*(led3VCA1*EXP(-$A47*1000/led3VCt1)+led3VCy0),NA()) ->  | H47: =ROUNDUP($E$8/B47,0) -> 
B79: =IFERROR(A$5*(led3FTA1*EXP(-$A$8/led3FTt1)+led3FTy0)*(led3FCA1*EXP(-$A79*1000/led3FCt1)+led3FCy0),NA()) ->  | C79: =IFERROR(B$5*(led3VTA1*EXP(-$A$8/led3VTt1)+led3VTy0)*(led3VCA1*EXP(-$A79*1000/led3VCt1)+led3VCy0),NA()) ->  | D79: =C79*A79 ->  | E79: =$A$8+D79*$B$8 ->  | F79: =B79/D79 ->  | G79: =B79/$D$8 ->  | H79: =ROUNDUP($E$8/B79,0) ->  | I79: =H79*B79 -> 
A80: =IF(OR(ROUND(A79+$A$11,3)>$B$11,ROUND(A79+$A$11,3)>$C$11),NA(),ROUND(A79+$A$11,3)) -> 
B111: =IFERROR(A$5*(led3FTA1*EXP(-$A$8/led3FTt1)+led3FTy0)*(led3FCA1*EXP(-$A111*1000/led3FCt1)+led3FCy0),NA()) ->  | C111: =IFERROR(B$5*(led3VTA1*EXP(-$A$8/led3VTt1)+led3VTy0)*(led3VCA1*EXP(-$A111*1000/led3VCt1)+led3VCy0),NA()) -> 

Sheet LED #4 (hidden)
A2: =IF(Table!S7="",NA(),Table!S7) ->  | G2: 7 | H2: =G2+1 -> 8 | I2: 9 | J2: 10 | K2: 11 | L2: 12 | M2: 13 | N2: 14
G3: @Current
A4: Flux | B4: VF | G4: Relative Flux (FC) | K4: Relative VF (VC)
A5: =Table!R15 ->  | B5: =Table!T15 ->  | G5: y0 | H5: A1 | I5: t1 | J5: R2 | K5: y0 | L5: A1 | M5: t1 | N5: R2
G6: =VLOOKUP($A$2,Parameter!$A:$W,G$2,0) ->  | H6: =VLOOKUP($A$2,Parameter!$A:$W,H$2,0) ->  | I6: =VLOOKUP($A$2,Parameter!$A:$W,I$2,0) ->  | J6: =VLOOKUP($A$2,Parameter!$A:$W,J$2,0) ->  | K6: =VLOOKUP($A$2,Parameter!$A:$W,K$2,0) ->  | L6: =VLOOKUP($A$2,Parameter!$A:$W,L$2,0) ->  | M6: =VLOOKUP($A$2,Parameter!$A:$W,M$2,0) ->  | N6: =VLOOKUP($A$2,Parameter!$A:$W,N$2,0) -> 
A7: Ta/Tc [℃] | B7: Rth | C7: IOPPR. [mA] | D7: Price [$] | E7: Req.Flux | G7: =N2+1 -> 15 | H7: =G7+1 -> 16 | I7: 17 | J7: 18 | K7: 19 | L7: 20 | M7: 21 | N7: 22
A8: =Table!S18 -> 25.0 | B8: =Table!S10 ->  | C8: =Table!S20 -> 65 | D8: =Table!S22 -> 0.050 | E8: =Table!$F$4 -> 13,333 | G8: @Temperature
G9: Relative Flux (FT) | K9: Relative VF (VT)
A10: I. Interval | B10: I. Range max | C10: I. max | G10: y0 | H10: A1 | I10: t1 | J10: R2 | K10: y0 | L10: A1 | M10: t1 | N10: R2
A11: =Table!$J$4 -> 0.015 | B11: =Table!$I$4 -> 1.500 | C11: =Table!U10/1000 ->  | G11: =VLOOKUP($A$2,Parameter!$A:$W,G7,0) ->  | H11: =VLOOKUP($A$2,Parameter!$A:$W,H7,0) ->  | I11: =VLOOKUP($A$2,Parameter!$A:$W,I7,0) ->  | J11: =VLOOKUP($A$2,Parameter!$A:$W,J7,0) ->  | K11: =VLOOKUP($A$2,Parameter!$A:$W,K7,0) ->  | L11: =VLOOKUP($A$2,Parameter!$A:$W,L7,0) ->  | M11: =VLOOKUP($A$2,Parameter!$A:$W,M7,0) ->  | N11: =VLOOKUP($A$2,Parameter!$A:$W,N7,0) -> 
A14: IF | B14: Flux | C14: VF | D14: PD | E14: TJ | F14: lm/W | G14: lm/$ | H14: # LEDs | I14: Tot.lm
A15: =IF(A2="",NA(),Table!$H$4) ->  | B15: =IFERROR(A$5*(led4FTA1*EXP(-$A$8/led4FTt1)+led4FTy0)*(led4FCA1*EXP(-$A15*1000/led4FCt1)+led4FCy0),NA()) ->  | C15: =IFERROR(B$5*(led4VTA1*EXP(-$A$8/led4VTt1)+led4VTy0)*(led4VCA1*EXP(-$A15*1000/led4VCt1)+led4VCy0),NA()) ->  | D15: =C15*A15 ->  | E15: =$A$8+D15*$B$8 ->  | F15: =B15/D15 ->  | G15: =B15/$D$8 ->  | H15: =ROUNDUP($E$8/B15,0) ->  | I15: =H15*B15 -> 
A16: =IF(OR(ROUND(A15+$A$11,3)>$B$11,ROUND(A15+$A$11,3)>$C$11),NA(),ROUND(A15+$A$11,3)) -> 
B47: =IFERROR(A$5*(led4FTA1*EXP(-$A$8/led4FTt1)+led4FTy0)*(led4FCA1*EXP(-$A47*1000/led4FCt1)+led4FCy0),NA()) ->  | C47: =IFERROR(B$5*(led4VTA1*EXP(-$A$8/led4VTt1)+led4VTy0)*(led4VCA1*EXP(-$A47*1000/led4VCt1)+led4VCy0),NA()) ->  | H47: =ROUNDUP($E$8/B47,0) -> 
B79: =IFERROR(A$5*(led4FTA1*EXP(-$A$8/led4FTt1)+led4FTy0)*(led4FCA1*EXP(-$A79*1000/led4FCt1)+led4FCy0),NA()) ->  | C79: =IFERROR(B$5*(led4VTA1*EXP(-$A$8/led4VTt1)+led4VTy0)*(led4VCA1*EXP(-$A79*1000/led4VCt1)+led4VCy0),NA()) ->  | D79: =C79*A79 ->  | E79: =$A$8+D79*$B$8 ->  | F79: =B79/D79 ->  | G79: =B79/$D$8 ->  | H79: =ROUNDUP($E$8/B79,0) ->  | I79: =H79*B79 -> 
A80: =IF(OR(ROUND(A79+$A$11,3)>$B$11,ROUND(A79+$A$11,3)>$C$11),NA(),ROUND(A79+$A$11,3)) -> 
B111: =IFERROR(A$5*(led4FTA1*EXP(-$A$8/led4FTt1)+led4FTy0)*(led4FCA1*EXP(-$A111*1000/led4FCt1)+led4FCy0),NA()) ->  | C111: =IFERROR(B$5*(led4VTA1*EXP(-$A$8/led4VTt1)+led4VTy0)*(led4VCA1*EXP(-$A111*1000/led4VCt1)+led4VCy0),NA()) -> 

Sheet 참조 (hidden)
A1: Rank | E1: Group
A2: Range | B2: Index | E2: Item | F2: Index
A3: min | B3: 1 | E3: IF | F3: 1
A4: typ | B4: 2 | E4: Flux | F4: 2
A5: max | B5: 3 | E5: VF | F5: 3
E6: PD | F6: 4
E7: TJ | F7: 5
E8: lm/W | F8: 6
E9: lm/$ | F9: 7
E10: # LEDs | F10: 8
E11: Tot.lm | F11: 9

Sheet History (hidden)
B3: Rev. | C3: Date | D3: Description | E3: PIC
B4: 1.00 | C4: 2017-07-05 | D4: Designer Tool 신규 생성 | E4: 황대성/황수진
B6: 2.15 | C6: 2017-09-10 | D6: Added STW9Q14D and STW9Q14D-E3, error on Y22 Max and Typ Flux should be 285 and 278 respectively, also error in number of LEDs under LED performance and Lines 33 down.
B7: 2.2 | C7: 2017-10-07 | D7: System performance did not include Optical and Electrical loss this has been modified. Added STW9C2SB, STW8A12D-E3, SAW9C22B-NZ, STW9A12D-E1, STW8A12D, SAW8A32E-E1, SAW8A42E-E1, SAW8A62E-E1, SAW9A32E-E1.
B8: 2.21 | C8: 2017-10-19 | D8: Z5M2 Parameters not coming up. Parameter List and Configuration Tool part number mismatch. Modified Parameter Table part number to match Configuration number.
B9: 2.22_Designer | C9: 2018-01-29 | D9: Added W3 Flux bin for Y15-70CRI, Added SAW0L60A, SAW8L60A, Cree 3030_JB3030AWT, Osram 3030_GW PSLR31.EM, Added Y11-70CRI, Y11-90CRI, Updated Y11-80CRI flux bins, Corrected Y11-9V part number, Updated flux bins for Y15, Y19 and Y22, Designer Capability for Technical support(FAEs, Engineers, etc, NOT for sales)
B10: 2.22_Sales | C10: 2018-01-29 | D10: Sales version removes Designer Section and Competive parts
B11: 2.23_Designer & Sales | C11: 2018-02-20 | D11: Added STW8A2SD, SAW7Q24D, SAW8Q24D, Sunlike STW9C2PB_S, SAWS0661A, SAWS1063A, SAWS1564A, SAWS1566A
B12: 2.3 Designer & Sales | C12: 2018-05-31 | D12: STW8C2PB-E2, Y11-6V, SAW8C22B-NZ, SAW7C22B-IZ, Y22 90CRI, Z5M2 80CRI & 90CRI, also change Designer Total Flux cell to include optics loss.
B13: 2.31 Designer | C13: 2018-06-01 | D13: Added Nichia 219C, and Cree XPG3
B14: 2.32 Designer & Sales | C14: 2018-06-05 | D14: Added Samsung LH351B, LH351C SAW8C22B-IZ and NZ flux bin update, SAW7C22B-IZ flux bin update
B15: 2.34 Designer | C15: 2018-08-28 | D15: Added Samsung LM301B, LM302B, LM303C.
B16: 2.4 Designer & Sales | C16: 2018-10-14 | D16: Modifying STW8C2PB-E2 with updated datasheet, Y11-3V 70CRI coming up under 80CRI - Fixed. Added STW0L6PA, Y11 90CRI.
B17: 2.42 Designer & Sales | C17: 2018-11-06 | D17: Added STW8A12D-S1, STW8A2PD-S1, STW8A2PD-E1
B18: 2.51 Designer & Sales | C18: 2019-04-12 | D18: Added Z5M3 and 3030C
